Workbook

Sheet INDICE
F1: TODO O MUNDO - DÉCADA
F2: Trocas comerciais com Portugal (PT) 2009-2018 Agroalimentar, Mar & Florestas
C3: Fonte
D4: Estatísticas do Comércio Internacional | F4: 1. Todo o Mundo - Síntese
D5: dados: 2017 provisórios; 2018 preliminares | F5: 2. Evolução da balança comercial
F6: 3. Principais transações de Agroalimentar, Mar & Florestas (NC 2 e 4 dígitos)
C7: Data | D7: 2019-11-18T16:29:21.570 | F7: 3A Principais produtos agrícolas e agroalimentares transacionados (NC 2D)
F8: 3B Principais origens/destinos para Agroalimentar, Mar & Florestas
F9: 3C Principais origens/destinos produtos agrícolas e agroalimentares
F10: 4. Evolução da balança comercial por país e produto
F11: 4A Evolução da balança comercial por produto
F12: 5.1. Trocas comerciais por país
F13: 5.1A Trocas comerciais por país (produtos agrícolas e agroalimentares)
F14: 5.2. Trocas comerciais por produto (NC 2 dígitos)

Sheet 1
A1: Todo o Mundo - Síntese para Agroalimentar, Mar & Florestas 2009-2018
A3: • As trocas comerciais de bens transacionáveis (excluindo serviços) entre Portugal e Todo o Mundo representam um total de 46,5 mil milhões de € em exportações e 60,9 mil milhões de € em importações, na média do período 2009-2018, correspondendo a um saldo negativo da balança comercial de cerca de -14,4 mil milhões. No que se refere ao total da economia (incluindo serviços), as exportações totalizam 68 mil milhões de € e as importações 70,7 mil milhões, correspondendo a um saldo negativo de cerca de -2,7 mil milhões.
A4: • No que respeita aos produtos dos setores agrícola e agroalimentar, mar e florestas, Portugal exportou para Todo o Mundo 9,5 mil milhões de € em média anual, no mesmo período, enquanto as importações ascenderam a 11,4 mil milhões de € . Estes setores representam perto de 20,5% do total de exportações de bens transacionáveis e as importações 18,7% das correspondentes importações. Se nos referirmos apenas ao setor agrícola e agroalimentar, as exportações representam, em média, 4,9 mil milhões de € e as importações 7,8 mil milhões.
A5: • As principais exportações do setor Agroalimentar, Mar & Florestas (NC 4 dígitos) neste período são Papel e cartão p/ escrita, etc. (11%), Vinhos de uvas frescas (7%) e Charutos, cigarrilhas e cigarros (5%). As importações mais relevantes do mesmo setor referem-se a Peixes congelados (3%), Carnes de bovino, frescas ou refrigeradas (3%) e Milho (3%).
A6: • Os principais destinos das exportações do setor Agroalimentar, Mar & Florestas no mesmo período são Espanha (31%), França (10%) e Angola (7%). As principais origens das importações são Espanha (46%), França (8%) e Alemanha (6%).
A8: Trocas PT-Todo o Mundo (milhões de euros) Agroalimentar, Mar & Florestas | H8: Trocas PT-Todo o Mundo (milhões de euros) produtos agrícolas e agroalimentares
B10: 2016 | C10: 2017 | D10: 2018 | E10: média 2009-2018 | F10: TVMA* 2009-2018 | G10: TVT* 2009-2018 | I10: 2016 | J10: 2017 | K10: 2018 | L10: média 2009-2018 | M10: TVMA* 2009-2018 | N10: TVT* 2009-2018
A11: Exportações | B11: 10512.41997 | C11: 11148.51496 | D11: 11643.96412 | E11: 9535.37074 | F11: 0.05679025951 | G11: 0.7373527944 | H11: Exportações | I11: 5470.803147 | J11: 5889.11936 | K11: 6100.947274 | L11: 4869.092827 | M11: 0.05662061529 | N11: 0.7345658738
A12: Importações | B12: 11917.93807 | C12: 13033.34249 | D12: 13603.38747 | E12: 11368.68999 | F12: 0.03676527377 | G12: 0.4348431268 | H12: Importações | I12: 7974.610343 | J12: 8737.374007 | K12: 9074.451725 | L12: 7754.365084 | M12: 0.03343820198 | N12: 0.3894570157
A13: Saldo | B13: -1405.518103 | C13: -1884.827526 | D13: -1959.423354 | E13: -1833.319247 | H13: Saldo | I13: -2503.807196 | J13: -2848.254647 | K13: -2973.504451 | L13: -2885.272256
A14: *TVMA - Taxa de variação média anual; TVT - Taxa de variação total
C15: Saldo da Balança Comercial PT-Todo o Mundo (milhões de euros)
C16: 2009 | D16: 2010 | E16: 2011 | F16: 2012 | G16: 2013 | H16: 2014 | I16: 2015 | J16: 2016 | K16: 2017 | L16: 2018 | M16: média 2009-2018
A17: Total Economia (bens e serviços) | C17: -12142.514 | D17: -13599.717 | E17: -7542.067 | F17: -855.159 | G17: 1711.22 | H17: 327.106 | I17: 1046.961 | J17: 2075.987 | K17: 1560.1 | L17: 285.135 | M17: -2713.2948
A18: Total bens transacionáveis* | C18: -19734.43876 | D18: -21403.87527 | E18: -16712.81554 | F18: -11152.20289 | G18: -9694.391117 | H18: -10971.91032 | I18: -10693.65868 | J18: -11377.3551 | K18: -14661.13786 | L18: -17551.57626 | M18: -14395.33618
A19: Agrícola e Agroalimentar (AA) | C19: -3013.65755 | D19: -3261.674028 | E19: -3495.603254 | F19: -2982.28931 | G19: -3010.275639 | H19: -2379.507476 | I19: -2384.149013 | J19: -2503.807196 | K19: -2848.254647 | L19: -2973.504451 | M19: -2885.272256
B20: Mar (M) | C20: -753.002275 | D20: -710.53483 | E20: -712.442204 | F20: -676.287217 | G20: -625.437965 | H20: -675.496774 | I20: -864.999638 | J20: -968.79178 | K20: -1075.439705 | L20: -1115.214335 | M20: -817.7646723
B21: Florestas (F) | C21: 988.040777 | D21: 1445.324974 | E21: 1670.595493 | F21: 2049.489449 | G21: 2127.812032 | H21: 2017.282866 | I21: 2163.388095 | J21: 2067.080873 | K21: 2038.866826 | L21: 2129.295432 | M21: 1869.717682
B22: Agroalimentar, Mar & Florestas | C22: -2778.619048 | D22: -2526.883884 | E22: -2537.449965 | F22: -1609.087078 | G22: -1507.901572 | H22: -1037.721384 | I22: -1085.760556 | J22: -1405.518103 | K22: -1884.827526 | L22: -1959.423354 | M22: -1833.319247
B23: *exclui serviços
A24: Evolução das trocas comerciais PT-Todo o Mundo (em milhões de euros 2009-2018)
F33: Exportações | H33: Importações | J33: Saldo
A34: Principais transações de Agroalimentar, Mar & Florestas (NC 2 dígitos)
A53: Principais origens e destinos em Todo o Mundo para Agroalimentar, Mar & Florestas (média 2009-2018)
A68: Principais transações de Agroalimentar, Mar & Florestas (NC 4 dígitos - média 2009-2018)
A90: Fonte: GPP a partir de dados INE/Comércio Internacional (2017 provisórios; 2018 preliminares) | L90: 2019-11-18T16:29:21.570

Sheet 2
A1: Evolução da balança comercial Portugal-Todo o Mundo 2009-2018 em milhões de euros
A3: Total da Economia (TE)(1) | B3: 2009 | C3: 2010 | D3: 2011 | E3: 2012 | F3: 2013 | G3: 2014 | H3: 2015 | I3: 2016 | J3: 2017 | K3: 2018 | L3: média período | M3: var. 09/10 | N3: var. 10/11 | O3: var. 11/12 | P3: var. 12/13 | Q3: var. 13/14 | R3: var. 14/15 | S3: var. 15/16 | T3: var. 16/17 | U3: var. 17/18 | V3: TVMA* 2009-2018 | W3: TVT* 2009-2018
A4: Exportações | B4: 47512.618 | C4: 53750.886 | D4: 60409.869 | E4: 63503.835 | F4: 67283.927 | G4: 69360.348 | H4: 72647.553 | I4: 74619.143 | J4: 83098.463 | K4: 87867.924 | L4: 68005.4566 | M4: 0.1312970799 | N4: 0.1238860137 | O4: 0.05121623422 | P4: 0.05952541291 | Q4: 0.03086057982 | R4: 0.04739314457 | S4: 0.02713911093 | T4: 0.1136346473 | U4: 0.05739529743 | V4: 0.0634134292 | W4: 0.8493597638
A5: Importações | B5: 59655.132 | C5: 67350.603 | D5: 67951.936 | E5: 64358.994 | F5: 65572.707 | G5: 69033.242 | H5: 71600.592 | I5: 72543.156 | J5: 81538.363 | K5: 87582.789 | L5: 70718.7514 | M5: 0.1289993122 | N5: 0.008928398161 | O5: -0.05287475547 | P5: 0.01885848309 | Q5: 0.05277401465 | R5: 0.03719005403 | S5: 0.01316419283 | T5: 0.1239980102 | U5: 0.07412984242 | V5: 0.03914725801 | W5: 0.4681517929
A6: Saldo (exp-imp) | B6: -12142.514 | C6: -13599.717 | D6: -7542.067 | E6: -855.159 | F6: 1711.22 | G6: 327.106 | H6: 1046.961 | I6: 2075.987 | J6: 1560.1 | K6: 285.135 | L6: -2713.2948
A7: Cobertura (exp/imp) | B7: 0.7964548297 | C7: 0.7980757945 | D7: 0.8890087988 | E7: 0.986712673 | F7: 1.026096528 | G7: 1.004738384 | H7: 1.014622239 | I7: 1.028617269 | J7: 1.019133325 | K7: 1.003255605 | L7: 0.9616325975
A8: (1) Todas as transações entre PT e Todo o Mundo (inclui bens e serviços) | H8: *TVMA - Taxa de variação média anual; TVT - Taxa de variação total | V8: Exportações
A9: Fonte: GPP a partir de INE/Contas Nacionais (2017 provisórios; 2018 preliminares) | V9: Importações
A24: Total de Bens Transacionáveis (BT)(1) | B24: 2009 | C24: 2010 | D24: 2011 | E24: 2012 | F24: 2013 | G24: 2014 | H24: 2015 | I24: 2016 | J24: 2017 | K24: 2018 | L24: média período | M24: var. 09/10 | N24: var. 10/11 | O24: var. 11/12 | P24: var. 12/13 | Q24: var. 13/14 | R24: var. 14/15 | S24: var. 15/16 | T24: var. 16/17 | U24: var. 17/18 | V24: TVMA* 2009-2018 | W24: TVT* 2009-2018
A25: Exportações | B25: 31564.50368 | C25: 37159.35502 | D25: 42838.67351 | E25: 45221.87999 | F25: 47318.43375 | G25: 48060.21037 | H25: 49651.14086 | I25: 50046.6598 | J25: 55027.42677 | K25: 57812.33893 | L25: 46470.06227 | M25: 0.1772513641 | N25: 0.1528368425 | O25: 0.05563212604 | P25: 0.04636149035 | Q25: 0.01567627177 | R25: 0.03310286151 | S25: 0.00796595873 | T25: 0.09952246531 | U25: 0.05060952921 | V25: 0.0623855561 | W25: 0.8315617919
A26: Importações | B26: 51298.94244 | C26: 58563.23029 | D26: 59551.48905 | E26: 56374.08289 | F26: 57012.82486 | G26: 59032.12069 | H26: 60344.79954 | I26: 61424.0149 | J26: 69688.56463 | K26: 75363.91519 | L26: 60865.39845 | M26: 0.1416069708 | N26: 0.01687507252 | O26: -0.05335561229 | P26: 0.01133041893 | Q26: 0.03541827359 | R26: 0.02223668799 | S26: 0.0178841485 | T26: 0.1345491619 | U26: 0.08143876394 | V26: 0.03921523286 | W26: 0.4691124534
A27: Saldo (exp-imp) | B27: -19734.43876 | C27: -21403.87527 | D27: -16712.81554 | E27: -11152.20289 | F27: -9694.391117 | G27: -10971.91032 | H27: -10693.65868 | I27: -11377.3551 | J27: -14661.13786 | K27: -17551.57626 | L27: -14395.33618
A28: Cobertura (exp/imp) | B28: 0.6153051541 | C28: 0.6345168262 | D28: 0.7193552033 | E28: 0.8021750009 | F28: 0.8299612212 | G28: 0.8141366058 | H28: 0.8227907167 | I28: 0.8147735032 | J28: 0.789619173 | K28: 0.7671090174 | L28: 0.7634890012
A29: Exp BT / Exp TE | B29: 0.6643393905 | C29: 0.6913254419 | D29: 0.7091336932 | E29: 0.7121125834 | F29: 0.703265042 | G29: 0.692906131 | H29: 0.6834523506 | I29: 0.6706946474 | J29: 0.6621954821 | K29: 0.657945884 | L29: 0.6833284356 | V29: Exportações
A30: Imp BT / Imp TE | B30: 0.8599250513 | C30: 0.8695279282 | D30: 0.8763766355 | E30: 0.8759316979 | F30: 0.8694596803 | G30: 0.8551260086 | H30: 0.8427974945 | I30: 0.846723775 | J30: 0.8546721085 | K30: 0.8604877288 | L30: 0.8606684542 | V30: Importações
A31: (1) Todos os produtos transacionados entre PT e Todo o Mundo (exclui serviços) | D31: TE - Total da Economia (bens e serviços) | H31: *TVMA - Taxa de variação média anual; TVT - Taxa de variação total
A43: Agro(1) + Mar + Florestas (AMF) | B43: 2009 | C43: 2010 | D43: 2011 | E43: 2012 | F43: 2013 | G43: 2014 | H43: 2015 | I43: 2016 | J43: 2017 | K43: 2018 | L43: média período | M43: var. 09/10 | N43: var. 10/11 | O43: var. 11/12 | P43: var. 12/13 | Q43: var. 13/14 | R43: var. 14/15 | S43: var. 15/16 | T43: var. 16/17 | U43: var. 17/18 | V43: TVMA* 2009-2018 | W43: TVT* 2009-2018
A44: Exportações | B44: 6702.129904 | C44: 7809.29504 | D44: 8668.28285 | E44: 8976.891879 | F44: 9516.800241 | G44: 9969.196655 | H44: 10406.21179 | I44: 10512.41997 | J44: 11148.51496 | K44: 11643.96412 | L44: 9535.37074 | M44: 0.1651960126 | N44: 0.1099955637 | O44: 0.03560209494 | P44: 0.06014424249 | Q44: 0.04753660921 | R44: 0.04383654472 | S44: 0.01020622856 | T44: 0.06050890271 | U44: 0.04444082065 | V44: 0.05679025951 | W44: 0.7373527944
A45: Importações | B45: 9480.748952 | C45: 10336.17892 | D45: 11205.73281 | E45: 10585.97896 | F45: 11024.70181 | G45: 11006.91804 | H45: 11491.97235 | I45: 11917.93807 | J45: 13033.34249 | K45: 13603.38747 | L45: 11368.68999 | M45: 0.09022810079 | N45: 0.08412720962 | O45: -0.05530685661 | P45: 0.04144376801 | Q45: -0.001613084354 | R45: 0.04406813109 | S45: 0.03706637209 | T45: 0.09359038565 | U45: 0.04373743592 | V45: 0.03676527377 | W45: 0.4348431268
A46: Saldo (exp-imp) | B46: -2778.619048 | C46: -2526.883884 | D46: -2537.449965 | E46: -1609.087078 | F46: -1507.901572 | G46: -1037.721384 | H46: -1085.760556 | I46: -1405.518103 | J46: -1884.827526 | K46: -1959.423354 | L46: -1833.319247
A47: Cobertura (exp/imp) | B47: 0.7069198792 | C47: 0.755530172 | D47: 0.7735578737 | E47: 0.8479982735 | F47: 0.8632251831 | G47: 0.9057209856 | H47: 0.9055200863 | I47: 0.8820670073 | J47: 0.8553841789 | K47: 0.8559606305 | L47: 0.8387396218
A48: Exp AMF / Exp BT | B48: 0.2123312304 | C48: 0.2101569049 | D48: 0.2023471349 | E48: 0.1985077109 | F48: 0.2011224693 | G48: 0.2074313986 | H48: 0.2095865595 | I48: 0.2100523793 | J48: 0.2025992422 | K48: 0.2014096702 | L48: 0.2051938447 | V48: Exportações
A49: Imp AMF / Imp BT | B49: 0.184813731 | C49: 0.1764960517 | D49: 0.1881688098 | E49: 0.1877809521 | F49: 0.193372313 | G49: 0.1864564225 | H49: 0.1904384874 | I49: 0.1940273375 | J49: 0.1870226853 | K49: 0.1805026641 | L49: 0.1867841216 | V49: Importações
A50: Exp AMF / Exp TE | B50: 0.1410600002 | C50: 0.1452868152 | D50: 0.1434911711 | E50: 0.1413598388 | F50: 0.1414424019 | G50: 0.1437304878 | H50: 0.1432424268 | I50: 0.1408810064 | J50: 0.1341603029 | K50: 0.1325166635 | L50: 0.1402147889
A51: Imp AMF / Imp TE | B51: 0.1589259571 | C51: 0.1534682462 | D51: 0.1649067484 | E51: 0.1644832882 | F51: 0.1681294294 | G51: 0.1594437364 | H51: 0.16050108 | I51: 0.1642875597 | J51: 0.1598430728 | K51: 0.1553203275 | L51: 0.1607592012
A52: (1) Produtos agrícolas e agroalimentares | B52: BT - Total de Bens Transacionáveis (exclui serviços); TE - Total da Economia (bens e serviços) | M52: *TVMA - Taxa de variação média anual; TVT - Taxa de variação total
A64: Agroalimentar (AA)(1) | B64: 2009 | C64: 2010 | D64: 2011 | E64: 2012 | F64: 2013 | G64: 2014 | H64: 2015 | I64: 2016 | J64: 2017 | K64: 2018 | L64: média período | M64: var. 09/10 | N64: var. 10/11 | O64: var. 11/12 | P64: var. 12/13 | Q64: var. 13/14 | R64: var. 14/15 | S64: var. 15/16 | T64: var. 16/17 | U64: var. 17/18 | V64: TVMA* 2009-2018 | W64: TVT* 2009-2018
A65: Exportações | B65: 3517.276205 | C65: 3722.941981 | D65: 4156.502144 | E65: 4474.325995 | F65: 4823.996319 | G65: 5155.18815 | H65: 5379.827699 | I65: 5470.803147 | J65: 5889.11936 | K65: 6100.947274 | L65: 4869.092827 | M65: 0.05847302401 | N65: 0.1164563308 | O65: 0.07646425768 | P65: 0.07815039056 | Q65: 0.0686550754 | R65: 0.04357543167 | S65: 0.01691047615 | T65: 0.07646340067 | U65: 0.03596937013 | V65: 0.05662061529 | W65: 0.7345658738
A66: Importações | B66: 6530.933755 | C66: 6984.616009 | D66: 7652.105398 | E66: 7456.615305 | F66: 7834.271958 | G66: 7534.695626 | H66: 7763.976712 | I66: 7974.610343 | J66: 8737.374007 | K66: 9074.451725 | L66: 7754.365084 | M66: 0.06946667521 | N66: 0.09556565288 | O66: -0.02554722953 | P66: 0.05064719548 | Q66: -0.03823920507 | R66: 0.03043003956 | S66: 0.02712960623 | T66: 0.09564901998 | U66: 0.0385788359 | V66: 0.03343820198 | W66: 0.3894570157
A67: Saldo (exp-imp) | B67: -3013.65755 | C67: -3261.674028 | D67: -3495.603254 | E67: -2982.28931 | F67: -3010.275639 | G67: -2379.507476 | H67: -2384.149013 | I67: -2503.807196 | J67: -2848.254647 | K67: -2973.504451 | L67: -2885.272256
A68: Cobertura (exp/imp) | B68: 0.5385564051 | C68: 0.53302028 | D68: 0.5431841209 | E68: 0.6000478517 | F68: 0.6157555348 | G68: 0.6841932848 | H68: 0.6929216687 | I68: 0.6860276442 | J68: 0.6740147961 | K68: 0.6723213103 | L68: 0.6279163767
A69: Exp AA / Exp AMF | B69: 0.524799766 | C69: 0.4767321457 | D69: 0.4795069815 | E69: 0.4984270787 | F69: 0.5068926737 | G69: 0.517111692 | H69: 0.5169823378 | I69: 0.5204132982 | J69: 0.528242495 | K69: 0.5239579247 | L69: 0.510634873 | V69: Exportações
A70: Imp AA / Imp AMF | B70: 0.6888626403 | C70: 0.6757444952 | D70: 0.6828741613 | E70: 0.7043859935 | F70: 0.7106107803 | G70: 0.6845418126 | H70: 0.675600017 | I70: 0.6691266809 | J70: 0.6703862815 | K70: 0.6670729437 | L70: 0.6820807932 | V70: Importações
A71: Exp AA / Exp BT | B71: 0.11143138 | C71: 0.1001885522 | D71: 0.09702686389 | E71: 0.09894161843 | F71: 0.1019475062 | G71: 0.1072652015 | H71: 0.1083525495 | I71: 0.1093140515 | J71: 0.1070215292 | K71: 0.1055301928 | L71: 0.1047791328
A72: Imp AA / Imp BT | B72: 0.1273112747 | C72: 0.1192662354 | D72: 0.1284956182 | E72: 0.1322702725 | F72: 0.1374124502 | G72: 0.1276372175 | H72: 0.1286602453 | I72: 0.1298288683 | J72: 0.1253774425 | K72: 0.1204084435 | L72: 0.1274018618
A73: Exp AA / Exp TE | B73: 0.07402825508 | C73: 0.06926289515 | D73: 0.06880501833 | E73: 0.0704575715 | F73: 0.07169611725 | G73: 0.07432471576 | H73: 0.07405380466 | I73: 0.07331634922 | J73: 0.07086917312 | K73: 0.06943315599 | L73: 0.07159856092
A74: Imp AA / Imp TE | B74: 0.1094781545 | C74: 0.1037053226 | D74: 0.1126105575 | E74: 0.1158597244 | F74: 0.119474585 | G74: 0.1091459043 | H74: 0.1084345324 | I74: 0.1099291895 | J74: 0.1071566032 | K74: 0.1036099881 | L74: 0.1096507635
A75: (1) Produtos agrícolas e agroalimentares | B75: AMF - Agroalimentar, Mar e Florestas; BT - Total de Bens Transacionáveis (exclui serviços); TE - Total da Economia (bens e serviços) | M75: *TVMA - Taxa de variação média anual; TVT - Taxa de variação total
A87: Mar (M) | B87: 2009 | C87: 2010 | D87: 2011 | E87: 2012 | F87: 2013 | G87: 2014 | H87: 2015 | I87: 2016 | J87: 2017 | K87: 2018 | L87: média período | M87: var. 09/10 | N87: var. 10/11 | O87: var. 11/12 | P87: var. 12/13 | Q87: var. 13/14 | R87: var. 14/15 | S87: var. 15/16 | T87: var. 16/17 | U87: var. 17/18 | V87: TVMA* 2009-2018 | W87: TVT* 2009-2018
A88: Exportações | B88: 518.298525 | C88: 686.720815 | D88: 796.110497 | E88: 784.329728 | F88: 817.827004 | G88: 898.189242 | H88: 898.705209 | I88: 961.037539 | J88: 1061.50318 | K88: 1087.797125 | L88: 851.0518864 | M88: 0.324952285 | N88: 0.1592928008 | O88: -0.01479790688 | P88: 0.04270815552 | Q88: 0.09826312607 | R88: 0.0005744524382 | S88: 0.06935792669 | T88: 0.1045387271 | U88: 0.02477048161 | V88: 0.0769531066 | W88: 1.098784914
A89: Importações | B89: 1271.3008 | C89: 1397.255645 | D89: 1508.552701 | E89: 1460.616945 | F89: 1443.264969 | G89: 1573.686016 | H89: 1763.704847 | I89: 1929.829319 | J89: 2136.942885 | K89: 2203.01146 | L89: 1668.816559 | M89: 0.09907556496 | N89: 0.07965403926 | O89: -0.0317759903 | P89: -0.01187989504 | Q89: 0.09036528275 | R89: 0.1207476136 | S89: 0.09419063075 | T89: 0.1073222196 | U89: 0.0309173331 | V89: 0.05651786143 | W89: 0.7328797874
A90: Saldo (exp-imp) | B90: -753.002275 | C90: -710.53483 | D90: -712.442204 | E90: -676.287217 | F90: -625.437965 | G90: -675.496774 | H90: -864.999638 | I90: -968.79178 | J90: -1075.439705 | K90: -1115.214335 | L90: -817.7646723
A91: Cobertura (exp/imp) | B91: 0.407691496 | C91: 0.4914782899 | D91: 0.5277313126 | E91: 0.5369852313 | F91: 0.56665063 | G91: 0.5707550508 | H91: 0.5095553321 | I91: 0.4979909516 | J91: 0.4967391442 | K91: 0.4937773338 | L91: 0.5099732993
A92: Exp M / Exp AMF | B92: 0.07733340482 | C92: 0.08793633887 | D92: 0.0918417766 | E92: 0.0873720814 | F92: 0.08593508147 | G92: 0.09009645141 | H92: 0.08636237923 | I92: 0.09141924905 | J92: 0.09521476031 | K92: 0.09342154562 | L92: 0.08925210247 | V92: Exportações
A93: Imp M/ Imp AMF | B93: 0.1340928661 | C93: 0.1351810621 | D93: 0.1346232974 | E93: 0.1379765585 | F93: 0.1309119279 | G93: 0.1429724479 | H93: 0.1534727716 | I93: 0.161926443 | J93: 0.163959697 | K93: 0.1619457995 | L93: 0.1467905766 | V93: Importações
A94: Exp M / Exp BT | B94: 0.016420297 | C94: 0.01848042881 | D94: 0.01858392036 | E94: 0.01734403187 | F94: 0.01728347579 | G94: 0.01868883292 | H94: 0.01810039394 | I94: 0.01920283077 | J94: 0.01929043828 | K94: 0.01881600269 | L94: 0.01831398205
A95: Imp M / Imp BT | B95: 0.0247822029 | C95: 0.02385892373 | D95: 0.02533190563 | E95: 0.02590936952 | F95: 0.0253147423 | G95: 0.02665813116 | H95: 0.02922712248 | I95: 0.0314181566 | J95: 0.0306641828 | K95: 0.02923164826 | L95: 0.02741814892
A96: Exp M / Exp TE | B96: 0.0109086501 | C96: 0.01277599061 | D96: 0.01317848408 | E96: 0.01235090334 | F96: 0.01215486433 | G96: 0.01294960691 | H96: 0.01237075678 | I96: 0.01287923581 | J96: 0.01277404108 | K96: 0.01237991152 | L96: 0.01251446471
A97: Imp M / Imp TE | B97: 0.0213108371 | C97: 0.02074600052 | D97: 0.02220029023 | E97: 0.02269483804 | F97: 0.02201014774 | G97: 0.02279606129 | H97: 0.02463254559 | I97: 0.02660250016 | J97: 0.02620782177 | K97: 0.02515347462 | L97: 0.02359793585
A98: AMF - Agroalimentar, Mar e Florestas; BT - Total de Bens Transacionáveis (exclui serviços); TE - Total da Economia (bens e serviços) | M98: *TVMA - Taxa de variação média anual; TVT - Taxa de variação total
A110: Florestas (F) | B110: 2009 | C110: 2010 | D110: 2011 | E110: 2012 | F110: 2013 | G110: 2014 | H110: 2015 | I110: 2016 | J110: 2017 | K110: 2018 | L110: média período | M110: var. 09/10 | N110: var. 10/11 | O110: var. 11/12 | P110: var. 12/13 | Q110: var. 13/14 | R110: var. 14/15 | S110: var. 15/16 | T110: var. 16/17 | U110: var. 17/18 | V110: TVMA* 2009-2018 | W110: TVT* 2009-2018
A111: Exportações | B111: 2666.555174 | C111: 3399.632244 | D111: 3715.670209 | E111: 3718.236156 | F111: 3874.976918 | G111: 3915.819263 | H111: 4127.678882 | I111: 4080.57928 | J111: 4197.892423 | K111: 4455.219718 | L111: 3815.226027 | M111: 0.2749153954 | N111: 0.09296239779 | O111: 0.000690574474 | P111: 0.04215460111 | Q111: 0.01054002278 | R111: 0.05410352337 | S111: -0.01141067495 | T111: 0.02874913951 | U111: 0.06129916374 | V111: 0.05266905255 | W111: 0.670777249
A112: Importações | B112: 1678.514397 | C112: 1954.30727 | D112: 2045.074716 | E112: 1668.746707 | F112: 1747.164886 | G112: 1898.536397 | H112: 1964.290787 | I112: 2013.498407 | J112: 2159.025597 | K112: 2325.924286 | L112: 1945.508345 | M112: 0.1643077197 | N112: 0.04644481827 | O112: -0.1840167531 | P112: 0.04699225992 | Q112: 0.08663836608 | R112: 0.03463425305 | S112: 0.02505108731 | T112: 0.07227579098 | U112: 0.07730278383 | V112: 0.03315873123 | W112: 0.3857041025
A113: Saldo (exp-imp) | B113: 988.040777 | C113: 1445.324974 | D113: 1670.595493 | E113: 2049.489449 | F113: 2127.812032 | G113: 2017.282866 | H113: 2163.388095 | I113: 2067.080873 | J113: 2038.866826 | K113: 2129.295432 | L113: 1869.717682
A114: Cobertura (exp/imp) | B114: 1.588640037 | C114: 1.739558715 | D114: 1.816887266 | E114: 2.228160895 | F114: 2.217865611 | G114: 2.062546322 | H114: 2.101358368 | I114: 2.026611626 | J114: 1.944345833 | K114: 1.915462057 | L114: 1.96104326
A115: Exp F / Exp AMF | B115: 0.3978668292 | C115: 0.4353315154 | D115: 0.4286512419 | E115: 0.4142008399 | F115: 0.4071722449 | G115: 0.3927918566 | H115: 0.3966552829 | I115: 0.3881674527 | J115: 0.3765427447 | K115: 0.3826205297 | L115: 0.4001130245 | V115: Exportações
A116: Imp F / Imp AMF | B116: 0.1770444936 | C116: 0.1890744427 | D116: 0.1825025413 | E116: 0.157637448 | F116: 0.1584772918 | G116: 0.1724857394 | H116: 0.1709272114 | I116: 0.1689468762 | J116: 0.1656540215 | K116: 0.1709812568 | L116: 0.1711286302 | V116: Importações
A117: Exp F / Exp BT | B117: 0.08447955338 | C117: 0.0914879239 | D117: 0.0867363507 | E117: 0.08222206057 | F117: 0.08189148734 | G117: 0.08147736417 | H117: 0.08313361607 | I117: 0.081535497 | J117: 0.07628727472 | K117: 0.07706347469 | L117: 0.08210072981
A118: Imp F / Imp BT | B118: 0.03272025342 | C118: 0.03337089263 | D118: 0.03434128598 | E118: 0.02960131006 | F118: 0.03064512046 | G118: 0.03216107392 | H118: 0.0325511196 | I118: 0.03278031256 | J118: 0.03098105993 | K118: 0.03086257236 | L118: 0.03196411088
A119: Exp F / Exp TE | B119: 0.05612309501 | C119: 0.06324792942 | D119: 0.06150766871 | E119: 0.05855136396 | F119: 0.05759142028 | G119: 0.05645616517 | H119: 0.05681786532 | I119: 0.05468542141 | J119: 0.05051708866 | K119: 0.05070359598 | L119: 0.05610176326
A120: Imp F / Imp TE | B120: 0.0281369656 | C120: 0.02901692313 | D120: 0.03009590067 | E120: 0.02592872578 | F120: 0.02664469664 | G120: 0.02750177077 | H120: 0.02743400204 | I120: 0.02775587 | J120: 0.02647864781 | K120: 0.0265568648 | L120: 0.0275105019
A121: AMF - Agroalimentar, Mar e Florestas; BT - Total de Bens Transacionáveis (exclui serviços); TE - Total da Economia (bens e serviços) | M121: *TVMA - Taxa de variação média anual; TVT - Taxa de variação total
A132: Fonte: GPP a partir de dados INE/Comércio Internacional (2017 provisórios; 2018 preliminares) | M132: 2019-11-18T16:29:21.570

Sheet 3
A1: Principais transações de Agroalimentar, Mar & Florestas entre Portugal e Todo o Mundo em 2009-2018 (NC a 2 e 4 dígitos) em milhões de euros
AC4: P | AE4: Cód.NC | AF4: Descritivo | AG4: Média export quinquénio | AH4: % do total | AI4: % acumulada | AN4: P | AO4: NC | AP4: Exportações | AQ4: 2009 | AR4: 2010 | AS4: 2011 | AT4: 2012 | AU4: 2013 | AV4: 2014 | AW4: 2015 | AX4: 2016 | AY4: 2017 | AZ4: 2018 | BA4: média período
AC5: 1 | AD5: º | AE5: 48 | AF5: Papel e cartão | AG5: 1647.811698 | AH5: 0.1728104489 | AN5: 1º | AO5: 48 | AP5: Papel e cartão | AQ5: 1089.467772 | AR5: 1474.074683 | AS5: 1572.211594 | AT5: 1601.243062 | AU5: 1696.977489 | AV5: 1707.832642 | AW5: 1762.072461 | AX5: 1776.727914 | AY5: 1842.146682 | AZ5: 1955.36268 | BA5: 1647.811698
AC6: 2 | AD6: º | AE6: 22 | AF6: Bebidas, líquidos alcoólicos e vinagres | AG6: 1040.051006 | AH6: 0.109072949 | AN6: 2º | AO6: 22 | AP6: Bebidas, líquidos alcoólicos e vinagres | AQ6: 856.290272 | AR6: 916.923334 | AS6: 1031.719373 | AT6: 1106.47112 | AU6: 1097.151762 | AV6: 1159.344273 | AW6: 1059.435651 | AX6: 1006.322742 | AY6: 1078.398257 | AZ6: 1088.453281 | BA6: 1040.051007
AC7: 3 | AD7: º | AE7: 45 | AF7: Cortiça e suas obras | AG7: 868.0189878 | AH7: 0.09103148807 | AI7: 0.372914886 | AN7: 3º | AO7: 45 | AP7: Cortiça e suas obras | AQ7: 698.115385 | AR7: 765.569694 | AS7: 817.03511 | AT7: 835.816228 | AU7: 833.694778 | AV7: 841.784693 | AW7: 901.525278 | AX7: 934.835844 | AY7: 988.035679 | AZ7: 1063.777189 | BA7: 868.0189878
AC8: 4 | AD8: º | AE8: 03 | AF8: Peixes e crustáceos | AG8: 648.0674809 | AH8: 0.0679645814 | AO8: - | AP8: Outros | AQ8: 4058.256475 | AR8: 4652.727329 | AS8: 5247.316773 | AT8: 5433.361469 | AU8: 5888.976212 | AV8: 6260.235047 | AW8: 6683.1784 | AX8: 6794.533466 | AY8: 7239.934345 | AZ8: 7536.370967 | BA8: 5979.489048
AC9: 5 | AD9: º | AE9: 44 | AF9: Madeira e suas obras | AG9: 620.6596972 | AH9: 0.06509025334 | AP9: Total | AQ9: 6702.129904 | AR9: 7809.29504 | AS9: 8668.28285 | AT9: 8976.891879 | AU9: 9516.800241 | AV9: 9969.196655 | AW9: 10406.21179 | AX9: 10512.41997 | AY9: 11148.51496 | AZ9: 11643.96412 | BA9: 9535.37074
AC10: 6 | AD10: º | AE10: 47 | AF10: Pastas de madeira | AG10: 551.3133268 | AH10: 0.05781771279
AC11: 7 | AD11: º | AE11: 15 | AF11: Gorduras e óleos animais ou vegetais | AG11: 522.4009196 | AH11: 0.05478559081
AC12: 8 | AD12: º | AE12: 24 | AF12: Tabaco | AG12: 509.8160533 | AH12: 0.053465782
AC13: 9 | AD13: º | AE13: 08 | AF13: Frutas | AG13: 415.6059041 | AH13: 0.04358571003
AC14: 10 | AD14: º | AE14: 20 | AF14: Preparações de produtos vegetais | AG14: 376.701665 | AH14: 0.03950571774 | AI14: 0.7551302341
AE15: - | AF15: Outros | AG15: 2334.924001 | AH15: 0.2448697659
AE16: Total | AG16: 9535.370741 | AH16: 1
AC38: P | AE38: Cód.NC | AF38: Descritivo | AG38: Média import quinquénio | AH38: % do total | AI38: % acumulada | AN38: P | AO38: NC | AP38: Importações | AQ38: 2009 | AR38: 2010 | AS38: 2011 | AT38: 2012 | AU38: 2013 | AV38: 2014 | AW38: 2015 | AX38: 2016 | AY38: 2017 | AZ38: 2018 | BA38: média período
AC39: 1 | AD39: º | AE39: 03 | AF39: Peixes e crustáceos | AG39: 1501.40251 | AH39: 0.1320646893 | AN39: 1º | AO39: 03 | AP39: Peixes e crustáceos | AQ39: 1160.048008 | AR39: 1284.458249 | AS39: 1377.970007 | AT39: 1327.261376 | AU39: 1270.406446 | AV39: 1392.27854 | AW39: 1597.84464 | AX39: 1732.413395 | AY39: 1904.645339 | AZ39: 1966.699104 | BA39: 1501.40251
AC40: 2 | AD40: º | AE40: 48 | AF40: Papel e cartão | AG40: 1031.462685 | AH40: 0.09072836762 | AN40: 2º | AO40: 48 | AP40: Papel e cartão | AQ40: 1051.028857 | AR40: 1119.458352 | AS40: 1132.138077 | AT40: 924.99701 | AU40: 945.952113 | AV40: 987.106518 | AW40: 1010.41693 | AX40: 984.994018 | AY40: 1050.289074 | AZ40: 1108.245896 | BA40: 1031.462685
AC41: 3 | AD41: º | AE41: 02 | AF41: Carnes e miudezas | AG41: 907.7661948 | AH41: 0.07984791527 | AI41: 0.3026409721 | AN41: 3º | AO41: 02 | AP41: Carnes e miudezas | AQ41: 800.129205 | AR41: 810.198615 | AS41: 796.89738 | AT41: 794.758824 | AU41: 898.104206 | AV41: 959.857388 | AW41: 934.522579 | AX41: 931.358889 | AY41: 1027.780381 | AZ41: 1124.054481 | BA41: 907.7661948
AC42: 4 | AD42: º | AE42: 10 | AF42: Cereais | AG42: 746.4249657 | AH42: 0.06565619843 | AO42: - | AP42: Outros | AQ42: 6469.542882 | AR42: 7122.063708 | AS42: 7898.727351 | AT42: 7538.961747 | AU42: 7910.239048 | AV42: 7667.675593 | AW42: 7949.188197 | AX42: 8269.171767 | AY42: 9050.627695 | AZ42: 9404.38799 | BA42: 7928.058598
AC43: 5 | AD43: º | AE43: 44 | AF43: Madeira e suas obras | AG43: 616.9755995 | AH43: 0.05426971799 | AP43: Total | AQ43: 9480.748952 | AR43: 10336.17892 | AS43: 11205.73281 | AT43: 10585.97896 | AU43: 11024.70181 | AV43: 11006.91804 | AW43: 11491.97235 | AX43: 11917.93807 | AY43: 13033.34249 | AZ43: 13603.38747 | BA43: 11368.68999
AC44: 6 | AD44: º | AE44: 12 | AF44: Sementes e frutos oleaginosos | AG44: 587.0626934 | AH44: 0.05163855238
AC45: 7 | AD45: º | AE45: 08 | AF45: Frutas | AG45: 574.7797432 | AH45: 0.05055813324
AC46: 8 | AD46: º | AE46: 15 | AF46: Gorduras e óleos animais ou vegetais | AG46: 554.6249951 | AH46: 0.04878530382
AC47: 9 | AD47: º | AE47: 04 | AF47: Leite e laticínios; ovos; mel, etc. | AG47: 523.2077755 | AH47: 0.04602181747
AC48: 10 | AD48: º | AE48: 19a | AF48: Preparações à base de cereais (exc. NC 19022010) (a) | AG48: 470.6158215 | AH48: 0.04139578281 | AI48: 0.6609664783
AE49: - | AF49: Outros | AG49: 3854.367004 | AH49: 0.3390335217
AE50: Total | AG50: 11368.68999 | AH50: 1
AC62: DESAGREGAÇÃO A 4 DÍGITOS | AN62: DESAGREGAÇÃO A 4 DÍGITOS
AC64: P | AE64: Cód.NC | AF64: Descritivo | AG64: Média export quinquénio | AH64: % do total | AI64: % acumulada | AN64: P | AO64: NC | AP64: Exportações | AQ64: 2009 | AR64: 2010 | AS64: 2011 | AT64: 2012 | AU64: 2013 | AV64: 2014 | AW64: 2015 | AX64: 2016 | AY64: 2017 | AZ64: 2018 | BA64: média período
AC65: 1 | AD65: º | AE65: 4802 | AF65: Papel e cartão p/ escrita, etc. | AG65: 1042.632813 | AH65: 0.10934371 | AN65: 1º | AO65: 4802 | AP65: Papel e cartão p/ escrita, etc. | AQ65: 379.846257 | AR65: 789.597586 | AS65: 1088.367584 | AT65: 1099.514621 | AU65: 1156.556423 | AV65: 1151.899119 | AW65: 1193.17374 | AX65: 1178.05486 | AY65: 1180.331227 | AZ65: 1208.986716 | BA65: 1042.632813
AC66: 2 | AD66: º | AE66: 2204 | AF66: Vinhos de uvas frescas | AG66: 704.1687 | AH66: 0.07384806728 | AN66: 2º | AO66: 2204 | AP66: Vinhos de uvas frescas | AQ66: 581.915268 | AR66: 614.380205 | AS66: 656.91826 | AT66: 703.504835 | AU66: 720.793562 | AV66: 726.284803 | AW66: 735.533905 | AX66: 723.973625 | AY66: 778.041 | AZ66: 800.341537 | BA66: 704.1687
AC67: 3 | AD67: º | AE67: 2402 | AF67: Charutos, cigarrilhas e cigarros | AG67: 429.2391777 | AH67: 0.04501546813 | AI67: 0.2282072454 | AN67: 3º | AO67: 2402 | AP67: Charutos, cigarrilhas e cigarros | AQ67: 303.598427 | AR67: 287.147232 | AS67: 303.718995 | AT67: 318.693372 | AU67: 348.345241 | AV67: 455.641725 | AW67: 627.367529 | AX67: 599.038646 | AY67: 497.48405 | AZ67: 551.35656 | BA67: 429.2391777
AC68: 4 | AD68: º | AE68: 4703 | AF68: Pastas químicas de madeira, à soda ou ao sulfato | AG68: 422.701568 | AH68: 0.0443298514 | AN68: - | AO68: - | AP68: Outros | AQ68: 5436.769952 | AR68: 6118.170017 | AS68: 6619.278011 | AT68: 6855.179051 | AU68: 7291.105015 | AV68: 7635.371008 | AW68: 7850.136616 | AX68: 8011.352835 | AY68: 8692.658686 | AZ68: 9083.279304 | BA68: 7359.330049
AC69: 5 | AD69: º | AE69: 4504 | AF69: Cortiça aglomerada e suas obras | AG69: 417.3970069 | AH69: 0.0437735478 | AP69: Total | AQ69: 6702.129904 | AR69: 7809.29504 | AS69: 8668.28285 | AT69: 8976.891879 | AU69: 9516.800241 | AV69: 9969.196655 | AW69: 10406.21179 | AX69: 10512.41997 | AY69: 11148.51496 | AZ69: 11643.96412 | BA69: 9535.37074
AC70: 6 | AD70: º | AE70: 4503 | AF70: Obras de cortiça natural | AG70: 388.9089359 | AH70: 0.0407859271
AC71: 7 | AD71: º | AE71: 1509 | AF71: Azeite (processos mecânicos ou físicos) | AG71: 341.5605828 | AH71: 0.03582037784
AC72: 8 | AD72: º | AE72: 2002 | AF72: Tomates preparados | AG72: 183.3576573 | AH72: 0.01922921114
AC73: 9 | AD73: º | AE73: 1604 | AF73: Preparações e conservas de peixes, etc. | AG73: 178.4255358 | AH73: 0.01871196628
AC74: 10 | AD74: º | AE74: 1905 | AF74: Produtos de padaria, pastelaria, etc. | AG74: 178.1825778 | AH74: 0.01868648662 | AI74: 0.4495446136
AE75: - | AF75: Outros | AG75: 5248.796185 | AH75: 0.5504553864
AE76: Total | AG76: 9535.370741 | AH76: 1
AC89: DESAGREGAÇÃO A 4 DÍGITOS | AN89: DESAGREGAÇÃO A 4 DÍGITOS
G91: média 2009-2018 em milhões de euros | I91: Cód. NC | J91: Descritivo | K91: Export | L91: Import | M91: Saldo | AC91: P | AE91: Cód.NC | AF91: Descritivo | AG91: Média import quinquénio | AH91: % do total | AI91: % acumulada | AN91: P | AO91: NC | AP91: Importações | AQ91: 2009 | AR91: 2010 | AS91: 2011 | AT91: 2012 | AU91: 2013 | AV91: 2014 | AW91: 2015 | AX91: 2016 | AY91: 2017 | AZ91: 2018 | BA91: média período
I92: 4802 | J92: Papel e cartão p/ escrita, etc. | K92: 1042.632813 | L92: 60.9425563 | M92: 981.690257 | AC92: 1 | AD92: º | AE92: 0303 | AF92: Peixes congelados | AG92: 378.9896278 | AH92: 0.03333626198 | AN92: 1º | AO92: 0303 | AP92: Peixes congelados | AQ92: 312.92919 | AR92: 320.393736 | AS92: 331.969506 | AT92: 343.44291 | AU92: 334.124784 | AV92: 342.288229 | AW92: 415.505005 | AX92: 436.10076 | AY92: 481.273284 | AZ92: 471.868874 | BA92: 378.9896278
I93: 2204 | J93: Vinhos de uvas frescas | K93: 704.1687 | L93: 112.5965622 | M93: 591.5721378 | AC93: 2 | AD93: º | AE93: 0201 | AF93: Carnes de bovino, frescas ou refrigeradas | AG93: 350.9620132 | AH93: 0.03087092828 | AN93: 2º | AO93: 0201 | AP93: Carnes de bovino, frescas ou refrigeradas | AQ93: 293.418219 | AR93: 309.522556 | AS93: 292.581743 | AT93: 294.272984 | AU93: 333.251732 | AV93: 356.471078 | AW93: 352.407378 | AX93: 379.532264 | AY93: 419.762454 | AZ93: 478.399724 | BA93: 350.9620132
I94: 4504 | J94: Cortiça aglomerada e suas obras | K94: 417.3970069 | L94: 6.5889537 | M94: 410.8080532 | AC94: 3 | AD94: º | AE94: 1005 | AF94: Milho | AG94: 339.9680356 | AH94: 0.02990388831 | AI94: 0.09411107857 | AN94: 3º | AO94: 1005 | AP94: Milho | AQ94: 217.312205 | AR94: 255.259468 | AS94: 374.630292 | AT94: 378.980946 | AU94: 370.542438 | AV94: 325.336896 | AW94: 317.893185 | AX94: 337.022368 | AY94: 364.890991 | AZ94: 457.811567 | BA94: 339.9680356
I95: 4503 | J95: Obras de cortiça natural | K95: 388.9089359 | L95: 22.6314882 | M95: 366.2774477 | AC95: 4 | AD95: º | AE95: 0305 | AF95: Peixes secos, salgados ou fumados | AG95: 311.3218223 | AH95: 0.02738414212 | AN95: - | AO95: - | AP95: Outros | AQ95: 8657.089338 | AR95: 9451.003164 | AS95: 10206.55127 | AT95: 9569.282117 | AU95: 9986.782859 | AV95: 9982.821836 | AW95: 10406.16678 | AX95: 10765.28268 | AY95: 11767.41576 | AZ95: 12195.30731 | BA95: 10298.77031
I96: 4703 | J96: Pastas químicas de madeira, à soda ou ao sulfato | K96: 422.701568 | L96: 59.1534582 | M96: 363.5481098 | AC96: 5 | AD96: º | AE96: 1201 | AF96: Soja, mesmo triturada | AG96: 300.9023219 | AH96: 0.02646763367 | AP96: Total | AQ96: 9480.748952 | AR96: 10336.17892 | AS96: 11205.73282 | AT96: 10585.97896 | AU96: 11024.70181 | AV96: 11006.91804 | AW96: 11491.97235 | AX96: 11917.93807 | AY96: 13033.34249 | AZ96: 13603.38747 | BA96: 11368.68999
I97: 2402 | J97: Charutos, cigarrilhas e cigarros | K97: 429.2391777 | L97: 86.9722219 | M97: 342.2669558 | AC97: 6 | AD97: º | AE97: 1905 | AF97: Produtos de padaria, pastelaria, etc. | AG97: 296.1593852 | AH97: 0.02605044077
I98: 2002 | J98: Tomates preparados | K98: 183.3576573 | L98: 13.5037336 | M98: 169.8539237 | AC98: 7 | AD98: º | AE98: 1001 | AF98: Trigo e mistura trigo/centeio | AG98: 274.1547356 | AH98: 0.02411489238
I99: 2203 | J99: Cervejas de malte | K99: 175.0338944 | L99: 29.5816251 | M99: 145.4522693 | AC99: 8 | AD99: º | AE99: 0203 | AF99: Carnes de suíno | AG99: 267.0370977 | AH99: 0.02348881868
I100: 1509 | J100: Azeite (processos mecânicos ou físicos) | K100: 341.5605828 | L100: 246.5928444 | M100: 94.9677384 | AC100: 9 | AD100: º | AE100: 0302 | AF100: Peixes frescos ou refrigerados | AG100: 266.5335062 | AH100: 0.02344452232
I101: 4418 | J101: Obras de marcenaria ou carpintaria | K101: 109.7349365 | L101: 35.275814 | M101: 74.4591225 | AC101: 10 | AD101: º | AE101: 1509 | AF101: Azeite (processos mecânicos ou físicos) | AG101: 246.5928444 | AH101: 0.02169052412 | AI101: 0.2667520526
I102: - | J102: Outros | K102: 4902.22649 | L102: 7913.473158 | M102: -3011.246667 | AE102: - | AF102: Outros | AG102: 8336.068598 | AH102: 0.7332479474
I103: 1806 | J103: Chocolate e outras preparações com cacau | K103: 18.7257713 | L103: 166.6133329 | M103: -147.8875616 | AE103: Total | AG103: 11368.68999 | AH103: 1
I104: 4810 | J104: Papel e cartão revestidos | K104: 13.4021173 | L104: 165.6105487 | M104: -152.2084314
I105: 2309 | J105: Preparações p/ alimentação animal | K105: 40.3080384 | L105: 225.8180366 | M105: -185.5099982
I106: 0203 | J106: Carnes de suíno | K106: 81.2790628 | L106: 267.0370977 | M106: -185.7580349
J107: Peixes congelados | K107: 151.8804605 | L107: 378.9896278 | M107: -227.1091673
I108: 0305 | J108: Peixes secos, salgados ou fumados | K108: 63.6631084 | L108: 311.3218223 | M108: -247.6587139
I109: 1001 | J109: Trigo e mistura trigo/centeio | K109: 7.365811 | L109: 274.1547356 | M109: -266.7889246
I110: 1201 | J110: Soja, mesmo triturada | K110: 5.057328 | L110: 300.9023219 | M110: -295.8449939
I111: 1005 | J111: Milho | K111: 14.9323965 | L111: 339.9680356 | M111: -325.0356391
I112: 0201 | J112: Carnes de bovino, frescas ou refrigeradas | K112: 21.7948832 | L112: 350.9620132 | M112: -329.16713
I113: Total | K113: 9535.37074 | L113: 11368.68999 | M113: -1833.319247
A116: Fonte: GPP a partir de dados INE/Comércio Internacional (2017 provisórios; 2018 preliminares) | Y116: 2019-11-18T16:29:21.570

Sheet 3A
A1: Principais produtos agrícolas e agroalimentares transacionados entre Portugal e Todo o Mundo em 2009-2018 (NC 2 dígitos) em milhões de euros
AC4: P | AE4: Cód.NC | AF4: Descritivo | AG4: Média export quinquénio | AH4: % do total | AI4: % acumulada | AN4: P | AO4: NC | AP4: Exportações | AQ4: 2009 | AR4: 2010 | AS4: 2011 | AT4: 2012 | AU4: 2013 | AV4: 2014 | AW4: 2015 | AX4: 2016 | AY4: 2017 | AZ4: 2018 | BA4: média período
AC5: 1 | AD5: º | AE5: 22 | AF5: Bebidas, líquidos alcoólicos e vinagres | AG5: 1040.051006 | AH5: 0.2136773388 | AN5: 1º | AO5: 22 | AP5: Bebidas, líquidos alcoólicos e vinagres | AQ5: 856.290272 | AR5: 916.923334 | AS5: 1031.719373 | AT5: 1106.47112 | AU5: 1097.151762 | AV5: 1159.344273 | AW5: 1059.435651 | AX5: 1006.322742 | AY5: 1078.398257 | AZ5: 1088.453281 | BA5: 1040.051007
AC6: 2 | AD6: º | AE6: 15 | AF6: Gorduras e óleos animais ou vegetais | AG6: 522.4009196 | AH6: 0.1073266961 | AN6: 2º | AO6: 15 | AP6: Gorduras e óleos animais ou vegetais | AQ6: 247.133584 | AR6: 295.22949 | AS6: 415.709734 | AT6: 439.942097 | AU6: 536.384637 | AV6: 524.803551 | AW6: 592.20783 | AX6: 599.135721 | AY6: 759.753283 | AZ6: 813.709269 | BA6: 522.4009196
AC7: 3 | AD7: º | AE7: 24 | AF7: Tabaco | AG7: 509.8160533 | AH7: 0.1047411491 | AI7: 0.425745184 | AN7: 3º | AO7: 24 | AP7: Tabaco | AQ7: 390.652942 | AR7: 372.606338 | AS7: 387.429433 | AT7: 411.528998 | AU7: 460.428646 | AV7: 563.697778 | AW7: 714.552027 | AX7: 656.199074 | AY7: 553.167679 | AZ7: 587.897618 | BA7: 509.8160533
AC8: 4 | AD8: º | AE8: 08 | AF8: Frutas | AG8: 415.6059041 | AH8: 0.08538577727 | AO8: - | AP8: Outros | AQ8: 2023.199407 | AR8: 2138.182819 | AS8: 2321.643604 | AT8: 2516.38378 | AU8: 2730.031274 | AV8: 2907.342548 | AW8: 3013.632191 | AX8: 3209.14561 | AY8: 3497.800141 | AZ8: 3593.861839 | BA8: 2795.122321
AC9: 5 | AD9: º | AE9: 20 | AF9: Preparações de produtos vegetais | AG9: 376.701665 | AH9: 0.07739294401 | AP9: Total | AQ9: 3517.276205 | AR9: 3722.941981 | AS9: 4156.502144 | AT9: 4474.325995 | AU9: 4823.996319 | AV9: 5155.18815 | AW9: 5379.827699 | AX9: 5470.803147 | AY9: 5889.11936 | AZ9: 6083.922007 | BA9: 4867.390301
AC10: 6 | AD10: º | AE10: 04 | AF10: Leite e laticínios; ovos; mel, etc. | AG10: 319.5306612 | AH10: 0.06564722397
AC11: 7 | AD11: º | AE11: 19a | AF11: Preparações à base de cereais (exc. NC 19022010) (a) | AG11: 272.9764411 | AH11: 0.05608271049
AC12: 8 | AD12: º | AE12: 07 | AF12: Produtos hortícolas | AG12: 226.298526 | AH12: 0.04649278402
AC13: 9 | AD13: º | AE13: 02 | AF13: Carnes e miudezas | AG13: 172.0589489 | AH13: 0.03534932238
AC14: 10 | AD14: º | AE14: 21 | AF14: Preparações alimentícias diversas | AG14: 149.4994432 | AH14: 0.03071449667 | AI14: 0.8228104429
AE15: - | AF15: Outros | AG15: 862.4507318 | AH15: 0.1771895571
AE16: Total | AG16: 4867.390301 | AH16: 1
AC38: P | AE38: Cód.NC | AF38: Descritivo | AG38: Média import quinquénio | AH38: % do total | AI38: % acumulada | AN38: P | AO38: NC | AP38: Importações | AQ38: 2009 | AR38: 2010 | AS38: 2011 | AT38: 2012 | AU38: 2013 | AV38: 2014 | AW38: 2015 | AX38: 2016 | AY38: 2017 | AZ38: 2018 | BA38: média período
AC39: 1 | AD39: º | AE39: 02 | AF39: Carnes e miudezas | AG39: 907.7661948 | AH39: 0.1171877215 | AN39: 1º | AO39: 02 | AP39: Carnes e miudezas | AQ39: 800.129205 | AR39: 810.198615 | AS39: 796.89738 | AT39: 794.758824 | AU39: 898.104206 | AV39: 959.857388 | AW39: 934.522579 | AX39: 931.358889 | AY39: 1027.780381 | AZ39: 1124.054481 | BA39: 907.7661948
AC40: 2 | AD40: º | AE40: 10 | AF40: Cereais | AG40: 746.4249657 | AH40: 0.09635943866 | AN40: 2º | AO40: 10 | AP40: Cereais | AQ40: 608.822257 | AR40: 640.711736 | AS40: 829.52501 | AT40: 834.330103 | AU40: 746.740469 | AV40: 710.988357 | AW40: 729.365585 | AX40: 737.446415 | AY40: 770.612636 | AZ40: 855.707089 | BA40: 746.4249657
AC41: 3 | AD41: º | AE41: 12 | AF41: Sementes e frutos oleaginosos | AG41: 587.0626934 | AH41: 0.07578662852 | AI41: 0.2893337886 | AN41: 3º | AO41: 12 | AP41: Sementes e frutos oleaginosos | AQ41: 449.123959 | AR41: 517.079028 | AS41: 562.188439 | AT41: 607.840283 | AU41: 654.228011 | AV41: 585.290707 | AW41: 607.213455 | AX41: 563.956223 | AY41: 621.773948 | AZ41: 701.932881 | BA41: 587.0626934
AC42: 4 | AD42: º | AE42: 08 | AF42: Frutas | AG42: 574.7797432 | AH42: 0.07420096588 | AO42: - | AP42: Outros | AQ42: 4672.858334 | AR42: 5016.62663 | AS42: 5463.494569 | AT42: 5219.686095 | AU42: 5535.199272 | AV42: 5278.559174 | AW42: 5492.875093 | AX42: 5741.848816 | AY42: 6317.207042 | AZ42: 6311.675342 | BA42: 5505.003037
AC43: 5 | AD43: º | AE43: 15 | AF43: Gorduras e óleos animais ou vegetais | AG43: 554.6249951 | AH43: 0.07159909656 | AP43: Total | AQ43: 6530.933755 | AR43: 6984.616009 | AS43: 7652.105398 | AT43: 7456.615305 | AU43: 7834.271958 | AV43: 7534.695626 | AW43: 7763.976712 | AX43: 7974.610343 | AY43: 8737.374007 | AZ43: 8993.369793 | BA43: 7746.256891
AC44: 6 | AD44: º | AE44: 04 | AF44: Leite e laticínios; ovos; mel, etc. | AG44: 523.2077755 | AH44: 0.0675433029
AC45: 7 | AD45: º | AE45: 19a | AF45: Preparações à base de cereais (exc. NC 19022010) (a) | AG45: 470.6158215 | AH45: 0.06075396519
AC46: 8 | AD46: º | AE46: 22 | AF46: Bebidas, líquidos alcoólicos e vinagres | AG46: 420.8304067 | AH46: 0.05432693656
AC47: 9 | AD47: º | AE47: 21 | AF47: Preparações alimentícias diversas | AG47: 356.909535 | AH47: 0.04607509666
AC48: 10 | AD48: º | AE48: 23a | AF48: Resíduos indústrias alimentares; alimentos p/ animais (exc. NC 230120) (a) | AG48: 339.2370158 | AH48: 0.04379366972 | AI48: 0.7076268221
AE49: - | AF49: Outros | AG49: 2264.797744 | AH49: 0.2923731779
AE50: Total | AG50: 7746.256891 | AH50: 1
A56: Fonte: GPP a partir de dados INE/Comércio Internacional (2017 provisórios; 2018 preliminares) | Y56: 2019-11-18T16:48:42.130

Sheet 3B
A1: Principais origens e destinos em Todo o Mundo para Agroalimentar, Mar & Florestas (2009-2018) em milhões de euros
AC4: P | AE4: País | AF4: Média export quinquénio | AG4: % do total | AH4: % acumulada | AM4: P | AN4: Exportações | AO4: 2009 | AP4: 2010 | AQ4: 2011 | AR4: 2012 | AS4: 2013 | AT4: 2014 | AU4: 2015 | AV4: 2016 | AW4: 2017 | AX4: 2018 | AY4: média período
AC5: 1 | AD5: º | AE5: Espanha | AF5: 2994.647864 | AG5: 0.3140567835 | AM5: 1º | AN5: Espanha | AO5: 2263.859031 | AP5: 2632.279418 | AQ5: 2805.869028 | AR5: 2811.159456 | AS5: 2999.194277 | AT5: 3063.711611 | AU5: 3143.548726 | AV5: 3205.509672 | AW5: 3403.473492 | AX5: 3617.873929 | AY5: 2994.647864
AC6: 2 | AD6: º | AE6: França | AF6: 985.0203392 | AG6: 0.1033017348 | AM6: 2º | AN6: França | AO6: 737.963209 | AP6: 825.162352 | AQ6: 879.43503 | AR6: 935.839464 | AS6: 944.906242 | AT6: 940.998568 | AU6: 1091.608328 | AV6: 1159.326094 | AW6: 1180.829351 | AX6: 1154.134754 | AY6: 985.0203392
AC7: 3 | AD7: º | AE7: Angola | AF7: 629.0147436 | AG7: 0.06596646955 | AH7: 0.4833249878 | AM7: 3º | AN7: Angola | AO7: 480.237803 | AP7: 496.066013 | AQ7: 694.209474 | AR7: 770.305544 | AS7: 836.324981 | AT7: 873.004277 | AU7: 619.867358 | AV7: 512.399099 | AW7: 551.600723 | AX7: 456.132164 | AY7: 629.0147436
AC8: 4 | AD8: º | AE8: Alemanha | AF8: 546.587699 | AG8: 0.05732212348 | AN8: Outros | AO8: 3220.069861 | AP8: 3855.787257 | AQ8: 4288.769318 | AR8: 4459.587415 | AS8: 4736.374741 | AT8: 5091.482199 | AU8: 5551.187378 | AV8: 5635.185101 | AW8: 6012.611397 | AX8: 6415.82327 | AY8: 4926.687794
AC9: 5 | AD9: º | AE9: Itália | AF9: 543.576046 | AG9: 0.05700628332 | AN9: Total | AO9: 6702.129904 | AP9: 7809.29504 | AQ9: 8668.28285 | AR9: 8976.891879 | AS9: 9516.800241 | AT9: 9969.196655 | AU9: 10406.21179 | AV9: 10512.41997 | AW9: 11148.51496 | AX9: 11643.96412 | AY9: 9535.37074
AC10: 6 | AD10: º | AE10: Reino Unido | AF10: 519.4907412 | AG10: 0.05448039257
AC11: 7 | AD11: º | AE11: Países Baixos | AF11: 388.1733335 | AG11: 0.0407087825
AC12: 8 | AD12: º | AE12: Estados Unidos | AF12: 387.1031353 | AG12: 0.04059654793
AC13: 9 | AD13: º | AE13: Brasil | AF13: 303.3322481 | AG13: 0.03181126947
AC14: 10 | AD14: º | AE14: Bélgica | AF14: 189.5638583 | AG14: 0.01988007215 | AH14: 0.7851304592
AE15: Outros | AF15: 2048.860732 | AG15: 0.2148695408
AE16: Total | AF16: 9535.37074 | AG16: 1
AC38: P | AE38: País | AF38: Média import quinquénio | AG38: % do total | AH38: % acumulada | AM38: P | AN38: Importações | AO38: 2009 | AP38: 2010 | AQ38: 2011 | AR38: 2012 | AS38: 2013 | AT38: 2014 | AU38: 2015 | AV38: 2016 | AW38: 2017 | AX38: 2018 | AY38: média período
AC39: 1 | AD39: º | AE39: Espanha | AF39: 5244.230944 | AG39: 0.46128718 | AM39: 1º | AN39: Espanha | AO39: 4392.194411 | AP39: 4810.144807 | AQ39: 5036.980629 | AR39: 4804.818542 | AS39: 5164.773852 | AT39: 5226.300689 | AU39: 5293.57921 | AV39: 5482.819349 | AW39: 6035.945524 | AX39: 6194.752432 | AY39: 5244.230945
AC40: 2 | AD40: º | AE40: França | AF40: 889.0970986 | AG40: 0.07820576509 | AM40: 2º | AN40: França | AO40: 925.323458 | AP40: 930.268183 | AQ40: 921.898518 | AR40: 856.124455 | AS40: 891.724954 | AT40: 862.847121 | AU40: 849.534225 | AV40: 839.184245 | AW40: 889.585273 | AX40: 924.480554 | AY40: 889.0970986
AC41: 3 | AD41: º | AE41: Alemanha | AF41: 644.5278231 | AG41: 0.05669323588 | AH41: 0.596186181 | AM41: 3º | AN41: Alemanha | AO41: 573.948134 | AP41: 586.950877 | AQ41: 608.18289 | AR41: 564.509455 | AS41: 563.58608 | AT41: 609.115328 | AU41: 600.267502 | AV41: 659.261915 | AW41: 792.840055 | AX41: 886.615995 | AY41: 644.5278231
AC42: 4 | AD42: º | AE42: Países Baixos | AF42: 607.3919998 | AG42: 0.0534267361 | AN42: Outros | AO42: 3589.282949 | AP42: 4008.815057 | AQ42: 4638.670778 | AR42: 4360.526505 | AS42: 4404.616927 | AT42: 4308.654901 | AU42: 4748.591409 | AV42: 4936.67256 | AW42: 5314.971637 | AX42: 5597.53849 | AY42: 4590.834121
AC43: 5 | AD43: º | AE43: Brasil | AF43: 385.8087895 | AG43: 0.03393608146 | AN43: Total | AO43: 9480.748952 | AP43: 10336.17892 | AQ43: 11205.73282 | AR43: 10585.97896 | AS43: 11024.70181 | AT43: 11006.91804 | AU43: 11491.97235 | AV43: 11917.93807 | AW43: 13033.34249 | AX43: 13603.38747 | AY43: 11368.68999
AC44: 6 | AD44: º | AE44: Itália | AF44: 302.156429 | AG44: 0.02657794604
AC45: 7 | AD45: º | AE45: Suécia | AF45: 265.7930348 | AG45: 0.02337938981
AC46: 8 | AD46: º | AE46: Estados Unidos | AF46: 247.858253 | AG46: 0.02180183058
AC47: 9 | AD47: º | AE47: Reino Unido | AF47: 228.9986623 | AG47: 0.02014292434
AC48: 10 | AD48: º | AE48: Bélgica | AF48: 220.6526182 | AG48: 0.01940879894 | AH48: 0.7948598882
AE49: Outros | AF49: 2332.174335 | AG49: 0.2051401118
AE50: Total | AF50: 11368.68999 | AG50: 1
A57: Fonte: GPP a partir de dados INE/Comércio Internacional (2017 provisórios; 2018 preliminares) | Y57: 2019-11-18T16:29:21.570

Sheet 3C
A1: Principais origens e destinos em Todo o Mundo para os produtos agrícolas e agroalimentares (2009-2018) em milhões de euros
AC4: P | AE4: País | AF4: Média export quinquénio | AG4: % do total | AH4: % acumulada | AM4: P | AN4: Exportações | AO4: 2009 | AP4: 2010 | AQ4: 2011 | AR4: 2012 | AS4: 2013 | AT4: 2014 | AU4: 2015 | AV4: 2016 | AW4: 2017 | AX4: 2018 | AY4: média período
AC5: 1 | AD5: º | AE5: Espanha | AF5: 1653.821373 | AG5: 0.3396569816 | AM5: 1º | AN5: Espanha | AO5: 1277.157591 | AP5: 1351.64172 | AQ5: 1461.456418 | AR5: 1547.88557 | AS5: 1680.461863 | AT5: 1694.927581 | AU5: 1790.397298 | AV5: 1811.730289 | AW5: 1904.201556 | AX5: 2018.353842 | AY5: 1653.821373
AC6: 2 | AD6: º | AE6: Angola | AF6: 520.5222978 | AG6: 0.1069033424 | AM6: 2º | AN6: Angola | AO6: 391.268748 | AP6: 411.863273 | AQ6: 585.144886 | AR6: 643.349358 | AS6: 678.931402 | AT6: 727.341365 | AU6: 515.86971 | AV6: 413.455182 | AW6: 465.986251 | AX6: 372.012803 | AY6: 520.5222978
AC7: 3 | AD7: º | AE7: França | AF7: 451.5230846 | AG7: 0.09273248644 | AH7: 0.5392928104 | AM7: 3º | AN7: França | AO7: 329.132811 | AP7: 333.269142 | AQ7: 373.569448 | AR7: 403.125291 | AS7: 423.17926 | AT7: 413.173846 | AU7: 557.783386 | AV7: 587.756154 | AW7: 572.184245 | AX7: 522.057263 | AY7: 451.5230846
AC8: 4 | AD8: º | AE8: Reino Unido | AF8: 264.5739542 | AG8: 0.05433742251 | AN8: Outros | AO8: 1519.717055 | AP8: 1626.167846 | AQ8: 1736.331392 | AR8: 1879.965776 | AS8: 2041.423794 | AT8: 2319.745358 | AU8: 2515.777305 | AV8: 2657.861522 | AW8: 2946.747308 | AX8: 3188.523366 | AY8: 2243.226072
AC9: 5 | AD9: º | AE9: Brasil | AF9: 229.6315656 | AG9: 0.04716105725 | AN9: Total | AO9: 3517.276205 | AP9: 3722.941981 | AQ9: 4156.502144 | AR9: 4474.325995 | AS9: 4823.996319 | AT9: 5155.18815 | AU9: 5379.827699 | AV9: 5470.803147 | AW9: 5889.11936 | AX9: 6100.947274 | AY9: 4869.092827
AC10: 6 | AD10: º | AE10: Países Baixos | AF10: 203.0687317 | AG10: 0.04170566036
AC11: 7 | AD11: º | AE11: Itália | AF11: 202.1558204 | AG11: 0.04151816931
AC12: 8 | AD12: º | AE12: Alemanha | AF12: 155.3543042 | AG12: 0.03190621122
AC13: 9 | AD13: º | AE13: Bélgica | AF13: 121.808346 | AG13: 0.02501664074
AC14: 10 | AD14: º | AE14: Estados Unidos | AF14: 101.2841336 | AG14: 0.02080143821 | AH14: 0.80173941
AE15: Outros | AF15: 965.3492165 | AG15: 0.19826059
AE16: Total | AF16: 4869.092827 | AG16: 1
AC38: P | AE38: País | AF38: Média import quinquénio | AG38: % do total | AH38: % acumulada | AM38: P | AN38: Importações | AO38: 2009 | AP38: 2010 | AQ38: 2011 | AR38: 2012 | AS38: 2013 | AT38: 2014 | AU38: 2015 | AV38: 2016 | AW38: 2017 | AX38: 2018 | AY38: média período
AC39: 1 | AD39: º | AE39: Espanha | AF39: 3533.14801 | AG39: 0.4556334364 | AM39: 1º | AN39: Espanha | AO39: 2851.284384 | AP39: 3152.333272 | AQ39: 3318.325277 | AR39: 3299.224753 | AS39: 3593.941414 | AT39: 3566.861667 | AU39: 3610.263633 | AV39: 3704.534956 | AW39: 4066.279579 | AX39: 4168.431166 | AY39: 3533.14801
AC40: 2 | AD40: º | AE40: França | AF40: 731.1082676 | AG40: 0.09428344677 | AM40: 2º | AN40: França | AO40: 768.349513 | AP40: 775.5775 | AQ40: 768.240246 | AR40: 713.520702 | AS40: 745.224997 | AT40: 713.554899 | AU40: 694.312671 | AV40: 681.488908 | AW40: 718.696072 | AX40: 732.117168 | AY40: 731.1082676
AC41: 3 | AD41: º | AE41: Alemanha | AF41: 473.1531148 | AG41: 0.06101764744 | AH41: 0.6109345306 | AM41: 3º | AN41: Alemanha | AO41: 424.748481 | AP41: 421.328604 | AQ41: 430.768738 | AR41: 423.964604 | AS41: 411.623979 | AT41: 430.918804 | AU41: 411.798625 | AV41: 480.374571 | AW41: 598.85676 | AX41: 697.147982 | AY41: 473.1531148
AC42: 4 | AD42: º | AE42: Países Baixos | AF42: 413.27819 | AG42: 0.05329619969 | AN42: Outros | AO42: 2486.551377 | AP42: 2635.376633 | AQ42: 3134.771137 | AR42: 3019.905246 | AS42: 3083.481568 | AT42: 2823.360256 | AU42: 3047.601783 | AV42: 3108.211908 | AW42: 3353.541596 | AX42: 3476.755409 | AY42: 3016.955691
AC43: 5 | AD43: º | AE43: Brasil | AF43: 347.2755745 | AG43: 0.04478452726 | AN43: Total | AO43: 6530.933755 | AP43: 6984.616009 | AQ43: 7652.105398 | AR43: 7456.615305 | AS43: 7834.271958 | AT43: 7534.695626 | AU43: 7763.976712 | AV43: 7974.610343 | AW43: 8737.374007 | AX43: 9074.451725 | AY43: 7754.365084
AC44: 6 | AD44: º | AE44: Itália | AF44: 202.9995799 | AG44: 0.02617874935
AC45: 7 | AD45: º | AE45: Bélgica | AF45: 186.0804465 | AG45: 0.02399686428
AC46: 8 | AD46: º | AE46: Reino Unido | AF46: 184.5821783 | AG46: 0.02380364818
AC47: 9 | AD47: º | AE47: Estados Unidos | AF47: 178.4363968 | AG47: 0.02301109051
AC48: 10 | AD48: º | AE48: Ucrânia | AF48: 173.0323777 | AG48: 0.02231419024 | AH48: 0.8283198001
AE49: Outros | AF49: 1331.270948 | AG49: 0.1716801999
AE50: Total | AF50: 7754.365084 | AG50: 1
A57: Fonte: GPP a partir de dados INE/Comércio Internacional (2017 provisórios; 2018 preliminares) | Y57: 2019-11-18T16:29:21.570

Sheet 4
A1: Evolução da balança comercial por país e por produto 2009-2018 em euros (NC 2 dígitos) Agroalimentar, Mar & Florestas
A2: =+aux!A55 -> Evolução da balança comercial Portugal-Espanha
A4: Selecione o país:
A19: =+aux!A56 -> Evolução da balança comercial Portugal-Espanha para Bebidas, líquidos alcoólicos e vinagres
M21: Selecione o produto:
A38: Fonte: GPP a partir de dados INE/Comércio Internacional (2017 provisórios; 2018 preliminares) | R38: 2019-11-18T16:29:21.570

Sheet 4A
A1: Evolução da balança comercial Portugal-Todo o Mundo 2009-2018 por produto em euros (NC 2 dígitos)
A3: =+aux!A31 -> Evolução da balança comercial Portugal-Todo o Mundo para Bebidas, líquidos alcoólicos e vinagres
A5: Selecione o produto:
U7: Para obter uma maior desagregação deste produto, clique no botão respetivo:
A20: =+aux!A43 -> Evolução da balança comercial Portugal-Todo o Mundo para Carnes e miudezas
A22: Selecione o produto:
A38: Fonte: GPP a partir de dados INE/Comércio Internacional (2017 provisórios; 2018 preliminares) | R38: 2019-11-18T16:29:21.570

Sheet 5.1
A1: Trocas comerciais Portugal-Todo o Mundo (2009-2018) por país em milhares de euros | C1: Agroalimentar, Mar & Florestas
A2: Cód. País | B2: País | C2: Importações | O2: Exportações | AA2: Saldo período (exp-imp) | AB2: Evolução das importações | AC2: =+"Variação das Importações " & INDEX(C3:K3,1,aux!$BA$1) & "-"& L3 &"" -> Variação das Importações 2009-2018 | AG2: Evolução das exportações | AH2: ="Variação das Exportações " & INDEX(O3:W3,1,aux!BA1) & "-"& X3 &"" -> Variação das Exportações 2009-2018
C3: 2009 | D3: 2010 | E3: 2011 | F3: 2012 | G3: 2013 | H3: 2014 | I3: 2015 | J3: 2016 | K3: 2017 | L3: 2018 | M3: média período | N3: % Total | O3: 2009 | P3: 2010 | Q3: 2011 | R3: 2012 | S3: 2013 | T3: 2014 | U3: 2015 | V3: 2016 | W3: 2017 | X3: 2018 | Y3: média período | Z3: % Total | AC3: variação total em valor | AD3: % no total de variação | AE3: taxa de variação média anual | AF3: taxa de variação total | AH3: variação total em valor | AI3: % no total de variação | AJ3: taxa de variação média anual | AK3: taxa de variação total | CC3: filtro
A4: 0660 | B4: Afeganistão | C4: 0 | D4: 0 | E4: 0 | F4: 0 | G4: 0 | H4: 0 | I4: 15.895 | J4: 0 | K4: 385.134 | L4: 21.004 | M4: 42.2033 | N4: 3.712239497e-06 | O4: 6.722 | P4: 2.25 | Q4: 0.025 | R4: 0 | S4: 0 | T4: 0.03 | U4: 41.829 | V4: 79.696 | W4: 0.024 | X4: 0 | Y4: 13.0576 | Z4: 1.369385665e-06 | AA4: -29.1457 | AC4: =L4-INDEX($C4:$L4,1,aux!$BA$1) -> 21.004 | AD4: =AC4/$AC$252 -> 5.094795458e-06 | AE4: =+IF(INDEX($C4:$L4,1,aux!$BA$1)>0,(L4/INDEX($C4:$L4,1,aux!$BA$1))^(1/($L$3-INDEX($C$3:$L$3,1,aux!$BA$1)))-1,"n.d.") -> n.d. | AF4: =IF(INDEX($C4:$L4,1,aux!$BA$1)>0,(L4-INDEX($C4:$L4,1,aux!$BA$1))/INDEX($C4:$L4,1,aux!$BA$1),"n.d.") -> n.d. | AH4: =X4-INDEX($O4:$X4,1,aux!$BA$1) -> -6.722 | AI4: =AH4/$AH$252 -> -1.360223696e-06 | AJ4: =+IF(INDEX($O4:$X4,1,aux!$BA$1)>0,(X4/INDEX($O4:$X4,1,aux!$BA$1))^(1/($X$3-INDEX($O$3:$X$3,1,aux!$BA$1)))-1,"n.d.") -> -1 | AK4: =IF(INDEX($O4:$X4,1,aux!$BA$1)>0,(X4-INDEX($O4:$X4,1,aux!$BA$1))/INDEX($O4:$X4,1,aux!$BA$1),"n.d.") -> -1 | CC4: =+IF(ISNA(MATCH('5.1'!A4,AUX_2d_pais!$G$2:$G$40000,0)),0,1) -> 1
A5: 0388 | B5: África do Sul | C5: 30102.67 | D5: 57455.489 | E5: 55242.735 | F5: 55967.093 | G5: 59250.275 | H5: 70543.551 | I5: 82333.458 | J5: 92391.16 | K5: 128110.53 | L5: 154526.001 | M5: 78592.2962 | N5: 0.006913047703 | O5: 20510.277 | P5: 19363.921 | Q5: 22083.184 | R5: 22113.85 | S5: 48432.763 | T5: 33899.989 | U5: 28735.207 | V5: 25113.374 | W5: 37304.403 | X5: 32337.699 | Y5: 28989.4667 | Z5: 0.003040203416 | AA5: -49602.8295 | AC5: =L5-INDEX($C5:$L5,1,aux!$BA$1) -> 124423.331 | AD5: 0.0301805095 | AE5: =+IF(INDEX($C5:$L5,1,aux!$BA$1)>0,(L5/INDEX($C5:$L5,1,aux!$BA$1))^(1/($L$3-INDEX($C$3:$L$3,1,aux!$BA$1)))-1,"n.d.") -> 0.1993141281 | AF5: =IF(INDEX($C5:$L5,1,aux!$BA$1)>0,(L5-INDEX($C5:$L5,1,aux!$BA$1))/INDEX($C5:$L5,1,aux!$BA$1),"n.d.") -> 4.13329884 | AH5: =X5-INDEX($O5:$X5,1,aux!$BA$1) -> 11827.422 | AI5: 0.002393326342 | AJ5: =+IF(INDEX($O5:$X5,1,aux!$BA$1)>0,(X5/INDEX($O5:$X5,1,aux!$BA$1))^(1/($X$3-INDEX($O$3:$X$3,1,aux!$BA$1)))-1,"n.d.") -> 0.0518912516 | AK5: =IF(INDEX($O5:$X5,1,aux!$BA$1)>0,(X5-INDEX($O5:$X5,1,aux!$BA$1))/INDEX($O5:$X5,1,aux!$BA$1),"n.d.") -> 0.576658326 | CC5: =+IF(ISNA(MATCH('5.1'!A5,AUX_2d_pais!$G$2:$G$40000,0)),0,1) -> 1
A6: 0070 | B6: Albânia | C6: 0 | D6: 0 | E6: 0 | F6: 4.072 | G6: 9.813 | H6: 0 | I6: 7.471 | J6: 0 | K6: 0.211 | L6: 87.981 | M6: 10.9548 | N6: 9.635938716e-07 | O6: 189.978 | P6: 610.847 | Q6: 333.661 | R6: 386.631 | S6: 853.687 | T6: 1197.757 | U6: 1755.258 | V6: 2258.285 | W6: 4489.109 | X6: 4756.841 | Y6: 1683.2054 | Z6: 0.0001765222817 | AA6: 1672.2506 | AC6: =L6-INDEX($C6:$L6,1,aux!$BA$1) -> 87.981 | AD6: 2.134094454e-05 | AE6: =+IF(INDEX($C6:$L6,1,aux!$BA$1)>0,(L6/INDEX($C6:$L6,1,aux!$BA$1))^(1/($L$3-INDEX($C$3:$L$3,1,aux!$BA$1)))-1,"n.d.") -> n.d. | AF6: =IF(INDEX($C6:$L6,1,aux!$BA$1)>0,(L6-INDEX($C6:$L6,1,aux!$BA$1))/INDEX($C6:$L6,1,aux!$BA$1),"n.d.") -> n.d. | AH6: =X6-INDEX($O6:$X6,1,aux!$BA$1) -> 4566.863 | AI6: 0.0009241230691 | AJ6: =+IF(INDEX($O6:$X6,1,aux!$BA$1)>0,(X6/INDEX($O6:$X6,1,aux!$BA$1))^(1/($X$3-INDEX($O$3:$X$3,1,aux!$BA$1)))-1,"n.d.") -> 0.4302162319 | AK6: =IF(INDEX($O6:$X6,1,aux!$BA$1)>0,(X6-INDEX($O6:$X6,1,aux!$BA$1))/INDEX($O6:$X6,1,aux!$BA$1),"n.d.") -> 24.0389045 | CC6: =+IF(ISNA(MATCH('5.1'!A6,AUX_2d_pais!$G$2:$G$40000,0)),0,1) -> 1
A7: 0004 | B7: Alemanha | C7: 573948.134 | D7: 586950.877 | E7: 608182.89 | F7: 564509.455 | G7: 563586.08 | H7: 609115.328 | I7: 600267.502 | J7: 659261.915 | K7: 792840.055 | L7: 886615.995 | M7: 644527.8231 | N7: 0.05669323588 | O7: 380531.557 | P7: 487442.21 | Q7: 566625.155 | R7: 572788.98 | S7: 561899.183 | T7: 553545.075 | U7: 618288.662 | V7: 566156.446 | W7: 560227.848 | X7: 598371.874 | Y7: 546587.699 | Z7: 0.05732212348 | AA7: -97940.1241 | AC7: =L7-INDEX($C7:$L7,1,aux!$BA$1) -> 312667.861 | AD7: 0.0758416872 | AE7: =+IF(INDEX($C7:$L7,1,aux!$BA$1)>0,(L7/INDEX($C7:$L7,1,aux!$BA$1))^(1/($L$3-INDEX($C$3:$L$3,1,aux!$BA$1)))-1,"n.d.") -> 0.04950561917 | AF7: =IF(INDEX($C7:$L7,1,aux!$BA$1)>0,(L7-INDEX($C7:$L7,1,aux!$BA$1))/INDEX($C7:$L7,1,aux!$BA$1),"n.d.") -> 0.5447667524 | AH7: =X7-INDEX($O7:$X7,1,aux!$BA$1) -> 217840.317 | AI7: 0.04408086302 | AJ7: =+IF(INDEX($O7:$X7,1,aux!$BA$1)>0,(X7/INDEX($O7:$X7,1,aux!$BA$1))^(1/($X$3-INDEX($O$3:$X$3,1,aux!$BA$1)))-1,"n.d.") -> 0.05157990169 | AK7: =IF(INDEX($O7:$X7,1,aux!$BA$1)>0,(X7-INDEX($O7:$X7,1,aux!$BA$1))/INDEX($O7:$X7,1,aux!$BA$1),"n.d.") -> 0.572463211 | CC7: =+IF(ISNA(MATCH('5.1'!A7,AUX_2d_pais!$G$2:$G$40000,0)),0,1) -> 1
A8: 0043 | B8: Andorra | C8: 2.468 | D8: 4.745 | E8: 16.714 | F8: 8.506 | G8: 2.502 | H8: 8.845 | I8: 3.737 | J8: 0.352 | K8: 4.672 | L8: 6.077 | M8: 5.8618 | N8: 5.156090989e-07 | O8: 3772.85 | P8: 4611.007 | Q8: 4139.411 | R8: 4051.349 | S8: 3427.815 | T8: 3358.954 | U8: 2688.888 | V8: 3015.551 | W8: 3153.534 | X8: 3135.642 | Y8: 3535.5001 | Z8: 0.0003707774135 | AA8: 3529.6383 | AC8: =L8-INDEX($C8:$L8,1,aux!$BA$1) -> 3.609 | AD8: 8.75410246e-07 | AE8: =+IF(INDEX($C8:$L8,1,aux!$BA$1)>0,(L8/INDEX($C8:$L8,1,aux!$BA$1))^(1/($L$3-INDEX($C$3:$L$3,1,aux!$BA$1)))-1,"n.d.") -> 0.105306377 | AF8: =IF(INDEX($C8:$L8,1,aux!$BA$1)>0,(L8-INDEX($C8:$L8,1,aux!$BA$1))/INDEX($C8:$L8,1,aux!$BA$1),"n.d.") -> 1.462317666 | AH8: =X8-INDEX($O8:$X8,1,aux!$BA$1) -> -637.208 | AI8: -0.0001289415979 | AJ8: =+IF(INDEX($O8:$X8,1,aux!$BA$1)>0,(X8/INDEX($O8:$X8,1,aux!$BA$1))^(1/($X$3-INDEX($O$3:$X$3,1,aux!$BA$1)))-1,"n.d.") -> -0.0203453761 | AK8: =IF(INDEX($O8:$X8,1,aux!$BA$1)>0,(X8-INDEX($O8:$X8,1,aux!$BA$1))/INDEX($O8:$X8,1,aux!$BA$1),"n.d.") -> -0.1688930119 | CC8: =+IF(ISNA(MATCH('5.1'!A8,AUX_2d_pais!$G$2:$G$40000,0)),0,1) -> 1
A9: 0330 | B9: Angola | C9: 782.305 | D9: 762.17 | E9: 3169.056 | F9: 1187.629 | G9: 1173.602 | H9: 1335.286 | I9: 7506.884 | J9: 9618.916 | K9: 12788.967 | L9: 9246.757 | M9: 4757.1572 | N9: 0.0004184437438 | O9: 480237.803 | P9: 496066.013 | Q9: 694209.474 | R9: 770305.544 | S9: 836324.981 | T9: 873004.277 | U9: 619867.358 | V9: 512399.099 | W9: 551600.723 | X9: 456132.164 | Y9: 629014.7436 | Z9: 0.06596646955 | AA9: 624257.5864 | AC9: =L9-INDEX($C9:$L9,1,aux!$BA$1) -> 8464.452 | AD9: 0.002053163759 | AE9: =+IF(INDEX($C9:$L9,1,aux!$BA$1)>0,(L9/INDEX($C9:$L9,1,aux!$BA$1))^(1/($L$3-INDEX($C$3:$L$3,1,aux!$BA$1)))-1,"n.d.") -> 0.3157678179 | AF9: =IF(INDEX($C9:$L9,1,aux!$BA$1)>0,(L9-INDEX($C9:$L9,1,aux!$BA$1))/INDEX($C9:$L9,1,aux!$BA$1),"n.d.") -> 10.81988738 | AH9: =X9-INDEX($O9:$X9,1,aux!$BA$1) -> -24105.639 | AI9: -0.004877872863 | AJ9: =+IF(INDEX($O9:$X9,1,aux!$BA$1)>0,(X9/INDEX($O9:$X9,1,aux!$BA$1))^(1/($X$3-INDEX($O$3:$X$3,1,aux!$BA$1)))-1,"n.d.") -> -0.005705749282 | AK9: =IF(INDEX($O9:$X9,1,aux!$BA$1)>0,(X9-INDEX($O9:$X9,1,aux!$BA$1))/INDEX($O9:$X9,1,aux!$BA$1),"n.d.") -> -0.05019521339 | CC9: =+IF(ISNA(MATCH('5.1'!A9,AUX_2d_pais!$G$2:$G$40000,0)),0,1) -> 1
A10: 0446 | B10: Anguila | C10: 0 | D10: 0 | E10: 0 | F10: 0 | G10: 0 | H10: 0 | I10: 0 | J10: 0 | K10: 0 | L10: 0 | M10: 0 | N10: 0 | O10: 30.682 | P10: 0 | Q10: 0 | R10: 0 | S10: 12.412 | T10: 2 | U10: 0 | V10: 0 | W10: 0.013 | X10: 2.054 | Y10: 4.7161 | Z10: 4.945901033e-07 | AA10: 4.7161 | AC10: =L10-INDEX($C10:$L10,1,aux!$BA$1) -> 0 | AD10: 0 | AE10: =+IF(INDEX($C10:$L10,1,aux!$BA$1)>0,(L10/INDEX($C10:$L10,1,aux!$BA$1))^(1/($L$3-INDEX($C$3:$L$3,1,aux!$BA$1)))-1,"n.d.") -> n.d. | AF10: =IF(INDEX($C10:$L10,1,aux!$BA$1)>0,(L10-INDEX($C10:$L10,1,aux!$BA$1))/INDEX($C10:$L10,1,aux!$BA$1),"n.d.") -> n.d. | AH10: =X10-INDEX($O10:$X10,1,aux!$BA$1) -> -28.628 | AI10: -5.792990773e-06 | AJ10: =+IF(INDEX($O10:$X10,1,aux!$BA$1)>0,(X10/INDEX($O10:$X10,1,aux!$BA$1))^(1/($X$3-INDEX($O$3:$X$3,1,aux!$BA$1)))-1,"n.d.") -> -0.2595016657 | AK10: =IF(INDEX($O10:$X10,1,aux!$BA$1)>0,(X10-INDEX($O10:$X10,1,aux!$BA$1))/INDEX($O10:$X10,1,aux!$BA$1),"n.d.") -> -0.9330552115 | CC10: =+IF(ISNA(MATCH('5.1'!A10,AUX_2d_pais!$G$2:$G$40000,0)),0,1) -> 1
A11: 0891 | B11: Antárctica | C11: 0 | D11: 0 | E11: 0 | F11: 0 | G11: 0 | H11: 0 | I11: 0 | J11: 0 | K11: 0 | L11: 0 | M11: 0 | N11: 0 | O11: 0 | P11: 0 | Q11: 0.968 | R11: 0 | S11: 0 | T11: 0 | U11: 0 | V11: 0 | W11: 0 | X11: 0 | Y11: 0.0968 | Z11: 1.01516766e-08 | AA11: 0.0968 | AC11: =L11-INDEX($C11:$L11,1,aux!$BA$1) -> 0 | AD11: 0 | AE11: =+IF(INDEX($C11:$L11,1,aux!$BA$1)>0,(L11/INDEX($C11:$L11,1,aux!$BA$1))^(1/($L$3-INDEX($C$3:$L$3,1,aux!$BA$1)))-1,"n.d.") -> n.d. | AF11: =IF(INDEX($C11:$L11,1,aux!$BA$1)>0,(L11-INDEX($C11:$L11,1,aux!$BA$1))/INDEX($C11:$L11,1,aux!$BA$1),"n.d.") -> n.d. | AH11: =X11-INDEX($O11:$X11,1,aux!$BA$1) -> 0 | AI11: 0 | AJ11: =+IF(INDEX($O11:$X11,1,aux!$BA$1)>0,(X11/INDEX($O11:$X11,1,aux!$BA$1))^(1/($X$3-INDEX($O$3:$X$3,1,aux!$BA$1)))-1,"n.d.") -> n.d. | AK11: =IF(INDEX($O11:$X11,1,aux!$BA$1)>0,(X11-INDEX($O11:$X11,1,aux!$BA$1))/INDEX($O11:$X11,1,aux!$BA$1),"n.d.") -> n.d. | BO11: =SUM(C11:L11,O11:X11) -> 0.968 | CC11: =+IF(ISNA(MATCH('5.1'!A11,AUX_2d_pais!$G$2:$G$40000,0)),0,1) -> 1
A12: 0459 | B12: Antígua e Barbuda | C12: 0 | D12: 20.843 | E12: 15.412 | F12: 0 | G12: 0 | H12: 0 | I12: 0.728 | J12: 0 | K12: 0 | L12: 0 | M12: 3.6983 | N12: 3.253057304e-07 | O12: 236.499 | P12: 9.82 | Q12: 20.312 | R12: 56.233 | S12: 19.001 | T12: 20.386 | U12: 100.061 | V12: 72.599 | W12: 21.105 | X12: 296.211 | Y12: 85.2227 | Z12: 8.937533979e-06 | AA12: 81.5244 | AC12: =L12-INDEX($C12:$L12,1,aux!$BA$1) -> 0 | AD12: 0 | AE12: =+IF(INDEX($C12:$L12,1,aux!$BA$1)>0,(L12/INDEX($C12:$L12,1,aux!$BA$1))^(1/($L$3-INDEX($C$3:$L$3,1,aux!$BA$1)))-1,"n.d.") -> n.d. | AF12: =IF(INDEX($C12:$L12,1,aux!$BA$1)>0,(L12-INDEX($C12:$L12,1,aux!$BA$1))/INDEX($C12:$L12,1,aux!$BA$1),"n.d.") -> n.d. | AH12: =X12-INDEX($O12:$X12,1,aux!$BA$1) -> 59.712 | AI12: 1.208296301e-05 | AJ12: =+IF(INDEX($O12:$X12,1,aux!$BA$1)>0,(X12/INDEX($O12:$X12,1,aux!$BA$1))^(1/($X$3-INDEX($O$3:$X$3,1,aux!$BA$1)))-1,"n.d.") -> 0.02532970957 | AK12: =IF(INDEX($O12:$X12,1,aux!$BA$1)>0,(X12-INDEX($O12:$X12,1,aux!$BA$1))/INDEX($O12:$X12,1,aux!$BA$1),"n.d.") -> 0.2524830972 | CC12: =+IF(ISNA(MATCH('5.1'!A12,AUX_2d_pais!$G$2:$G$40000,0)),0,1) -> 1
A13: 0478 | B13: Antilhas Holandesas | C13: 0 | D13: 0 | E13: 0 | F13: 9.492 | G13: 0 | H13: 0 | I13: 0 | J13: 0 | K13: 0 | L13: 0 | M13: 0.9492 | N13: 8.349246932e-08 | O13: 611.524 | P13: 544.829 | Q13: 460.494 | R13: 406.111 | S13: 0 | T13: 0 | U13: 0 | V13: 0 | W13: 0 | X13: 0 | Y13: 202.2958 | Z13: 2.121530515e-05 | AA13: 201.3466 | AC13: =L13-INDEX($C13:$L13,1,aux!$BA$1) -> 0 | AD13: 0 | AE13: =+IF(INDEX($C13:$L13,1,aux!$BA$1)>0,(L13/INDEX($C13:$L13,1,aux!$BA$1))^(1/($L$3-INDEX($C$3:$L$3,1,aux!$BA$1)))-1,"n.d.") -> n.d. | AF13: =IF(INDEX($C13:$L13,1,aux!$BA$1)>0,(L13-INDEX($C13:$L13,1,aux!$BA$1))/INDEX($C13:$L13,1,aux!$BA$1),"n.d.") -> n.d. | AH13: =X13-INDEX($O13:$X13,1,aux!$BA$1) -> -611.524 | AI13: -0.0001237443374 | AJ13: =+IF(INDEX($O13:$X13,1,aux!$BA$1)>0,(X13/INDEX($O13:$X13,1,aux!$BA$1))^(1/($X$3-INDEX($O$3:$X$3,1,aux!$BA$1)))-1,"n.d.") -> -1 | AK13: =IF(INDEX($O13:$X13,1,aux!$BA$1)>0,(X13-INDEX($O13:$X13,1,aux!$BA$1))/INDEX($O13:$X13,1,aux!$BA$1),"n.d.") -> -1 | BO13: 2032.45 | CC13: =+IF(ISNA(MATCH('5.1'!A13,AUX_2d_pais!$G$2:$G$40000,0)),0,1) -> 1
A14: 0632 | B14: Arábia Saudita | C14: 6.542 | D14: 91.343 | E14: 168.605 | F14: 79.994 | G14: 80.135 | H14: 2675.57 | I14: 54.697 | J14: 173.804 | K14: 25.747 | L14: 14.768 | M14: 337.1205 | N14: 2.965341657e-05 | O14: 3012.124 | P14: 10986.968 | Q14: 31251.242 | R14: 21148.63 | S14: 20616.246 | T14: 16628.455 | U14: 27055.402 | V14: 23646.204 | W14: 43121.791 | X14: 33634.551 | Y14: 23110.1613 | Z14: 0.002423624831 | AA14: 22773.0408 | AC14: =L14-INDEX($C14:$L14,1,aux!$BA$1) -> 8.226 | AD14: 1.995324102e-06 | AE14: =+IF(INDEX($C14:$L14,1,aux!$BA$1)>0,(L14/INDEX($C14:$L14,1,aux!$BA$1))^(1/($L$3-INDEX($C$3:$L$3,1,aux!$BA$1)))-1,"n.d.") -> 0.0946874196 | AF14: =IF(INDEX($C14:$L14,1,aux!$BA$1)>0,(L14-INDEX($C14:$L14,1,aux!$BA$1))/INDEX($C14:$L14,1,aux!$BA$1),"n.d.") -> 1.257413635 | AH14: =X14-INDEX($O14:$X14,1,aux!$BA$1) -> 30622.427 | AI14: 0.006196571087 | AJ14: =+IF(INDEX($O14:$X14,1,aux!$BA$1)>0,(X14/INDEX($O14:$X14,1,aux!$BA$1))^(1/($X$3-INDEX($O$3:$X$3,1,aux!$BA$1)))-1,"n.d.") -> 0.3074790964 | AK14: =IF(INDEX($O14:$X14,1,aux!$BA$1)>0,(X14-INDEX($O14:$X14,1,aux!$BA$1))/INDEX($O14:$X14,1,aux!$BA$1),"n.d.") -> 10.1663899 | CC14: =+IF(ISNA(MATCH('5.1'!A14,AUX_2d_pais!$G$2:$G$40000,0)),0,1) -> 1
A15: 0208 | B15: Argélia | C15: 858.656 | D15: 2100.528 | E15: 4181.128 | F15: 2347.724 | G15: 1224.239 | H15: 806.704 | I15: 800.304 | J15: 666.534 | K15: 1278.34 | L15: 3691.177 | M15: 1795.5334 | N15: 0.0001579367018 | O15: 16997.242 | P15: 47939.781 | Q15: 48421.298 | R15: 50966.313 | S15: 52690.584 | T15: 64191.299 | U15: 70437.247 | V15: 66040.033 | W15: 74365.378 | X15: 73206.08 | Y15: 56525.5255 | Z15: 0.005927984033 | AA15: 54729.9921 | AC15: =L15-INDEX($C15:$L15,1,aux!$BA$1) -> 2832.521 | AD15: 0.0006870650888 | AE15: =+IF(INDEX($C15:$L15,1,aux!$BA$1)>0,(L15/INDEX($C15:$L15,1,aux!$BA$1))^(1/($L$3-INDEX($C$3:$L$3,1,aux!$BA$1)))-1,"n.d.") -> 0.1759036549 | AF15: =IF(INDEX($C15:$L15,1,aux!$BA$1)>0,(L15-INDEX($C15:$L15,1,aux!$BA$1))/INDEX($C15:$L15,1,aux!$BA$1),"n.d.") -> 3.298784379 | AH15: =X15-INDEX($O15:$X15,1,aux!$BA$1) -> 56208.838 | AI15: 0.01137408411 | AJ15: =+IF(INDEX($O15:$X15,1,aux!$BA$1)>0,(X15/INDEX($O15:$X15,1,aux!$BA$1))^(1/($X$3-INDEX($O$3:$X$3,1,aux!$BA$1)))-1,"n.d.") -> 0.1761512873 | AK15: =IF(INDEX($O15:$X15,1,aux!$BA$1)>0,(X15-INDEX($O15:$X15,1,aux!$BA$1))/INDEX($O15:$X15,1,aux!$BA$1),"n.d.") -> 3.306938737 | CC15: =+IF(ISNA(MATCH('5.1'!A15,AUX_2d_pais!$G$2:$G$40000,0)),0,1) -> 1
A16: 0528 | B16: Argentina | C16: 102708.646 | D16: 79600.415 | E16: 134675.118 | F16: 80360.002 | G16: 57702.391 | H16: 44903.349 | I16: 39591.441 | J16: 97840.646 | K16: 92130.178 | L16: 62007.936 | M16: 79152.0122 | N16: 0.006962280816 | O16: 15616.725 | P16: 16525.998 | Q16: 18490.579 | R16: 18485.118 | S16: 20357.771 | T16: 19256.212 | U16: 24212.897 | V16: 19689.899 | W16: 21134.873 | X16: 12497.79 | Y16: 18626.7862 | Z16: 0.001953441214 | AA16: -60525.226 | AC16: =L16-INDEX($C16:$L16,1,aux!$BA$1) -> -40700.71 | AD16: -0.009872490594 | AE16: =+IF(INDEX($C16:$L16,1,aux!$BA$1)>0,(L16/INDEX($C16:$L16,1,aux!$BA$1))^(1/($L$3-INDEX($C$3:$L$3,1,aux!$BA$1)))-1,"n.d.") -> -0.05452746171 | AF16: =IF(INDEX($C16:$L16,1,aux!$BA$1)>0,(L16-INDEX($C16:$L16,1,aux!$BA$1))/INDEX($C16:$L16,1,aux!$BA$1),"n.d.") -> -0.3962734549 | AH16: =X16-INDEX($O16:$X16,1,aux!$BA$1) -> -3118.935 | AI16: -0.0006311290233 | AJ16: =+IF(INDEX($O16:$X16,1,aux!$BA$1)>0,(X16/INDEX($O16:$X16,1,aux!$BA$1))^(1/($X$3-INDEX($O$3:$X$3,1,aux!$BA$1)))-1,"n.d.") -> -0.02445063372 | AK16: =IF(INDEX($O16:$X16,1,aux!$BA$1)>0,(X16-INDEX($O16:$X16,1,aux!$BA$1))/INDEX($O16:$X16,1,aux!$BA$1),"n.d.") -> -0.1997176104 | CC16: =+IF(ISNA(MATCH('5.1'!A16,AUX_2d_pais!$G$2:$G$40000,0)),0,1) -> 1
A17: 0077 | B17: Arménia | C17: 0 | D17: 0 | E17: 0 | F17: 0 | G17: 0 | H17: 0 | I17: 0 | J17: 0 | K17: 0 | L17: 0 | M17: 0 | N17: 0 | O17: 382.059 | P17: 1278.135 | Q17: 1812.527 | R17: 2279.612 | S17: 3150.044 | T17: 2985.247 | U17: 1940.695 | V17: 2090.229 | W17: 2636.337 | X17: 2738.626 | Y17: 2129.3511 | Z17: 0.0002233107823 | AA17: 2129.3511 | AC17: =L17-INDEX($C17:$L17,1,aux!$BA$1) -> 0 | AD17: 0 | AE17: =+IF(INDEX($C17:$L17,1,aux!$BA$1)>0,(L17/INDEX($C17:$L17,1,aux!$BA$1))^(1/($L$3-INDEX($C$3:$L$3,1,aux!$BA$1)))-1,"n.d.") -> n.d. | AF17: =IF(INDEX($C17:$L17,1,aux!$BA$1)>0,(L17-INDEX($C17:$L17,1,aux!$BA$1))/INDEX($C17:$L17,1,aux!$BA$1),"n.d.") -> n.d. | AH17: =X17-INDEX($O17:$X17,1,aux!$BA$1) -> 2356.567 | AI17: 0.0004768607967 | AJ17: =+IF(INDEX($O17:$X17,1,aux!$BA$1)>0,(X17/INDEX($O17:$X17,1,aux!$BA$1))^(1/($X$3-INDEX($O$3:$X$3,1,aux!$BA$1)))-1,"n.d.") -> 0.2446427083 | AK17: =IF(INDEX($O17:$X17,1,aux!$BA$1)>0,(X17-INDEX($O17:$X17,1,aux!$BA$1))/INDEX($O17:$X17,1,aux!$BA$1),"n.d.") -> 6.1680709 | CC17: =+IF(ISNA(MATCH('5.1'!A17,AUX_2d_pais!$G$2:$G$40000,0)),0,1) -> 1
A18: 0474 | B18: Aruba | C18: 0 | D18: 0 | E18: 0 | F18: 0 | G18: 0 | H18: 0 | I18: 0 | J18: 0 | K18: 0 | L18: 0 | M18: 0 | N18: 0 | O18: 56.2 | P18: 81.148 | Q18: 54.458 | R18: 70.314 | S18: 73.131 | T18: 76.47 | U18: 78.324 | V18: 262.709 | W18: 127.221 | X18: 252.003 | Y18: 113.1978 | Z18: 1.187135803e-05 | AA18: 113.1978 | AC18: =L18-INDEX($C18:$L18,1,aux!$BA$1) -> 0 | AD18: 0 | AE18: =+IF(INDEX($C18:$L18,1,aux!$BA$1)>0,(L18/INDEX($C18:$L18,1,aux!$BA$1))^(1/($L$3-INDEX($C$3:$L$3,1,aux!$BA$1)))-1,"n.d.") -> n.d. | AF18: =IF(INDEX($C18:$L18,1,aux!$BA$1)>0,(L18-INDEX($C18:$L18,1,aux!$BA$1))/INDEX($C18:$L18,1,aux!$BA$1),"n.d.") -> n.d. | AH18: =X18-INDEX($O18:$X18,1,aux!$BA$1) -> 195.803 | AI18: 3.962152342e-05 | AJ18: =+IF(INDEX($O18:$X18,1,aux!$BA$1)>0,(X18/INDEX($O18:$X18,1,aux!$BA$1))^(1/($X$3-INDEX($O$3:$X$3,1,aux!$BA$1)))-1,"n.d.") -> 0.1814292272 | AK18: =IF(INDEX($O18:$X18,1,aux!$BA$1)>0,(X18-INDEX($O18:$X18,1,aux!$BA$1))/INDEX($O18:$X18,1,aux!$BA$1),"n.d.") -> 3.484039146 | BO18: 1131.978 | CC18: =+IF(ISNA(MATCH('5.1'!A18,AUX_2d_pais!$G$2:$G$40000,0)),0,1) -> 1
A19: 0800 | B19: Austrália | C19: 2744.427 | D19: 1342.838 | E19: 6435.298 | F19: 4231.605 | G19: 5312.424 | H19: 7644.793 | I19: 30799.283 | J19: 5128.872 | K19: 29461.198 | L19: 16754.601 | M19: 10985.5339 | N19: 0.0009662972525 | O19: 13330.372 | P19: 17805.223 | Q19: 26363.911 | R19: 21159.969 | S19: 19962.213 | T19: 20178.923 | U19: 25798.104 | V19: 27016.205 | W19: 37506.491 | X19: 36418.115 | Y19: 24553.9526 | Z19: 0.002575039112 | AA19: 13568.4187 | AC19: =L19-INDEX($C19:$L19,1,aux!$BA$1) -> 14010.174 | AD19: 0.003398351307 | AE19: =+IF(INDEX($C19:$L19,1,aux!$BA$1)>0,(L19/INDEX($C19:$L19,1,aux!$BA$1))^(1/($L$3-INDEX($C$3:$L$3,1,aux!$BA$1)))-1,"n.d.") -> 0.2226384377 | AF19: =IF(INDEX($C19:$L19,1,aux!$BA$1)>0,(L19-INDEX($C19:$L19,1,aux!$BA$1))/INDEX($C19:$L19,1,aux!$BA$1),"n.d.") -> 5.104954149 | AH19: =X19-INDEX($O19:$X19,1,aux!$BA$1) -> 23087.743 | AI19: 0.004671897519 | AJ19: =+IF(INDEX($O19:$X19,1,aux!$BA$1)>0,(X19/INDEX($O19:$X19,1,aux!$BA$1))^(1/($X$3-INDEX($O$3:$X$3,1,aux!$BA$1)))-1,"n.d.") -> 0.1181427283 | AK19: =IF(INDEX($O19:$X19,1,aux!$BA$1)>0,(X19-INDEX($O19:$X19,1,aux!$BA$1))/INDEX($O19:$X19,1,aux!$BA$1),"n.d.") -> 1.731965395 | CC19: =+IF(ISNA(MATCH('5.1'!A19,AUX_2d_pais!$G$2:$G$40000,0)),0,1) -> 1
A20: 0038 | B20: Áustria | C20: 39851.278 | D20: 47916.514 | E20: 48327.706 | F20: 52314.306 | G20: 47312.305 | H20: 43612.113 | I20: 49423.728 | J20: 52139.394 | K20: 54511.308 | L20: 55068.537 | M20: 49047.7189 | N20: 0.004314280621 | O20: 32057.825 | P20: 28634.444 | Q20: 28233.274 | R20: 29057.582 | S20: 28955.745 | T20: 24287.459 | U20: 25169.586 | V20: 28598.073 | W20: 32441.863 | X20: 33767.31 | Y20: 29120.3161 | Z20: 0.003053925945 | AA20: -19927.4028 | AC20: =L20-INDEX($C20:$L20,1,aux!$BA$1) -> 15217.259 | AD20: 0.003691145593 | AE20: =+IF(INDEX($C20:$L20,1,aux!$BA$1)>0,(L20/INDEX($C20:$L20,1,aux!$BA$1))^(1/($L$3-INDEX($C$3:$L$3,1,aux!$BA$1)))-1,"n.d.") -> 0.03658950975 | AF20: =IF(INDEX($C20:$L20,1,aux!$BA$1)>0,(L20-INDEX($C20:$L20,1,aux!$BA$1))/INDEX($C20:$L20,1,aux!$BA$1),"n.d.") -> 0.3818512169 | AH20: =X20-INDEX($O20:$X20,1,aux!$BA$1) -> 1709.485 | AI20: 0.0003459211552 | AJ20: =+IF(INDEX($O20:$X20,1,aux!$BA$1)>0,(X20/INDEX($O20:$X20,1,aux!$BA$1))^(1/($X$3-INDEX($O$3:$X$3,1,aux!$BA$1)))-1,"n.d.") -> 0.005789122733 | AK20: =IF(INDEX($O20:$X20,1,aux!$BA$1)>0,(X20-INDEX($O20:$X20,1,aux!$BA$1))/INDEX($O20:$X20,1,aux!$BA$1),"n.d.") -> 0.05332504623 | CC20: =+IF(ISNA(MATCH('5.1'!A20,AUX_2d_pais!$G$2:$G$40000,0)),0,1) -> 1
A21: 0078 | B21: Azerbaijão | C21: 0 | D21: 0 | E21: 0 | F21: 0.023 | G21: 0 | H21: 0 | I21: 0 | J21: 0 | K21: 0 | L21: 5.351 | M21: 0.5374 | N21: 4.727017806e-08 | O21: 482.25 | P21: 295.352 | Q21: 831.543 | R21: 1371.208 | S21: 1152.888 | T21: 1760.536 | U21: 1027.756 | V21: 604.048 | W21: 736.649 | X21: 1417.937 | Y21: 968.0167 | Z21: 0.0001015185174 | AA21: 967.4793 | AC21: =L21-INDEX($C21:$L21,1,aux!$BA$1) -> 5.351 | AD21: 1.297955175e-06 | AE21: =+IF(INDEX($C21:$L21,1,aux!$BA$1)>0,(L21/INDEX($C21:$L21,1,aux!$BA$1))^(1/($L$3-INDEX($C$3:$L$3,1,aux!$BA$1)))-1,"n.d.") -> n.d. | AF21: =IF(INDEX($C21:$L21,1,aux!$BA$1)>0,(L21-INDEX($C21:$L21,1,aux!$BA$1))/INDEX($C21:$L21,1,aux!$BA$1),"n.d.") -> n.d. | AH21: =X21-INDEX($O21:$X21,1,aux!$BA$1) -> 935.687 | AI21: 0.0001893400223 | AJ21: =+IF(INDEX($O21:$X21,1,aux!$BA$1)>0,(X21/INDEX($O21:$X21,1,aux!$BA$1))^(1/($X$3-INDEX($O$3:$X$3,1,aux!$BA$1)))-1,"n.d.") -> 0.1273084032 | AK21: =IF(INDEX($O21:$X21,1,aux!$BA$1)>0,(X21-INDEX($O21:$X21,1,aux!$BA$1))/INDEX($O21:$X21,1,aux!$BA$1),"n.d.") -> 1.940252981 | CC21: =+IF(ISNA(MATCH('5.1'!A21,AUX_2d_pais!$G$2:$G$40000,0)),0,1) -> 1
A22: 0453 | B22: Bahamas | C22: 0 | D22: 0 | E22: 0 | F22: 0 | G22: 0 | H22: 0 | I22: 0.299 | J22: 0.005 | K22: 0 | L22: 0 | M22: 0.0304 | N22: 2.674010817e-09 | O22: 0 | P22: 3.935 | Q22: 51.382 | R22: 47.803 | S22: 75.215 | T22: 103.856 | U22: 230.663 | V22: 75.183 | W22: 72.878 | X22: 136.89 | Y22: 79.7805 | Z22: 8.366795814e-06 | AA22: 79.7501 | AC22: =L22-INDEX($C22:$L22,1,aux!$BA$1) -> 0 | AD22: 0 | AE22: =+IF(INDEX($C22:$L22,1,aux!$BA$1)>0,(L22/INDEX($C22:$L22,1,aux!$BA$1))^(1/($L$3-INDEX($C$3:$L$3,1,aux!$BA$1)))-1,"n.d.") -> n.d. | AF22: =IF(INDEX($C22:$L22,1,aux!$BA$1)>0,(L22-INDEX($C22:$L22,1,aux!$BA$1))/INDEX($C22:$L22,1,aux!$BA$1),"n.d.") -> n.d. | AH22: =X22-INDEX($O22:$X22,1,aux!$BA$1) -> 136.89 | AI22: 2.770024127e-05 | AJ22: =+IF(INDEX($O22:$X22,1,aux!$BA$1)>0,(X22/INDEX($O22:$X22,1,aux!$BA$1))^(1/($X$3-INDEX($O$3:$X$3,1,aux!$BA$1)))-1,"n.d.") -> n.d. | AK22: =IF(INDEX($O22:$X22,1,aux!$BA$1)>0,(X22-INDEX($O22:$X22,1,aux!$BA$1))/INDEX($O22:$X22,1,aux!$BA$1),"n.d.") -> n.d. | BO22: 798.109 | CC22: =+IF(ISNA(MATCH('5.1'!A22,AUX_2d_pais!$G$2:$G$40000,0)),0,1) -> 1
A23: 0666 | B23: Bangladesh | C23: 3140.349 | D23: 6993.729 | E23: 6187.062 | F23: 8823.126 | G23: 6650.219 | H23: 7819.628 | I23: 4270.629 | J23: 5128.022 | K23: 8117.274 | L23: 7021.888 | M23: 6415.1926 | N23: 0.0005642860002 | O23: 371.285 | P23: 538.755 | Q23: 2237.217 | R23: 174.925 | S23: 180.055 | T23: 330.369 | U23: 165.124 | V23: 201.541 | W23: 516.286 | X23: 382.391 | Y23: 509.7948 | Z23: 5.346355311e-05 | AA23: -5905.3978 | AC23: =L23-INDEX($C23:$L23,1,aux!$BA$1) -> 3881.539 | AD23: 0.0009415181521 | AE23: =+IF(INDEX($C23:$L23,1,aux!$BA$1)>0,(L23/INDEX($C23:$L23,1,aux!$BA$1))^(1/($L$3-INDEX($C$3:$L$3,1,aux!$BA$1)))-1,"n.d.") -> 0.09352990609 | AF23: =IF(INDEX($C23:$L23,1,aux!$BA$1)>0,(L23-INDEX($C23:$L23,1,aux!$BA$1))/INDEX($C23:$L23,1,aux!$BA$1),"n.d.") -> 1.236021538 | AH23: =X23-INDEX($O23:$X23,1,aux!$BA$1) -> 11.106 | AI23: 2.247343703e-06 | AJ23: =+IF(INDEX($O23:$X23,1,aux!$BA$1)>0,(X23/INDEX($O23:$X23,1,aux!$BA$1))^(1/($X$3-INDEX($O$3:$X$3,1,aux!$BA$1)))-1,"n.d.") -> 0.003280221922 | AK23: =IF(INDEX($O23:$X23,1,aux!$BA$1)>0,(X23-INDEX($O23:$X23,1,aux!$BA$1))/INDEX($O23:$X23,1,aux!$BA$1),"n.d.") -> 0.0299123315 | CC23: =+IF(ISNA(MATCH('5.1'!A23,AUX_2d_pais!$G$2:$G$40000,0)),0,1) -> 1
A24: 0469 | B24: Barbados | C24: 0 | D24: 0 | E24: 3795.134 | F24: 0 | G24: 0 | H24: 2489.02 | I24: 0 | J24: 36.689 | K24: 1.348 | L24: 0 | M24: 632.2191 | N24: 5.561054974e-05 | O24: 87.825 | P24: 179.623 | Q24: 218.423 | R24: 310.611 | S24: 197.61 | T24: 92.474 | U24: 254.899 | V24: 255.542 | W24: 417.118 | X24: 590.762 | Y24: 260.4887 | Z24: 2.731815124e-05 | AA24: -371.7304 | AC24: =L24-INDEX($C24:$L24,1,aux!$BA$1) -> 0 | AD24: 0 | AE24: =+IF(INDEX($C24:$L24,1,aux!$BA$1)>0,(L24/INDEX($C24:$L24,1,aux!$BA$1))^(1/($L$3-INDEX($C$3:$L$3,1,aux!$BA$1)))-1,"n.d.") -> n.d. | AF24: =IF(INDEX($C24:$L24,1,aux!$BA$1)>0,(L24-INDEX($C24:$L24,1,aux!$BA$1))/INDEX($C24:$L24,1,aux!$BA$1),"n.d.") -> n.d. | AH24: =X24-INDEX($O24:$X24,1,aux!$BA$1) -> 502.937 | AI24: 0.0001017713218 | AJ24: =+IF(INDEX($O24:$X24,1,aux!$BA$1)>0,(X24/INDEX($O24:$X24,1,aux!$BA$1))^(1/($X$3-INDEX($O$3:$X$3,1,aux!$BA$1)))-1,"n.d.") -> 0.2358824207 | AK24: =IF(INDEX($O24:$X24,1,aux!$BA$1)>0,(X24-INDEX($O24:$X24,1,aux!$BA$1))/INDEX($O24:$X24,1,aux!$BA$1),"n.d.") -> 5.72658127 | BO24: 8927.078 | CC24: =+IF(ISNA(MATCH('5.1'!A24,AUX_2d_pais!$G$2:$G$40000,0)),0,1) -> 1
A25: 0640 | B25: Barém | C25: 0 | D25: 0 | E25: 0 | F25: 0.431 | G25: 0 | H25: 0 | I25: 0 | J25: 0 | K25: 0.438 | L25: 0.342 | M25: 0.1211 | N25: 1.065206283e-08 | O25: 202.243 | P25: 264.421 | Q25: 675.265 | R25: 315.646 | S25: 260.907 | T25: 318.122 | U25: 447.168 | V25: 510.212 | W25: 1124.626 | X25: 769.988 | Y25: 488.8598 | Z25: 5.12680433e-05 | AA25: 488.7387 | AC25: =L25-INDEX($C25:$L25,1,aux!$BA$1) -> 0.342 | AD25: 8.295658191e-08 | AE25: =+IF(INDEX($C25:$L25,1,aux!$BA$1)>0,(L25/INDEX($C25:$L25,1,aux!$BA$1))^(1/($L$3-INDEX($C$3:$L$3,1,aux!$BA$1)))-1,"n.d.") -> n.d. | AF25: =IF(INDEX($C25:$L25,1,aux!$BA$1)>0,(L25-INDEX($C25:$L25,1,aux!$BA$1))/INDEX($C25:$L25,1,aux!$BA$1),"n.d.") -> n.d. | AH25: =X25-INDEX($O25:$X25,1,aux!$BA$1) -> 567.745 | AI25: 0.0001148854809 | AJ25: =+IF(INDEX($O25:$X25,1,aux!$BA$1)>0,(X25/INDEX($O25:$X25,1,aux!$BA$1))^(1/($X$3-INDEX($O$3:$X$3,1,aux!$BA$1)))-1,"n.d.") -> 0.1601450013 | AK25: =IF(INDEX($O25:$X25,1,aux!$BA$1)>0,(X25-INDEX($O25:$X25,1,aux!$BA$1))/INDEX($O25:$X25,1,aux!$BA$1),"n.d.") -> 2.807241783 | CC25: =+IF(ISNA(MATCH('5.1'!A25,AUX_2d_pais!$G$2:$G$40000,0)),0,1) -> 1
A26: 0073 | B26: Belarus | C26: 16.632 | D26: 0.495 | E26: 16.799 | F26: 0.262 | G26: 9.586 | H26: 0 | I26: 0 | J26: 18.707 | K26: 485.343 | L26: 896.686 | M26: 144.451 | N26: 1.270603739e-05 | O26: 628.373 | P26: 1126.181 | Q26: 1475.006 | R26: 2011.118 | S26: 3317.67 | T26: 4152.532 | U26: 5478.779 | V26: 4362.988 | W26: 5288.625 | X26: 5518.251 | Y26: 3335.9523 | Z26: 0.0003498502985 | AA26: 3191.5013 | AC26: =L26-INDEX($C26:$L26,1,aux!$BA$1) -> 880.054 | AD26: 0.0002134686308 | AE26: =+IF(INDEX($C26:$L26,1,aux!$BA$1)>0,(L26/INDEX($C26:$L26,1,aux!$BA$1))^(1/($L$3-INDEX($C$3:$L$3,1,aux!$BA$1)))-1,"n.d.") -> 0.557437606 | AF26: =IF(INDEX($C26:$L26,1,aux!$BA$1)>0,(L26-INDEX($C26:$L26,1,aux!$BA$1))/INDEX($C26:$L26,1,aux!$BA$1),"n.d.") -> 52.91329966 | AH26: =X26-INDEX($O26:$X26,1,aux!$BA$1) -> 4889.878 | AI26: 0.0009894864516 | AJ26: =+IF(INDEX($O26:$X26,1,aux!$BA$1)>0,(X26/INDEX($O26:$X26,1,aux!$BA$1))^(1/($X$3-INDEX($O$3:$X$3,1,aux!$BA$1)))-1,"n.d.") -> 0.273041787 | AK26: =IF(INDEX($O26:$X26,1,aux!$BA$1)>0,(X26-INDEX($O26:$X26,1,aux!$BA$1))/INDEX($O26:$X26,1,aux!$BA$1),"n.d.") -> 7.781807939 | CC26: =+IF(ISNA(MATCH('5.1'!A26,AUX_2d_pais!$G$2:$G$40000,0)),0,1) -> 1
A27: 0017 | B27: Bélgica | C27: 205395.746 | D27: 200809.126 | E27: 197516.257 | F27: 192526.861 | G27: 208728.576 | H27: 215184.789 | I27: 234426.094 | J27: 240645.533 | K27: 257632.1 | L27: 253661.1 | M27: 220652.6182 | N27: 0.01940879894 | O27: 166187.331 | P27: 166726.256 | Q27: 162297.201 | R27: 180387.858 | S27: 179484.956 | T27: 192386.063 | U27: 197978.971 | V27: 204665.694 | W27: 219545.314 | X27: 225978.939 | Y27: 189563.8583 | Z27: 0.01988007215 | AA27: -31088.7599 | AC27: =L27-INDEX($C27:$L27,1,aux!$BA$1) -> 48265.354 | AD27: 0.01170739413 | AE27: =+IF(INDEX($C27:$L27,1,aux!$BA$1)>0,(L27/INDEX($C27:$L27,1,aux!$BA$1))^(1/($L$3-INDEX($C$3:$L$3,1,aux!$BA$1)))-1,"n.d.") -> 0.02372831175 | AF27: =IF(INDEX($C27:$L27,1,aux!$BA$1)>0,(L27-INDEX($C27:$L27,1,aux!$BA$1))/INDEX($C27:$L27,1,aux!$BA$1),"n.d.") -> 0.234987116 | AH27: =X27-INDEX($O27:$X27,1,aux!$BA$1) -> 59791.608 | AI27: 0.01209907201 | AJ27: =+IF(INDEX($O27:$X27,1,aux!$BA$1)>0,(X27/INDEX($O27:$X27,1,aux!$BA$1))^(1/($X$3-INDEX($O$3:$X$3,1,aux!$BA$1)))-1,"n.d.") -> 0.0347370643 | AK27: =IF(INDEX($O27:$X27,1,aux!$BA$1)>0,(X27-INDEX($O27:$X27,1,aux!$BA$1))/INDEX($O27:$X27,1,aux!$BA$1),"n.d.") -> 0.359784393 | CC27: =+IF(ISNA(MATCH('5.1'!A27,AUX_2d_pais!$G$2:$G$40000,0)),0,1) -> 1
A28: 0421 | B28: Belize | C28: 437.434 | D28: 382.555 | E28: 309.307 | F28: 10748.77 | G28: 9089.849 | H28: 445.45 | I28: 488.859 | J28: 1080.5 | K28: 12846.208 | L28: 3126.349 | M28: 3895.5281 | N28: 0.0003426540881 | O28: 0 | P28: 5.959 | Q28: 13.692 | R28: 7.715 | S28: 6.217 | T28: 7.903 | U28: 2.927 | V28: 2.935 | W28: 2.763 | X28: 4.182 | Y28: 5.4293 | Z28: 5.693853074e-07 | AA28: -3890.0988 | AC28: =L28-INDEX($C28:$L28,1,aux!$BA$1) -> 2688.915 | AD28: 0.0006522315715 | AE28: =+IF(INDEX($C28:$L28,1,aux!$BA$1)>0,(L28/INDEX($C28:$L28,1,aux!$BA$1))^(1/($L$3-INDEX($C$3:$L$3,1,aux!$BA$1)))-1,"n.d.") -> 0.2442360179 | AF28: =IF(INDEX($C28:$L28,1,aux!$BA$1)>0,(L28-INDEX($C28:$L28,1,aux!$BA$1))/INDEX($C28:$L28,1,aux!$BA$1),"n.d.") -> 6.14701875 | AH28: =X28-INDEX($O28:$X28,1,aux!$BA$1) -> 4.182 | AI28: 8.462444954e-07 | AJ28: =+IF(INDEX($O28:$X28,1,aux!$BA$1)>0,(X28/INDEX($O28:$X28,1,aux!$BA$1))^(1/($X$3-INDEX($O$3:$X$3,1,aux!$BA$1)))-1,"n.d.") -> n.d. | AK28: =IF(INDEX($O28:$X28,1,aux!$BA$1)>0,(X28-INDEX($O28:$X28,1,aux!$BA$1))/INDEX($O28:$X28,1,aux!$BA$1),"n.d.") -> n.d. | CC28: =+IF(ISNA(MATCH('5.1'!A28,AUX_2d_pais!$G$2:$G$40000,0)),0,1) -> 1
A29: 0284 | B29: Benim | C29: 10394.211 | D29: 7623.169 | E29: 2911.167 | F29: 7334.942 | G29: 2539.356 | H29: 3473.422 | I29: 3282.67 | J29: 1303.332 | K29: 1150.272 | L29: 883.122 | M29: 4089.5663 | N29: 0.0003597218593 | O29: 368.023 | P29: 330.105 | Q29: 863.096 | R29: 1709.664 | S29: 2180.064 | T29: 1508.149 | U29: 2084.547 | V29: 2026.752 | W29: 1575.799 | X29: 575.281 | Y29: 1322.148 | Z29: 0.0001386572202 | AA29: -2767.4183 | AC29: =L29-INDEX($C29:$L29,1,aux!$BA$1) -> -9511.089 | AD29: -0.00230703928 | AE29: =+IF(INDEX($C29:$L29,1,aux!$BA$1)>0,(L29/INDEX($C29:$L29,1,aux!$BA$1))^(1/($L$3-INDEX($C$3:$L$3,1,aux!$BA$1)))-1,"n.d.") -> -0.2396291417 | AF29: =IF(INDEX($C29:$L29,1,aux!$BA$1)>0,(L29-INDEX($C29:$L29,1,aux!$BA$1))/INDEX($C29:$L29,1,aux!$BA$1),"n.d.") -> -0.9150371298 | AH29: =X29-INDEX($O29:$X29,1,aux!$BA$1) -> 207.258 | AI29: 4.193948867e-05 | AJ29: =+IF(INDEX($O29:$X29,1,aux!$BA$1)>0,(X29/INDEX($O29:$X29,1,aux!$BA$1))^(1/($X$3-INDEX($O$3:$X$3,1,aux!$BA$1)))-1,"n.d.") -> 0.05088724003 | AK29: =IF(INDEX($O29:$X29,1,aux!$BA$1)>0,(X29-INDEX($O29:$X29,1,aux!$BA$1))/INDEX($O29:$X29,1,aux!$BA$1),"n.d.") -> 0.5631658891 | CC29: =+IF(ISNA(MATCH('5.1'!A29,AUX_2d_pais!$G$2:$G$40000,0)),0,1) -> 1
A30: 0413 | B30: Bermudas | C30: 0.346 | D30: 0 | E30: 0 | F30: 0 | G30: 0 | H30: 0 | I30: 0 | J30: 0 | K30: 0 | L30: 0 | M30: 0.0346 | N30: 3.043446522e-09 | O30: 509.829 | P30: 448.578 | Q30: 1789.534 | R30: 435.714 | S30: 439.795 | T30: 261.858 | U30: 524.601 | V30: 588.996 | W30: 644.27 | X30: 780.283 | Y30: 642.3458 | Z30: 6.736453332e-05 | AA30: 642.3112 | AC30: =L30-INDEX($C30:$L30,1,aux!$BA$1) -> -0.346 | AD30: -8.392683433e-08 | AE30: =+IF(INDEX($C30:$L30,1,aux!$BA$1)>0,(L30/INDEX($C30:$L30,1,aux!$BA$1))^(1/($L$3-INDEX($C$3:$L$3,1,aux!$BA$1)))-1,"n.d.") -> -1 | AF30: =IF(INDEX($C30:$L30,1,aux!$BA$1)>0,(L30-INDEX($C30:$L30,1,aux!$BA$1))/INDEX($C30:$L30,1,aux!$BA$1),"n.d.") -> -1 | AH30: =X30-INDEX($O30:$X30,1,aux!$BA$1) -> 270.454 | AI30: 5.472745308e-05 | AJ30: =+IF(INDEX($O30:$X30,1,aux!$BA$1)>0,(X30/INDEX($O30:$X30,1,aux!$BA$1))^(1/($X$3-INDEX($O$3:$X$3,1,aux!$BA$1)))-1,"n.d.") -> 0.04842266512 | AK30: =IF(INDEX($O30:$X30,1,aux!$BA$1)>0,(X30-INDEX($O30:$X30,1,aux!$BA$1))/INDEX($O30:$X30,1,aux!$BA$1),"n.d.") -> 0.5304798276 | CC30: =+IF(ISNA(MATCH('5.1'!A30,AUX_2d_pais!$G$2:$G$40000,0)),0,1) -> 1
A31: 0516 | B31: Bolívia | C31: 552.431 | D31: 1481.171 | E31: 1030.298 | F31: 759.065 | G31: 10101.212 | H31: 245.271 | I31: 789.13 | J31: 908.047 | K31: 373.935 | L31: 759.726 | M31: 1700.0286 | N31: 0.0001495360153 | O31: 394.369 | P31: 551.525 | Q31: 904.476 | R31: 788.047 | S31: 728.006 | T31: 889.02 | U31: 661.86 | V31: 1120.132 | W31: 1704.109 | X31: 1951.593 | Y31: 969.3137 | Z31: 0.0001016545372 | AA31: -730.7149 | AC31: =L31-INDEX($C31:$L31,1,aux!$BA$1) -> 207.295 | AD31: 5.028211885e-05 | AE31: =+IF(INDEX($C31:$L31,1,aux!$BA$1)>0,(L31/INDEX($C31:$L31,1,aux!$BA$1))^(1/($L$3-INDEX($C$3:$L$3,1,aux!$BA$1)))-1,"n.d.") -> 0.03603741279 | AF31: =IF(INDEX($C31:$L31,1,aux!$BA$1)>0,(L31-INDEX($C31:$L31,1,aux!$BA$1))/INDEX($C31:$L31,1,aux!$BA$1),"n.d.") -> 0.3752414329 | AH31: =X31-INDEX($O31:$X31,1,aux!$BA$1) -> 1557.224 | AI31: 0.0003151105304 | AJ31: =+IF(INDEX($O31:$X31,1,aux!$BA$1)>0,(X31/INDEX($O31:$X31,1,aux!$BA$1))^(1/($X$3-INDEX($O$3:$X$3,1,aux!$BA$1)))-1,"n.d.") -> 0.1944422715 | AK31: =IF(INDEX($O31:$X31,1,aux!$BA$1)>0,(X31-INDEX($O31:$X31,1,aux!$BA$1))/INDEX($O31:$X31,1,aux!$BA$1),"n.d.") -> 3.948647079 | CC31: =+IF(ISNA(MATCH('5.1'!A31,AUX_2d_pais!$G$2:$G$40000,0)),0,1) -> 1
A32: 0477 | B32: Bonaire, Santo Eustáquio e Saba | C32: 0 | D32: 0 | E32: 0 | F32: 0 | G32: 0 | H32: 0 | I32: 0 | J32: 0 | K32: 0 | L32: 0 | M32: 0 | N32: 0 | O32: 0 | P32: 0 | Q32: 0 | R32: 0 | S32: 56.784 | T32: 39.65 | U32: 250.632 | V32: 157.886 | W32: 55.39 | X32: 78.798 | Y32: 63.914 | Z32: 6.702833245e-06 | AA32: 63.914 | AC32: =L32-INDEX($C32:$L32,1,aux!$BA$1) -> 0 | AD32: 0 | AE32: =+IF(INDEX($C32:$L32,1,aux!$BA$1)>0,(L32/INDEX($C32:$L32,1,aux!$BA$1))^(1/($L$3-INDEX($C$3:$L$3,1,aux!$BA$1)))-1,"n.d.") -> n.d. | AF32: =IF(INDEX($C32:$L32,1,aux!$BA$1)>0,(L32-INDEX($C32:$L32,1,aux!$BA$1))/INDEX($C32:$L32,1,aux!$BA$1),"n.d.") -> n.d. | AH32: =X32-INDEX($O32:$X32,1,aux!$BA$1) -> 78.798 | AI32: 1.594509176e-05 | AJ32: =+IF(INDEX($O32:$X32,1,aux!$BA$1)>0,(X32/INDEX($O32:$X32,1,aux!$BA$1))^(1/($X$3-INDEX($O$3:$X$3,1,aux!$BA$1)))-1,"n.d.") -> n.d. | AK32: =IF(INDEX($O32:$X32,1,aux!$BA$1)>0,(X32-INDEX($O32:$X32,1,aux!$BA$1))/INDEX($O32:$X32,1,aux!$BA$1),"n.d.") -> n.d. | BO32: 639.14 | CC32: =+IF(ISNA(MATCH('5.1'!A32,AUX_2d_pais!$G$2:$G$40000,0)),0,1) -> 1
A33: 0093 | B33: Bósnia-Herzegovina | C33: 0 | D33: 0 | E33: 86.649 | F33: 213.392 | G33: 74.897 | H33: 107.068 | I33: 54.684 | J33: 157.655 | K33: 127.464 | L33: 89.271 | M33: 91.108 | N33: 8.013940049e-06 | O33: 72.062 | P33: 66.089 | Q33: 221.894 | R33: 257.864 | S33: 159.259 | T33: 103.252 | U33: 195.411 | V33: 415.654 | W33: 428.611 | X33: 558.847 | Y33: 247.8943 | Z33: 2.59973426e-05 | AA33: 156.7863 | AC33: =L33-INDEX($C33:$L33,1,aux!$BA$1) -> 89.271 | AD33: 2.165385095e-05 | AE33: =+IF(INDEX($C33:$L33,1,aux!$BA$1)>0,(L33/INDEX($C33:$L33,1,aux!$BA$1))^(1/($L$3-INDEX($C$3:$L$3,1,aux!$BA$1)))-1,"n.d.") -> n.d. | AF33: =IF(INDEX($C33:$L33,1,aux!$BA$1)>0,(L33-INDEX($C33:$L33,1,aux!$BA$1))/INDEX($C33:$L33,1,aux!$BA$1),"n.d.") -> n.d. | AH33: =X33-INDEX($O33:$X33,1,aux!$BA$1) -> 486.785 | AI33: 9.850289974e-05 | AJ33: =+IF(INDEX($O33:$X33,1,aux!$BA$1)>0,(X33/INDEX($O33:$X33,1,aux!$BA$1))^(1/($X$3-INDEX($O$3:$X$3,1,aux!$BA$1)))-1,"n.d.") -> 0.2555758591 | AK33: =IF(INDEX($O33:$X33,1,aux!$BA$1)>0,(X33-INDEX($O33:$X33,1,aux!$BA$1))/INDEX($O33:$X33,1,aux!$BA$1),"n.d.") -> 6.755085898 | CC33: =+IF(ISNA(MATCH('5.1'!A33,AUX_2d_pais!$G$2:$G$40000,0)),0,1) -> 1
A34: 0391 | B34: Botswana | C34: 7.109 | D34: 5.731 | E34: 0.129 | F34: 0 | G34: 0 | H34: 0 | I34: 0 | J34: 0 | K34: 0 | L34: 0 | M34: 1.2969 | N34: 1.14076468e-07 | O34: 7.826 | P34: 39.112 | Q34: 0.713 | R34: 0 | S34: 0.598 | T34: 0 | U34: 0.075 | V34: 41.179 | W34: 11.75 | X34: 22.405 | Y34: 12.3658 | Z34: 1.296834736e-06 | AA34: 11.0689 | AC34: =L34-INDEX($C34:$L34,1,aux!$BA$1) -> -7.109 | AD34: -1.724381114e-06 | AE34: =+IF(INDEX($C34:$L34,1,aux!$BA$1)>0,(L34/INDEX($C34:$L34,1,aux!$BA$1))^(1/($L$3-INDEX($C$3:$L$3,1,aux!$BA$1)))-1,"n.d.") -> -1 | AF34: =IF(INDEX($C34:$L34,1,aux!$BA$1)>0,(L34-INDEX($C34:$L34,1,aux!$BA$1))/INDEX($C34:$L34,1,aux!$BA$1),"n.d.") -> -1 | AH34: =X34-INDEX($O34:$X34,1,aux!$BA$1) -> 14.579 | AI34: 2.950119201e-06 | AJ34: =+IF(INDEX($O34:$X34,1,aux!$BA$1)>0,(X34/INDEX($O34:$X34,1,aux!$BA$1))^(1/($X$3-INDEX($O$3:$X$3,1,aux!$BA$1)))-1,"n.d.") -> 0.1239736314 | AK34: =IF(INDEX($O34:$X34,1,aux!$BA$1)>0,(X34-INDEX($O34:$X34,1,aux!$BA$1))/INDEX($O34:$X34,1,aux!$BA$1),"n.d.") -> 1.862892921 | CC34: =+IF(ISNA(MATCH('5.1'!A34,AUX_2d_pais!$G$2:$G$40000,0)),0,1) -> 1
A35: 0892 | B35: Bouvet, Ilha | C35: 0 | D35: 0 | E35: 0 | F35: 0 | G35: 0 | H35: 0 | I35: 0 | J35: 0 | K35: 0 | L35: 0 | M35: 0 | N35: 0 | O35: 0 | P35: 0 | Q35: 0 | R35: 0 | S35: 0 | T35: 0 | U35: 0 | V35: 0 | W35: 0 | X35: 0 | Y35: 0 | Z35: 0 | AA35: 0 | AC35: =L35-INDEX($C35:$L35,1,aux!$BA$1) -> 0 | AD35: 0 | AE35: =+IF(INDEX($C35:$L35,1,aux!$BA$1)>0,(L35/INDEX($C35:$L35,1,aux!$BA$1))^(1/($L$3-INDEX($C$3:$L$3,1,aux!$BA$1)))-1,"n.d.") -> n.d. | AF35: =IF(INDEX($C35:$L35,1,aux!$BA$1)>0,(L35-INDEX($C35:$L35,1,aux!$BA$1))/INDEX($C35:$L35,1,aux!$BA$1),"n.d.") -> n.d. | AH35: =X35-INDEX($O35:$X35,1,aux!$BA$1) -> 0 | AI35: 0 | AJ35: =+IF(INDEX($O35:$X35,1,aux!$BA$1)>0,(X35/INDEX($O35:$X35,1,aux!$BA$1))^(1/($X$3-INDEX($O$3:$X$3,1,aux!$BA$1)))-1,"n.d.") -> n.d. | AK35: =IF(INDEX($O35:$X35,1,aux!$BA$1)>0,(X35-INDEX($O35:$X35,1,aux!$BA$1))/INDEX($O35:$X35,1,aux!$BA$1),"n.d.") -> n.d. | AM35: =SUM(A35:AA35) -> 0 | BO35: 0 | CC35: =+IF(ISNA(MATCH('5.1'!A35,AUX_2d_pais!$G$2:$G$40000,0)),0,1) -> 0
A36: 0508 | B36: Brasil | C36: 345963.741 | D36: 411729.086 | E36: 448773.991 | F36: 454029.826 | G36: 495951.627 | H36: 287929.45 | I36: 366986.145 | J36: 270456.682 | K36: 359351.142 | L36: 416916.205 | M36: 385808.7895 | N36: 0.03393608146 | O36: 155181.717 | P36: 227362.042 | Q36: 268243.887 | R36: 301817.8 | S36: 322487.227 | T36: 337706.071 | U36: 297187.507 | V36: 292346.759 | W36: 403960.331 | X36: 427029.14 | Y36: 303332.2481 | Z36: 0.03181126947 | AA36: -82476.5414 | AC36: =L36-INDEX($C36:$L36,1,aux!$BA$1) -> 70952.464 | AD36: =AC36/$AC$252 -> 0.01721044998 | AE36: =+IF(INDEX($C36:$L36,1,aux!$BA$1)>0,(L36/INDEX($C36:$L36,1,aux!$BA$1))^(1/($L$3-INDEX($C$3:$L$3,1,aux!$BA$1)))-1,"n.d.") -> 0.02094423529 | AF36: =IF(INDEX($C36:$L36,1,aux!$BA$1)>0,(L36-INDEX($C36:$L36,1,aux!$BA$1))/INDEX($C36:$L36,1,aux!$BA$1),"n.d.") -> 0.2050864168 | AH36: =X36-INDEX($O36:$X36,1,aux!$BA$1) -> 271847.423 | AI36: =AH36/$AH$252 -> 0.05500941782 | AJ36: =+IF(INDEX($O36:$X36,1,aux!$BA$1)>0,(X36/INDEX($O36:$X36,1,aux!$BA$1))^(1/($X$3-INDEX($O$3:$X$3,1,aux!$BA$1)))-1,"n.d.") -> 0.1190418505 | AK36: =IF(INDEX($O36:$X36,1,aux!$BA$1)>0,(X36-INDEX($O36:$X36,1,aux!$BA$1))/INDEX($O36:$X36,1,aux!$BA$1),"n.d.") -> 1.751800587 | CC36: =+IF(ISNA(MATCH('5.1'!A36,AUX_2d_pais!$G$2:$G$40000,0)),0,1) -> 1
A37: 0703 | B37: Brunei Darussalam | C37: 0 | D37: 0 | E37: 0 | F37: 0 | G37: 0 | H37: 0 | I37: 0 | J37: 0 | K37: 0 | L37: 0 | M37: 0 | N37: 0 | O37: 0 | P37: 0 | Q37: 113.149 | R37: 0 | S37: 0 | T37: 0.413 | U37: 25.849 | V37: 0.037 | W37: 19.175 | X37: 0.034 | Y37: 15.8657 | Z37: 1.663878672e-06 | AA37: 15.8657 | AC37: =L37-INDEX($C37:$L37,1,aux!$BA$1) -> 0 | AD37: 0 | AE37: =+IF(INDEX($C37:$L37,1,aux!$BA$1)>0,(L37/INDEX($C37:$L37,1,aux!$BA$1))^(1/($L$3-INDEX($C$3:$L$3,1,aux!$BA$1)))-1,"n.d.") -> n.d. | AF37: =IF(INDEX($C37:$L37,1,aux!$BA$1)>0,(L37-INDEX($C37:$L37,1,aux!$BA$1))/INDEX($C37:$L37,1,aux!$BA$1),"n.d.") -> n.d. | AH37: =X37-INDEX($O37:$X37,1,aux!$BA$1) -> 0.034 | AI37: 6.880036548e-09 | AJ37: =+IF(INDEX($O37:$X37,1,aux!$BA$1)>0,(X37/INDEX($O37:$X37,1,aux!$BA$1))^(1/($X$3-INDEX($O$3:$X$3,1,aux!$BA$1)))-1,"n.d.") -> n.d. | AK37: =IF(INDEX($O37:$X37,1,aux!$BA$1)>0,(X37-INDEX($O37:$X37,1,aux!$BA$1))/INDEX($O37:$X37,1,aux!$BA$1),"n.d.") -> n.d. | BO37: 158.657 | CC37: =+IF(ISNA(MATCH('5.1'!A37,AUX_2d_pais!$G$2:$G$40000,0)),0,1) -> 1
A38: 0068 | B38: Bulgária | C38: 26346.438 | D38: 31861.003 | E38: 62064.413 | F38: 157261.863 | G38: 120331.562 | H38: 76241.094 | I38: 43320.99 | J38: 55669.291 | K38: 65758.47 | L38: 36995.985 | M38: 67585.1109 | N38: 0.005944845974 | O38: 1863.802 | P38: 2476.385 | Q38: 5782.694 | R38: 4708.37 | S38: 4853.687 | T38: 5408.716 | U38: 7781.889 | V38: 7906.891 | W38: 10291.398 | X38: 10484.313 | Y38: 6155.8145 | Z38: 0.0006455768389 | AA38: -61429.2964 | AC38: =L38-INDEX($C38:$L38,1,aux!$BA$1) -> 10649.547 | AD38: 0.002583187187 | AE38: =+IF(INDEX($C38:$L38,1,aux!$BA$1)>0,(L38/INDEX($C38:$L38,1,aux!$BA$1))^(1/($L$3-INDEX($C$3:$L$3,1,aux!$BA$1)))-1,"n.d.") -> 0.03844000282 | AF38: =IF(INDEX($C38:$L38,1,aux!$BA$1)>0,(L38-INDEX($C38:$L38,1,aux!$BA$1))/INDEX($C38:$L38,1,aux!$BA$1),"n.d.") -> 0.4042120229 | AH38: =X38-INDEX($O38:$X38,1,aux!$BA$1) -> 8620.511 | AI38: 0.001744395022 | AJ38: =+IF(INDEX($O38:$X38,1,aux!$BA$1)>0,(X38/INDEX($O38:$X38,1,aux!$BA$1))^(1/($X$3-INDEX($O$3:$X$3,1,aux!$BA$1)))-1,"n.d.") -> 0.2115711173 | AK38: =IF(INDEX($O38:$X38,1,aux!$BA$1)>0,(X38-INDEX($O38:$X38,1,aux!$BA$1))/INDEX($O38:$X38,1,aux!$BA$1),"n.d.") -> 4.625228967 | CC38: =+IF(ISNA(MATCH('5.1'!A38,AUX_2d_pais!$G$2:$G$40000,0)),0,1) -> 1
A39: 0236 | B39: Burquina Faso | C39: 268.485 | D39: 1975.276 | E39: 743.528 | F39: 99.973 | G39: 2815.336 | H39: 4630.702 | I39: 2084.177 | J39: 1682.509 | K39: 1398.475 | L39: 1562.598 | M39: 1726.1059 | N39: 0.0001518297976 | O39: 14.758 | P39: 19.429 | Q39: 465.646 | R39: 777.427 | S39: 1009.494 | T39: 1611.139 | U39: 1985.592 | V39: 2373.299 | W39: 2309.07 | X39: 2325.006 | Y39: 1289.086 | Z39: 0.0001351899192 | AA39: -437.0199 | AC39: =L39-INDEX($C39:$L39,1,aux!$BA$1) -> 1294.113 | AD39: 0.0003139040675 | AE39: =+IF(INDEX($C39:$L39,1,aux!$BA$1)>0,(L39/INDEX($C39:$L39,1,aux!$BA$1))^(1/($L$3-INDEX($C$3:$L$3,1,aux!$BA$1)))-1,"n.d.") -> 0.2161633605 | AF39: =IF(INDEX($C39:$L39,1,aux!$BA$1)>0,(L39-INDEX($C39:$L39,1,aux!$BA$1))/INDEX($C39:$L39,1,aux!$BA$1),"n.d.") -> 4.820056986 | AH39: =X39-INDEX($O39:$X39,1,aux!$BA$1) -> 2310.248 | AI39: 0.000467487961 | AJ39: =+IF(INDEX($O39:$X39,1,aux!$BA$1)>0,(X39/INDEX($O39:$X39,1,aux!$BA$1))^(1/($X$3-INDEX($O$3:$X$3,1,aux!$BA$1)))-1,"n.d.") -> 0.7545072803 | AK39: =IF(INDEX($O39:$X39,1,aux!$BA$1)>0,(X39-INDEX($O39:$X39,1,aux!$BA$1))/INDEX($O39:$X39,1,aux!$BA$1),"n.d.") -> 156.5420789 | CC39: =+IF(ISNA(MATCH('5.1'!A39,AUX_2d_pais!$G$2:$G$40000,0)),0,1) -> 1
A40: 0328 | B40: Burundi | C40: 0 | D40: 0 | E40: 243.674 | F40: 0 | G40: 0 | H40: 0 | I40: 0 | J40: 0 | K40: 0 | L40: 0 | M40: 24.3674 | N40: 2.143377999e-06 | O40: 0 | P40: 0 | Q40: 16.398 | R40: 0 | S40: 0.1 | T40: 0 | U40: 0 | V40: 15.187 | W40: 1185.771 | X40: 1029.705 | Y40: 224.7161 | Z40: 2.356658237e-05 | AA40: 200.3487 | AC40: =L40-INDEX($C40:$L40,1,aux!$BA$1) -> 0 | AD40: 0 | AE40: =+IF(INDEX($C40:$L40,1,aux!$BA$1)>0,(L40/INDEX($C40:$L40,1,aux!$BA$1))^(1/($L$3-INDEX($C$3:$L$3,1,aux!$BA$1)))-1,"n.d.") -> n.d. | AF40: =IF(INDEX($C40:$L40,1,aux!$BA$1)>0,(L40-INDEX($C40:$L40,1,aux!$BA$1))/INDEX($C40:$L40,1,aux!$BA$1),"n.d.") -> n.d. | AH40: =X40-INDEX($O40:$X40,1,aux!$BA$1) -> 1029.705 | AI40: 0.0002083649422 | AJ40: =+IF(INDEX($O40:$X40,1,aux!$BA$1)>0,(X40/INDEX($O40:$X40,1,aux!$BA$1))^(1/($X$3-INDEX($O$3:$X$3,1,aux!$BA$1)))-1,"n.d.") -> n.d. | AK40: =IF(INDEX($O40:$X40,1,aux!$BA$1)>0,(X40-INDEX($O40:$X40,1,aux!$BA$1))/INDEX($O40:$X40,1,aux!$BA$1),"n.d.") -> n.d. | BO40: 2490.835 | CC40: =+IF(ISNA(MATCH('5.1'!A40,AUX_2d_pais!$G$2:$G$40000,0)),0,1) -> 1
A41: 0675 | B41: Butão | C41: 0 | D41: 0 | E41: 0 | F41: 0 | G41: 0 | H41: 2.092 | I41: 0 | J41: 0.5 | K41: 0 | L41: 6.089 | M41: 0.8681 | N41: 7.635884178e-08 | O41: 0 | P41: 0 | Q41: 0 | R41: 0 | S41: 0 | T41: 0 | U41: 1.652 | V41: 0 | W41: 0 | X41: 0 | Y41: 0.1652 | Z41: 1.732496874e-08 | AA41: -0.7029 | AC41: =L41-INDEX($C41:$L41,1,aux!$BA$1) -> 6.089 | AD41: 1.476966746e-06 | AE41: =+IF(INDEX($C41:$L41,1,aux!$BA$1)>0,(L41/INDEX($C41:$L41,1,aux!$BA$1))^(1/($L$3-INDEX($C$3:$L$3,1,aux!$BA$1)))-1,"n.d.") -> n.d. | AF41: =IF(INDEX($C41:$L41,1,aux!$BA$1)>0,(L41-INDEX($C41:$L41,1,aux!$BA$1))/INDEX($C41:$L41,1,aux!$BA$1),"n.d.") -> n.d. | AH41: =X41-INDEX($O41:$X41,1,aux!$BA$1) -> 0 | AI41: 0 | AJ41: =+IF(INDEX($O41:$X41,1,aux!$BA$1)>0,(X41/INDEX($O41:$X41,1,aux!$BA$1))^(1/($X$3-INDEX($O$3:$X$3,1,aux!$BA$1)))-1,"n.d.") -> n.d. | AK41: =IF(INDEX($O41:$X41,1,aux!$BA$1)>0,(X41-INDEX($O41:$X41,1,aux!$BA$1))/INDEX($O41:$X41,1,aux!$BA$1),"n.d.") -> n.d. | BO41: 10.333 | CC41: =+IF(ISNA(MATCH('5.1'!A41,AUX_2d_pais!$G$2:$G$40000,0)),0,1) -> 1
A42: 0247 | B42: Cabo Verde | C42: 1515.249 | D42: 564.526 | E42: 1024.177 | F42: 1321.13 | G42: 1691.017 | H42: 1096.436 | I42: 513.98 | J42: 585.26 | K42: 2489.423 | L42: 2432.119 | M42: 1323.3317 | N42: 0.0001164014237 | O42: 61404.409 | P42: 68599.338 | Q42: 76359.595 | R42: 69722.561 | S42: 70021.71 | T42: 70540.294 | U42: 69807.822 | V42: 81646.446 | W42: 86814.423 | X42: 87093.913 | Y42: 74201.0511 | Z42: 0.007781663988 | AA42: 72877.7194 | AC42: =L42-INDEX($C42:$L42,1,aux!$BA$1) -> 916.87 | AD42: 0.0002223988341 | AE42: =+IF(INDEX($C42:$L42,1,aux!$BA$1)>0,(L42/INDEX($C42:$L42,1,aux!$BA$1))^(1/($L$3-INDEX($C$3:$L$3,1,aux!$BA$1)))-1,"n.d.") -> 0.05398255772 | AF42: =IF(INDEX($C42:$L42,1,aux!$BA$1)>0,(L42-INDEX($C42:$L42,1,aux!$BA$1))/INDEX($C42:$L42,1,aux!$BA$1),"n.d.") -> 0.6050952682 | AH42: =X42-INDEX($O42:$X42,1,aux!$BA$1) -> 25689.504 | AI42: 0.005198374307 | AJ42: =+IF(INDEX($O42:$X42,1,aux!$BA$1)>0,(X42/INDEX($O42:$X42,1,aux!$BA$1))^(1/($X$3-INDEX($O$3:$X$3,1,aux!$BA$1)))-1,"n.d.") -> 0.03959782167 | AK42: =IF(INDEX($O42:$X42,1,aux!$BA$1)>0,(X42-INDEX($O42:$X42,1,aux!$BA$1))/INDEX($O42:$X42,1,aux!$BA$1),"n.d.") -> 0.4183657887 | CC42: =+IF(ISNA(MATCH('5.1'!A42,AUX_2d_pais!$G$2:$G$40000,0)),0,1) -> 1
A43: 0463 | B43: Caimão, Ilhas | C43: 0 | D43: 0 | E43: 0 | F43: 0 | G43: 0 | H43: 0 | I43: 0 | J43: 0 | K43: 0 | L43: 0 | M43: 0 | N43: 0 | O43: 38.431 | P43: 22.818 | Q43: 32.896 | R43: 11.518 | S43: 38.626 | T43: 42.016 | U43: 22.51 | V43: 27.788 | W43: 19.48 | X43: 33.971 | Y43: 29.0054 | Z43: 3.041874384e-06 | AA43: 29.0054 | AC43: =L43-INDEX($C43:$L43,1,aux!$BA$1) -> 0 | AD43: 0 | AE43: =+IF(INDEX($C43:$L43,1,aux!$BA$1)>0,(L43/INDEX($C43:$L43,1,aux!$BA$1))^(1/($L$3-INDEX($C$3:$L$3,1,aux!$BA$1)))-1,"n.d.") -> n.d. | AF43: =IF(INDEX($C43:$L43,1,aux!$BA$1)>0,(L43-INDEX($C43:$L43,1,aux!$BA$1))/INDEX($C43:$L43,1,aux!$BA$1),"n.d.") -> n.d. | AH43: =X43-INDEX($O43:$X43,1,aux!$BA$1) -> -4.46 | AI43: -9.024989119e-07 | AJ43: =+IF(INDEX($O43:$X43,1,aux!$BA$1)>0,(X43/INDEX($O43:$X43,1,aux!$BA$1))^(1/($X$3-INDEX($O$3:$X$3,1,aux!$BA$1)))-1,"n.d.") -> -0.01361285182 | AK43: =IF(INDEX($O43:$X43,1,aux!$BA$1)>0,(X43-INDEX($O43:$X43,1,aux!$BA$1))/INDEX($O43:$X43,1,aux!$BA$1),"n.d.") -> -0.1160521454 | BO43: 290.054 | CC43: =+IF(ISNA(MATCH('5.1'!A43,AUX_2d_pais!$G$2:$G$40000,0)),0,1) -> 1
A44: 0302 | B44: Camarões | C44: 15843.308 | D44: 16456.664 | E44: 23198.274 | F44: 17929.268 | G44: 12426.718 | H44: 13683.189 | I44: 16711.075 | J44: 15061.707 | K44: 14255.59 | L44: 11688.863 | M44: 15725.4656 | N44: 0.001383225826 | O44: 151.855 | P44: 737.029 | Q44: 689.906 | R44: 1010.445 | S44: 2664.396 | T44: 4126.051 | U44: 3650.702 | V44: 4368.688 | W44: 4047.457 | X44: 7464.89 | Y44: 2891.1419 | Z44: 0.0003032018344 | AA44: -12834.3237 | AC44: =L44-INDEX($C44:$L44,1,aux!$BA$1) -> -4154.445 | AD44: -0.001007715079 | AE44: =+IF(INDEX($C44:$L44,1,aux!$BA$1)>0,(L44/INDEX($C44:$L44,1,aux!$BA$1))^(1/($L$3-INDEX($C$3:$L$3,1,aux!$BA$1)))-1,"n.d.") -> -0.03322556867 | AF44: =IF(INDEX($C44:$L44,1,aux!$BA$1)>0,(L44-INDEX($C44:$L44,1,aux!$BA$1))/INDEX($C44:$L44,1,aux!$BA$1),"n.d.") -> -0.2622208064 | AH44: =X44-INDEX($O44:$X44,1,aux!$BA$1) -> 7313.035 | AI44: 0.001479822002 | AJ44: =+IF(INDEX($O44:$X44,1,aux!$BA$1)>0,(X44/INDEX($O44:$X44,1,aux!$BA$1))^(1/($X$3-INDEX($O$3:$X$3,1,aux!$BA$1)))-1,"n.d.") -> 0.5415404463 | AK44: =IF(INDEX($O44:$X44,1,aux!$BA$1)>0,(X44-INDEX($O44:$X44,1,aux!$BA$1))/INDEX($O44:$X44,1,aux!$BA$1),"n.d.") -> 48.15801258 | CC44: =+IF(ISNA(MATCH('5.1'!A44,AUX_2d_pais!$G$2:$G$40000,0)),0,1) -> 1
A45: 0696 | B45: Camboja | C45: 0.377 | D45: 1153.17 | E45: 2816.037 | F45: 1643.533 | G45: 2716.517 | H45: 3541.082 | I45: 5492.004 | J45: 5344.809 | K45: 3241.383 | L45: 4585.308 | M45: 3053.422 | N45: 0.0002685816926 | O45: 154.517 | P45: 22.079 | Q45: 170.555 | R45: 29.833 | S45: 45.27 | T45: 122.969 | U45: 152.828 | V45: 193.849 | W45: 98.469 | X45: 655.395 | Y45: 164.5764 | Z45: 1.725957013e-05 | AA45: -2888.8456 | AC45: =L45-INDEX($C45:$L45,1,aux!$BA$1) -> 4584.931 | AD45: 0.0011121351 | AE45: =+IF(INDEX($C45:$L45,1,aux!$BA$1)>0,(L45/INDEX($C45:$L45,1,aux!$BA$1))^(1/($L$3-INDEX($C$3:$L$3,1,aux!$BA$1)))-1,"n.d.") -> 1.843753228 | AF45: =IF(INDEX($C45:$L45,1,aux!$BA$1)>0,(L45-INDEX($C45:$L45,1,aux!$BA$1))/INDEX($C45:$L45,1,aux!$BA$1),"n.d.") -> 12161.62069 | AH45: =X45-INDEX($O45:$X45,1,aux!$BA$1) -> 500.878 | AI45: 0.0001013546749 | AJ45: =+IF(INDEX($O45:$X45,1,aux!$BA$1)>0,(X45/INDEX($O45:$X45,1,aux!$BA$1))^(1/($X$3-INDEX($O$3:$X$3,1,aux!$BA$1)))-1,"n.d.") -> 0.1741543901 | AK45: =IF(INDEX($O45:$X45,1,aux!$BA$1)>0,(X45-INDEX($O45:$X45,1,aux!$BA$1))/INDEX($O45:$X45,1,aux!$BA$1),"n.d.") -> 3.241572125 | CC45: =+IF(ISNA(MATCH('5.1'!A45,AUX_2d_pais!$G$2:$G$40000,0)),0,1) -> 1
A46: 0404 | B46: Canadá | C46: 61080.867 | D46: 78615.144 | E46: 183716.767 | F46: 68644.165 | G46: 35540.06 | H46: 84600.369 | I46: 43451.732 | J46: 113057.105 | K46: 99618.429 | L46: 81355.701 | M46: 84968.0339 | N46: 0.007473863215 | O46: 57065.585 | P46: 63111.478 | Q46: 68454.074 | R46: 75705.946 | S46: 76314.519 | T46: 72955.664 | U46: 78674.559 | V46: 85617.893 | W46: 91382.112 | X46: 88523.041 | Y46: 75780.4871 | Z46: 0.007947303693 | AA46: -9187.5468 | AC46: =L46-INDEX($C46:$L46,1,aux!$BA$1) -> 20274.834 | AD46: 0.004917926689 | AE46: =+IF(INDEX($C46:$L46,1,aux!$BA$1)>0,(L46/INDEX($C46:$L46,1,aux!$BA$1))^(1/($L$3-INDEX($C$3:$L$3,1,aux!$BA$1)))-1,"n.d.") -> 0.03236060168 | AF46: =IF(INDEX($C46:$L46,1,aux!$BA$1)>0,(L46-INDEX($C46:$L46,1,aux!$BA$1))/INDEX($C46:$L46,1,aux!$BA$1),"n.d.") -> 0.3319342864 | AH46: =X46-INDEX($O46:$X46,1,aux!$BA$1) -> 31457.456 | AI46: 0.006365542559 | AJ46: =+IF(INDEX($O46:$X46,1,aux!$BA$1)>0,(X46/INDEX($O46:$X46,1,aux!$BA$1))^(1/($X$3-INDEX($O$3:$X$3,1,aux!$BA$1)))-1,"n.d.") -> 0.04999418657 | AK46: =IF(INDEX($O46:$X46,1,aux!$BA$1)>0,(X46-INDEX($O46:$X46,1,aux!$BA$1))/INDEX($O46:$X46,1,aux!$BA$1),"n.d.") -> 0.5512509159 | CC46: =+IF(ISNA(MATCH('5.1'!A46,AUX_2d_pais!$G$2:$G$40000,0)),0,1) -> 1
A47: 0644 | B47: Catar | C47: 0 | D47: 4.907 | E47: 6.714 | F47: 0.067 | G47: 0.744 | H47: 0.218 | I47: 0.702 | J47: 0.215 | K47: 8.722 | L47: 2.643 | M47: 2.4932 | N47: 2.193040713e-07 | O47: 134.592 | P47: 155.686 | Q47: 1014.296 | R47: 1978.832 | S47: 1120.35 | T47: 1560.805 | U47: 2331.099 | V47: 3120.661 | W47: 4252.952 | X47: 5560.451 | Y47: 2122.9724 | Z47: 0.0002226418309 | AA47: 2120.4792 | AC47: =L47-INDEX($C47:$L47,1,aux!$BA$1) -> 2.643 | AD47: 6.410942865e-07 | AE47: =+IF(INDEX($C47:$L47,1,aux!$BA$1)>0,(L47/INDEX($C47:$L47,1,aux!$BA$1))^(1/($L$3-INDEX($C$3:$L$3,1,aux!$BA$1)))-1,"n.d.") -> n.d. | AF47: =IF(INDEX($C47:$L47,1,aux!$BA$1)>0,(L47-INDEX($C47:$L47,1,aux!$BA$1))/INDEX($C47:$L47,1,aux!$BA$1),"n.d.") -> n.d. | AH47: =X47-INDEX($O47:$X47,1,aux!$BA$1) -> 5425.859 | AI47: 0.00109794436 | AJ47: =+IF(INDEX($O47:$X47,1,aux!$BA$1)>0,(X47/INDEX($O47:$X47,1,aux!$BA$1))^(1/($X$3-INDEX($O$3:$X$3,1,aux!$BA$1)))-1,"n.d.") -> 0.51204822 | AK47: =IF(INDEX($O47:$X47,1,aux!$BA$1)>0,(X47-INDEX($O47:$X47,1,aux!$BA$1))/INDEX($O47:$X47,1,aux!$BA$1),"n.d.") -> 40.31338415 | CC47: =+IF(ISNA(MATCH('5.1'!A47,AUX_2d_pais!$G$2:$G$40000,0)),0,1) -> 1
A48: 0079 | B48: Cazaquistão | C48: 153.261 | D48: 0.113 | E48: 31.581 | F48: 145.39 | G48: 0 | H48: 0 | I48: 0 | J48: 61.006 | K48: 0 | L48: 0.021 | M48: 39.1372 | N48: 3.442542636e-06 | O48: 568.096 | P48: 736.887 | Q48: 667.058 | R48: 886.363 | S48: 2299.853 | T48: 1963.629 | U48: 3460.011 | V48: 1426.884 | W48: 1402.829 | X48: 1668.438 | Y48: 1508.0048 | Z48: 0.0001581485231 | AA48: 1468.8676 | AC48: =L48-INDEX($C48:$L48,1,aux!$BA$1) -> -153.24 | AD48: -3.717037021e-05 | AE48: =+IF(INDEX($C48:$L48,1,aux!$BA$1)>0,(L48/INDEX($C48:$L48,1,aux!$BA$1))^(1/($L$3-INDEX($C$3:$L$3,1,aux!$BA$1)))-1,"n.d.") -> -0.6278190139 | AF48: =IF(INDEX($C48:$L48,1,aux!$BA$1)>0,(L48-INDEX($C48:$L48,1,aux!$BA$1))/INDEX($C48:$L48,1,aux!$BA$1),"n.d.") -> -0.9998629788 | AH48: =X48-INDEX($O48:$X48,1,aux!$BA$1) -> 1100.342 | AI48: 0.0002226586228 | AJ48: =+IF(INDEX($O48:$X48,1,aux!$BA$1)>0,(X48/INDEX($O48:$X48,1,aux!$BA$1))^(1/($X$3-INDEX($O$3:$X$3,1,aux!$BA$1)))-1,"n.d.") -> 0.1271652559 | AK48: =IF(INDEX($O48:$X48,1,aux!$BA$1)>0,(X48-INDEX($O48:$X48,1,aux!$BA$1))/INDEX($O48:$X48,1,aux!$BA$1),"n.d.") -> 1.936894469 | CC48: =+IF(ISNA(MATCH('5.1'!A48,AUX_2d_pais!$G$2:$G$40000,0)),0,1) -> 1
A49: 0306 | B49: Centro-Africana, República | C49: 789.963 | D49: 2348.775 | E49: 3713.272 | F49: 907.935 | G49: 610.099 | H49: 351.297 | I49: 1573.486 | J49: 2782.86 | K49: 1213.616 | L49: 3045.54 | M49: 1733.6843 | N49: 0.0001524964004 | O49: 3.743 | P49: 2.573 | Q49: 7.539 | R49: 11.07 | S49: 5.018 | T49: 2.69 | U49: 0 | V49: 0 | W49: 58.263 | X49: 34.392 | Y49: 12.5288 | Z49: 1.313928985e-06 | AA49: -1721.1555 | AC49: =L49-INDEX($C49:$L49,1,aux!$BA$1) -> 2255.577 | AD49: 0.0005471197607 | AE49: =+IF(INDEX($C49:$L49,1,aux!$BA$1)>0,(L49/INDEX($C49:$L49,1,aux!$BA$1))^(1/($L$3-INDEX($C$3:$L$3,1,aux!$BA$1)))-1,"n.d.") -> 0.1617629077 | AF49: =IF(INDEX($C49:$L49,1,aux!$BA$1)>0,(L49-INDEX($C49:$L49,1,aux!$BA$1))/INDEX($C49:$L49,1,aux!$BA$1),"n.d.") -> 2.855294488 | AH49: =X49-INDEX($O49:$X49,1,aux!$BA$1) -> 30.649 | AI49: 6.20194824e-06 | AJ49: =+IF(INDEX($O49:$X49,1,aux!$BA$1)>0,(X49/INDEX($O49:$X49,1,aux!$BA$1))^(1/($X$3-INDEX($O$3:$X$3,1,aux!$BA$1)))-1,"n.d.") -> 0.2794590795 | AK49: =IF(INDEX($O49:$X49,1,aux!$BA$1)>0,(X49-INDEX($O49:$X49,1,aux!$BA$1))/INDEX($O49:$X49,1,aux!$BA$1),"n.d.") -> 8.18835159 | BO49: 17462.131 | CC49: =+IF(ISNA(MATCH('5.1'!A49,AUX_2d_pais!$G$2:$G$40000,0)),0,1) -> 1
A50: 0021 | B50: Ceuta | C50: 0 | D50: 0 | E50: 0 | F50: 0 | G50: 0 | H50: 0 | I50: 0 | J50: 0 | K50: 0 | L50: 0 | M50: 0 | N50: 0 | O50: 0.577 | P50: 7.315 | Q50: 131.762 | R50: 255.72 | S50: 931.383 | T50: 1202.454 | U50: 1509.708 | V50: 1896.862 | W50: 1594.038 | X50: 1875.413 | Y50: 940.5232 | Z50: 9.863519999e-05 | AA50: 940.5232 | AC50: =L50-INDEX($C50:$L50,1,aux!$BA$1) -> 0 | AD50: 0 | AE50: =+IF(INDEX($C50:$L50,1,aux!$BA$1)>0,(L50/INDEX($C50:$L50,1,aux!$BA$1))^(1/($L$3-INDEX($C$3:$L$3,1,aux!$BA$1)))-1,"n.d.") -> n.d. | AF50: =IF(INDEX($C50:$L50,1,aux!$BA$1)>0,(L50-INDEX($C50:$L50,1,aux!$BA$1))/INDEX($C50:$L50,1,aux!$BA$1),"n.d.") -> n.d. | AH50: =X50-INDEX($O50:$X50,1,aux!$BA$1) -> 1874.836 | AI50: 0.0003793805942 | AJ50: =+IF(INDEX($O50:$X50,1,aux!$BA$1)>0,(X50/INDEX($O50:$X50,1,aux!$BA$1))^(1/($X$3-INDEX($O$3:$X$3,1,aux!$BA$1)))-1,"n.d.") -> 1.455915706 | AK50: =IF(INDEX($O50:$X50,1,aux!$BA$1)>0,(X50-INDEX($O50:$X50,1,aux!$BA$1))/INDEX($O50:$X50,1,aux!$BA$1),"n.d.") -> 3249.282496 | CC50: =+IF(ISNA(MATCH('5.1'!A50,AUX_2d_pais!$G$2:$G$40000,0)),0,1) -> 1
A51: 0022 | B51: Ceuta e Melilha | C51: 0 | D51: 0 | E51: 0 | F51: 0 | G51: 0 | H51: 0 | I51: 0 | J51: 0 | K51: 0 | L51: 0 | M51: 0 | N51: 0 | O51: 0.577 | P51: 7.315 | Q51: 131.762 | R51: 255.72 | S51: 931.383 | T51: 1202.454 | U51: 1509.708 | V51: 1896.862 | W51: 1594.038 | X51: 1875.413 | Y51: 940.5232 | Z51: 9.863519999e-05 | AA51: 940.5232 | AC51: =L51-INDEX($C51:$L51,1,aux!$BA$1) -> 0 | AD51: 0 | AE51: =+IF(INDEX($C51:$L51,1,aux!$BA$1)>0,(L51/INDEX($C51:$L51,1,aux!$BA$1))^(1/($L$3-INDEX($C$3:$L$3,1,aux!$BA$1)))-1,"n.d.") -> n.d. | AF51: =IF(INDEX($C51:$L51,1,aux!$BA$1)>0,(L51-INDEX($C51:$L51,1,aux!$BA$1))/INDEX($C51:$L51,1,aux!$BA$1),"n.d.") -> n.d. | AH51: =X51-INDEX($O51:$X51,1,aux!$BA$1) -> 1874.836 | AI51: 0.0003793805942 | AJ51: =+IF(INDEX($O51:$X51,1,aux!$BA$1)>0,(X51/INDEX($O51:$X51,1,aux!$BA$1))^(1/($X$3-INDEX($O$3:$X$3,1,aux!$BA$1)))-1,"n.d.") -> 1.455915706 | AK51: =IF(INDEX($O51:$X51,1,aux!$BA$1)>0,(X51-INDEX($O51:$X51,1,aux!$BA$1))/INDEX($O51:$X51,1,aux!$BA$1),"n.d.") -> 3249.282496 | CC51: =+IF(ISNA(MATCH('5.1'!A51,AUX_2d_pais!$G$2:$G$40000,0)),0,1) -> 1
A52: 0244 | B52: Chade | C52: 3071.061 | D52: 7191.885 | E52: 7383.47 | F52: 3902.439 | G52: 4480.735 | H52: 3615.471 | I52: 3530.524 | J52: 4545.664 | K52: 6311.506 | L52: 1864.112 | M52: 4589.6867 | N52: 0.0004037128908 | O52: 0 | P52: 0 | Q52: 0 | R52: 0 | S52: 11.96 | T52: 56.722 | U52: 76.29 | V52: 69.216 | W52: 47.677 | X52: 0.334 | Y52: 26.2199 | Z52: 2.7497515e-06 | AA52: -4563.4668 | AC52: =L52-INDEX($C52:$L52,1,aux!$BA$1) -> -1206.949 | AD52: -0.000292761297 | AE52: =+IF(INDEX($C52:$L52,1,aux!$BA$1)>0,(L52/INDEX($C52:$L52,1,aux!$BA$1))^(1/($L$3-INDEX($C$3:$L$3,1,aux!$BA$1)))-1,"n.d.") -> -0.05396046844 | AF52: =IF(INDEX($C52:$L52,1,aux!$BA$1)>0,(L52-INDEX($C52:$L52,1,aux!$BA$1))/INDEX($C52:$L52,1,aux!$BA$1),"n.d.") -> -0.3930071724 | AH52: =X52-INDEX($O52:$X52,1,aux!$BA$1) -> 0.334 | AI52: 6.758624138e-08 | AJ52: =+IF(INDEX($O52:$X52,1,aux!$BA$1)>0,(X52/INDEX($O52:$X52,1,aux!$BA$1))^(1/($X$3-INDEX($O$3:$X$3,1,aux!$BA$1)))-1,"n.d.") -> n.d. | AK52: =IF(INDEX($O52:$X52,1,aux!$BA$1)>0,(X52-INDEX($O52:$X52,1,aux!$BA$1))/INDEX($O52:$X52,1,aux!$BA$1),"n.d.") -> n.d. | CC52: =+IF(ISNA(MATCH('5.1'!A52,AUX_2d_pais!$G$2:$G$40000,0)),0,1) -> 1
A53: 0061 | B53: Checa, República | C53: 6926.148 | D53: 7408.708 | E53: 9568.941 | F53: 8743.582 | G53: 10339.254 | H53: 14835.772 | I53: 16178.485 | J53: 25604.401 | K53: 29715.859 | L53: 29386.185 | M53: 15870.7335 | N53: 0.001396003719 | O53: 32776.648 | P53: 32327.721 | Q53: 33892.816 | R53: 40013.454 | S53: 42622.046 | T53: 42500.767 | U53: 61268.357 | V53: 37232.797 | W53: 21946.386 | X53: 24297.611 | Y53: 36887.8603 | Z53: 0.003868529217 | AA53: 21017.1268 | AC53: =L53-INDEX($C53:$L53,1,aux!$BA$1) -> 22460.037 | AD53: 0.005447976313 | AE53: =+IF(INDEX($C53:$L53,1,aux!$BA$1)>0,(L53/INDEX($C53:$L53,1,aux!$BA$1))^(1/($L$3-INDEX($C$3:$L$3,1,aux!$BA$1)))-1,"n.d.") -> 0.1741918158 | AF53: =IF(INDEX($C53:$L53,1,aux!$BA$1)>0,(L53-INDEX($C53:$L53,1,aux!$BA$1))/INDEX($C53:$L53,1,aux!$BA$1),"n.d.") -> 3.242789065 | AH53: =X53-INDEX($O53:$X53,1,aux!$BA$1) -> -8479.037 | AI53: -0.00171576719 | AJ53: =+IF(INDEX($O53:$X53,1,aux!$BA$1)>0,(X53/INDEX($O53:$X53,1,aux!$BA$1))^(1/($X$3-INDEX($O$3:$X$3,1,aux!$BA$1)))-1,"n.d.") -> -0.03271278265 | AK53: =IF(INDEX($O53:$X53,1,aux!$BA$1)>0,(X53-INDEX($O53:$X53,1,aux!$BA$1))/INDEX($O53:$X53,1,aux!$BA$1),"n.d.") -> -0.2586914013 | CC53: =+IF(ISNA(MATCH('5.1'!A53,AUX_2d_pais!$G$2:$G$40000,0)),0,1) -> 1
A54: 0512 | B54: Chile | C54: 23488.849 | D54: 44122.462 | E54: 47025.236 | F54: 23211.971 | G54: 30442.071 | H54: 44434.042 | I54: 38624.676 | J54: 49753.62 | K54: 67212.404 | L54: 46400.962 | M54: 41471.6293 | N54: 0.003647881097 | O54: 19890.671 | P54: 21133.161 | Q54: 23945.74 | R54: 33243.053 | S54: 30623.361 | T54: 35377.076 | U54: 36988.723 | V54: 36270.348 | W54: 36533.784 | X54: 46322.627 | Y54: 32032.8544 | Z54: 0.003359371677 | AA54: -9438.7749 | AC54: =L54-INDEX($C54:$L54,1,aux!$BA$1) -> 22912.113 | AD54: 0.005557633272 | AE54: =+IF(INDEX($C54:$L54,1,aux!$BA$1)>0,(L54/INDEX($C54:$L54,1,aux!$BA$1))^(1/($L$3-INDEX($C$3:$L$3,1,aux!$BA$1)))-1,"n.d.") -> 0.07857833936 | AF54: =IF(INDEX($C54:$L54,1,aux!$BA$1)>0,(L54-INDEX($C54:$L54,1,aux!$BA$1))/INDEX($C54:$L54,1,aux!$BA$1),"n.d.") -> 0.9754463916 | AH54: =X54-INDEX($O54:$X54,1,aux!$BA$1) -> 26431.956 | AI54: 0.005348612451 | AJ54: =+IF(INDEX($O54:$X54,1,aux!$BA$1)>0,(X54/INDEX($O54:$X54,1,aux!$BA$1))^(1/($X$3-INDEX($O$3:$X$3,1,aux!$BA$1)))-1,"n.d.") -> 0.09848403554 | AK54: =IF(INDEX($O54:$X54,1,aux!$BA$1)>0,(X54-INDEX($O54:$X54,1,aux!$BA$1))/INDEX($O54:$X54,1,aux!$BA$1),"n.d.") -> 1.328861957 | CC54: =+IF(ISNA(MATCH('5.1'!A54,AUX_2d_pais!$G$2:$G$40000,0)),0,1) -> 1
A55: 0720 | B55: China, República Popular da | C55: 99072.721 | D55: 150734.179 | E55: 141836.046 | F55: 115253.035 | G55: 114095.982 | H55: 108827.664 | I55: 124064.101 | J55: 131890.503 | K55: 172641.396 | L55: 165369.2 | M55: 132378.4827 | N55: 0.01164412811 | O55: 43045.143 | P55: 49114.856 | Q55: 87431.085 | R55: 83004.343 | S55: 106500.591 | T55: 95693.094 | U55: 126172.214 | V55: 195139.008 | W55: 230671.365 | X55: 189044.011 | Y55: 120581.571 | Z55: 0.01264571397 | AA55: -11796.9117 | AC55: =L55-INDEX($C55:$L55,1,aux!$BA$1) -> 66296.479 | AD55: 0.0160810798 | AE55: =+IF(INDEX($C55:$L55,1,aux!$BA$1)>0,(L55/INDEX($C55:$L55,1,aux!$BA$1))^(1/($L$3-INDEX($C$3:$L$3,1,aux!$BA$1)))-1,"n.d.") -> 0.0585765805 | AF55: =IF(INDEX($C55:$L55,1,aux!$BA$1)>0,(L55-INDEX($C55:$L55,1,aux!$BA$1))/INDEX($C55:$L55,1,aux!$BA$1),"n.d.") -> 0.6691698616 | AH55: =X55-INDEX($O55:$X55,1,aux!$BA$1) -> 145998.868 | AI55: 0.02954345729 | AJ55: =+IF(INDEX($O55:$X55,1,aux!$BA$1)>0,(X55/INDEX($O55:$X55,1,aux!$BA$1))^(1/($X$3-INDEX($O$3:$X$3,1,aux!$BA$1)))-1,"n.d.") -> 0.1787027794 | AK55: =IF(INDEX($O55:$X55,1,aux!$BA$1)>0,(X55-INDEX($O55:$X55,1,aux!$BA$1))/INDEX($O55:$X55,1,aux!$BA$1),"n.d.") -> 3.391761714 | CC55: =+IF(ISNA(MATCH('5.1'!A55,AUX_2d_pais!$G$2:$G$40000,0)),0,1) -> 1
A56: 0600 | B56: Chipre | C56: 164.087 | D56: 166.975 | E56: 93.934 | F56: 540.785 | G56: 1628.463 | H56: 980.174 | I56: 786.999 | J56: 866.267 | K56: 1716.317 | L56: 831.528 | M56: 777.5529 | N56: 6.839423899e-05 | O56: 6713.889 | P56: 6618.034 | Q56: 6340.239 | R56: 4936.57 | S56: 4569.413 | T56: 4180.863 | U56: 5465.614 | V56: 6769.296 | W56: 7238.193 | X56: 8581.37 | Y56: 6141.3481 | Z56: 0.0006440597085 | AA56: 5363.7952 | AC56: =L56-INDEX($C56:$L56,1,aux!$BA$1) -> 667.441 | AD56: 0.0001618965614 | AE56: =+IF(INDEX($C56:$L56,1,aux!$BA$1)>0,(L56/INDEX($C56:$L56,1,aux!$BA$1))^(1/($L$3-INDEX($C$3:$L$3,1,aux!$BA$1)))-1,"n.d.") -> 0.1975989634 | AF56: =IF(INDEX($C56:$L56,1,aux!$BA$1)>0,(L56-INDEX($C56:$L56,1,aux!$BA$1))/INDEX($C56:$L56,1,aux!$BA$1),"n.d.") -> 4.067604381 | AH56: =X56-INDEX($O56:$X56,1,aux!$BA$1) -> 1867.481 | AI56: 0.0003778922804 | AJ56: =+IF(INDEX($O56:$X56,1,aux!$BA$1)>0,(X56/INDEX($O56:$X56,1,aux!$BA$1))^(1/($X$3-INDEX($O$3:$X$3,1,aux!$BA$1)))-1,"n.d.") -> 0.0276435406 | AK56: =IF(INDEX($O56:$X56,1,aux!$BA$1)>0,(X56-INDEX($O56:$X56,1,aux!$BA$1))/INDEX($O56:$X56,1,aux!$BA$1),"n.d.") -> 0.2781519027 | CC56: =+IF(ISNA(MATCH('5.1'!A56,AUX_2d_pais!$G$2:$G$40000,0)),0,1) -> 1
A57: 0834 | B57: Christmas, Ilha | C57: 0 | D57: 0 | E57: 0 | F57: 0 | G57: 0 | H57: 0 | I57: 0 | J57: 0 | K57: 0 | L57: 0 | M57: 0 | N57: 0 | O57: 0 | P57: 0.217 | Q57: 0 | R57: 0 | S57: 0 | T57: 0 | U57: 0 | V57: 0 | W57: 0 | X57: 0 | Y57: 0.0217 | Z57: 2.275737419e-09 | AA57: 0.0217 | AC57: =L57-INDEX($C57:$L57,1,aux!$BA$1) -> 0 | AD57: 0 | AE57: =+IF(INDEX($C57:$L57,1,aux!$BA$1)>0,(L57/INDEX($C57:$L57,1,aux!$BA$1))^(1/($L$3-INDEX($C$3:$L$3,1,aux!$BA$1)))-1,"n.d.") -> n.d. | AF57: =IF(INDEX($C57:$L57,1,aux!$BA$1)>0,(L57-INDEX($C57:$L57,1,aux!$BA$1))/INDEX($C57:$L57,1,aux!$BA$1),"n.d.") -> n.d. | AH57: =X57-INDEX($O57:$X57,1,aux!$BA$1) -> 0 | AI57: 0 | AJ57: =+IF(INDEX($O57:$X57,1,aux!$BA$1)>0,(X57/INDEX($O57:$X57,1,aux!$BA$1))^(1/($X$3-INDEX($O$3:$X$3,1,aux!$BA$1)))-1,"n.d.") -> n.d. | AK57: =IF(INDEX($O57:$X57,1,aux!$BA$1)>0,(X57-INDEX($O57:$X57,1,aux!$BA$1))/INDEX($O57:$X57,1,aux!$BA$1),"n.d.") -> n.d. | BO57: 0.217 | CC57: =+IF(ISNA(MATCH('5.1'!A57,AUX_2d_pais!$G$2:$G$40000,0)),0,1) -> 1
A58: 0833 | B58: Cocos (Keeling), Ilhas | C58: 0 | D58: 0 | E58: 20.799 | F58: 0 | G58: 0 | H58: 0 | I58: 0 | J58: 0 | K58: 0 | L58: 0 | M58: 2.0799 | N58: 1.829498387e-07 | O58: 0 | P58: 0 | Q58: 0 | R58: 0 | S58: 0 | T58: 0 | U58: 0 | V58: 0 | W58: 0 | X58: 0 | Y58: 0 | Z58: 0 | AA58: -2.0799 | AC58: =L58-INDEX($C58:$L58,1,aux!$BA$1) -> 0 | AD58: 0 | AE58: =+IF(INDEX($C58:$L58,1,aux!$BA$1)>0,(L58/INDEX($C58:$L58,1,aux!$BA$1))^(1/($L$3-INDEX($C$3:$L$3,1,aux!$BA$1)))-1,"n.d.") -> n.d. | AF58: =IF(INDEX($C58:$L58,1,aux!$BA$1)>0,(L58-INDEX($C58:$L58,1,aux!$BA$1))/INDEX($C58:$L58,1,aux!$BA$1),"n.d.") -> n.d. | AH58: =X58-INDEX($O58:$X58,1,aux!$BA$1) -> 0 | AI58: 0 | AJ58: =+IF(INDEX($O58:$X58,1,aux!$BA$1)>0,(X58/INDEX($O58:$X58,1,aux!$BA$1))^(1/($X$3-INDEX($O$3:$X$3,1,aux!$BA$1)))-1,"n.d.") -> n.d. | AK58: =IF(INDEX($O58:$X58,1,aux!$BA$1)>0,(X58-INDEX($O58:$X58,1,aux!$BA$1))/INDEX($O58:$X58,1,aux!$BA$1),"n.d.") -> n.d. | BO58: 20.799 | CC58: =+IF(ISNA(MATCH('5.1'!A58,AUX_2d_pais!$G$2:$G$40000,0)),0,1) -> 1
A59: 0480 | B59: Colômbia | C59: 20600.411 | D59: 14279.911 | E59: 16391.121 | F59: 17473.051 | G59: 15935.747 | H59: 5927.369 | I59: 17190.682 | J59: 15386.163 | K59: 29373.18 | L59: 25273.31 | M59: 17783.0945 | N59: 0.001564216679 | O59: 614.239 | P59: 2470.466 | Q59: 1782.693 | R59: 1822.929 | S59: 1062.46 | T59: 2072.466 | U59: 3029.896 | V59: 3393.962 | W59: 5673.053 | X59: 7742.273 | Y59: 2966.4437 | Z59: 0.0003110989369 | AA59: -14816.6508 | AC59: =L59-INDEX($C59:$L59,1,aux!$BA$1) -> 4672.899 | AD59: 0.001133472891 | AE59: =+IF(INDEX($C59:$L59,1,aux!$BA$1)>0,(L59/INDEX($C59:$L59,1,aux!$BA$1))^(1/($L$3-INDEX($C$3:$L$3,1,aux!$BA$1)))-1,"n.d.") -> 0.02297527648 | AF59: =IF(INDEX($C59:$L59,1,aux!$BA$1)>0,(L59-INDEX($C59:$L59,1,aux!$BA$1))/INDEX($C59:$L59,1,aux!$BA$1),"n.d.") -> 0.2268352316 | AH59: =X59-INDEX($O59:$X59,1,aux!$BA$1) -> 7128.034 | AI59: 0.001442386307 | AJ59: =+IF(INDEX($O59:$X59,1,aux!$BA$1)>0,(X59/INDEX($O59:$X59,1,aux!$BA$1))^(1/($X$3-INDEX($O$3:$X$3,1,aux!$BA$1)))-1,"n.d.") -> 0.3251994061 | AK59: =IF(INDEX($O59:$X59,1,aux!$BA$1)>0,(X59-INDEX($O59:$X59,1,aux!$BA$1))/INDEX($O59:$X59,1,aux!$BA$1),"n.d.") -> 11.60465877 | CC59: =+IF(ISNA(MATCH('5.1'!A59,AUX_2d_pais!$G$2:$G$40000,0)),0,1) -> 1
A60: 0375 | B60: Comores | C60: 0 | D60: 0 | E60: 0 | F60: 0 | G60: 0 | H60: 2.392 | I60: 0 | J60: 0 | K60: 0 | L60: 0 | M60: 0.2392 | N60: 2.104024301e-08 | O60: 0 | P60: 0 | Q60: 0 | R60: 26.6 | S60: 29.546 | T60: 0 | U60: 0 | V60: 43.928 | W60: 155.175 | X60: 70.26 | Y60: 32.5509 | Z60: 3.413700514e-06 | AA60: 32.3117 | AC60: =L60-INDEX($C60:$L60,1,aux!$BA$1) -> 0 | AD60: 0 | AE60: =+IF(INDEX($C60:$L60,1,aux!$BA$1)>0,(L60/INDEX($C60:$L60,1,aux!$BA$1))^(1/($L$3-INDEX($C$3:$L$3,1,aux!$BA$1)))-1,"n.d.") -> n.d. | AF60: =IF(INDEX($C60:$L60,1,aux!$BA$1)>0,(L60-INDEX($C60:$L60,1,aux!$BA$1))/INDEX($C60:$L60,1,aux!$BA$1),"n.d.") -> n.d. | AH60: =X60-INDEX($O60:$X60,1,aux!$BA$1) -> 70.26 | AI60: 1.421739317e-05 | AJ60: =+IF(INDEX($O60:$X60,1,aux!$BA$1)>0,(X60/INDEX($O60:$X60,1,aux!$BA$1))^(1/($X$3-INDEX($O$3:$X$3,1,aux!$BA$1)))-1,"n.d.") -> n.d. | AK60: =IF(INDEX($O60:$X60,1,aux!$BA$1)>0,(X60-INDEX($O60:$X60,1,aux!$BA$1))/INDEX($O60:$X60,1,aux!$BA$1),"n.d.") -> n.d. | CC60: =+IF(ISNA(MATCH('5.1'!A60,AUX_2d_pais!$G$2:$G$40000,0)),0,1) -> 1
A61: 0318 | B61: Congo | C61: 14488.1 | D61: 16809.835 | E61: 1389.882 | F61: 1840.692 | G61: 5283.906 | H61: 4346.29 | I61: 8316.623 | J61: 6120.497 | K61: 3696.594 | L61: 6002.885 | M61: 6829.5304 | N61: 0.0006007315185 | O61: 212.076 | P61: 589.397 | Q61: 258.188 | R61: 1432.018 | S61: 1958.834 | T61: 1617.813 | U61: 4288.565 | V61: 1347.365 | W61: 1926.206 | X61: 1446.626 | Y61: 1507.7088 | Z61: 0.0001581174808 | AA61: -5321.8216 | AC61: =L61-INDEX($C61:$L61,1,aux!$BA$1) -> -8485.215 | AD61: -0.002058200097 | AE61: =+IF(INDEX($C61:$L61,1,aux!$BA$1)>0,(L61/INDEX($C61:$L61,1,aux!$BA$1))^(1/($L$3-INDEX($C$3:$L$3,1,aux!$BA$1)))-1,"n.d.") -> -0.093259161 | AF61: =IF(INDEX($C61:$L61,1,aux!$BA$1)>0,(L61-INDEX($C61:$L61,1,aux!$BA$1))/INDEX($C61:$L61,1,aux!$BA$1),"n.d.") -> -0.585667893 | AH61: =X61-INDEX($O61:$X61,1,aux!$BA$1) -> 1234.55 | AI61: 0.0002498161506 | AJ61: =+IF(INDEX($O61:$X61,1,aux!$BA$1)>0,(X61/INDEX($O61:$X61,1,aux!$BA$1))^(1/($X$3-INDEX($O$3:$X$3,1,aux!$BA$1)))-1,"n.d.") -> 0.2378033054 | AK61: =IF(INDEX($O61:$X61,1,aux!$BA$1)>0,(X61-INDEX($O61:$X61,1,aux!$BA$1))/INDEX($O61:$X61,1,aux!$BA$1),"n.d.") -> 5.821262189 | CC61: =+IF(ISNA(MATCH('5.1'!A61,AUX_2d_pais!$G$2:$G$40000,0)),0,1) -> 1
A62: 0322 | B62: Congo, República Democrática do | C62: 18577.393 | D62: 14050.618 | E62: 9500.33 | F62: 5177.861 | G62: 5481.996 | H62: 5206.371 | I62: 7435.106 | J62: 4456.909 | K62: 4393.818 | L62: 5292.611 | M62: 7957.3013 | N62: 0.0006999312417 | O62: 537.709 | P62: 1617.376 | Q62: 2438.674 | R62: 1376.215 | S62: 2157.697 | T62: 1355.165 | U62: 1292.926 | V62: 909.114 | W62: 1675.276 | X62: 1291.424 | Y62: 1465.1576 | Z62: 0.0001536550219 | AA62: -6492.1437 | AC62: =L62-INDEX($C62:$L62,1,aux!$BA$1) -> -13284.782 | AD62: -0.003222397971 | AE62: =+IF(INDEX($C62:$L62,1,aux!$BA$1)>0,(L62/INDEX($C62:$L62,1,aux!$BA$1))^(1/($L$3-INDEX($C$3:$L$3,1,aux!$BA$1)))-1,"n.d.") -> -0.1302198994 | AF62: =IF(INDEX($C62:$L62,1,aux!$BA$1)>0,(L62-INDEX($C62:$L62,1,aux!$BA$1))/INDEX($C62:$L62,1,aux!$BA$1),"n.d.") -> -0.7151047512 | AH62: =X62-INDEX($O62:$X62,1,aux!$BA$1) -> 753.715 | AI62: 0.0001525172573 | AJ62: =+IF(INDEX($O62:$X62,1,aux!$BA$1)>0,(X62/INDEX($O62:$X62,1,aux!$BA$1))^(1/($X$3-INDEX($O$3:$X$3,1,aux!$BA$1)))-1,"n.d.") -> 0.1022501636 | AK62: =IF(INDEX($O62:$X62,1,aux!$BA$1)>0,(X62-INDEX($O62:$X62,1,aux!$BA$1))/INDEX($O62:$X62,1,aux!$BA$1),"n.d.") -> 1.401715426 | CC62: =+IF(ISNA(MATCH('5.1'!A62,AUX_2d_pais!$G$2:$G$40000,0)),0,1) -> 1
A63: 0837 | B63: Cook, Ilhas | C63: 0 | D63: 0 | E63: 0 | F63: 0 | G63: 0 | H63: 0 | I63: 0 | J63: 0 | K63: 0 | L63: 0 | M63: 0 | N63: 0 | O63: 0 | P63: 0 | Q63: 0 | R63: 0 | S63: 0 | T63: 0 | U63: 0 | V63: 0 | W63: 0 | X63: 0 | Y63: 0 | Z63: 0 | AA63: 0 | AC63: =L63-INDEX($C63:$L63,1,aux!$BA$1) -> 0 | AD63: 0 | AE63: =+IF(INDEX($C63:$L63,1,aux!$BA$1)>0,(L63/INDEX($C63:$L63,1,aux!$BA$1))^(1/($L$3-INDEX($C$3:$L$3,1,aux!$BA$1)))-1,"n.d.") -> n.d. | AF63: =IF(INDEX($C63:$L63,1,aux!$BA$1)>0,(L63-INDEX($C63:$L63,1,aux!$BA$1))/INDEX($C63:$L63,1,aux!$BA$1),"n.d.") -> n.d. | AH63: =X63-INDEX($O63:$X63,1,aux!$BA$1) -> 0 | AI63: 0 | AJ63: =+IF(INDEX($O63:$X63,1,aux!$BA$1)>0,(X63/INDEX($O63:$X63,1,aux!$BA$1))^(1/($X$3-INDEX($O$3:$X$3,1,aux!$BA$1)))-1,"n.d.") -> n.d. | AK63: =IF(INDEX($O63:$X63,1,aux!$BA$1)>0,(X63-INDEX($O63:$X63,1,aux!$BA$1))/INDEX($O63:$X63,1,aux!$BA$1),"n.d.") -> n.d. | AM63: 0 | BO63: 0 | CC63: =+IF(ISNA(MATCH('5.1'!A63,AUX_2d_pais!$G$2:$G$40000,0)),0,1) -> 0
A64: 0728 | B64: Coreia, República da | C64: 1792.131 | D64: 2314.703 | E64: 2807.265 | F64: 2249.172 | G64: 3627.067 | H64: 6740.744 | I64: 9952.016 | J64: 10433.062 | K64: 11251.118 | L64: 12527.414 | M64: 6369.4692 | N64: 0.0005602641296 | O64: 12320.022 | P64: 7096.313 | Q64: 5927.148 | R64: 7791.97 | S64: 5648.419 | T64: 5410.759 | U64: 8450.011 | V64: 10025.964 | W64: 9615.696 | X64: 9682.698 | Y64: 8196.9 | Z64: 0.0008596309701 | AA64: 1827.4308 | AC64: =L64-INDEX($C64:$L64,1,aux!$BA$1) -> 10735.283 | AD64: 0.002603983578 | AE64: =+IF(INDEX($C64:$L64,1,aux!$BA$1)>0,(L64/INDEX($C64:$L64,1,aux!$BA$1))^(1/($L$3-INDEX($C$3:$L$3,1,aux!$BA$1)))-1,"n.d.") -> 0.2411732546 | AF64: =IF(INDEX($C64:$L64,1,aux!$BA$1)>0,(L64-INDEX($C64:$L64,1,aux!$BA$1))/INDEX($C64:$L64,1,aux!$BA$1),"n.d.") -> 5.990233415 | AH64: =X64-INDEX($O64:$X64,1,aux!$BA$1) -> -2637.324 | AI64: -0.0005336731032 | AJ64: =+IF(INDEX($O64:$X64,1,aux!$BA$1)>0,(X64/INDEX($O64:$X64,1,aux!$BA$1))^(1/($X$3-INDEX($O$3:$X$3,1,aux!$BA$1)))-1,"n.d.") -> -0.02641000927 | AK64: =IF(INDEX($O64:$X64,1,aux!$BA$1)>0,(X64-INDEX($O64:$X64,1,aux!$BA$1))/INDEX($O64:$X64,1,aux!$BA$1),"n.d.") -> -0.2140681242 | CC64: =+IF(ISNA(MATCH('5.1'!A64,AUX_2d_pais!$G$2:$G$40000,0)),0,1) -> 1
A65: 0724 | B65: Coreia, República Popular Democrática da | C65: 0 | D65: 0 | E65: 0 | F65: 0 | G65: 0 | H65: 0 | I65: 0 | J65: 0 | K65: 0 | L65: 0 | M65: 0 | N65: 0 | O65: 0 | P65: 0 | Q65: 0 | R65: 0 | S65: 0 | T65: 11.34 | U65: 0 | V65: 0 | W65: 0 | X65: 0 | Y65: 1.134 | Z65: 1.189256329e-07 | AA65: 1.134 | AC65: =L65-INDEX($C65:$L65,1,aux!$BA$1) -> 0 | AD65: 0 | AE65: =+IF(INDEX($C65:$L65,1,aux!$BA$1)>0,(L65/INDEX($C65:$L65,1,aux!$BA$1))^(1/($L$3-INDEX($C$3:$L$3,1,aux!$BA$1)))-1,"n.d.") -> n.d. | AF65: =IF(INDEX($C65:$L65,1,aux!$BA$1)>0,(L65-INDEX($C65:$L65,1,aux!$BA$1))/INDEX($C65:$L65,1,aux!$BA$1),"n.d.") -> n.d. | AH65: =X65-INDEX($O65:$X65,1,aux!$BA$1) -> 0 | AI65: 0 | AJ65: =+IF(INDEX($O65:$X65,1,aux!$BA$1)>0,(X65/INDEX($O65:$X65,1,aux!$BA$1))^(1/($X$3-INDEX($O$3:$X$3,1,aux!$BA$1)))-1,"n.d.") -> n.d. | AK65: =IF(INDEX($O65:$X65,1,aux!$BA$1)>0,(X65-INDEX($O65:$X65,1,aux!$BA$1))/INDEX($O65:$X65,1,aux!$BA$1),"n.d.") -> n.d. | BO65: 11.34 | CC65: =+IF(ISNA(MATCH('5.1'!A65,AUX_2d_pais!$G$2:$G$40000,0)),0,1) -> 1
A66: 0272 | B66: Costa do Marfim | C66: 7599.677 | D66: 14986.26 | E66: 13552.489 | F66: 19865.109 | G66: 16108.01 | H66: 21515.819 | I66: 19234.625 | J66: 22362.891 | K66: 15110.948 | L66: 19861.723 | M66: 17019.7551 | N66: 0.001497072672 | O66: 1706.53 | P66: 1911.299 | Q66: 1496.032 | R66: 2904.726 | S66: 3550.536 | T66: 5800.007 | U66: 7805.244 | V66: 7539.761 | W66: 5945.922 | X66: 8113.314 | Y66: 4677.3371 | Z66: 0.0004905249337 | AA66: -12342.418 | AC66: =L66-INDEX($C66:$L66,1,aux!$BA$1) -> 12262.046 | AD66: 0.002974319952 | AE66: =+IF(INDEX($C66:$L66,1,aux!$BA$1)>0,(L66/INDEX($C66:$L66,1,aux!$BA$1))^(1/($L$3-INDEX($C$3:$L$3,1,aux!$BA$1)))-1,"n.d.") -> 0.1126484731 | AF66: =IF(INDEX($C66:$L66,1,aux!$BA$1)>0,(L66-INDEX($C66:$L66,1,aux!$BA$1))/INDEX($C66:$L66,1,aux!$BA$1),"n.d.") -> 1.613495679 | AH66: =X66-INDEX($O66:$X66,1,aux!$BA$1) -> 6406.784 | AI66: 0.001296438473 | AJ66: =+IF(INDEX($O66:$X66,1,aux!$BA$1)>0,(X66/INDEX($O66:$X66,1,aux!$BA$1))^(1/($X$3-INDEX($O$3:$X$3,1,aux!$BA$1)))-1,"n.d.") -> 0.1891361863 | AK66: =IF(INDEX($O66:$X66,1,aux!$BA$1)>0,(X66-INDEX($O66:$X66,1,aux!$BA$1))/INDEX($O66:$X66,1,aux!$BA$1),"n.d.") -> 3.754275635 | CC66: =+IF(ISNA(MATCH('5.1'!A66,AUX_2d_pais!$G$2:$G$40000,0)),0,1) -> 1
A67: 0436 | B67: Costa Rica | C67: 49925.891 | D67: 53802.505 | E67: 54078.379 | F67: 33295.145 | G67: 52489.604 | H67: 16193.701 | I67: 27829.854 | J67: 40013.389 | K67: 56568.24 | L67: 63428.998 | M67: 44762.5706 | N67: 0.003937355197 | O67: 245.53 | P67: 782.132 | Q67: 2641.391 | R67: 1469.605 | S67: 1095.116 | T67: 1188.506 | U67: 2131.689 | V67: 2182.021 | W67: 2433.89 | X67: 4538.21 | Y67: 1870.809 | Z67: 0.0001961967763 | AA67: -42891.7616 | AC67: =L67-INDEX($C67:$L67,1,aux!$BA$1) -> 13503.107 | AD67: 0.003275355561 | AE67: =+IF(INDEX($C67:$L67,1,aux!$BA$1)>0,(L67/INDEX($C67:$L67,1,aux!$BA$1))^(1/($L$3-INDEX($C$3:$L$3,1,aux!$BA$1)))-1,"n.d.") -> 0.02695481689 | AF67: =IF(INDEX($C67:$L67,1,aux!$BA$1)>0,(L67-INDEX($C67:$L67,1,aux!$BA$1))/INDEX($C67:$L67,1,aux!$BA$1),"n.d.") -> 0.2704630149 | AH67: =X67-INDEX($O67:$X67,1,aux!$BA$1) -> 4292.68 | AI67: 0.0008686410379 | AJ67: =+IF(INDEX($O67:$X67,1,aux!$BA$1)>0,(X67/INDEX($O67:$X67,1,aux!$BA$1))^(1/($X$3-INDEX($O$3:$X$3,1,aux!$BA$1)))-1,"n.d.") -> 0.3827807852 | AK67: =IF(INDEX($O67:$X67,1,aux!$BA$1)>0,(X67-INDEX($O67:$X67,1,aux!$BA$1))/INDEX($O67:$X67,1,aux!$BA$1),"n.d.") -> 17.48332179 | CC67: =+IF(ISNA(MATCH('5.1'!A67,AUX_2d_pais!$G$2:$G$40000,0)),0,1) -> 1
A68: 0092 | B68: Croácia | C68: 1849.514 | D68: 405.297 | E68: 359.765 | F68: 719.499 | G68: 711.304 | H68: 799.51 | I68: 2850.652 | J68: 2877.808 | K68: 2897.786 | L68: 3693.378 | M68: 1716.4513 | N68: 0.0001509805705 | O68: 1561.764 | P68: 4318.535 | Q68: 6744.654 | R68: 7278.378 | S68: 4145.744 | T68: 4351.27 | U68: 5489.89 | V68: 7125.55 | W68: 7621.42 | X68: 9448.822 | Y68: 5808.6027 | Z68: 0.0006091638027 | AA68: 4092.1514 | AC68: =L68-INDEX($C68:$L68,1,aux!$BA$1) -> 1843.864 | AD68: =AC68/$AC$252 -> 0.0004472533771 | AE68: =+IF(INDEX($C68:$L68,1,aux!$BA$1)>0,(L68/INDEX($C68:$L68,1,aux!$BA$1))^(1/($L$3-INDEX($C$3:$L$3,1,aux!$BA$1)))-1,"n.d.") -> 0.0798763128 | AF68: =IF(INDEX($C68:$L68,1,aux!$BA$1)>0,(L68-INDEX($C68:$L68,1,aux!$BA$1))/INDEX($C68:$L68,1,aux!$BA$1),"n.d.") -> 0.9969451434 | AH68: =X68-INDEX($O68:$X68,1,aux!$BA$1) -> 7887.058 | AI68: =AH68/$AH$252 -> 0.001595977862 | AJ68: =+IF(INDEX($O68:$X68,1,aux!$BA$1)>0,(X68/INDEX($O68:$X68,1,aux!$BA$1))^(1/($X$3-INDEX($O$3:$X$3,1,aux!$BA$1)))-1,"n.d.") -> 0.2214128179 | AK68: =IF(INDEX($O68:$X68,1,aux!$BA$1)>0,(X68-INDEX($O68:$X68,1,aux!$BA$1))/INDEX($O68:$X68,1,aux!$BA$1),"n.d.") -> 5.050095917 | CC68: =+IF(ISNA(MATCH('5.1'!A68,AUX_2d_pais!$G$2:$G$40000,0)),0,1) -> 1
A69: 0448 | B69: Cuba | C69: 19276.906 | D69: 17546.132 | E69: 6253.582 | F69: 32040.22 | G69: 32384.132 | H69: 15458.61 | I69: 26750.152 | J69: 46616.662 | K69: 18448.479 | L69: 44722.644 | M69: 25949.7519 | N69: 0.002282563068 | O69: 586.343 | P69: 243.286 | Q69: 822.52 | R69: 2734.903 | S69: 1539.137 | T69: 2224.974 | U69: 6221.31 | V69: 5829.356 | W69: 5960.309 | X69: 5851.422 | Y69: 3201.356 | Z69: 0.0003357348222 | AA69: -22748.3959 | AC69: =L69-INDEX($C69:$L69,1,aux!$BA$1) -> 25445.738 | AD69: 0.006172197219 | AE69: =+IF(INDEX($C69:$L69,1,aux!$BA$1)>0,(L69/INDEX($C69:$L69,1,aux!$BA$1))^(1/($L$3-INDEX($C$3:$L$3,1,aux!$BA$1)))-1,"n.d.") -> 0.09801940593 | AF69: =IF(INDEX($C69:$L69,1,aux!$BA$1)>0,(L69-INDEX($C69:$L69,1,aux!$BA$1))/INDEX($C69:$L69,1,aux!$BA$1),"n.d.") -> 1.320011521 | AH69: =X69-INDEX($O69:$X69,1,aux!$BA$1) -> 5265.079 | AI69: 0.001065409881 | AJ69: =+IF(INDEX($O69:$X69,1,aux!$BA$1)>0,(X69/INDEX($O69:$X69,1,aux!$BA$1))^(1/($X$3-INDEX($O$3:$X$3,1,aux!$BA$1)))-1,"n.d.") -> 0.2912555053 | AK69: =IF(INDEX($O69:$X69,1,aux!$BA$1)>0,(X69-INDEX($O69:$X69,1,aux!$BA$1))/INDEX($O69:$X69,1,aux!$BA$1),"n.d.") -> 8.97952052 | CC69: =+IF(ISNA(MATCH('5.1'!A69,AUX_2d_pais!$G$2:$G$40000,0)),0,1) -> 1
A70: 0475 | B70: Curaçau | C70: 0 | D70: 0 | E70: 0 | F70: 0 | G70: 17.8 | H70: 12.77 | I70: 716.997 | J70: 0 | K70: 0 | L70: 0 | M70: 74.7567 | N70: 6.575665277e-06 | O70: 0 | P70: 0 | Q70: 0 | R70: 0 | S70: 231.137 | T70: 370.567 | U70: 232.095 | V70: 360.865 | W70: 333.813 | X70: 351.834 | Y70: 188.0311 | Z70: 1.971932766e-05 | AA70: 113.2744 | AC70: =L70-INDEX($C70:$L70,1,aux!$BA$1) -> 0 | AD70: 0 | AE70: =+IF(INDEX($C70:$L70,1,aux!$BA$1)>0,(L70/INDEX($C70:$L70,1,aux!$BA$1))^(1/($L$3-INDEX($C$3:$L$3,1,aux!$BA$1)))-1,"n.d.") -> n.d. | AF70: =IF(INDEX($C70:$L70,1,aux!$BA$1)>0,(L70-INDEX($C70:$L70,1,aux!$BA$1))/INDEX($C70:$L70,1,aux!$BA$1),"n.d.") -> n.d. | AH70: =X70-INDEX($O70:$X70,1,aux!$BA$1) -> 351.834 | AI70: 7.119502291e-05 | AJ70: =+IF(INDEX($O70:$X70,1,aux!$BA$1)>0,(X70/INDEX($O70:$X70,1,aux!$BA$1))^(1/($X$3-INDEX($O$3:$X$3,1,aux!$BA$1)))-1,"n.d.") -> n.d. | AK70: =IF(INDEX($O70:$X70,1,aux!$BA$1)>0,(X70-INDEX($O70:$X70,1,aux!$BA$1))/INDEX($O70:$X70,1,aux!$BA$1),"n.d.") -> n.d. | CC70: =+IF(ISNA(MATCH('5.1'!A70,AUX_2d_pais!$G$2:$G$40000,0)),0,1) -> 1
A71: 0008 | B71: Dinamarca | C71: 98664.583 | D71: 110052.953 | E71: 95474.862 | F71: 84624.583 | G71: 106856.041 | H71: 87070.622 | I71: 104625.442 | J71: 119415.164 | K71: 124112.412 | L71: 131487.544 | M71: 106238.4206 | N71: 0.009344825192 | O71: 38553.63 | P71: 59433.028 | Q71: 58164.209 | R71: 63603.289 | S71: 82193.163 | T71: 59996.415 | U71: 60529.446 | V71: 71057.223 | W71: 77062.058 | X71: 80120.862 | Y71: 65071.3323 | Z71: 0.006824205799 | AA71: -41167.0883 | AC71: =L71-INDEX($C71:$L71,1,aux!$BA$1) -> 32822.961 | AD71: 0.007961639336 | AE71: =+IF(INDEX($C71:$L71,1,aux!$BA$1)>0,(L71/INDEX($C71:$L71,1,aux!$BA$1))^(1/($L$3-INDEX($C$3:$L$3,1,aux!$BA$1)))-1,"n.d.") -> 0.03242413295 | AF71: =IF(INDEX($C71:$L71,1,aux!$BA$1)>0,(L71-INDEX($C71:$L71,1,aux!$BA$1))/INDEX($C71:$L71,1,aux!$BA$1),"n.d.") -> 0.3326721707 | AH71: =X71-INDEX($O71:$X71,1,aux!$BA$1) -> 41567.232 | AI71: 0.008411296334 | AJ71: =+IF(INDEX($O71:$X71,1,aux!$BA$1)>0,(X71/INDEX($O71:$X71,1,aux!$BA$1))^(1/($X$3-INDEX($O$3:$X$3,1,aux!$BA$1)))-1,"n.d.") -> 0.08467046656 | AK71: =IF(INDEX($O71:$X71,1,aux!$BA$1)>0,(X71-INDEX($O71:$X71,1,aux!$BA$1))/INDEX($O71:$X71,1,aux!$BA$1),"n.d.") -> 1.078166492 | CC71: =+IF(ISNA(MATCH('5.1'!A71,AUX_2d_pais!$G$2:$G$40000,0)),0,1) -> 1
A72: 0460 | B72: Domínica | C72: 0 | D72: 0 | E72: 0 | F72: 0 | G72: 0 | H72: 0 | I72: 0 | J72: 0 | K72: 0 | L72: 0 | M72: 0 | N72: 0 | O72: 0 | P72: 26.272 | Q72: 0 | R72: 0 | S72: 0 | T72: 0 | U72: 0 | V72: 0.202 | W72: 0 | X72: 0 | Y72: 2.6474 | Z72: 2.776399651e-07 | AA72: 2.6474 | AC72: =L72-INDEX($C72:$L72,1,aux!$BA$1) -> 0 | AD72: 0 | AE72: =+IF(INDEX($C72:$L72,1,aux!$BA$1)>0,(L72/INDEX($C72:$L72,1,aux!$BA$1))^(1/($L$3-INDEX($C$3:$L$3,1,aux!$BA$1)))-1,"n.d.") -> n.d. | AF72: =IF(INDEX($C72:$L72,1,aux!$BA$1)>0,(L72-INDEX($C72:$L72,1,aux!$BA$1))/INDEX($C72:$L72,1,aux!$BA$1),"n.d.") -> n.d. | AH72: =X72-INDEX($O72:$X72,1,aux!$BA$1) -> 0 | AI72: 0 | AJ72: =+IF(INDEX($O72:$X72,1,aux!$BA$1)>0,(X72/INDEX($O72:$X72,1,aux!$BA$1))^(1/($X$3-INDEX($O$3:$X$3,1,aux!$BA$1)))-1,"n.d.") -> n.d. | AK72: =IF(INDEX($O72:$X72,1,aux!$BA$1)>0,(X72-INDEX($O72:$X72,1,aux!$BA$1))/INDEX($O72:$X72,1,aux!$BA$1),"n.d.") -> n.d. | BO72: =SUM(C72:L72,O72:X72) -> 26.474 | CC72: =+IF(ISNA(MATCH('5.1'!A72,AUX_2d_pais!$G$2:$G$40000,0)),0,1) -> 1
A73: 0456 | B73: Dominicana, República | C73: 733.979 | D73: 631.354 | E73: 334.177 | F73: 950.261 | G73: 13072.145 | H73: 16567.857 | I73: 1211.934 | J73: 249.324 | K73: 435.417 | L73: 906.601 | M73: 3509.3049 | N73: 0.0003086815547 | O73: 1467.389 | P73: 3976.16 | Q73: 4434.087 | R73: 4972.924 | S73: 5272.541 | T73: 4905.433 | U73: 7522.558 | V73: 7138.029 | W73: 7637.691 | X73: 9585.592 | Y73: 5691.2404 | Z73: 0.0005968557023 | AA73: 2181.9355 | AC73: =L73-INDEX($C73:$L73,1,aux!$BA$1) -> 172.622 | AD73: 4.187172831e-05 | AE73: =+IF(INDEX($C73:$L73,1,aux!$BA$1)>0,(L73/INDEX($C73:$L73,1,aux!$BA$1))^(1/($L$3-INDEX($C$3:$L$3,1,aux!$BA$1)))-1,"n.d.") -> 0.02374668055 | AF73: =IF(INDEX($C73:$L73,1,aux!$BA$1)>0,(L73-INDEX($C73:$L73,1,aux!$BA$1))/INDEX($C73:$L73,1,aux!$BA$1),"n.d.") -> 0.2351865653 | AH73: =X73-INDEX($O73:$X73,1,aux!$BA$1) -> 8118.203 | AI73: 0.001642750981 | AJ73: =+IF(INDEX($O73:$X73,1,aux!$BA$1)>0,(X73/INDEX($O73:$X73,1,aux!$BA$1))^(1/($X$3-INDEX($O$3:$X$3,1,aux!$BA$1)))-1,"n.d.") -> 0.2318667761 | AK73: =IF(INDEX($O73:$X73,1,aux!$BA$1)>0,(X73-INDEX($O73:$X73,1,aux!$BA$1))/INDEX($O73:$X73,1,aux!$BA$1),"n.d.") -> 5.532413695 | CC73: =+IF(ISNA(MATCH('5.1'!A73,AUX_2d_pais!$G$2:$G$40000,0)),0,1) -> 1
A74: 0220 | B74: Egito | C74: 5063.32 | D74: 4522.76 | E74: 4675.66 | F74: 4663.667 | G74: 10580.358 | H74: 9713.929 | I74: 9415.833 | J74: 8411.472 | K74: 7769.676 | L74: 6524.289 | M74: 7134.0964 | N74: 0.0006275214126 | O74: 12164.633 | P74: 20938.768 | Q74: 31751.203 | R74: 35400.305 | S74: 35288.839 | T74: 43418.004 | U74: 51440.08 | V74: 57986.886 | W74: 64246.232 | X74: 76853.563 | Y74: 42948.8513 | Z74: 0.00450416166 | AA74: 35814.7549 | AC74: =L74-INDEX($C74:$L74,1,aux!$BA$1) -> 1460.969 | AD74: 0.000354377177 | AE74: =+IF(INDEX($C74:$L74,1,aux!$BA$1)>0,(L74/INDEX($C74:$L74,1,aux!$BA$1))^(1/($L$3-INDEX($C$3:$L$3,1,aux!$BA$1)))-1,"n.d.") -> 0.02856819365 | AF74: =IF(INDEX($C74:$L74,1,aux!$BA$1)>0,(L74-INDEX($C74:$L74,1,aux!$BA$1))/INDEX($C74:$L74,1,aux!$BA$1),"n.d.") -> 0.2885397328 | AH74: =X74-INDEX($O74:$X74,1,aux!$BA$1) -> 64688.93 | AI74: 0.01309006478 | AJ74: =+IF(INDEX($O74:$X74,1,aux!$BA$1)>0,(X74/INDEX($O74:$X74,1,aux!$BA$1))^(1/($X$3-INDEX($O$3:$X$3,1,aux!$BA$1)))-1,"n.d.") -> 0.2273026337 | AK74: =IF(INDEX($O74:$X74,1,aux!$BA$1)>0,(X74-INDEX($O74:$X74,1,aux!$BA$1))/INDEX($O74:$X74,1,aux!$BA$1),"n.d.") -> 5.317787228 | CC74: =+IF(ISNA(MATCH('5.1'!A74,AUX_2d_pais!$G$2:$G$40000,0)),0,1) -> 1
A75: 0428 | B75: El Salvador | C75: 1956.92 | D75: 568.227 | E75: 143.152 | F75: 279.425 | G75: 141.005 | H75: 175.032 | I75: 305.271 | J75: 1083.794 | K75: 4180.437 | L75: 4424.473 | M75: 1325.7736 | N75: 0.0001166162154 | O75: 40.486 | P75: 304.937 | Q75: 829.224 | R75: 181.299 | S75: 185.659 | T75: 165.106 | U75: 171.935 | V75: 482.538 | W75: 243.227 | X75: 1167.129 | Y75: 377.154 | Z75: 3.955315533e-05 | AA75: -948.6196 | AC75: =L75-INDEX($C75:$L75,1,aux!$BA$1) -> 2467.553 | AD75: 0.0005985373175 | AE75: =+IF(INDEX($C75:$L75,1,aux!$BA$1)>0,(L75/INDEX($C75:$L75,1,aux!$BA$1))^(1/($L$3-INDEX($C$3:$L$3,1,aux!$BA$1)))-1,"n.d.") -> 0.09487713539 | AF75: =IF(INDEX($C75:$L75,1,aux!$BA$1)>0,(L75-INDEX($C75:$L75,1,aux!$BA$1))/INDEX($C75:$L75,1,aux!$BA$1),"n.d.") -> 1.260937085 | AH75: =X75-INDEX($O75:$X75,1,aux!$BA$1) -> 1126.643 | AI75: 0.0002279807358 | AJ75: =+IF(INDEX($O75:$X75,1,aux!$BA$1)>0,(X75/INDEX($O75:$X75,1,aux!$BA$1))^(1/($X$3-INDEX($O$3:$X$3,1,aux!$BA$1)))-1,"n.d.") -> 0.4527856934 | AK75: =IF(INDEX($O75:$X75,1,aux!$BA$1)>0,(X75-INDEX($O75:$X75,1,aux!$BA$1))/INDEX($O75:$X75,1,aux!$BA$1),"n.d.") -> 27.82796522 | CC75: =+IF(ISNA(MATCH('5.1'!A75,AUX_2d_pais!$G$2:$G$40000,0)),0,1) -> 1
A76: 0647 | B76: Emirados Árabes Unidos | C76: 170.671 | D76: 124.492 | E76: 114.002 | F76: 376.675 | G76: 277.982 | H76: 298.327 | I76: 272.192 | J76: 338.823 | K76: 686.462 | L76: 376.825 | M76: 303.6451 | N76: 2.670889085e-05 | O76: 5952.937 | P76: 10020.195 | Q76: 17998.704 | R76: 20814.093 | S76: 18500.777 | T76: 24571.909 | U76: 35586.342 | V76: 40343.811 | W76: 42542.008 | X76: 29681.125 | Y76: 24601.1901 | Z76: 0.002579993035 | AA76: 24297.545 | AC76: =L76-INDEX($C76:$L76,1,aux!$BA$1) -> 206.154 | AD76: 5.000535435e-05 | AE76: =+IF(INDEX($C76:$L76,1,aux!$BA$1)>0,(L76/INDEX($C76:$L76,1,aux!$BA$1))^(1/($L$3-INDEX($C$3:$L$3,1,aux!$BA$1)))-1,"n.d.") -> 0.09199335898 | AF76: =IF(INDEX($C76:$L76,1,aux!$BA$1)>0,(L76-INDEX($C76:$L76,1,aux!$BA$1))/INDEX($C76:$L76,1,aux!$BA$1),"n.d.") -> 1.207902924 | AH76: =X76-INDEX($O76:$X76,1,aux!$BA$1) -> 23728.188 | AI76: 0.004801494137 | AJ76: =+IF(INDEX($O76:$X76,1,aux!$BA$1)>0,(X76/INDEX($O76:$X76,1,aux!$BA$1))^(1/($X$3-INDEX($O$3:$X$3,1,aux!$BA$1)))-1,"n.d.") -> 0.1954397004 | AK76: =IF(INDEX($O76:$X76,1,aux!$BA$1)>0,(X76-INDEX($O76:$X76,1,aux!$BA$1))/INDEX($O76:$X76,1,aux!$BA$1),"n.d.") -> 3.985963231 | CC76: =+IF(ISNA(MATCH('5.1'!A76,AUX_2d_pais!$G$2:$G$40000,0)),0,1) -> 1
A77: 0500 | B77: Equador | C77: 23785.579 | D77: 21812.538 | E77: 21749.973 | F77: 12215.045 | G77: 16057.221 | H77: 13998.156 | I77: 13363.068 | J77: 17915.844 | K77: 25037.02 | L77: 29078.267 | M77: 19501.2711 | N77: 0.001715349009 | O77: 301.873 | P77: 1482.762 | Q77: 3647.257 | R77: 2138.757 | S77: 6523.192 | T77: 4325.287 | U77: 2550.75 | V77: 3573.32 | W77: 1881.327 | X77: 3170.376 | Y77: 2959.4901 | Z77: 0.0003103696941 | AA77: -16541.781 | AC77: =L77-INDEX($C77:$L77,1,aux!$BA$1) -> 5292.688 | AD77: 0.001283810835 | AE77: =+IF(INDEX($C77:$L77,1,aux!$BA$1)>0,(L77/INDEX($C77:$L77,1,aux!$BA$1))^(1/($L$3-INDEX($C$3:$L$3,1,aux!$BA$1)))-1,"n.d.") -> 0.02257454338 | AF77: =IF(INDEX($C77:$L77,1,aux!$BA$1)>0,(L77-INDEX($C77:$L77,1,aux!$BA$1))/INDEX($C77:$L77,1,aux!$BA$1),"n.d.") -> 0.222516677 | AH77: =X77-INDEX($O77:$X77,1,aux!$BA$1) -> 2868.503 | AI77: 0.0005804531023 | AJ77: =+IF(INDEX($O77:$X77,1,aux!$BA$1)>0,(X77/INDEX($O77:$X77,1,aux!$BA$1))^(1/($X$3-INDEX($O$3:$X$3,1,aux!$BA$1)))-1,"n.d.") -> 0.2986026294 | AK77: =IF(INDEX($O77:$X77,1,aux!$BA$1)>0,(X77-INDEX($O77:$X77,1,aux!$BA$1))/INDEX($O77:$X77,1,aux!$BA$1),"n.d.") -> 9.502350326 | CC77: =+IF(ISNA(MATCH('5.1'!A77,AUX_2d_pais!$G$2:$G$40000,0)),0,1) -> 1
A78: 0336 | B78: Eritreia | C78: 0 | D78: 0 | E78: 0 | F78: 0 | G78: 0 | H78: 0 | I78: 0 | J78: 0 | K78: 0 | L78: 0 | M78: 0 | N78: 0 | O78: 0 | P78: 0 | Q78: 0 | R78: 0 | S78: 0 | T78: 0 | U78: 0 | V78: 0 | W78: 0 | X78: 0 | Y78: 0 | Z78: 0 | AA78: 0 | AC78: =L78-INDEX($C78:$L78,1,aux!$BA$1) -> 0 | AD78: 0 | AE78: =+IF(INDEX($C78:$L78,1,aux!$BA$1)>0,(L78/INDEX($C78:$L78,1,aux!$BA$1))^(1/($L$3-INDEX($C$3:$L$3,1,aux!$BA$1)))-1,"n.d.") -> n.d. | AF78: =IF(INDEX($C78:$L78,1,aux!$BA$1)>0,(L78-INDEX($C78:$L78,1,aux!$BA$1))/INDEX($C78:$L78,1,aux!$BA$1),"n.d.") -> n.d. | AH78: =X78-INDEX($O78:$X78,1,aux!$BA$1) -> 0 | AI78: 0 | AJ78: =+IF(INDEX($O78:$X78,1,aux!$BA$1)>0,(X78/INDEX($O78:$X78,1,aux!$BA$1))^(1/($X$3-INDEX($O$3:$X$3,1,aux!$BA$1)))-1,"n.d.") -> n.d. | AK78: =IF(INDEX($O78:$X78,1,aux!$BA$1)>0,(X78-INDEX($O78:$X78,1,aux!$BA$1))/INDEX($O78:$X78,1,aux!$BA$1),"n.d.") -> n.d. | AM78: =SUM(A78:AA78) -> 0 | BO78: 0 | CC78: =+IF(ISNA(MATCH('5.1'!A78,AUX_2d_pais!$G$2:$G$40000,0)),0,1) -> 0
A79: 0063 | B79: Eslováquia | C79: 6823.14 | D79: 3639.278 | E79: 5587.178 | F79: 4476.984 | G79: 4080.922 | H79: 3031.753 | I79: 3590.402 | J79: 2719.997 | K79: 2480.896 | L79: 2879.43 | M79: 3930.998 | N79: 0.0003457740517 | O79: 1056.3 | P79: 1766.932 | Q79: 2427.079 | R79: 3808.292 | S79: 4008.894 | T79: 3619.195 | U79: 3552.398 | V79: 8329.242 | W79: 13327.966 | X79: 12263.735 | Y79: 5416.0033 | Z79: 0.0005679908466 | AA79: 1485.0053 | AC79: =L79-INDEX($C79:$L79,1,aux!$BA$1) -> -3943.71 | AD79: -0.0009565985429 | AE79: =+IF(INDEX($C79:$L79,1,aux!$BA$1)>0,(L79/INDEX($C79:$L79,1,aux!$BA$1))^(1/($L$3-INDEX($C$3:$L$3,1,aux!$BA$1)))-1,"n.d.") -> -0.09140751991 | AF79: =IF(INDEX($C79:$L79,1,aux!$BA$1)>0,(L79-INDEX($C79:$L79,1,aux!$BA$1))/INDEX($C79:$L79,1,aux!$BA$1),"n.d.") -> -0.5779904853 | AH79: =X79-INDEX($O79:$X79,1,aux!$BA$1) -> 11207.435 | AI79: 0.002267869483 | AJ79: =+IF(INDEX($O79:$X79,1,aux!$BA$1)>0,(X79/INDEX($O79:$X79,1,aux!$BA$1))^(1/($X$3-INDEX($O$3:$X$3,1,aux!$BA$1)))-1,"n.d.") -> 0.3131521621 | AK79: =IF(INDEX($O79:$X79,1,aux!$BA$1)>0,(X79-INDEX($O79:$X79,1,aux!$BA$1))/INDEX($O79:$X79,1,aux!$BA$1),"n.d.") -> 10.6100871 | CC79: =+IF(ISNA(MATCH('5.1'!A79,AUX_2d_pais!$G$2:$G$40000,0)),0,1) -> 1
A80: 0091 | B80: Eslovénia | C80: 3780.439 | D80: 2220.581 | E80: 2049.568 | F80: 2628.094 | G80: 3760.759 | H80: 6990.781 | I80: 4418.305 | J80: 3266.414 | K80: 5921.708 | L80: 7499.776 | M80: 4253.6425 | N80: 0.0003741541466 | O80: 1872.55 | P80: 1312.64 | Q80: 4195.755 | R80: 5112.365 | S80: 4327.924 | T80: 3847.982 | U80: 3399.245 | V80: 5542.774 | W80: 15802.216 | X80: 9026.115 | Y80: 5443.9566 | Z80: 0.0005709223845 | AA80: 1190.3141 | AC80: =L80-INDEX($C80:$L80,1,aux!$BA$1) -> 3719.337 | AD80: 0.0009021739313 | AE80: =+IF(INDEX($C80:$L80,1,aux!$BA$1)>0,(L80/INDEX($C80:$L80,1,aux!$BA$1))^(1/($L$3-INDEX($C$3:$L$3,1,aux!$BA$1)))-1,"n.d.") -> 0.07908642375 | AF80: =IF(INDEX($C80:$L80,1,aux!$BA$1)>0,(L80-INDEX($C80:$L80,1,aux!$BA$1))/INDEX($C80:$L80,1,aux!$BA$1),"n.d.") -> 0.9838373268 | AH80: =X80-INDEX($O80:$X80,1,aux!$BA$1) -> 7153.565 | AI80: 0.001447552607 | AJ80: =+IF(INDEX($O80:$X80,1,aux!$BA$1)>0,(X80/INDEX($O80:$X80,1,aux!$BA$1))^(1/($X$3-INDEX($O$3:$X$3,1,aux!$BA$1)))-1,"n.d.") -> 0.1909578249 | AK80: =IF(INDEX($O80:$X80,1,aux!$BA$1)>0,(X80-INDEX($O80:$X80,1,aux!$BA$1))/INDEX($O80:$X80,1,aux!$BA$1),"n.d.") -> 3.820226429 | CC80: =+IF(ISNA(MATCH('5.1'!A80,AUX_2d_pais!$G$2:$G$40000,0)),0,1) -> 1
A81: 0011 | B81: Espanha | C81: 4392194.411 | D81: 4810144.807 | E81: 5036980.629 | F81: 4804818.542 | G81: 5164773.852 | H81: 5226300.689 | I81: 5293579.21 | J81: 5482819.349 | K81: 6035945.524 | L81: 6194752.432 | M81: 5244230.944 | N81: 0.46128718 | O81: 2263859.031 | P81: 2632279.418 | Q81: 2805869.028 | R81: 2811159.456 | S81: 2999194.277 | T81: 3063711.611 | U81: 3143548.726 | V81: 3205509.672 | W81: 3403473.492 | X81: 3617873.929 | Y81: 2994647.864 | Z81: 0.3140567835 | AA81: -2249583.08 | AC81: =L81-INDEX($C81:$L81,1,aux!$BA$1) -> 1802558.021 | AD81: 0.4372340705 | AE81: =+IF(INDEX($C81:$L81,1,aux!$BA$1)>0,(L81/INDEX($C81:$L81,1,aux!$BA$1))^(1/($L$3-INDEX($C$3:$L$3,1,aux!$BA$1)))-1,"n.d.") -> 0.03894749427 | AF81: =IF(INDEX($C81:$L81,1,aux!$BA$1)>0,(L81-INDEX($C81:$L81,1,aux!$BA$1))/INDEX($C81:$L81,1,aux!$BA$1),"n.d.") -> 0.4104003267 | AH81: =X81-INDEX($O81:$X81,1,aux!$BA$1) -> 1354014.898 | AI81: 0.2739903525 | AJ81: =+IF(INDEX($O81:$X81,1,aux!$BA$1)>0,(X81/INDEX($O81:$X81,1,aux!$BA$1))^(1/($X$3-INDEX($O$3:$X$3,1,aux!$BA$1)))-1,"n.d.") -> 0.0534712117 | AK81: =IF(INDEX($O81:$X81,1,aux!$BA$1)>0,(X81-INDEX($O81:$X81,1,aux!$BA$1))/INDEX($O81:$X81,1,aux!$BA$1),"n.d.") -> 0.5981003585 | CC81: =+IF(ISNA(MATCH('5.1'!A81,AUX_2d_pais!$G$2:$G$40000,0)),0,1) -> 1
A82: 0400 | B82: Estados Unidos | C82: 137760.542 | D82: 214109.728 | E82: 308658.349 | F82: 226799.752 | G82: 265247.762 | H82: 284255.803 | I82: 250403.615 | J82: 233965.822 | K82: 194259.927 | L82: 363121.23 | M82: 247858.253 | N82: 0.02180183058 | O82: 207752.644 | P82: 293661.786 | Q82: 331757.756 | R82: 361934.658 | S82: 380783.71 | T82: 401572.439 | U82: 487078.474 | V82: 456826.354 | W82: 462235.205 | X82: 487428.327 | Y82: 387103.1353 | Z82: 0.04059654793 | AA82: 139244.8823 | AC82: =L82-INDEX($C82:$L82,1,aux!$BA$1) -> 225360.688 | AD82: 0.05466418823 | AE82: =+IF(INDEX($C82:$L82,1,aux!$BA$1)>0,(L82/INDEX($C82:$L82,1,aux!$BA$1))^(1/($L$3-INDEX($C$3:$L$3,1,aux!$BA$1)))-1,"n.d.") -> 0.1137036531 | AF82: =IF(INDEX($C82:$L82,1,aux!$BA$1)>0,(L82-INDEX($C82:$L82,1,aux!$BA$1))/INDEX($C82:$L82,1,aux!$BA$1),"n.d.") -> 1.63588706 | AH82: =X82-INDEX($O82:$X82,1,aux!$BA$1) -> 279675.683 | AI82: 0.05659349767 | AJ82: =+IF(INDEX($O82:$X82,1,aux!$BA$1)>0,(X82/INDEX($O82:$X82,1,aux!$BA$1))^(1/($X$3-INDEX($O$3:$X$3,1,aux!$BA$1)))-1,"n.d.") -> 0.09938948363 | AK82: =IF(INDEX($O82:$X82,1,aux!$BA$1)>0,(X82-INDEX($O82:$X82,1,aux!$BA$1))/INDEX($O82:$X82,1,aux!$BA$1),"n.d.") -> 1.346195541 | CC82: =+IF(ISNA(MATCH('5.1'!A82,AUX_2d_pais!$G$2:$G$40000,0)),0,1) -> 1
A83: 0053 | B83: Estónia | C83: 4032.824 | D83: 3080.156 | E83: 2270.347 | F83: 5617.588 | G83: 6391.206 | H83: 5971.233 | I83: 10870.308 | J83: 9560.307 | K83: 15487.134 | L83: 9498.386 | M83: 7277.9489 | N83: 0.0006401748054 | O83: 1824.789 | P83: 2556.351 | Q83: 4621.733 | R83: 4359.582 | S83: 8665.265 | T83: 5991.647 | U83: 4615.71 | V83: 6325.403 | W83: 7548.693 | X83: 8145.908 | Y83: 5465.5081 | Z83: 0.0005731825483 | AA83: -1812.4408 | AC83: =L83-INDEX($C83:$L83,1,aux!$BA$1) -> 5465.562 | AD83: 0.001325743689 | AE83: =+IF(INDEX($C83:$L83,1,aux!$BA$1)>0,(L83/INDEX($C83:$L83,1,aux!$BA$1))^(1/($L$3-INDEX($C$3:$L$3,1,aux!$BA$1)))-1,"n.d.") -> 0.09986109053 | AF83: =IF(INDEX($C83:$L83,1,aux!$BA$1)>0,(L83-INDEX($C83:$L83,1,aux!$BA$1))/INDEX($C83:$L83,1,aux!$BA$1),"n.d.") -> 1.355269161 | AH83: =X83-INDEX($O83:$X83,1,aux!$BA$1) -> 6321.119 | AI83: 0.001279103816 | AJ83: =+IF(INDEX($O83:$X83,1,aux!$BA$1)>0,(X83/INDEX($O83:$X83,1,aux!$BA$1))^(1/($X$3-INDEX($O$3:$X$3,1,aux!$BA$1)))-1,"n.d.") -> 0.180842218 | AK83: =IF(INDEX($O83:$X83,1,aux!$BA$1)>0,(X83-INDEX($O83:$X83,1,aux!$BA$1))/INDEX($O83:$X83,1,aux!$BA$1),"n.d.") -> 3.464027348 | CC83: =+IF(ISNA(MATCH('5.1'!A83,AUX_2d_pais!$G$2:$G$40000,0)),0,1) -> 1
A84: 0334 | B84: Etiópia | C84: 13557.843 | D84: 1015.774 | E84: 255.988 | F84: 1864.726 | G84: 2830.688 | H84: 5649.774 | I84: 3489.428 | J84: 4709.007 | K84: 6740.565 | L84: 6282.593 | M84: 4639.6386 | N84: 0.000408106704 | O84: 183.999 | P84: 697.998 | Q84: 407.937 | R84: 898.176 | S84: 1428.583 | T84: 1528.211 | U84: 798.43 | V84: 4148.308 | W84: 3604.826 | X84: 3285.219 | Y84: 1698.1687 | Z84: 0.0001780915233 | AA84: -2941.4699 | AC84: =L84-INDEX($C84:$L84,1,aux!$BA$1) -> -7275.25 | AD84: -0.00176470723 | AE84: =+IF(INDEX($C84:$L84,1,aux!$BA$1)>0,(L84/INDEX($C84:$L84,1,aux!$BA$1))^(1/($L$3-INDEX($C$3:$L$3,1,aux!$BA$1)))-1,"n.d.") -> -0.08191445988 | AF84: =IF(INDEX($C84:$L84,1,aux!$BA$1)>0,(L84-INDEX($C84:$L84,1,aux!$BA$1))/INDEX($C84:$L84,1,aux!$BA$1),"n.d.") -> -0.5366082201 | AH84: =X84-INDEX($O84:$X84,1,aux!$BA$1) -> 3101.22 | AI84: 0.0006275443219 | AJ84: =+IF(INDEX($O84:$X84,1,aux!$BA$1)>0,(X84/INDEX($O84:$X84,1,aux!$BA$1))^(1/($X$3-INDEX($O$3:$X$3,1,aux!$BA$1)))-1,"n.d.") -> 0.3774733555 | AK84: =IF(INDEX($O84:$X84,1,aux!$BA$1)>0,(X84-INDEX($O84:$X84,1,aux!$BA$1))/INDEX($O84:$X84,1,aux!$BA$1),"n.d.") -> 16.85454812 | CC84: =+IF(ISNA(MATCH('5.1'!A84,AUX_2d_pais!$G$2:$G$40000,0)),0,1) -> 1
A85: 0529 | B85: Falkland Ilhas (Malvinas) | C85: 0 | D85: 0 | E85: 0 | F85: 0 | G85: 0 | H85: 0 | I85: 0 | J85: 0 | K85: 0 | L85: 190.311 | M85: 19.0311 | N85: 1.673992344e-06 | O85: 0 | P85: 0 | Q85: 0 | R85: 0 | S85: 0 | T85: 0 | U85: 0 | V85: 0 | W85: 0 | X85: 0 | Y85: 0 | Z85: 0 | AA85: -19.0311 | AC85: =L85-INDEX($C85:$L85,1,aux!$BA$1) -> 190.311 | AD85: 4.616242708e-05 | AE85: =+IF(INDEX($C85:$L85,1,aux!$BA$1)>0,(L85/INDEX($C85:$L85,1,aux!$BA$1))^(1/($L$3-INDEX($C$3:$L$3,1,aux!$BA$1)))-1,"n.d.") -> n.d. | AF85: =IF(INDEX($C85:$L85,1,aux!$BA$1)>0,(L85-INDEX($C85:$L85,1,aux!$BA$1))/INDEX($C85:$L85,1,aux!$BA$1),"n.d.") -> n.d. | AH85: =X85-INDEX($O85:$X85,1,aux!$BA$1) -> 0 | AI85: 0 | AJ85: =+IF(INDEX($O85:$X85,1,aux!$BA$1)>0,(X85/INDEX($O85:$X85,1,aux!$BA$1))^(1/($X$3-INDEX($O$3:$X$3,1,aux!$BA$1)))-1,"n.d.") -> n.d. | AK85: =IF(INDEX($O85:$X85,1,aux!$BA$1)>0,(X85-INDEX($O85:$X85,1,aux!$BA$1))/INDEX($O85:$X85,1,aux!$BA$1),"n.d.") -> n.d. | BO85: 190.311 | CC85: =+IF(ISNA(MATCH('5.1'!A85,AUX_2d_pais!$G$2:$G$40000,0)),0,1) -> 1
A86: 0041 | B86: Faroé, Ilhas | C86: 131.754 | D86: 0 | E86: 46.119 | F86: 259.933 | G86: 0 | H86: 0 | I86: 6.437 | J86: 67.736 | K86: 2434.705 | L86: 12.226 | M86: 295.891 | N86: 2.602683338e-05 | O86: 0 | P86: 0 | Q86: 0.011 | R86: 0.141 | S86: 0 | T86: 0 | U86: 0.026 | V86: 0.863 | W86: 0.403 | X86: 0.753 | Y86: 0.2197 | Z86: 2.304053046e-08 | AA86: -295.6713 | AC86: =L86-INDEX($C86:$L86,1,aux!$BA$1) -> -119.528 | AD86: -2.899308282e-05 | AE86: =+IF(INDEX($C86:$L86,1,aux!$BA$1)>0,(L86/INDEX($C86:$L86,1,aux!$BA$1))^(1/($L$3-INDEX($C$3:$L$3,1,aux!$BA$1)))-1,"n.d.") -> -0.2321435005 | AF86: =IF(INDEX($C86:$L86,1,aux!$BA$1)>0,(L86-INDEX($C86:$L86,1,aux!$BA$1))/INDEX($C86:$L86,1,aux!$BA$1),"n.d.") -> -0.9072058533 | AH86: =X86-INDEX($O86:$X86,1,aux!$BA$1) -> 0.753 | AI86: 1.523725741e-07 | AJ86: =+IF(INDEX($O86:$X86,1,aux!$BA$1)>0,(X86/INDEX($O86:$X86,1,aux!$BA$1))^(1/($X$3-INDEX($O$3:$X$3,1,aux!$BA$1)))-1,"n.d.") -> n.d. | AK86: =IF(INDEX($O86:$X86,1,aux!$BA$1)>0,(X86-INDEX($O86:$X86,1,aux!$BA$1))/INDEX($O86:$X86,1,aux!$BA$1),"n.d.") -> n.d. | BO86: 2961.107 | CC86: =+IF(ISNA(MATCH('5.1'!A86,AUX_2d_pais!$G$2:$G$40000,0)),0,1) -> 1
A87: 0815 | B87: Fiji, Ilhas | C87: 0 | D87: 0 | E87: 73.248 | F87: 0.24 | G87: 18927.738 | H87: 0.743 | I87: 14350.046 | J87: 11904.997 | K87: 18669.343 | L87: 460.131 | M87: 6438.6486 | N87: 0.0005663492106 | O87: 0.464 | P87: 0 | Q87: 13.512 | R87: 13.572 | S87: 0 | T87: 18.636 | U87: 0 | V87: 0 | W87: 21.325 | X87: 21.503 | Y87: 8.9012 | Z87: 9.334928072e-07 | AA87: -6429.7474 | AC87: =L87-INDEX($C87:$L87,1,aux!$BA$1) -> 460.131 | AD87: 0.0001116108041 | AE87: =+IF(INDEX($C87:$L87,1,aux!$BA$1)>0,(L87/INDEX($C87:$L87,1,aux!$BA$1))^(1/($L$3-INDEX($C$3:$L$3,1,aux!$BA$1)))-1,"n.d.") -> n.d. | AF87: =IF(INDEX($C87:$L87,1,aux!$BA$1)>0,(L87-INDEX($C87:$L87,1,aux!$BA$1))/INDEX($C87:$L87,1,aux!$BA$1),"n.d.") -> n.d. | AH87: =X87-INDEX($O87:$X87,1,aux!$BA$1) -> 21.039 | AI87: 4.257326145e-06 | AJ87: =+IF(INDEX($O87:$X87,1,aux!$BA$1)>0,(X87/INDEX($O87:$X87,1,aux!$BA$1))^(1/($X$3-INDEX($O$3:$X$3,1,aux!$BA$1)))-1,"n.d.") -> 0.5314718141 | AK87: =IF(INDEX($O87:$X87,1,aux!$BA$1)>0,(X87-INDEX($O87:$X87,1,aux!$BA$1))/INDEX($O87:$X87,1,aux!$BA$1),"n.d.") -> 45.34267241 | BO87: 64475.498 | CC87: =+IF(ISNA(MATCH('5.1'!A87,AUX_2d_pais!$G$2:$G$40000,0)),0,1) -> 1
A88: 0708 | B88: Filipinas | C88: 1406.372 | D88: 1122.108 | E88: 3229.153 | F88: 2047.217 | G88: 830.579 | H88: 1222.64 | I88: 3612.304 | J88: 4423.379 | K88: 7572.089 | L88: 13985.46 | M88: 3945.1301 | N88: 0.0003470171237 | O88: 885.264 | P88: 1580.57 | Q88: 1462.04 | R88: 1405.585 | S88: 1403.627 | T88: 1719.369 | U88: 1695.069 | V88: 1614.479 | W88: 2480.129 | X88: 2726.224 | Y88: 1697.2356 | Z88: 0.0001779936665 | AA88: -2247.8945 | AC88: =L88-INDEX($C88:$L88,1,aux!$BA$1) -> 12579.088 | AD88: 0.003051222643 | AE88: =+IF(INDEX($C88:$L88,1,aux!$BA$1)>0,(L88/INDEX($C88:$L88,1,aux!$BA$1))^(1/($L$3-INDEX($C$3:$L$3,1,aux!$BA$1)))-1,"n.d.") -> 0.2907491218 | AF88: =IF(INDEX($C88:$L88,1,aux!$BA$1)>0,(L88-INDEX($C88:$L88,1,aux!$BA$1))/INDEX($C88:$L88,1,aux!$BA$1),"n.d.") -> 8.944353272 | AH88: =X88-INDEX($O88:$X88,1,aux!$BA$1) -> 1840.96 | AI88: 0.0003725256495 | AJ88: =+IF(INDEX($O88:$X88,1,aux!$BA$1)>0,(X88/INDEX($O88:$X88,1,aux!$BA$1))^(1/($X$3-INDEX($O$3:$X$3,1,aux!$BA$1)))-1,"n.d.") -> 0.1331216198 | AK88: =IF(INDEX($O88:$X88,1,aux!$BA$1)>0,(X88-INDEX($O88:$X88,1,aux!$BA$1))/INDEX($O88:$X88,1,aux!$BA$1),"n.d.") -> 2.079560448 | CC88: =+IF(ISNA(MATCH('5.1'!A88,AUX_2d_pais!$G$2:$G$40000,0)),0,1) -> 1
A89: 0032 | B89: Finlândia | C89: 16853.138 | D89: 23963.704 | E89: 54316.778 | F89: 43699.505 | G89: 43979.196 | H89: 49946.836 | I89: 68986.114 | J89: 65775.239 | K89: 73273.816 | L89: 60298.435 | M89: 50109.2761 | N89: 0.004407656129 | O89: 8851.074 | P89: 16952.576 | Q89: 22779.664 | R89: 17913.543 | S89: 21402.246 | T89: 36875.831 | U89: 21873.613 | V89: 19795.488 | W89: 21580.406 | X89: 27278.326 | Y89: 21530.2767 | Z89: 0.00225793808 | AA89: -28578.9994 | AC89: =L89-INDEX($C89:$L89,1,aux!$BA$1) -> 43445.297 | AD89: 0.01053822614 | AE89: =+IF(INDEX($C89:$L89,1,aux!$BA$1)>0,(L89/INDEX($C89:$L89,1,aux!$BA$1))^(1/($L$3-INDEX($C$3:$L$3,1,aux!$BA$1)))-1,"n.d.") -> 0.1521629835 | AF89: =IF(INDEX($C89:$L89,1,aux!$BA$1)>0,(L89-INDEX($C89:$L89,1,aux!$BA$1))/INDEX($C89:$L89,1,aux!$BA$1),"n.d.") -> 2.577875823 | AH89: =X89-INDEX($O89:$X89,1,aux!$BA$1) -> 18427.252 | AI89: 0.003728828448 | AJ89: =+IF(INDEX($O89:$X89,1,aux!$BA$1)>0,(X89/INDEX($O89:$X89,1,aux!$BA$1))^(1/($X$3-INDEX($O$3:$X$3,1,aux!$BA$1)))-1,"n.d.") -> 0.133218164 | AK89: =IF(INDEX($O89:$X89,1,aux!$BA$1)>0,(X89-INDEX($O89:$X89,1,aux!$BA$1))/INDEX($O89:$X89,1,aux!$BA$1),"n.d.") -> 2.081922714 | CC89: =+IF(ISNA(MATCH('5.1'!A89,AUX_2d_pais!$G$2:$G$40000,0)),0,1) -> 1
A90: 0001 | B90: França | C90: 925323.458 | D90: 930268.183 | E90: 921898.518 | F90: 856124.455 | G90: 891724.954 | H90: 862847.121 | I90: 849534.225 | J90: 839184.245 | K90: 889585.273 | L90: 924480.554 | M90: 889097.0986 | N90: 0.07820576509 | O90: 737963.209 | P90: 825162.352 | Q90: 879435.03 | R90: 935839.464 | S90: 944906.242 | T90: 940998.568 | U90: 1091608.328 | V90: 1159326.094 | W90: 1180829.351 | X90: 1154134.754 | Y90: 985020.3392 | Z90: 0.1033017348 | AA90: 95923.2406 | AC90: =L90-INDEX($C90:$L90,1,aux!$BA$1) -> -842.904 | AD90: -0.0002044574115 | AE90: =+IF(INDEX($C90:$L90,1,aux!$BA$1)>0,(L90/INDEX($C90:$L90,1,aux!$BA$1))^(1/($L$3-INDEX($C$3:$L$3,1,aux!$BA$1)))-1,"n.d.") -> -0.0001012553375 | AF90: =IF(INDEX($C90:$L90,1,aux!$BA$1)>0,(L90-INDEX($C90:$L90,1,aux!$BA$1))/INDEX($C90:$L90,1,aux!$BA$1),"n.d.") -> -0.00091092903 | AH90: =X90-INDEX($O90:$X90,1,aux!$BA$1) -> 416171.545 | AI90: 0.08421398353 | AJ90: =+IF(INDEX($O90:$X90,1,aux!$BA$1)>0,(X90/INDEX($O90:$X90,1,aux!$BA$1))^(1/($X$3-INDEX($O$3:$X$3,1,aux!$BA$1)))-1,"n.d.") -> 0.05094551446 | AK90: =IF(INDEX($O90:$X90,1,aux!$BA$1)>0,(X90-INDEX($O90:$X90,1,aux!$BA$1))/INDEX($O90:$X90,1,aux!$BA$1),"n.d.") -> 0.5639461967 | CC90: =+IF(ISNA(MATCH('5.1'!A90,AUX_2d_pais!$G$2:$G$40000,0)),0,1) -> 1
A91: 0314 | B91: Gabão | C91: 4549.798 | D91: 5045.583 | E91: 3537.913 | F91: 1682.535 | G91: 2531.669 | H91: 1914.978 | I91: 3485.592 | J91: 3425.94 | K91: 2940.069 | L91: 2562.928 | M91: 3167.7005 | N91: 0.0002786337303 | O91: 229.661 | P91: 386.061 | Q91: 872.376 | R91: 617.412 | S91: 807.456 | T91: 1629.968 | U91: 2135.477 | V91: 1565.466 | W91: 1652.258 | X91: 2378.447 | Y91: 1227.4582 | Z91: 0.0001287268459 | AA91: -1940.2423 | AC91: =L91-INDEX($C91:$L91,1,aux!$BA$1) -> -1986.87 | AD91: -0.0004819413565 | AE91: =+IF(INDEX($C91:$L91,1,aux!$BA$1)>0,(L91/INDEX($C91:$L91,1,aux!$BA$1))^(1/($L$3-INDEX($C$3:$L$3,1,aux!$BA$1)))-1,"n.d.") -> -0.06177949319 | AF91: =IF(INDEX($C91:$L91,1,aux!$BA$1)>0,(L91-INDEX($C91:$L91,1,aux!$BA$1))/INDEX($C91:$L91,1,aux!$BA$1),"n.d.") -> -0.4366941126 | AH91: =X91-INDEX($O91:$X91,1,aux!$BA$1) -> 2148.786 | AI91: 0.0004348154769 | AJ91: =+IF(INDEX($O91:$X91,1,aux!$BA$1)>0,(X91/INDEX($O91:$X91,1,aux!$BA$1))^(1/($X$3-INDEX($O$3:$X$3,1,aux!$BA$1)))-1,"n.d.") -> 0.2965841009 | AK91: =IF(INDEX($O91:$X91,1,aux!$BA$1)>0,(X91-INDEX($O91:$X91,1,aux!$BA$1))/INDEX($O91:$X91,1,aux!$BA$1),"n.d.") -> 9.356338255 | CC91: =+IF(ISNA(MATCH('5.1'!A91,AUX_2d_pais!$G$2:$G$40000,0)),0,1) -> 1
A92: 0252 | B92: Gâmbia | C92: 0 | D92: 128.565 | E92: 96.521 | F92: 0.345 | G92: 0 | H92: 0 | I92: 53.517 | J92: 392.138 | K92: 612.15 | L92: 661.744 | M92: 194.498 | N92: 1.710821565e-05 | O92: 291.164 | P92: 196.028 | Q92: 51.318 | R92: 96.113 | S92: 186.863 | T92: 513.346 | U92: 663.146 | V92: 654.331 | W92: 559.399 | X92: 210.703 | Y92: 342.2411 | Z92: 3.589174551e-05 | AA92: 147.7431 | AC92: =L92-INDEX($C92:$L92,1,aux!$BA$1) -> 661.744 | AD92: 0.0001605146794 | AE92: =+IF(INDEX($C92:$L92,1,aux!$BA$1)>0,(L92/INDEX($C92:$L92,1,aux!$BA$1))^(1/($L$3-INDEX($C$3:$L$3,1,aux!$BA$1)))-1,"n.d.") -> n.d. | AF92: =IF(INDEX($C92:$L92,1,aux!$BA$1)>0,(L92-INDEX($C92:$L92,1,aux!$BA$1))/INDEX($C92:$L92,1,aux!$BA$1),"n.d.") -> n.d. | AH92: =X92-INDEX($O92:$X92,1,aux!$BA$1) -> -80.461 | AI92: -1.628160649e-05 | AJ92: =+IF(INDEX($O92:$X92,1,aux!$BA$1)>0,(X92/INDEX($O92:$X92,1,aux!$BA$1))^(1/($X$3-INDEX($O$3:$X$3,1,aux!$BA$1)))-1,"n.d.") -> -0.03529937424 | AK92: =IF(INDEX($O92:$X92,1,aux!$BA$1)>0,(X92-INDEX($O92:$X92,1,aux!$BA$1))/INDEX($O92:$X92,1,aux!$BA$1),"n.d.") -> -0.2763425423 | CC92: =+IF(ISNA(MATCH('5.1'!A92,AUX_2d_pais!$G$2:$G$40000,0)),0,1) -> 1
A93: 0276 | B93: Gana | C93: 6012.558 | D93: 6531.724 | E93: 3375.162 | F93: 6532.986 | G93: 5677.947 | H93: 7792.661 | I93: 9056.895 | J93: 8342.111 | K93: 6908.097 | L93: 8157.645 | M93: 6838.7786 | N93: 0.0006015449984 | O93: 619.471 | P93: 2378.125 | Q93: 3068.412 | R93: 2840.199 | S93: 4269.115 | T93: 3424.563 | U93: 4877.287 | V93: 5746.845 | W93: 3109.733 | X93: 4548.987 | Y93: 3488.2737 | Z93: 0.0003658246538 | AA93: -3350.5049 | AC93: =L93-INDEX($C93:$L93,1,aux!$BA$1) -> 2145.087 | AD93: 0.0005203189632 | AE93: =+IF(INDEX($C93:$L93,1,aux!$BA$1)>0,(L93/INDEX($C93:$L93,1,aux!$BA$1))^(1/($L$3-INDEX($C$3:$L$3,1,aux!$BA$1)))-1,"n.d.") -> 0.03448175602 | AF93: =IF(INDEX($C93:$L93,1,aux!$BA$1)>0,(L93-INDEX($C93:$L93,1,aux!$BA$1))/INDEX($C93:$L93,1,aux!$BA$1),"n.d.") -> 0.356767785 | AH93: =X93-INDEX($O93:$X93,1,aux!$BA$1) -> 3929.516 | AI93: 0.000795153344 | AJ93: =+IF(INDEX($O93:$X93,1,aux!$BA$1)>0,(X93/INDEX($O93:$X93,1,aux!$BA$1))^(1/($X$3-INDEX($O$3:$X$3,1,aux!$BA$1)))-1,"n.d.") -> 0.2479880099 | AK93: =IF(INDEX($O93:$X93,1,aux!$BA$1)>0,(X93-INDEX($O93:$X93,1,aux!$BA$1))/INDEX($O93:$X93,1,aux!$BA$1),"n.d.") -> 6.343341335 | CC93: =+IF(ISNA(MATCH('5.1'!A93,AUX_2d_pais!$G$2:$G$40000,0)),0,1) -> 1
A94: 0076 | B94: Geórgia | C94: 771.657 | D94: 1676.004 | E94: 1682.864 | F94: 4552.679 | G94: 766.088 | H94: 102.422 | I94: 13.4 | J94: 78.611 | K94: 0.178 | L94: 2.393 | M94: 964.6296 | N94: 8.484967055e-05 | O94: 1540.828 | P94: 2158.278 | Q94: 2789.381 | R94: 3258.02 | S94: 6195.025 | T94: 4779.602 | U94: 4999.258 | V94: 5146.624 | W94: 5936.294 | X94: 7508.397 | Y94: 4431.1707 | Z94: 0.0004647088006 | AA94: 3466.5411 | AC94: =L94-INDEX($C94:$L94,1,aux!$BA$1) -> -769.264 | AD94: -0.0001865950644 | AE94: =+IF(INDEX($C94:$L94,1,aux!$BA$1)>0,(L94/INDEX($C94:$L94,1,aux!$BA$1))^(1/($L$3-INDEX($C$3:$L$3,1,aux!$BA$1)))-1,"n.d.") -> -0.4736437041 | AF94: =IF(INDEX($C94:$L94,1,aux!$BA$1)>0,(L94-INDEX($C94:$L94,1,aux!$BA$1))/INDEX($C94:$L94,1,aux!$BA$1),"n.d.") -> -0.9968988812 | AH94: =X94-INDEX($O94:$X94,1,aux!$BA$1) -> 5967.569 | AI94: 0.001207561554 | AJ94: =+IF(INDEX($O94:$X94,1,aux!$BA$1)>0,(X94/INDEX($O94:$X94,1,aux!$BA$1))^(1/($X$3-INDEX($O$3:$X$3,1,aux!$BA$1)))-1,"n.d.") -> 0.1923985843 | AK94: =IF(INDEX($O94:$X94,1,aux!$BA$1)>0,(X94-INDEX($O94:$X94,1,aux!$BA$1))/INDEX($O94:$X94,1,aux!$BA$1),"n.d.") -> 3.872962459 | CC94: =+IF(ISNA(MATCH('5.1'!A94,AUX_2d_pais!$G$2:$G$40000,0)),0,1) -> 1
A95: 0893 | B95: Geórgia do Sul e Ilhas Sandwich do Sul | C95: 0 | D95: 0 | E95: 0 | F95: 0 | G95: 0 | H95: 0 | I95: 0 | J95: 0 | K95: 0 | L95: 0 | M95: 0 | N95: 0 | O95: 0 | P95: 0 | Q95: 0 | R95: 0 | S95: 0 | T95: 0 | U95: 0 | V95: 0 | W95: 0 | X95: 0 | Y95: 0 | Z95: 0 | AA95: 0 | AC95: =L95-INDEX($C95:$L95,1,aux!$BA$1) -> 0 | AD95: 0 | AE95: =+IF(INDEX($C95:$L95,1,aux!$BA$1)>0,(L95/INDEX($C95:$L95,1,aux!$BA$1))^(1/($L$3-INDEX($C$3:$L$3,1,aux!$BA$1)))-1,"n.d.") -> n.d. | AF95: =IF(INDEX($C95:$L95,1,aux!$BA$1)>0,(L95-INDEX($C95:$L95,1,aux!$BA$1))/INDEX($C95:$L95,1,aux!$BA$1),"n.d.") -> n.d. | AH95: =X95-INDEX($O95:$X95,1,aux!$BA$1) -> 0 | AI95: 0 | AJ95: =+IF(INDEX($O95:$X95,1,aux!$BA$1)>0,(X95/INDEX($O95:$X95,1,aux!$BA$1))^(1/($X$3-INDEX($O$3:$X$3,1,aux!$BA$1)))-1,"n.d.") -> n.d. | AK95: =IF(INDEX($O95:$X95,1,aux!$BA$1)>0,(X95-INDEX($O95:$X95,1,aux!$BA$1))/INDEX($O95:$X95,1,aux!$BA$1),"n.d.") -> n.d. | AM95: 0 | BO95: 0 | CC95: =+IF(ISNA(MATCH('5.1'!A95,AUX_2d_pais!$G$2:$G$40000,0)),0,1) -> 0
A96: 0044 | B96: Gibraltar | C96: 6.824 | D96: 0.362 | E96: 5.017 | F96: 0 | G96: 0 | H96: 0 | I96: 1.5 | J96: 0.818 | K96: 0 | L96: 9.504 | M96: 2.4025 | N96: 2.113260193e-07 | O96: 241.948 | P96: 131.263 | Q96: 85.864 | R96: 129.021 | S96: 115.42 | T96: 337.876 | U96: 748.65 | V96: 2873.017 | W96: 7990.871 | X96: 8958.369 | Y96: 2161.2299 | Z96: 0.0002266539979 | AA96: 2158.8274 | AC96: =L96-INDEX($C96:$L96,1,aux!$BA$1) -> 2.68 | AD96: 6.500691214e-07 | AE96: =+IF(INDEX($C96:$L96,1,aux!$BA$1)>0,(L96/INDEX($C96:$L96,1,aux!$BA$1))^(1/($L$3-INDEX($C$3:$L$3,1,aux!$BA$1)))-1,"n.d.") -> 0.03749322103 | AF96: =IF(INDEX($C96:$L96,1,aux!$BA$1)>0,(L96-INDEX($C96:$L96,1,aux!$BA$1))/INDEX($C96:$L96,1,aux!$BA$1),"n.d.") -> 0.3927315358 | AH96: =X96-INDEX($O96:$X96,1,aux!$BA$1) -> 8716.421 | AI96: 0.001763802796 | AJ96: =+IF(INDEX($O96:$X96,1,aux!$BA$1)>0,(X96/INDEX($O96:$X96,1,aux!$BA$1))^(1/($X$3-INDEX($O$3:$X$3,1,aux!$BA$1)))-1,"n.d.") -> 0.4937521578 | AK96: =IF(INDEX($O96:$X96,1,aux!$BA$1)>0,(X96-INDEX($O96:$X96,1,aux!$BA$1))/INDEX($O96:$X96,1,aux!$BA$1),"n.d.") -> 36.02600972 | CC96: =+IF(ISNA(MATCH('5.1'!A96,AUX_2d_pais!$G$2:$G$40000,0)),0,1) -> 1
A97: 0473 | B97: Granada | C97: 0 | D97: 0 | E97: 0 | F97: 0 | G97: 0 | H97: 0 | I97: 0 | J97: 0 | K97: 0 | L97: 0 | M97: 0 | N97: 0 | O97: 0 | P97: 0 | Q97: 6.746 | R97: 2.186 | S97: 0 | T97: 0.822 | U97: 4.611 | V97: 0 | W97: 2.269 | X97: 0 | Y97: 1.6634 | Z97: 1.744452361e-07 | AA97: 1.6634 | AC97: =L97-INDEX($C97:$L97,1,aux!$BA$1) -> 0 | AD97: 0 | AE97: =+IF(INDEX($C97:$L97,1,aux!$BA$1)>0,(L97/INDEX($C97:$L97,1,aux!$BA$1))^(1/($L$3-INDEX($C$3:$L$3,1,aux!$BA$1)))-1,"n.d.") -> n.d. | AF97: =IF(INDEX($C97:$L97,1,aux!$BA$1)>0,(L97-INDEX($C97:$L97,1,aux!$BA$1))/INDEX($C97:$L97,1,aux!$BA$1),"n.d.") -> n.d. | AH97: =X97-INDEX($O97:$X97,1,aux!$BA$1) -> 0 | AI97: 0 | AJ97: =+IF(INDEX($O97:$X97,1,aux!$BA$1)>0,(X97/INDEX($O97:$X97,1,aux!$BA$1))^(1/($X$3-INDEX($O$3:$X$3,1,aux!$BA$1)))-1,"n.d.") -> n.d. | AK97: =IF(INDEX($O97:$X97,1,aux!$BA$1)>0,(X97-INDEX($O97:$X97,1,aux!$BA$1))/INDEX($O97:$X97,1,aux!$BA$1),"n.d.") -> n.d. | BO97: 16.634 | CC97: =+IF(ISNA(MATCH('5.1'!A97,AUX_2d_pais!$G$2:$G$40000,0)),0,1) -> 1
A98: 0009 | B98: Grécia | C98: 38040.375 | D98: 42178.431 | E98: 42696.63 | F98: 43262.088 | G98: 42719.856 | H98: 46071.182 | I98: 51869.178 | J98: 63585.257 | K98: 67191.204 | L98: 72672.586 | M98: 51028.6787 | N98: 0.004488527593 | O98: 23815.471 | P98: 32196.912 | Q98: 40475.143 | R98: 34940.937 | S98: 40013.106 | T98: 41058.98 | U98: 49557.769 | V98: 46146.533 | W98: 46498.454 | X98: 48281.274 | Y98: 40298.4579 | Z98: 0.004226207769 | AA98: -10730.2208 | AC98: =L98-INDEX($C98:$L98,1,aux!$BA$1) -> 34632.211 | AD98: 0.008400496634 | AE98: =+IF(INDEX($C98:$L98,1,aux!$BA$1)>0,(L98/INDEX($C98:$L98,1,aux!$BA$1))^(1/($L$3-INDEX($C$3:$L$3,1,aux!$BA$1)))-1,"n.d.") -> 0.07457368934 | AF98: =IF(INDEX($C98:$L98,1,aux!$BA$1)>0,(L98-INDEX($C98:$L98,1,aux!$BA$1))/INDEX($C98:$L98,1,aux!$BA$1),"n.d.") -> 0.9104066666 | AH98: =X98-INDEX($O98:$X98,1,aux!$BA$1) -> 24465.803 | AI98: 0.004950753495 | AJ98: =+IF(INDEX($O98:$X98,1,aux!$BA$1)>0,(X98/INDEX($O98:$X98,1,aux!$BA$1))^(1/($X$3-INDEX($O$3:$X$3,1,aux!$BA$1)))-1,"n.d.") -> 0.08168839862 | AK98: =IF(INDEX($O98:$X98,1,aux!$BA$1)>0,(X98-INDEX($O98:$X98,1,aux!$BA$1))/INDEX($O98:$X98,1,aux!$BA$1),"n.d.") -> 1.027307123 | CC98: =+IF(ISNA(MATCH('5.1'!A98,AUX_2d_pais!$G$2:$G$40000,0)),0,1) -> 1
A99: 0406 | B99: Gronelândia | C99: 254.042 | D99: 62.256 | E99: 876.401 | F99: 507.404 | G99: 1480.22 | H99: 0 | I99: 599.613 | J99: 469.819 | K99: 69.508 | L99: 0 | M99: 431.9263 | N99: 3.799261836e-05 | O99: 0 | P99: 6.033 | Q99: 0 | R99: 0 | S99: 0 | T99: 0 | U99: 2.699 | V99: 0 | W99: 0 | X99: 0.11 | Y99: 0.8842 | Z99: 9.272843438e-08 | AA99: -431.0421 | AC99: =L99-INDEX($C99:$L99,1,aux!$BA$1) -> -254.042 | AD99: -6.162121632e-05 | AE99: =+IF(INDEX($C99:$L99,1,aux!$BA$1)>0,(L99/INDEX($C99:$L99,1,aux!$BA$1))^(1/($L$3-INDEX($C$3:$L$3,1,aux!$BA$1)))-1,"n.d.") -> -1 | AF99: =IF(INDEX($C99:$L99,1,aux!$BA$1)>0,(L99-INDEX($C99:$L99,1,aux!$BA$1))/INDEX($C99:$L99,1,aux!$BA$1),"n.d.") -> -1 | AH99: =X99-INDEX($O99:$X99,1,aux!$BA$1) -> 0.11 | AI99: 2.225894177e-08 | AJ99: =+IF(INDEX($O99:$X99,1,aux!$BA$1)>0,(X99/INDEX($O99:$X99,1,aux!$BA$1))^(1/($X$3-INDEX($O$3:$X$3,1,aux!$BA$1)))-1,"n.d.") -> n.d. | AK99: =IF(INDEX($O99:$X99,1,aux!$BA$1)>0,(X99-INDEX($O99:$X99,1,aux!$BA$1))/INDEX($O99:$X99,1,aux!$BA$1),"n.d.") -> n.d. | BO99: 4328.105 | CC99: =+IF(ISNA(MATCH('5.1'!A99,AUX_2d_pais!$G$2:$G$40000,0)),0,1) -> 1
A100: 0458 | B100: Guadalupe | C100: 0 | D100: 0 | E100: 0 | F100: 0 | G100: 0 | H100: 0 | I100: 0 | J100: 0 | K100: 0 | L100: 0 | M100: 0 | N100: 0 | O100: 0 | P100: 0 | Q100: 0 | R100: 0 | S100: 0 | T100: 0 | U100: 0 | V100: 0 | W100: 0 | X100: 0 | Y100: 0 | Z100: 0 | AA100: 0 | AC100: =L100-INDEX($C100:$L100,1,aux!$BA$1) -> 0 | AD100: =AC100/$AC$252 -> 0 | AE100: =+IF(INDEX($C100:$L100,1,aux!$BA$1)>0,(L100/INDEX($C100:$L100,1,aux!$BA$1))^(1/($L$3-INDEX($C$3:$L$3,1,aux!$BA$1)))-1,"n.d.") -> n.d. | AF100: =IF(INDEX($C100:$L100,1,aux!$BA$1)>0,(L100-INDEX($C100:$L100,1,aux!$BA$1))/INDEX($C100:$L100,1,aux!$BA$1),"n.d.") -> n.d. | AH100: =X100-INDEX($O100:$X100,1,aux!$BA$1) -> 0 | AI100: =AH100/$AH$252 -> 0 | AJ100: =+IF(INDEX($O100:$X100,1,aux!$BA$1)>0,(X100/INDEX($O100:$X100,1,aux!$BA$1))^(1/($X$3-INDEX($O$3:$X$3,1,aux!$BA$1)))-1,"n.d.") -> n.d. | AK100: =IF(INDEX($O100:$X100,1,aux!$BA$1)>0,(X100-INDEX($O100:$X100,1,aux!$BA$1))/INDEX($O100:$X100,1,aux!$BA$1),"n.d.") -> n.d. | AM100: 0 | BO100: 0 | CC100: =+IF(ISNA(MATCH('5.1'!A100,AUX_2d_pais!$G$2:$G$40000,0)),0,1) -> 0
A101: 0831 | B101: Guam | C101: 0 | D101: 0 | E101: 0 | F101: 0 | G101: 0 | H101: 0 | I101: 0 | J101: 0 | K101: 0 | L101: 0 | M101: 0 | N101: 0 | O101: 0.981 | P101: 0 | Q101: 0 | R101: 0 | S101: 0 | T101: 0 | U101: 0 | V101: 0 | W101: 2.131 | X101: 1.447 | Y101: 0.4559 | Z101: 4.781146034e-08 | AA101: 0.4559 | AC101: =L101-INDEX($C101:$L101,1,aux!$BA$1) -> 0 | AD101: =AC101/$AC$252 -> 0 | AE101: =+IF(INDEX($C101:$L101,1,aux!$BA$1)>0,(L101/INDEX($C101:$L101,1,aux!$BA$1))^(1/($L$3-INDEX($C$3:$L$3,1,aux!$BA$1)))-1,"n.d.") -> n.d. | AF101: =IF(INDEX($C101:$L101,1,aux!$BA$1)>0,(L101-INDEX($C101:$L101,1,aux!$BA$1))/INDEX($C101:$L101,1,aux!$BA$1),"n.d.") -> n.d. | AH101: =X101-INDEX($O101:$X101,1,aux!$BA$1) -> 0.466 | AI101: =AH101/$AH$252 -> 9.429697151e-08 | AJ101: =+IF(INDEX($O101:$X101,1,aux!$BA$1)>0,(X101/INDEX($O101:$X101,1,aux!$BA$1))^(1/($X$3-INDEX($O$3:$X$3,1,aux!$BA$1)))-1,"n.d.") -> 0.04413223236 | AK101: =IF(INDEX($O101:$X101,1,aux!$BA$1)>0,(X101-INDEX($O101:$X101,1,aux!$BA$1))/INDEX($O101:$X101,1,aux!$BA$1),"n.d.") -> 0.4750254842 | BO101: 4.559 | CC101: =+IF(ISNA(MATCH('5.1'!A101,AUX_2d_pais!$G$2:$G$40000,0)),0,1) -> 1
A102: 0416 | B102: Guatemala | C102: 2852.096 | D102: 2515.434 | E102: 6227.66 | F102: 11275.53 | G102: 3081.161 | H102: 3193.349 | I102: 9184.407 | J102: 2183.075 | K102: 19798.971 | L102: 10088.139 | M102: 7039.9822 | N102: 0.0006192430445 | O102: 272.359 | P102: 647.436 | Q102: 821.979 | R102: 1073.721 | S102: 913.842 | T102: 1042.294 | U102: 1283.936 | V102: 2211.441 | W102: 2688.494 | X102: 5416.557 | Y102: 1637.2059 | Z102: 0.0001716981903 | AA102: -5402.7763 | AC102: =L102-INDEX($C102:$L102,1,aux!$BA$1) -> 7236.043 | AD102: 0.001755197058 | AE102: =+IF(INDEX($C102:$L102,1,aux!$BA$1)>0,(L102/INDEX($C102:$L102,1,aux!$BA$1))^(1/($L$3-INDEX($C$3:$L$3,1,aux!$BA$1)))-1,"n.d.") -> 0.1506964378 | AF102: =IF(INDEX($C102:$L102,1,aux!$BA$1)>0,(L102-INDEX($C102:$L102,1,aux!$BA$1))/INDEX($C102:$L102,1,aux!$BA$1),"n.d.") -> 2.537096577 | AH102: =X102-INDEX($O102:$X102,1,aux!$BA$1) -> 5144.198 | AI102: 0.001040949125 | AJ102: =+IF(INDEX($O102:$X102,1,aux!$BA$1)>0,(X102/INDEX($O102:$X102,1,aux!$BA$1))^(1/($X$3-INDEX($O$3:$X$3,1,aux!$BA$1)))-1,"n.d.") -> 0.3940772596 | AK102: =IF(INDEX($O102:$X102,1,aux!$BA$1)>0,(X102-INDEX($O102:$X102,1,aux!$BA$1))/INDEX($O102:$X102,1,aux!$BA$1),"n.d.") -> 18.88756384 | CC102: =+IF(ISNA(MATCH('5.1'!A102,AUX_2d_pais!$G$2:$G$40000,0)),0,1) -> 1
A103: 0488 | B103: Guiana | C103: 22556.066 | D103: 43936.18 | E103: 33379.142 | F103: 17199.116 | G103: 23239.804 | H103: 26812.054 | I103: 25925.748 | J103: 46692.256 | K103: 27304.526 | L103: 20639.867 | M103: 28768.4759 | N103: 0.002530500518 | O103: 28.461 | P103: 113.661 | Q103: 193.95 | R103: 86.068 | S103: 80.071 | T103: 123.46 | U103: 184.476 | V103: 288.8 | W103: 268.058 | X103: 191.64 | Y103: 155.8645 | Z103: 1.634592972e-05 | AA103: -28612.6114 | AC103: =L103-INDEX($C103:$L103,1,aux!$BA$1) -> -1916.199 | AD103: -0.0004647991793 | AE103: =+IF(INDEX($C103:$L103,1,aux!$BA$1)>0,(L103/INDEX($C103:$L103,1,aux!$BA$1))^(1/($L$3-INDEX($C$3:$L$3,1,aux!$BA$1)))-1,"n.d.") -> -0.009815899261 | AF103: =IF(INDEX($C103:$L103,1,aux!$BA$1)>0,(L103-INDEX($C103:$L103,1,aux!$BA$1))/INDEX($C103:$L103,1,aux!$BA$1),"n.d.") -> -0.08495271294 | AH103: =X103-INDEX($O103:$X103,1,aux!$BA$1) -> 163.179 | AI103: 3.3019926e-05 | AJ103: =+IF(INDEX($O103:$X103,1,aux!$BA$1)>0,(X103/INDEX($O103:$X103,1,aux!$BA$1))^(1/($X$3-INDEX($O$3:$X$3,1,aux!$BA$1)))-1,"n.d.") -> 0.236022063 | AK103: =IF(INDEX($O103:$X103,1,aux!$BA$1)>0,(X103-INDEX($O103:$X103,1,aux!$BA$1))/INDEX($O103:$X103,1,aux!$BA$1),"n.d.") -> 5.733424686 | BO103: 289243.404 | CC103: =+IF(ISNA(MATCH('5.1'!A103,AUX_2d_pais!$G$2:$G$40000,0)),0,1) -> 1
A104: 0496 | B104: Guiana Francesa | C104: 0 | D104: 0 | E104: 0 | F104: 0 | G104: 0 | H104: 0 | I104: 0 | J104: 0 | K104: 0 | L104: 0 | M104: 0 | N104: 0 | O104: 0 | P104: 0 | Q104: 0 | R104: 0 | S104: 0 | T104: 0 | U104: 0 | V104: 0 | W104: 0 | X104: 0 | Y104: 0 | Z104: 0 | AA104: 0 | AC104: =L104-INDEX($C104:$L104,1,aux!$BA$1) -> 0 | AD104: 0 | AE104: =+IF(INDEX($C104:$L104,1,aux!$BA$1)>0,(L104/INDEX($C104:$L104,1,aux!$BA$1))^(1/($L$3-INDEX($C$3:$L$3,1,aux!$BA$1)))-1,"n.d.") -> n.d. | AF104: =IF(INDEX($C104:$L104,1,aux!$BA$1)>0,(L104-INDEX($C104:$L104,1,aux!$BA$1))/INDEX($C104:$L104,1,aux!$BA$1),"n.d.") -> n.d. | AH104: =X104-INDEX($O104:$X104,1,aux!$BA$1) -> 0 | AI104: 0 | AJ104: =+IF(INDEX($O104:$X104,1,aux!$BA$1)>0,(X104/INDEX($O104:$X104,1,aux!$BA$1))^(1/($X$3-INDEX($O$3:$X$3,1,aux!$BA$1)))-1,"n.d.") -> n.d. | AK104: =IF(INDEX($O104:$X104,1,aux!$BA$1)>0,(X104-INDEX($O104:$X104,1,aux!$BA$1))/INDEX($O104:$X104,1,aux!$BA$1),"n.d.") -> n.d. | AM104: 0 | BO104: 0 | CC104: =+IF(ISNA(MATCH('5.1'!A104,AUX_2d_pais!$G$2:$G$40000,0)),0,1) -> 0
A105: 0260 | B105: Guiné | C105: 34.897 | D105: 36.11 | E105: 3.07 | F105: 558.893 | G105: 467.282 | H105: 151.695 | I105: 359.789 | J105: 477.502 | K105: 190.095 | L105: 134.231 | M105: 241.3564 | N105: 2.122992185e-05 | O105: 822.206 | P105: 852.231 | Q105: 1099.978 | R105: 1310.027 | S105: 1855.02 | T105: 1819.916 | U105: 1507.478 | V105: 1110.951 | W105: 947.064 | X105: 2187.474 | Y105: 1351.2345 | Z105: 0.0001417075997 | AA105: 1109.8781 | AC105: =L105-INDEX($C105:$L105,1,aux!$BA$1) -> 99.334 | AD105: 2.409476347e-05 | AE105: =+IF(INDEX($C105:$L105,1,aux!$BA$1)>0,(L105/INDEX($C105:$L105,1,aux!$BA$1))^(1/($L$3-INDEX($C$3:$L$3,1,aux!$BA$1)))-1,"n.d.") -> 0.1614678491 | AF105: =IF(INDEX($C105:$L105,1,aux!$BA$1)>0,(L105-INDEX($C105:$L105,1,aux!$BA$1))/INDEX($C105:$L105,1,aux!$BA$1),"n.d.") -> 2.846491102 | AH105: =X105-INDEX($O105:$X105,1,aux!$BA$1) -> 1365.268 | AI105: 0.0002762674629 | AJ105: =+IF(INDEX($O105:$X105,1,aux!$BA$1)>0,(X105/INDEX($O105:$X105,1,aux!$BA$1))^(1/($X$3-INDEX($O$3:$X$3,1,aux!$BA$1)))-1,"n.d.") -> 0.1148540828 | AK105: =IF(INDEX($O105:$X105,1,aux!$BA$1)>0,(X105-INDEX($O105:$X105,1,aux!$BA$1))/INDEX($O105:$X105,1,aux!$BA$1),"n.d.") -> 1.660493842 | CC105: =+IF(ISNA(MATCH('5.1'!A105,AUX_2d_pais!$G$2:$G$40000,0)),0,1) -> 1
A106: 0310 | B106: Guiné Equatorial | C106: 137.027 | D106: 50.135 | E106: 45.856 | F106: 0 | G106: 0.685 | H106: 139.081 | I106: 104.589 | J106: 0 | K106: 0 | L106: 29.932 | M106: 50.7305 | N106: 4.462299531e-06 | O106: 585.813 | P106: 671.821 | Q106: 739.839 | R106: 976.345 | S106: 1472.272 | T106: 1399.212 | U106: 1595.082 | V106: 1066.844 | W106: 1448.3 | X106: 767.449 | Y106: 1072.2977 | Z106: 0.0001124547466 | AA106: 1021.5672 | AC106: =L106-INDEX($C106:$L106,1,aux!$BA$1) -> -107.095 | AD106: -2.597729573e-05 | AE106: =+IF(INDEX($C106:$L106,1,aux!$BA$1)>0,(L106/INDEX($C106:$L106,1,aux!$BA$1))^(1/($L$3-INDEX($C$3:$L$3,1,aux!$BA$1)))-1,"n.d.") -> -0.1555145403 | AF106: =IF(INDEX($C106:$L106,1,aux!$BA$1)>0,(L106-INDEX($C106:$L106,1,aux!$BA$1))/INDEX($C106:$L106,1,aux!$BA$1),"n.d.") -> -0.7815612981 | AH106: =X106-INDEX($O106:$X106,1,aux!$BA$1) -> 181.636 | AI106: 3.675477407e-05 | AJ106: =+IF(INDEX($O106:$X106,1,aux!$BA$1)>0,(X106/INDEX($O106:$X106,1,aux!$BA$1))^(1/($X$3-INDEX($O$3:$X$3,1,aux!$BA$1)))-1,"n.d.") -> 0.03046270912 | AK106: =IF(INDEX($O106:$X106,1,aux!$BA$1)>0,(X106-INDEX($O106:$X106,1,aux!$BA$1))/INDEX($O106:$X106,1,aux!$BA$1),"n.d.") -> 0.3100579878 | CC106: =+IF(ISNA(MATCH('5.1'!A106,AUX_2d_pais!$G$2:$G$40000,0)),0,1) -> 1
A107: 0257 | B107: Guiné-Bissau | C107: 215.982 | D107: 77.342 | E107: 55.274 | F107: 20.3 | G107: 59.547 | H107: 11.558 | I107: 6.577 | J107: 5.95 | K107: 220.739 | L107: 519.789 | M107: 119.3058 | N107: 1.049424341e-05 | O107: 10780.856 | P107: 13619.598 | Q107: 17515.16 | R107: 15397.124 | S107: 16282.168 | T107: 19008.219 | U107: 19310.902 | V107: 21788.621 | W107: 24667.453 | X107: 26494.417 | Y107: 18486.4518 | Z107: 0.001938723968 | AA107: 18367.146 | AC107: =L107-INDEX($C107:$L107,1,aux!$BA$1) -> 303.807 | AD107: 7.369236924e-05 | AE107: =+IF(INDEX($C107:$L107,1,aux!$BA$1)>0,(L107/INDEX($C107:$L107,1,aux!$BA$1))^(1/($L$3-INDEX($C$3:$L$3,1,aux!$BA$1)))-1,"n.d.") -> 0.1025006044 | AF107: =IF(INDEX($C107:$L107,1,aux!$BA$1)>0,(L107-INDEX($C107:$L107,1,aux!$BA$1))/INDEX($C107:$L107,1,aux!$BA$1),"n.d.") -> 1.406631108 | AH107: =X107-INDEX($O107:$X107,1,aux!$BA$1) -> 15713.561 | AI107: 0.003179702176 | AJ107: =+IF(INDEX($O107:$X107,1,aux!$BA$1)>0,(X107/INDEX($O107:$X107,1,aux!$BA$1))^(1/($X$3-INDEX($O$3:$X$3,1,aux!$BA$1)))-1,"n.d.") -> 0.1050680269 | AK107: =IF(INDEX($O107:$X107,1,aux!$BA$1)>0,(X107-INDEX($O107:$X107,1,aux!$BA$1))/INDEX($O107:$X107,1,aux!$BA$1),"n.d.") -> 1.457542982 | CC107: =+IF(ISNA(MATCH('5.1'!A107,AUX_2d_pais!$G$2:$G$40000,0)),0,1) -> 1
A108: 0452 | B108: Haiti | C108: 0 | D108: 0 | E108: 0 | F108: 0 | G108: 0 | H108: 0 | I108: 0 | J108: 0 | K108: 0 | L108: 0 | M108: 0 | N108: 0 | O108: 206.013 | P108: 21.673 | Q108: 426.805 | R108: 331.957 | S108: 256.596 | T108: 80.963 | U108: 130.229 | V108: 360.639 | W108: 132.284 | X108: 110.098 | Y108: 205.7257 | Z108: 2.1575008e-05 | AA108: 205.7257 | AC108: =L108-INDEX($C108:$L108,1,aux!$BA$1) -> 0 | AD108: 0 | AE108: =+IF(INDEX($C108:$L108,1,aux!$BA$1)>0,(L108/INDEX($C108:$L108,1,aux!$BA$1))^(1/($L$3-INDEX($C$3:$L$3,1,aux!$BA$1)))-1,"n.d.") -> n.d. | AF108: =IF(INDEX($C108:$L108,1,aux!$BA$1)>0,(L108-INDEX($C108:$L108,1,aux!$BA$1))/INDEX($C108:$L108,1,aux!$BA$1),"n.d.") -> n.d. | AH108: =X108-INDEX($O108:$X108,1,aux!$BA$1) -> -95.915 | AI108: -1.940878546e-05 | AJ108: =+IF(INDEX($O108:$X108,1,aux!$BA$1)>0,(X108/INDEX($O108:$X108,1,aux!$BA$1))^(1/($X$3-INDEX($O$3:$X$3,1,aux!$BA$1)))-1,"n.d.") -> -0.06725060042 | AK108: =IF(INDEX($O108:$X108,1,aux!$BA$1)>0,(X108-INDEX($O108:$X108,1,aux!$BA$1))/INDEX($O108:$X108,1,aux!$BA$1),"n.d.") -> -0.465577415 | CC108: =+IF(ISNA(MATCH('5.1'!A108,AUX_2d_pais!$G$2:$G$40000,0)),0,1) -> 1
A109: 0835 | B109: Heard, Ilha e McDonald, Ilhas | C109: 0 | D109: 0 | E109: 0 | F109: 0 | G109: 0 | H109: 0 | I109: 0 | J109: 0 | K109: 0 | L109: 0 | M109: 0 | N109: 0 | O109: 0 | P109: 0 | Q109: 0 | R109: 0 | S109: 0 | T109: 0 | U109: 0 | V109: 0 | W109: 0 | X109: 0 | Y109: 0 | Z109: 0 | AA109: 0 | AC109: =L109-INDEX($C109:$L109,1,aux!$BA$1) -> 0 | AD109: 0 | AE109: =+IF(INDEX($C109:$L109,1,aux!$BA$1)>0,(L109/INDEX($C109:$L109,1,aux!$BA$1))^(1/($L$3-INDEX($C$3:$L$3,1,aux!$BA$1)))-1,"n.d.") -> n.d. | AF109: =IF(INDEX($C109:$L109,1,aux!$BA$1)>0,(L109-INDEX($C109:$L109,1,aux!$BA$1))/INDEX($C109:$L109,1,aux!$BA$1),"n.d.") -> n.d. | AH109: =X109-INDEX($O109:$X109,1,aux!$BA$1) -> 0 | AI109: 0 | AJ109: =+IF(INDEX($O109:$X109,1,aux!$BA$1)>0,(X109/INDEX($O109:$X109,1,aux!$BA$1))^(1/($X$3-INDEX($O$3:$X$3,1,aux!$BA$1)))-1,"n.d.") -> n.d. | AK109: =IF(INDEX($O109:$X109,1,aux!$BA$1)>0,(X109-INDEX($O109:$X109,1,aux!$BA$1))/INDEX($O109:$X109,1,aux!$BA$1),"n.d.") -> n.d. | AM109: 0 | BO109: 0 | CC109: =+IF(ISNA(MATCH('5.1'!A109,AUX_2d_pais!$G$2:$G$40000,0)),0,1) -> 0
A110: 0424 | B110: Honduras | C110: 6041.621 | D110: 2625.733 | E110: 10779.61 | F110: 6416.975 | G110: 5230.429 | H110: 5111.67 | I110: 4302.161 | J110: 3961.965 | K110: 6246.51 | L110: 12059.976 | M110: 6277.665 | N110: 0.0005521889511 | O110: 103.526 | P110: 457.115 | Q110: 944.685 | R110: 1205.074 | S110: 576.24 | T110: 716.841 | U110: 834.554 | V110: 1509.451 | W110: 1684.864 | X110: 1878.569 | Y110: 991.0919 | Z110: 0.0001039384757 | AA110: -5286.5731 | AC110: =L110-INDEX($C110:$L110,1,aux!$BA$1) -> 6018.355 | AD110: 0.001459830876 | AE110: =+IF(INDEX($C110:$L110,1,aux!$BA$1)>0,(L110/INDEX($C110:$L110,1,aux!$BA$1))^(1/($L$3-INDEX($C$3:$L$3,1,aux!$BA$1)))-1,"n.d.") -> 0.07982847093 | AF110: =IF(INDEX($C110:$L110,1,aux!$BA$1)>0,(L110-INDEX($C110:$L110,1,aux!$BA$1))/INDEX($C110:$L110,1,aux!$BA$1),"n.d.") -> 0.9961490468 | AH110: =X110-INDEX($O110:$X110,1,aux!$BA$1) -> 1775.043 | AI110: 0.0003591870798 | AJ110: =+IF(INDEX($O110:$X110,1,aux!$BA$1)>0,(X110/INDEX($O110:$X110,1,aux!$BA$1))^(1/($X$3-INDEX($O$3:$X$3,1,aux!$BA$1)))-1,"n.d.") -> 0.379952669 | AK110: =IF(INDEX($O110:$X110,1,aux!$BA$1)>0,(X110-INDEX($O110:$X110,1,aux!$BA$1))/INDEX($O110:$X110,1,aux!$BA$1),"n.d.") -> 17.14586674 | CC110: =+IF(ISNA(MATCH('5.1'!A110,AUX_2d_pais!$G$2:$G$40000,0)),0,1) -> 1
A111: 0740 | B111: HongKong | C111: 1538.603 | D111: 2077.911 | E111: 1886.445 | F111: 1669.839 | G111: 1846.653 | H111: 1379.331 | I111: 1364.335 | J111: 1975.829 | K111: 1783.291 | L111: 1919.365 | M111: 1744.1602 | N111: 0.0001534178698 | O111: 4473.038 | P111: 12888.427 | Q111: 23124.379 | R111: 16080.049 | S111: 13902.32 | T111: 13110.95 | U111: 21511.002 | V111: 23839.341 | W111: 15739.217 | X111: 15911.988 | Y111: 16058.0711 | Z111: 0.001684053147 | AA111: 14313.9109 | AC111: =L111-INDEX($C111:$L111,1,aux!$BA$1) -> 380.762 | AD111: 9.235881299e-05 | AE111: =+IF(INDEX($C111:$L111,1,aux!$BA$1)>0,(L111/INDEX($C111:$L111,1,aux!$BA$1))^(1/($L$3-INDEX($C$3:$L$3,1,aux!$BA$1)))-1,"n.d.") -> 0.0248731387 | AF111: =IF(INDEX($C111:$L111,1,aux!$BA$1)>0,(L111-INDEX($C111:$L111,1,aux!$BA$1))/INDEX($C111:$L111,1,aux!$BA$1),"n.d.") -> 0.2474725449 | AH111: =X111-INDEX($O111:$X111,1,aux!$BA$1) -> 11438.95 | AI111: 0.002314717473 | AJ111: =+IF(INDEX($O111:$X111,1,aux!$BA$1)>0,(X111/INDEX($O111:$X111,1,aux!$BA$1))^(1/($X$3-INDEX($O$3:$X$3,1,aux!$BA$1)))-1,"n.d.") -> 0.1514252835 | AK111: =IF(INDEX($O111:$X111,1,aux!$BA$1)>0,(X111-INDEX($O111:$X111,1,aux!$BA$1))/INDEX($O111:$X111,1,aux!$BA$1),"n.d.") -> 2.557311161 | CC111: =+IF(ISNA(MATCH('5.1'!A111,AUX_2d_pais!$G$2:$G$40000,0)),0,1) -> 1
A112: 0064 | B112: Hungria | C112: 12427.088 | D112: 8987.243 | E112: 12400.142 | F112: 13618.139 | G112: 11351.98 | H112: 11380.652 | I112: 23481.35 | J112: 21608.18 | K112: 18932.851 | L112: 19357.646 | M112: 15354.5271 | N112: 0.001350597748 | O112: 8209.786 | P112: 7154.742 | Q112: 8497.605 | R112: 6896.293 | S112: 8344.529 | T112: 7032.473 | U112: 7028.089 | V112: 9482.825 | W112: 10885.986 | X112: 13098.002 | Y112: 8663.033 | Z112: 0.0009085155927 | AA112: -6691.4941 | AC112: =L112-INDEX($C112:$L112,1,aux!$BA$1) -> 6930.558 | AD112: 0.001681097668 | AE112: =+IF(INDEX($C112:$L112,1,aux!$BA$1)>0,(L112/INDEX($C112:$L112,1,aux!$BA$1))^(1/($L$3-INDEX($C$3:$L$3,1,aux!$BA$1)))-1,"n.d.") -> 0.05047813882 | AF112: =IF(INDEX($C112:$L112,1,aux!$BA$1)>0,(L112-INDEX($C112:$L112,1,aux!$BA$1))/INDEX($C112:$L112,1,aux!$BA$1),"n.d.") -> 0.5576976682 | AH112: =X112-INDEX($O112:$X112,1,aux!$BA$1) -> 4888.216 | AI112: 0.0009891501393 | AJ112: =+IF(INDEX($O112:$X112,1,aux!$BA$1)>0,(X112/INDEX($O112:$X112,1,aux!$BA$1))^(1/($X$3-INDEX($O$3:$X$3,1,aux!$BA$1)))-1,"n.d.") -> 0.05327425373 | AK112: =IF(INDEX($O112:$X112,1,aux!$BA$1)>0,(X112-INDEX($O112:$X112,1,aux!$BA$1))/INDEX($O112:$X112,1,aux!$BA$1),"n.d.") -> 0.5954133275 | CC112: =+IF(ISNA(MATCH('5.1'!A112,AUX_2d_pais!$G$2:$G$40000,0)),0,1) -> 1
A113: 0653 | B113: Iémen | C113: 252.803 | D113: 137.994 | E113: 664.421 | F113: 206.881 | G113: 162.126 | H113: 0 | I113: 0 | J113: 0 | K113: 260.747 | L113: 2398.123 | M113: 408.3095 | N113: 3.59152638e-05 | O113: 0 | P113: 9.597 | Q113: 136.843 | R113: 22.85 | S113: 77.775 | T113: 1403.379 | U113: 163.183 | V113: 374.235 | W113: 1239.501 | X113: 2379.027 | Y113: 580.639 | Z113: 6.089317508e-05 | AA113: 172.3295 | AC113: =L113-INDEX($C113:$L113,1,aux!$BA$1) -> 2145.32 | AD113: 0.0005203754804 | AE113: =+IF(INDEX($C113:$L113,1,aux!$BA$1)>0,(L113/INDEX($C113:$L113,1,aux!$BA$1))^(1/($L$3-INDEX($C$3:$L$3,1,aux!$BA$1)))-1,"n.d.") -> 0.2840013197 | AF113: =IF(INDEX($C113:$L113,1,aux!$BA$1)>0,(L113-INDEX($C113:$L113,1,aux!$BA$1))/INDEX($C113:$L113,1,aux!$BA$1),"n.d.") -> 8.486133472 | AH113: =X113-INDEX($O113:$X113,1,aux!$BA$1) -> 2379.027 | AI113: 0.0004814056679 | AJ113: =+IF(INDEX($O113:$X113,1,aux!$BA$1)>0,(X113/INDEX($O113:$X113,1,aux!$BA$1))^(1/($X$3-INDEX($O$3:$X$3,1,aux!$BA$1)))-1,"n.d.") -> n.d. | AK113: =IF(INDEX($O113:$X113,1,aux!$BA$1)>0,(X113-INDEX($O113:$X113,1,aux!$BA$1))/INDEX($O113:$X113,1,aux!$BA$1),"n.d.") -> n.d. | BO113: 9889.485 | CC113: =+IF(ISNA(MATCH('5.1'!A113,AUX_2d_pais!$G$2:$G$40000,0)),0,1) -> 1
A114: 0664 | B114: Índia | C114: 39368.697 | D114: 40646.876 | E114: 55183.076 | F114: 50224.999 | G114: 47050.337 | H114: 59516.483 | I114: 64505.959 | J114: 69312.229 | K114: 81458.48 | L114: 76498.306 | M114: 58376.5442 | N114: 0.005134852324 | O114: 5962.773 | P114: 7072.684 | Q114: 8298.84 | R114: 7722.631 | S114: 8202.027 | T114: 12638.72 | U114: 8834.525 | V114: 10937.741 | W114: 15344.047 | X114: 16054.98 | Y114: 10106.8968 | Z114: 0.001059937476 | AA114: -48269.6474 | AC114: =L114-INDEX($C114:$L114,1,aux!$BA$1) -> 37129.609 | AD114: 0.009006273247 | AE114: =+IF(INDEX($C114:$L114,1,aux!$BA$1)>0,(L114/INDEX($C114:$L114,1,aux!$BA$1))^(1/($L$3-INDEX($C$3:$L$3,1,aux!$BA$1)))-1,"n.d.") -> 0.07660313941 | AF114: =IF(INDEX($C114:$L114,1,aux!$BA$1)>0,(L114-INDEX($C114:$L114,1,aux!$BA$1))/INDEX($C114:$L114,1,aux!$BA$1),"n.d.") -> 0.9431251687 | AH114: =X114-INDEX($O114:$X114,1,aux!$BA$1) -> 10092.207 | AI114: 0.002042198618 | AJ114: =+IF(INDEX($O114:$X114,1,aux!$BA$1)>0,(X114/INDEX($O114:$X114,1,aux!$BA$1))^(1/($X$3-INDEX($O$3:$X$3,1,aux!$BA$1)))-1,"n.d.") -> 0.1163380336 | AK114: =IF(INDEX($O114:$X114,1,aux!$BA$1)>0,(X114-INDEX($O114:$X114,1,aux!$BA$1))/INDEX($O114:$X114,1,aux!$BA$1),"n.d.") -> 1.692535839 | CC114: =+IF(ISNA(MATCH('5.1'!A114,AUX_2d_pais!$G$2:$G$40000,0)),0,1) -> 1
A115: 0700 | B115: Indonésia | C115: 33009.356 | D115: 18767.176 | E115: 18088.28 | F115: 16820.02 | G115: 34033.054 | H115: 32042.189 | I115: 34220.956 | J115: 35915.161 | K115: 30512.978 | L115: 32633.829 | M115: 28604.2999 | N115: 0.002516059452 | O115: 1687.288 | P115: 2232.11 | Q115: 762.258 | R115: 518.296 | S115: 395.177 | T115: 890.597 | U115: 428.174 | V115: 1134.927 | W115: 2036.04 | X115: 2615.998 | Y115: 1270.0865 | Z115: 0.0001331973905 | AA115: -27334.2134 | AC115: =L115-INDEX($C115:$L115,1,aux!$BA$1) -> -375.527 | AD115: -9.108899513e-05 | AE115: =+IF(INDEX($C115:$L115,1,aux!$BA$1)>0,(L115/INDEX($C115:$L115,1,aux!$BA$1))^(1/($L$3-INDEX($C$3:$L$3,1,aux!$BA$1)))-1,"n.d.") -> -0.001270479669 | AF115: =IF(INDEX($C115:$L115,1,aux!$BA$1)>0,(L115-INDEX($C115:$L115,1,aux!$BA$1))/INDEX($C115:$L115,1,aux!$BA$1),"n.d.") -> -0.01137638068 | AH115: =X115-INDEX($O115:$X115,1,aux!$BA$1) -> 928.71 | AI115: 0.0001879281983 | AJ115: =+IF(INDEX($O115:$X115,1,aux!$BA$1)>0,(X115/INDEX($O115:$X115,1,aux!$BA$1))^(1/($X$3-INDEX($O$3:$X$3,1,aux!$BA$1)))-1,"n.d.") -> 0.04993136553 | AK115: =IF(INDEX($O115:$X115,1,aux!$BA$1)>0,(X115-INDEX($O115:$X115,1,aux!$BA$1))/INDEX($O115:$X115,1,aux!$BA$1),"n.d.") -> 0.5504158152 | CC115: =+IF(ISNA(MATCH('5.1'!A115,AUX_2d_pais!$G$2:$G$40000,0)),0,1) -> 1
A116: 0616 | B116: Irão, República Islâmica do | C116: 7.715 | D116: 180.169 | E116: 317.755 | F116: 348.957 | G116: 570.045 | H116: 187.94 | I116: 555.171 | J116: 651.354 | K116: 53.643 | L116: 99.327 | M116: 297.2076 | N116: 2.614264267e-05 | O116: 5676.411 | P116: 11517.554 | Q116: 20608.749 | R116: 5678.53 | S116: 579.04 | T116: 2927.793 | U116: 6922.082 | V116: 8655.429 | W116: 9860.708 | X116: 5830.991 | Y116: 7825.7287 | Z116: 0.0008207052366 | AA116: 7528.5211 | AC116: =L116-INDEX($C116:$L116,1,aux!$BA$1) -> 91.612 | AD116: 2.222169118e-05 | AE116: =+IF(INDEX($C116:$L116,1,aux!$BA$1)>0,(L116/INDEX($C116:$L116,1,aux!$BA$1))^(1/($L$3-INDEX($C$3:$L$3,1,aux!$BA$1)))-1,"n.d.") -> 0.3283223731 | AF116: =IF(INDEX($C116:$L116,1,aux!$BA$1)>0,(L116-INDEX($C116:$L116,1,aux!$BA$1))/INDEX($C116:$L116,1,aux!$BA$1),"n.d.") -> 11.87453014 | AH116: =X116-INDEX($O116:$X116,1,aux!$BA$1) -> 154.58 | AI116: 3.127988381e-05 | AJ116: =+IF(INDEX($O116:$X116,1,aux!$BA$1)>0,(X116/INDEX($O116:$X116,1,aux!$BA$1))^(1/($X$3-INDEX($O$3:$X$3,1,aux!$BA$1)))-1,"n.d.") -> 0.002989771806 | AK116: =IF(INDEX($O116:$X116,1,aux!$BA$1)>0,(X116-INDEX($O116:$X116,1,aux!$BA$1))/INDEX($O116:$X116,1,aux!$BA$1),"n.d.") -> 0.02723199571 | CC116: =+IF(ISNA(MATCH('5.1'!A116,AUX_2d_pais!$G$2:$G$40000,0)),0,1) -> 1
A117: 0612 | B117: Iraque | C117: 0 | D117: 0 | E117: 0 | F117: 0 | G117: 124.733 | H117: 232.456 | I117: 172.396 | J117: 47.819 | K117: 9.198 | L117: 0 | M117: 58.6602 | N117: 5.159802938e-06 | O117: 34.827 | P117: 31.039 | Q117: 89.141 | R117: 710.233 | S117: 2325.038 | T117: 3534.873 | U117: 2593.803 | V117: 7074.93 | W117: 12019.442 | X117: 11342.973 | Y117: 3975.6299 | Z117: 0.0004169350105 | AA117: 3916.9697 | AC117: =L117-INDEX($C117:$L117,1,aux!$BA$1) -> 0 | AD117: 0 | AE117: =+IF(INDEX($C117:$L117,1,aux!$BA$1)>0,(L117/INDEX($C117:$L117,1,aux!$BA$1))^(1/($L$3-INDEX($C$3:$L$3,1,aux!$BA$1)))-1,"n.d.") -> n.d. | AF117: =IF(INDEX($C117:$L117,1,aux!$BA$1)>0,(L117-INDEX($C117:$L117,1,aux!$BA$1))/INDEX($C117:$L117,1,aux!$BA$1),"n.d.") -> n.d. | AH117: =X117-INDEX($O117:$X117,1,aux!$BA$1) -> 11308.146 | AI117: 0.002288248758 | AJ117: =+IF(INDEX($O117:$X117,1,aux!$BA$1)>0,(X117/INDEX($O117:$X117,1,aux!$BA$1))^(1/($X$3-INDEX($O$3:$X$3,1,aux!$BA$1)))-1,"n.d.") -> 0.9019592315 | AK117: =IF(INDEX($O117:$X117,1,aux!$BA$1)>0,(X117-INDEX($O117:$X117,1,aux!$BA$1))/INDEX($O117:$X117,1,aux!$BA$1),"n.d.") -> 324.6948058 | CC117: =+IF(ISNA(MATCH('5.1'!A117,AUX_2d_pais!$G$2:$G$40000,0)),0,1) -> 1
A118: 0007 | B118: Irlanda | C118: 133159.544 | D118: 126815.766 | E118: 107807.146 | F118: 91309.951 | G118: 88500.032 | H118: 114940.3 | I118: 100809.263 | J118: 104018.768 | K118: 103703.524 | L118: 113071.322 | M118: 108413.5616 | N118: 0.009536152514 | O118: 15780.868 | P118: 15114.948 | Q118: 20898.586 | R118: 23682.156 | S118: 31167.524 | T118: 41860.836 | U118: 43321.643 | V118: 39861.743 | W118: 40023.813 | X118: 46180.327 | Y118: 31789.2444 | Z118: 0.003333823641 | AA118: -76624.3172 | AC118: =L118-INDEX($C118:$L118,1,aux!$BA$1) -> -20088.222 | AD118: -0.004872661502 | AE118: =+IF(INDEX($C118:$L118,1,aux!$BA$1)>0,(L118/INDEX($C118:$L118,1,aux!$BA$1))^(1/($L$3-INDEX($C$3:$L$3,1,aux!$BA$1)))-1,"n.d.") -> -0.01800583359 | AF118: =IF(INDEX($C118:$L118,1,aux!$BA$1)>0,(L118-INDEX($C118:$L118,1,aux!$BA$1))/INDEX($C118:$L118,1,aux!$BA$1),"n.d.") -> -0.1508582967 | AH118: =X118-INDEX($O118:$X118,1,aux!$BA$1) -> 30399.459 | AI118: 0.006151452617 | AJ118: =+IF(INDEX($O118:$X118,1,aux!$BA$1)>0,(X118/INDEX($O118:$X118,1,aux!$BA$1))^(1/($X$3-INDEX($O$3:$X$3,1,aux!$BA$1)))-1,"n.d.") -> 0.1267148361 | AK118: =IF(INDEX($O118:$X118,1,aux!$BA$1)>0,(X118-INDEX($O118:$X118,1,aux!$BA$1))/INDEX($O118:$X118,1,aux!$BA$1),"n.d.") -> 1.926348982 | CC118: =+IF(ISNA(MATCH('5.1'!A118,AUX_2d_pais!$G$2:$G$40000,0)),0,1) -> 1
A119: 0024 | B119: Islândia | C119: 16288.701 | D119: 11926.842 | E119: 15024.732 | F119: 12602.448 | G119: 13511.122 | H119: 7086.135 | I119: 6736.606 | J119: 5970.894 | K119: 7123.922 | L119: 15282.163 | M119: 11155.3565 | N119: 0.0009812349983 | O119: 595.107 | P119: 331.098 | Q119: 1012.869 | R119: 992.084 | S119: 819.886 | T119: 990.251 | U119: 824.799 | V119: 689.334 | W119: 1415.804 | X119: 1619.825 | Y119: 929.1057 | Z119: 9.743781603e-05 | AA119: -10226.2508 | AC119: =L119-INDEX($C119:$L119,1,aux!$BA$1) -> -1006.538 | AD119: -0.0002441489826 | AE119: =+IF(INDEX($C119:$L119,1,aux!$BA$1)>0,(L119/INDEX($C119:$L119,1,aux!$BA$1))^(1/($L$3-INDEX($C$3:$L$3,1,aux!$BA$1)))-1,"n.d.") -> -0.007062205256 | AF119: =IF(INDEX($C119:$L119,1,aux!$BA$1)>0,(L119-INDEX($C119:$L119,1,aux!$BA$1))/INDEX($C119:$L119,1,aux!$BA$1),"n.d.") -> -0.06179363229 | AH119: =X119-INDEX($O119:$X119,1,aux!$BA$1) -> 1024.718 | AI119: 0.0002073558027 | AJ119: =+IF(INDEX($O119:$X119,1,aux!$BA$1)>0,(X119/INDEX($O119:$X119,1,aux!$BA$1))^(1/($X$3-INDEX($O$3:$X$3,1,aux!$BA$1)))-1,"n.d.") -> 0.1176844957 | AK119: =IF(INDEX($O119:$X119,1,aux!$BA$1)>0,(X119-INDEX($O119:$X119,1,aux!$BA$1))/INDEX($O119:$X119,1,aux!$BA$1),"n.d.") -> 1.721905472 | CC119: =+IF(ISNA(MATCH('5.1'!A119,AUX_2d_pais!$G$2:$G$40000,0)),0,1) -> 1
A120: 0624 | B120: Israel | C120: 6030.87 | D120: 7007.762 | E120: 6148.417 | F120: 4288.034 | G120: 6432.756 | H120: 11470.409 | I120: 12032.351 | J120: 12857.604 | K120: 12380.679 | L120: 11244.262 | M120: 8989.3144 | N120: 0.0007907080244 | O120: 23411.904 | P120: 21450.071 | Q120: 24452.475 | R120: 26001.634 | S120: 28916.76 | T120: 28723.081 | U120: 45207.488 | V120: 90038.608 | W120: 112278.362 | X120: 143080.601 | Y120: 54356.0984 | Z120: 0.005700470373 | AA120: 45366.784 | AC120: =L120-INDEX($C120:$L120,1,aux!$BA$1) -> 5213.392 | AD120: 0.001264576551 | AE120: =+IF(INDEX($C120:$L120,1,aux!$BA$1)>0,(L120/INDEX($C120:$L120,1,aux!$BA$1))^(1/($L$3-INDEX($C$3:$L$3,1,aux!$BA$1)))-1,"n.d.") -> 0.07167036439 | AF120: =IF(INDEX($C120:$L120,1,aux!$BA$1)>0,(L120-INDEX($C120:$L120,1,aux!$BA$1))/INDEX($C120:$L120,1,aux!$BA$1),"n.d.") -> 0.8644510659 | AH120: =X120-INDEX($O120:$X120,1,aux!$BA$1) -> 119668.697 | AI120: 0.02421544144 | AJ120: =+IF(INDEX($O120:$X120,1,aux!$BA$1)>0,(X120/INDEX($O120:$X120,1,aux!$BA$1))^(1/($X$3-INDEX($O$3:$X$3,1,aux!$BA$1)))-1,"n.d.") -> 0.2227828408 | AK120: =IF(INDEX($O120:$X120,1,aux!$BA$1)>0,(X120-INDEX($O120:$X120,1,aux!$BA$1))/INDEX($O120:$X120,1,aux!$BA$1),"n.d.") -> 5.111446596 | CC120: =+IF(ISNA(MATCH('5.1'!A120,AUX_2d_pais!$G$2:$G$40000,0)),0,1) -> 1
A121: 0005 | B121: Itália | C121: 255087.032 | D121: 274684.476 | E121: 285065.558 | F121: 250858.576 | G121: 264598.501 | H121: 300394.357 | I121: 316095.041 | J121: 323344.785 | K121: 356443.319 | L121: 394992.645 | M121: 302156.429 | N121: 0.02657794604 | O121: 413986.558 | P121: 445526.832 | Q121: 471571.437 | R121: 447617.382 | S121: 477109.65 | T121: 520525.826 | U121: 565797.4 | V121: 621190.818 | W121: 665258.824 | X121: 807175.733 | Y121: 543576.046 | Z121: 0.05700628332 | AA121: 241419.617 | AC121: =L121-INDEX($C121:$L121,1,aux!$BA$1) -> 139905.613 | AD121: 0.0339359399 | AE121: =+IF(INDEX($C121:$L121,1,aux!$BA$1)>0,(L121/INDEX($C121:$L121,1,aux!$BA$1))^(1/($L$3-INDEX($C$3:$L$3,1,aux!$BA$1)))-1,"n.d.") -> 0.04978429127 | AF121: =IF(INDEX($C121:$L121,1,aux!$BA$1)>0,(L121-INDEX($C121:$L121,1,aux!$BA$1))/INDEX($C121:$L121,1,aux!$BA$1),"n.d.") -> 0.5484622715 | AH121: =X121-INDEX($O121:$X121,1,aux!$BA$1) -> 393189.175 | AI121: 0.07956340866 | AJ121: =+IF(INDEX($O121:$X121,1,aux!$BA$1)>0,(X121/INDEX($O121:$X121,1,aux!$BA$1))^(1/($X$3-INDEX($O$3:$X$3,1,aux!$BA$1)))-1,"n.d.") -> 0.07701116701 | AK121: =IF(INDEX($O121:$X121,1,aux!$BA$1)>0,(X121-INDEX($O121:$X121,1,aux!$BA$1))/INDEX($O121:$X121,1,aux!$BA$1),"n.d.") -> 0.9497631442 | CC121: =+IF(ISNA(MATCH('5.1'!A121,AUX_2d_pais!$G$2:$G$40000,0)),0,1) -> 1
A122: 0464 | B122: Jamaica | C122: 10276.545 | D122: 8156.419 | E122: 8214.737 | F122: 426.501 | G122: 11105.416 | H122: 10214.773 | I122: 6296.563 | J122: 0 | K122: 0 | L122: 0 | M122: 5469.0954 | N122: 0.0004810664559 | O122: 32.626 | P122: 10.52 | Q122: 189.315 | R122: 137.268 | S122: 162.158 | T122: 47.185 | U122: 158.342 | V122: 462.453 | W122: 458.087 | X122: 1803.596 | Y122: 346.155 | Z122: 3.630220674e-05 | AA122: -5122.9404 | AC122: =L122-INDEX($C122:$L122,1,aux!$BA$1) -> -10276.545 | AD122: -0.002492710664 | AE122: =+IF(INDEX($C122:$L122,1,aux!$BA$1)>0,(L122/INDEX($C122:$L122,1,aux!$BA$1))^(1/($L$3-INDEX($C$3:$L$3,1,aux!$BA$1)))-1,"n.d.") -> -1 | AF122: =IF(INDEX($C122:$L122,1,aux!$BA$1)>0,(L122-INDEX($C122:$L122,1,aux!$BA$1))/INDEX($C122:$L122,1,aux!$BA$1),"n.d.") -> -1 | AH122: =X122-INDEX($O122:$X122,1,aux!$BA$1) -> 1770.97 | AI122: 0.0003583628919 | AJ122: =+IF(INDEX($O122:$X122,1,aux!$BA$1)>0,(X122/INDEX($O122:$X122,1,aux!$BA$1))^(1/($X$3-INDEX($O$3:$X$3,1,aux!$BA$1)))-1,"n.d.") -> 0.5617786889 | AK122: =IF(INDEX($O122:$X122,1,aux!$BA$1)>0,(X122-INDEX($O122:$X122,1,aux!$BA$1))/INDEX($O122:$X122,1,aux!$BA$1),"n.d.") -> 54.28094158 | CC122: =+IF(ISNA(MATCH('5.1'!A122,AUX_2d_pais!$G$2:$G$40000,0)),0,1) -> 1
A123: 0732 | B123: Japão | C123: 1379.488 | D123: 1855.449 | E123: 2251.918 | F123: 2860.171 | G123: 3602.122 | H123: 2952.924 | I123: 4130.508 | J123: 6925.752 | K123: 11807.757 | L123: 16669.273 | M123: 5443.5362 | N123: 0.0004788182461 | O123: 30728.084 | P123: 37717.059 | Q123: 44164.32 | R123: 49260.816 | S123: 54543.563 | T123: 45596.731 | U123: 51602.918 | V123: 45064.569 | W123: 58417.85 | X123: 57755.503 | Y123: 47485.1413 | Z123: 0.004979894604 | AA123: 42041.6051 | AC123: =L123-INDEX($C123:$L123,1,aux!$BA$1) -> 15289.785 | AD123: 0.003708737725 | AE123: =+IF(INDEX($C123:$L123,1,aux!$BA$1)>0,(L123/INDEX($C123:$L123,1,aux!$BA$1))^(1/($L$3-INDEX($C$3:$L$3,1,aux!$BA$1)))-1,"n.d.") -> 0.3189985059 | AF123: =IF(INDEX($C123:$L123,1,aux!$BA$1)>0,(L123-INDEX($C123:$L123,1,aux!$BA$1))/INDEX($C123:$L123,1,aux!$BA$1),"n.d.") -> 11.08366655 | AH123: =X123-INDEX($O123:$X123,1,aux!$BA$1) -> 27027.419 | AI123: 0.00546910678 | AJ123: =+IF(INDEX($O123:$X123,1,aux!$BA$1)>0,(X123/INDEX($O123:$X123,1,aux!$BA$1))^(1/($X$3-INDEX($O$3:$X$3,1,aux!$BA$1)))-1,"n.d.") -> 0.0726323146 | AK123: =IF(INDEX($O123:$X123,1,aux!$BA$1)>0,(X123-INDEX($O123:$X123,1,aux!$BA$1))/INDEX($O123:$X123,1,aux!$BA$1),"n.d.") -> 0.8795673365 | CC123: =+IF(ISNA(MATCH('5.1'!A123,AUX_2d_pais!$G$2:$G$40000,0)),0,1) -> 1
A124: 0338 | B124: Jibuti | C124: 0 | D124: 0 | E124: 0 | F124: 0 | G124: 0 | H124: 0 | I124: 0 | J124: 0 | K124: 20.296 | L124: 0.398 | M124: 2.0694 | N124: 1.820262495e-07 | O124: 474.612 | P124: 396.257 | Q124: 475.59 | R124: 717.935 | S124: 709.177 | T124: 1142.254 | U124: 756.628 | V124: 22.343 | W124: 47.813 | X124: 47.581 | Y124: 479.019 | Z124: 5.023601211e-05 | AA124: 476.9496 | AC124: =L124-INDEX($C124:$L124,1,aux!$BA$1) -> 0.398 | AD124: 9.654011579e-08 | AE124: =+IF(INDEX($C124:$L124,1,aux!$BA$1)>0,(L124/INDEX($C124:$L124,1,aux!$BA$1))^(1/($L$3-INDEX($C$3:$L$3,1,aux!$BA$1)))-1,"n.d.") -> n.d. | AF124: =IF(INDEX($C124:$L124,1,aux!$BA$1)>0,(L124-INDEX($C124:$L124,1,aux!$BA$1))/INDEX($C124:$L124,1,aux!$BA$1),"n.d.") -> n.d. | AH124: =X124-INDEX($O124:$X124,1,aux!$BA$1) -> -427.031 | AI124: -8.641143786e-05 | AJ124: =+IF(INDEX($O124:$X124,1,aux!$BA$1)>0,(X124/INDEX($O124:$X124,1,aux!$BA$1))^(1/($X$3-INDEX($O$3:$X$3,1,aux!$BA$1)))-1,"n.d.") -> -0.2255194082 | AK124: =IF(INDEX($O124:$X124,1,aux!$BA$1)>0,(X124-INDEX($O124:$X124,1,aux!$BA$1))/INDEX($O124:$X124,1,aux!$BA$1),"n.d.") -> -0.8997475833 | BO124: 4810.884 | CC124: =+IF(ISNA(MATCH('5.1'!A124,AUX_2d_pais!$G$2:$G$40000,0)),0,1) -> 1
A125: 0628 | B125: Jordânia | C125: 2.05 | D125: 81.612 | E125: 10.835 | F125: 0 | G125: 65.083 | H125: 0 | I125: 2.488 | J125: 3.149 | K125: 664.283 | L125: 67.075 | M125: 89.6575 | N125: 7.88635279e-06 | O125: 8013.625 | P125: 6133.424 | Q125: 9395.734 | R125: 7781.346 | S125: 18382.733 | T125: 12232.551 | U125: 12155.757 | V125: 14233.093 | W125: 20481.933 | X125: 19130.321 | Y125: 12794.0517 | Z125: 0.001341746645 | AA125: 12704.3942 | AC125: =L125-INDEX($C125:$L125,1,aux!$BA$1) -> 65.025 | AD125: 1.57726659e-05 | AE125: =+IF(INDEX($C125:$L125,1,aux!$BA$1)>0,(L125/INDEX($C125:$L125,1,aux!$BA$1))^(1/($L$3-INDEX($C$3:$L$3,1,aux!$BA$1)))-1,"n.d.") -> 0.4733701567 | AF125: =IF(INDEX($C125:$L125,1,aux!$BA$1)>0,(L125-INDEX($C125:$L125,1,aux!$BA$1))/INDEX($C125:$L125,1,aux!$BA$1),"n.d.") -> 31.7195122 | AH125: =X125-INDEX($O125:$X125,1,aux!$BA$1) -> 11116.696 | AI125: 0.002249508082 | AJ125: =+IF(INDEX($O125:$X125,1,aux!$BA$1)>0,(X125/INDEX($O125:$X125,1,aux!$BA$1))^(1/($X$3-INDEX($O$3:$X$3,1,aux!$BA$1)))-1,"n.d.") -> 0.1015092233 | AK125: =IF(INDEX($O125:$X125,1,aux!$BA$1)>0,(X125-INDEX($O125:$X125,1,aux!$BA$1))/INDEX($O125:$X125,1,aux!$BA$1),"n.d.") -> 1.387224383 | CC125: =+IF(ISNA(MATCH('5.1'!A125,AUX_2d_pais!$G$2:$G$40000,0)),0,1) -> 1
A126: 0812 | B126: Kiribati | C126: 0 | D126: 0 | E126: 0 | F126: 0 | G126: 0 | H126: 0 | I126: 0 | J126: 0 | K126: 140.377 | L126: 0 | M126: 14.0377 | N126: 1.234768475e-06 | O126: 0 | P126: 0 | Q126: 0 | R126: 0 | S126: 0 | T126: 0 | U126: 0 | V126: 0 | W126: 0 | X126: 0 | Y126: 0 | Z126: 0 | AA126: -14.0377 | AC126: =L126-INDEX($C126:$L126,1,aux!$BA$1) -> 0 | AD126: 0 | AE126: =+IF(INDEX($C126:$L126,1,aux!$BA$1)>0,(L126/INDEX($C126:$L126,1,aux!$BA$1))^(1/($L$3-INDEX($C$3:$L$3,1,aux!$BA$1)))-1,"n.d.") -> n.d. | AF126: =IF(INDEX($C126:$L126,1,aux!$BA$1)>0,(L126-INDEX($C126:$L126,1,aux!$BA$1))/INDEX($C126:$L126,1,aux!$BA$1),"n.d.") -> n.d. | AH126: =X126-INDEX($O126:$X126,1,aux!$BA$1) -> 0 | AI126: 0 | AJ126: =+IF(INDEX($O126:$X126,1,aux!$BA$1)>0,(X126/INDEX($O126:$X126,1,aux!$BA$1))^(1/($X$3-INDEX($O$3:$X$3,1,aux!$BA$1)))-1,"n.d.") -> n.d. | AK126: =IF(INDEX($O126:$X126,1,aux!$BA$1)>0,(X126-INDEX($O126:$X126,1,aux!$BA$1))/INDEX($O126:$X126,1,aux!$BA$1),"n.d.") -> n.d. | BO126: 140.377 | CC126: =+IF(ISNA(MATCH('5.1'!A126,AUX_2d_pais!$G$2:$G$40000,0)),0,1) -> 1
A127: 0095 | B127: Kosovo | C127: 0 | D127: 0 | E127: 0 | F127: 0 | G127: 0 | H127: 0 | I127: 0 | J127: 0 | K127: 0 | L127: 0 | M127: 0 | N127: 0 | O127: 0 | P127: 0 | Q127: 11.61 | R127: 36.892 | S127: 68.929 | T127: 29.097 | U127: 55.407 | V127: 105.143 | W127: 66.437 | X127: 38.282 | Y127: 41.1797 | Z127: 4.318626e-06 | AA127: 41.1797 | AC127: =L127-INDEX($C127:$L127,1,aux!$BA$1) -> 0 | AD127: 0 | AE127: =+IF(INDEX($C127:$L127,1,aux!$BA$1)>0,(L127/INDEX($C127:$L127,1,aux!$BA$1))^(1/($L$3-INDEX($C$3:$L$3,1,aux!$BA$1)))-1,"n.d.") -> n.d. | AF127: =IF(INDEX($C127:$L127,1,aux!$BA$1)>0,(L127-INDEX($C127:$L127,1,aux!$BA$1))/INDEX($C127:$L127,1,aux!$BA$1),"n.d.") -> n.d. | AH127: =X127-INDEX($O127:$X127,1,aux!$BA$1) -> 38.282 | AI127: 7.746516445e-06 | AJ127: =+IF(INDEX($O127:$X127,1,aux!$BA$1)>0,(X127/INDEX($O127:$X127,1,aux!$BA$1))^(1/($X$3-INDEX($O$3:$X$3,1,aux!$BA$1)))-1,"n.d.") -> n.d. | AK127: =IF(INDEX($O127:$X127,1,aux!$BA$1)>0,(X127-INDEX($O127:$X127,1,aux!$BA$1))/INDEX($O127:$X127,1,aux!$BA$1),"n.d.") -> n.d. | BO127: 411.797 | CC127: =+IF(ISNA(MATCH('5.1'!A127,AUX_2d_pais!$G$2:$G$40000,0)),0,1) -> 1
A128: 0636 | B128: Kuwait | C128: 0 | D128: 0 | E128: 0 | F128: 0 | G128: 0.048 | H128: 0.146 | I128: 0.118 | J128: 163.234 | K128: 724.11 | L128: 813.997 | M128: 170.1653 | N128: 1.49678899e-05 | O128: 3812.272 | P128: 5406.583 | Q128: 7673.676 | R128: 7382.064 | S128: 8705.422 | T128: 9592.878 | U128: 8610.925 | V128: 8024.714 | W128: 6618.808 | X128: 6768.362 | Y128: 7259.5704 | Z128: 0.0007613306915 | AA128: 7089.4051 | AC128: =L128-INDEX($C128:$L128,1,aux!$BA$1) -> 813.997 | AD128: 0.0001974456398 | AE128: =+IF(INDEX($C128:$L128,1,aux!$BA$1)>0,(L128/INDEX($C128:$L128,1,aux!$BA$1))^(1/($L$3-INDEX($C$3:$L$3,1,aux!$BA$1)))-1,"n.d.") -> n.d. | AF128: =IF(INDEX($C128:$L128,1,aux!$BA$1)>0,(L128-INDEX($C128:$L128,1,aux!$BA$1))/INDEX($C128:$L128,1,aux!$BA$1),"n.d.") -> n.d. | AH128: =X128-INDEX($O128:$X128,1,aux!$BA$1) -> 2956.09 | AI128: 0.0005981766835 | AJ128: =+IF(INDEX($O128:$X128,1,aux!$BA$1)>0,(X128/INDEX($O128:$X128,1,aux!$BA$1))^(1/($X$3-INDEX($O$3:$X$3,1,aux!$BA$1)))-1,"n.d.") -> 0.06585951511 | AK128: =IF(INDEX($O128:$X128,1,aux!$BA$1)>0,(X128-INDEX($O128:$X128,1,aux!$BA$1))/INDEX($O128:$X128,1,aux!$BA$1),"n.d.") -> 0.7754142412 | CC128: =+IF(ISNA(MATCH('5.1'!A128,AUX_2d_pais!$G$2:$G$40000,0)),0,1) -> 1
A129: 0684 | B129: Laos, República Democrática Popular do | C129: 1198.493 | D129: 639.945 | E129: 1975.942 | F129: 2265.191 | G129: 1865.676 | H129: 10591.272 | I129: 1214.775 | J129: 1522.526 | K129: 15112.755 | L129: 1493.655 | M129: 3788.023 | N129: 0.0003331978446 | O129: 16.545 | P129: 0 | Q129: 0 | R129: 0.637 | S129: 0 | T129: 0 | U129: 0 | V129: 0 | W129: 0.724 | X129: 28.104 | Y129: 4.601 | Z129: 4.825192565e-07 | AA129: -3783.422 | AC129: =L129-INDEX($C129:$L129,1,aux!$BA$1) -> 295.162 | AD129: 7.15954112e-05 | AE129: =+IF(INDEX($C129:$L129,1,aux!$BA$1)>0,(L129/INDEX($C129:$L129,1,aux!$BA$1))^(1/($L$3-INDEX($C$3:$L$3,1,aux!$BA$1)))-1,"n.d.") -> 0.02476401395 | AF129: =IF(INDEX($C129:$L129,1,aux!$BA$1)>0,(L129-INDEX($C129:$L129,1,aux!$BA$1))/INDEX($C129:$L129,1,aux!$BA$1),"n.d.") -> 0.246277617 | AH129: =X129-INDEX($O129:$X129,1,aux!$BA$1) -> 11.559 | AI129: 2.339010072e-06 | AJ129: =+IF(INDEX($O129:$X129,1,aux!$BA$1)>0,(X129/INDEX($O129:$X129,1,aux!$BA$1))^(1/($X$3-INDEX($O$3:$X$3,1,aux!$BA$1)))-1,"n.d.") -> 0.06063711011 | AK129: =IF(INDEX($O129:$X129,1,aux!$BA$1)>0,(X129-INDEX($O129:$X129,1,aux!$BA$1))/INDEX($O129:$X129,1,aux!$BA$1),"n.d.") -> 0.6986400725 | BO129: 37926.24 | CC129: =+IF(ISNA(MATCH('5.1'!A129,AUX_2d_pais!$G$2:$G$40000,0)),0,1) -> 1
A130: 0395 | B130: Lesoto | C130: 0 | D130: 0 | E130: 0 | F130: 0 | G130: 0 | H130: 0 | I130: 0 | J130: 0 | K130: 0 | L130: 0 | M130: 0 | N130: 0 | O130: 0 | P130: 0 | Q130: 0 | R130: 0 | S130: 0 | T130: 0 | U130: 0 | V130: 0 | W130: 0 | X130: 0 | Y130: 0 | Z130: 0 | AA130: 0 | AC130: =L130-INDEX($C130:$L130,1,aux!$BA$1) -> 0 | AD130: 0 | AE130: =+IF(INDEX($C130:$L130,1,aux!$BA$1)>0,(L130/INDEX($C130:$L130,1,aux!$BA$1))^(1/($L$3-INDEX($C$3:$L$3,1,aux!$BA$1)))-1,"n.d.") -> n.d. | AF130: =IF(INDEX($C130:$L130,1,aux!$BA$1)>0,(L130-INDEX($C130:$L130,1,aux!$BA$1))/INDEX($C130:$L130,1,aux!$BA$1),"n.d.") -> n.d. | AH130: =X130-INDEX($O130:$X130,1,aux!$BA$1) -> 0 | AI130: 0 | AJ130: =+IF(INDEX($O130:$X130,1,aux!$BA$1)>0,(X130/INDEX($O130:$X130,1,aux!$BA$1))^(1/($X$3-INDEX($O$3:$X$3,1,aux!$BA$1)))-1,"n.d.") -> n.d. | AK130: =IF(INDEX($O130:$X130,1,aux!$BA$1)>0,(X130-INDEX($O130:$X130,1,aux!$BA$1))/INDEX($O130:$X130,1,aux!$BA$1),"n.d.") -> n.d. | AM130: 0 | BO130: 0 | CC130: =+IF(ISNA(MATCH('5.1'!A130,AUX_2d_pais!$G$2:$G$40000,0)),0,1) -> 0
A131: 0054 | B131: Letónia | C131: 2993.544 | D131: 3033.64 | E131: 1147.851 | F131: 5348.344 | G131: 744.121 | H131: 2622.235 | I131: 9206.806 | J131: 7297.241 | K131: 4980.937 | L131: 2163.403 | M131: 3953.8122 | N131: 0.0003477808089 | O131: 787.456 | P131: 625.944 | Q131: 5543.417 | R131: 7038.984 | S131: 7829.025 | T131: 8055.804 | U131: 9208.806 | V131: 8530.357 | W131: 8687.131 | X131: 8810.877 | Y131: 6511.7801 | Z131: 0.0006829079096 | AA131: 2557.9679 | AC131: =L131-INDEX($C131:$L131,1,aux!$BA$1) -> -830.141 | AD131: -0.0002013615786 | AE131: =+IF(INDEX($C131:$L131,1,aux!$BA$1)>0,(L131/INDEX($C131:$L131,1,aux!$BA$1))^(1/($L$3-INDEX($C$3:$L$3,1,aux!$BA$1)))-1,"n.d.") -> -0.03544282544 | AF131: =IF(INDEX($C131:$L131,1,aux!$BA$1)>0,(L131-INDEX($C131:$L131,1,aux!$BA$1))/INDEX($C131:$L131,1,aux!$BA$1),"n.d.") -> -0.2773104387 | AH131: =X131-INDEX($O131:$X131,1,aux!$BA$1) -> 8023.421 | AI131: 0.001623571462 | AJ131: =+IF(INDEX($O131:$X131,1,aux!$BA$1)>0,(X131/INDEX($O131:$X131,1,aux!$BA$1))^(1/($X$3-INDEX($O$3:$X$3,1,aux!$BA$1)))-1,"n.d.") -> 0.3077735156 | AK131: =IF(INDEX($O131:$X131,1,aux!$BA$1)>0,(X131-INDEX($O131:$X131,1,aux!$BA$1))/INDEX($O131:$X131,1,aux!$BA$1),"n.d.") -> 10.1890404 | CC131: =+IF(ISNA(MATCH('5.1'!A131,AUX_2d_pais!$G$2:$G$40000,0)),0,1) -> 1
A132: 0604 | B132: Líbano | C132: 15.282 | D132: 21.024 | E132: 40.008 | F132: 6.476 | G132: 4.535 | H132: 188.761 | I132: 242.19 | J132: 1524.724 | K132: 4808.849 | L132: 1306.053 | M132: 815.7902 | N132: 7.175762563e-05 | O132: 3527.403 | P132: 8633.421 | Q132: 9208.13 | R132: 7110.554 | S132: 10196.704 | T132: 9023.488 | U132: 11286.484 | V132: 10368.348 | W132: 15485.342 | X132: 16328.744 | Y132: 10116.8618 | Z132: 0.001060982533 | AA132: 9301.0716 | AC132: =L132-INDEX($C132:$L132,1,aux!$BA$1) -> 1290.771 | AD132: 0.0003130934216 | AE132: =+IF(INDEX($C132:$L132,1,aux!$BA$1)>0,(L132/INDEX($C132:$L132,1,aux!$BA$1))^(1/($L$3-INDEX($C$3:$L$3,1,aux!$BA$1)))-1,"n.d.") -> 0.6392390433 | AF132: =IF(INDEX($C132:$L132,1,aux!$BA$1)>0,(L132-INDEX($C132:$L132,1,aux!$BA$1))/INDEX($C132:$L132,1,aux!$BA$1),"n.d.") -> 84.46348645 | AH132: =X132-INDEX($O132:$X132,1,aux!$BA$1) -> 12801.341 | AI132: 0.002590402763 | AJ132: =+IF(INDEX($O132:$X132,1,aux!$BA$1)>0,(X132/INDEX($O132:$X132,1,aux!$BA$1))^(1/($X$3-INDEX($O$3:$X$3,1,aux!$BA$1)))-1,"n.d.") -> 0.1856163751 | AK132: =IF(INDEX($O132:$X132,1,aux!$BA$1)>0,(X132-INDEX($O132:$X132,1,aux!$BA$1))/INDEX($O132:$X132,1,aux!$BA$1),"n.d.") -> 3.629112126 | CC132: =+IF(ISNA(MATCH('5.1'!A132,AUX_2d_pais!$G$2:$G$40000,0)),0,1) -> 1
A133: 0268 | B133: Libéria | C133: 0 | D133: 0 | E133: 0.035 | F133: 934.802 | G133: 43.811 | H133: 0 | I133: 0 | J133: 51.574 | K133: 4.823 | L133: 0 | M133: 103.5045 | N133: 9.104347125e-06 | O133: 25.111 | P133: 16.95 | Q133: 41.353 | R133: 282.666 | S133: 299.59 | T133: 556.937 | U133: 927.201 | V133: 1077.14 | W133: 624.243 | X133: 183.051 | Y133: 403.4242 | Z133: 4.230818192e-05 | AA133: 299.9197 | AC133: =L133-INDEX($C133:$L133,1,aux!$BA$1) -> 0 | AD133: 0 | AE133: =+IF(INDEX($C133:$L133,1,aux!$BA$1)>0,(L133/INDEX($C133:$L133,1,aux!$BA$1))^(1/($L$3-INDEX($C$3:$L$3,1,aux!$BA$1)))-1,"n.d.") -> n.d. | AF133: =IF(INDEX($C133:$L133,1,aux!$BA$1)>0,(L133-INDEX($C133:$L133,1,aux!$BA$1))/INDEX($C133:$L133,1,aux!$BA$1),"n.d.") -> n.d. | AH133: =X133-INDEX($O133:$X133,1,aux!$BA$1) -> 157.94 | AI133: 3.195979331e-05 | AJ133: =+IF(INDEX($O133:$X133,1,aux!$BA$1)>0,(X133/INDEX($O133:$X133,1,aux!$BA$1))^(1/($X$3-INDEX($O$3:$X$3,1,aux!$BA$1)))-1,"n.d.") -> 0.2469712923 | AK133: =IF(INDEX($O133:$X133,1,aux!$BA$1)>0,(X133-INDEX($O133:$X133,1,aux!$BA$1))/INDEX($O133:$X133,1,aux!$BA$1),"n.d.") -> 6.289673848 | CC133: =+IF(ISNA(MATCH('5.1'!A133,AUX_2d_pais!$G$2:$G$40000,0)),0,1) -> 1
A134: 0216 | B134: Líbia, Jamahira Árabe da | C134: 273.134 | D134: 109.103 | E134: 62.159 | F134: 72.804 | G134: 0 | H134: 0 | I134: 0 | J134: 1.114 | K134: 0 | L134: 0.176 | M134: 51.849 | N134: 4.560683778e-06 | O134: 2314.196 | P134: 7871.453 | Q134: 1686.849 | R134: 7083.383 | S134: 4854.308 | T134: 2524.564 | U134: 3256.92 | V134: 3609.476 | W134: 4690.843 | X134: 7955.179 | Y134: 4584.7171 | Z134: 0.0004808116249 | AA134: 4532.8681 | AC134: =L134-INDEX($C134:$L134,1,aux!$BA$1) -> -272.958 | AD134: -6.620954002e-05 | AE134: =+IF(INDEX($C134:$L134,1,aux!$BA$1)>0,(L134/INDEX($C134:$L134,1,aux!$BA$1))^(1/($L$3-INDEX($C$3:$L$3,1,aux!$BA$1)))-1,"n.d.") -> -0.5579619485 | AF134: =IF(INDEX($C134:$L134,1,aux!$BA$1)>0,(L134-INDEX($C134:$L134,1,aux!$BA$1))/INDEX($C134:$L134,1,aux!$BA$1),"n.d.") -> -0.9993556276 | AH134: =X134-INDEX($O134:$X134,1,aux!$BA$1) -> 5640.983 | AI134: 0.001141475565 | AJ134: =+IF(INDEX($O134:$X134,1,aux!$BA$1)>0,(X134/INDEX($O134:$X134,1,aux!$BA$1))^(1/($X$3-INDEX($O$3:$X$3,1,aux!$BA$1)))-1,"n.d.") -> 0.1470525456 | AK134: =IF(INDEX($O134:$X134,1,aux!$BA$1)>0,(X134-INDEX($O134:$X134,1,aux!$BA$1))/INDEX($O134:$X134,1,aux!$BA$1),"n.d.") -> 2.437556283 | CC134: =+IF(ISNA(MATCH('5.1'!A134,AUX_2d_pais!$G$2:$G$40000,0)),0,1) -> 1
A135: 0037 | B135: Liechtenstein | C135: 1.131 | D135: 27.166 | E135: 0.396 | F135: 0 | G135: 0 | H135: 0.07 | I135: 0 | J135: 0 | K135: 2.989 | L135: 0 | M135: 3.1752 | N135: 2.792933929e-07 | O135: 9.105 | P135: 27.491 | Q135: 90.335 | R135: 111.121 | S135: 183.897 | T135: 245.516 | U135: 196.364 | V135: 232.062 | W135: 78.655 | X135: 102.538 | Y135: 127.7084 | Z135: 1.339312372e-05 | AA135: 124.5332 | AC135: =L135-INDEX($C135:$L135,1,aux!$BA$1) -> -1.131 | AD135: -2.743388718e-07 | AE135: =+IF(INDEX($C135:$L135,1,aux!$BA$1)>0,(L135/INDEX($C135:$L135,1,aux!$BA$1))^(1/($L$3-INDEX($C$3:$L$3,1,aux!$BA$1)))-1,"n.d.") -> -1 | AF135: =IF(INDEX($C135:$L135,1,aux!$BA$1)>0,(L135-INDEX($C135:$L135,1,aux!$BA$1))/INDEX($C135:$L135,1,aux!$BA$1),"n.d.") -> -1 | AH135: =X135-INDEX($O135:$X135,1,aux!$BA$1) -> 93.433 | AI135: 1.890654279e-05 | AJ135: =+IF(INDEX($O135:$X135,1,aux!$BA$1)>0,(X135/INDEX($O135:$X135,1,aux!$BA$1))^(1/($X$3-INDEX($O$3:$X$3,1,aux!$BA$1)))-1,"n.d.") -> 0.3087147223 | AK135: =IF(INDEX($O135:$X135,1,aux!$BA$1)>0,(X135-INDEX($O135:$X135,1,aux!$BA$1))/INDEX($O135:$X135,1,aux!$BA$1),"n.d.") -> 10.26172433 | CC135: =+IF(ISNA(MATCH('5.1'!A135,AUX_2d_pais!$G$2:$G$40000,0)),0,1) -> 1
A136: 0055 | B136: Lituânia | C136: 8471.692 | D136: 1368.632 | E136: 7864.492 | F136: 5413.339 | G136: 4853.669 | H136: 7320.36 | I136: 8821.275 | J136: 12524.044 | K136: 14517.072 | L136: 11433.028 | M136: 8258.7603 | N136: 0.0007264478413 | O136: 2879.626 | P136: 2463.384 | Q136: 5540.464 | R136: 5962.034 | S136: 7329.323 | T136: 6761.835 | U136: 6249.03 | V136: 6822.62 | W136: 9657.658 | X136: 11468.797 | Y136: 6513.4771 | Z136: 0.0006830858786 | AA136: -1745.2832 | AC136: =L136-INDEX($C136:$L136,1,aux!$BA$1) -> 2961.336 | AD136: 0.0007183108551 | AE136: =+IF(INDEX($C136:$L136,1,aux!$BA$1)>0,(L136/INDEX($C136:$L136,1,aux!$BA$1))^(1/($L$3-INDEX($C$3:$L$3,1,aux!$BA$1)))-1,"n.d.") -> 0.03386939363 | AF136: =IF(INDEX($C136:$L136,1,aux!$BA$1)>0,(L136-INDEX($C136:$L136,1,aux!$BA$1))/INDEX($C136:$L136,1,aux!$BA$1),"n.d.") -> 0.3495566175 | AH136: =X136-INDEX($O136:$X136,1,aux!$BA$1) -> 8589.171 | AI136: 0.001738053247 | AJ136: =+IF(INDEX($O136:$X136,1,aux!$BA$1)>0,(X136/INDEX($O136:$X136,1,aux!$BA$1))^(1/($X$3-INDEX($O$3:$X$3,1,aux!$BA$1)))-1,"n.d.") -> 0.1659686256 | AK136: =IF(INDEX($O136:$X136,1,aux!$BA$1)>0,(X136-INDEX($O136:$X136,1,aux!$BA$1))/INDEX($O136:$X136,1,aux!$BA$1),"n.d.") -> 2.982738383 | CC136: =+IF(ISNA(MATCH('5.1'!A136,AUX_2d_pais!$G$2:$G$40000,0)),0,1) -> 1
A137: 0018 | B137: Luxemburgo | C137: 5448.671 | D137: 2345.737 | E137: 3526.647 | F137: 4948.442 | G137: 5337.878 | H137: 7718.976 | I137: 5751.049 | J137: 8160.844 | K137: 6410.48 | L137: 6793.376 | M137: 5644.21 | N137: 0.0004964696905 | O137: 29011.608 | P137: 30274.875 | Q137: 31454.795 | R137: 31766.896 | S137: 37267.223 | T137: 38905.694 | U137: 40626.276 | V137: 41650.884 | W137: 44615.187 | X137: 46327.114 | Y137: 37190.0552 | Z137: 0.003900221209 | AA137: 31545.8452 | AC137: =L137-INDEX($C137:$L137,1,aux!$BA$1) -> 1344.705 | AD137: 0.0003261758201 | AE137: =+IF(INDEX($C137:$L137,1,aux!$BA$1)>0,(L137/INDEX($C137:$L137,1,aux!$BA$1))^(1/($L$3-INDEX($C$3:$L$3,1,aux!$BA$1)))-1,"n.d.") -> 0.02481127851 | AF137: =IF(INDEX($C137:$L137,1,aux!$BA$1)>0,(L137-INDEX($C137:$L137,1,aux!$BA$1))/INDEX($C137:$L137,1,aux!$BA$1),"n.d.") -> 0.2467950441 | AH137: =X137-INDEX($O137:$X137,1,aux!$BA$1) -> 17315.506 | AI137: 0.00350386218 | AJ137: =+IF(INDEX($O137:$X137,1,aux!$BA$1)>0,(X137/INDEX($O137:$X137,1,aux!$BA$1))^(1/($X$3-INDEX($O$3:$X$3,1,aux!$BA$1)))-1,"n.d.") -> 0.05337941523 | AK137: =IF(INDEX($O137:$X137,1,aux!$BA$1)>0,(X137-INDEX($O137:$X137,1,aux!$BA$1))/INDEX($O137:$X137,1,aux!$BA$1),"n.d.") -> 0.5968475101 | CC137: =+IF(ISNA(MATCH('5.1'!A137,AUX_2d_pais!$G$2:$G$40000,0)),0,1) -> 1
A138: 0743 | B138: Macau | C138: 15.255 | D138: 12.576 | E138: 1.69 | F138: 83.468 | G138: 2.382 | H138: 0.604 | I138: 101.206 | J138: 54.768 | K138: 6.153 | L138: 0.779 | M138: 27.8881 | N138: 2.453061877e-06 | O138: 7435.172 | P138: 8294.963 | Q138: 9727.463 | R138: 11856.233 | S138: 11543.547 | T138: 12950.672 | U138: 12543.095 | V138: 13857.428 | W138: 14230.51 | X138: 15005.542 | Y138: 11744.4625 | Z138: 0.0012316734 | AA138: 11716.5744 | AC138: =L138-INDEX($C138:$L138,1,aux!$BA$1) -> -14.476 | AD138: -3.511343508e-06 | AE138: =+IF(INDEX($C138:$L138,1,aux!$BA$1)>0,(L138/INDEX($C138:$L138,1,aux!$BA$1))^(1/($L$3-INDEX($C$3:$L$3,1,aux!$BA$1)))-1,"n.d.") -> -0.2814477384 | AF138: =IF(INDEX($C138:$L138,1,aux!$BA$1)>0,(L138-INDEX($C138:$L138,1,aux!$BA$1))/INDEX($C138:$L138,1,aux!$BA$1),"n.d.") -> -0.9489347755 | AH138: =X138-INDEX($O138:$X138,1,aux!$BA$1) -> 7570.37 | AI138: 0.001531894773 | AJ138: =+IF(INDEX($O138:$X138,1,aux!$BA$1)>0,(X138/INDEX($O138:$X138,1,aux!$BA$1))^(1/($X$3-INDEX($O$3:$X$3,1,aux!$BA$1)))-1,"n.d.") -> 0.08114642994 | AK138: =IF(INDEX($O138:$X138,1,aux!$BA$1)>0,(X138-INDEX($O138:$X138,1,aux!$BA$1))/INDEX($O138:$X138,1,aux!$BA$1),"n.d.") -> 1.018183574 | CC138: =+IF(ISNA(MATCH('5.1'!A138,AUX_2d_pais!$G$2:$G$40000,0)),0,1) -> 1
A139: 0096 | B139: Macedónia, Antiga República jugoslava da | C139: 2.098 | D139: 37.199 | E139: 2286.397 | F139: 2003.853 | G139: 3093.72 | H139: 1794.336 | I139: 2409.884 | J139: 1661.689 | K139: 2364.444 | L139: 3985.193 | M139: 1963.8813 | N139: 0.0001727447316 | O139: 135.111 | P139: 313.213 | Q139: 477.222 | R139: 332.754 | S139: 544.639 | T139: 344.794 | U139: 385.832 | V139: 629.204 | W139: 409.267 | X139: 584.14 | Y139: 415.6176 | Z139: 4.358693661e-05 | AA139: -1548.2637 | AC139: =L139-INDEX($C139:$L139,1,aux!$BA$1) -> 3983.095 | AD139: 0.0009661518907 | AE139: =+IF(INDEX($C139:$L139,1,aux!$BA$1)>0,(L139/INDEX($C139:$L139,1,aux!$BA$1))^(1/($L$3-INDEX($C$3:$L$3,1,aux!$BA$1)))-1,"n.d.") -> 1.313629238 | AF139: =IF(INDEX($C139:$L139,1,aux!$BA$1)>0,(L139-INDEX($C139:$L139,1,aux!$BA$1))/INDEX($C139:$L139,1,aux!$BA$1),"n.d.") -> 1898.520019 | AH139: =X139-INDEX($O139:$X139,1,aux!$BA$1) -> 449.029 | AI139: 9.08628215e-05 | AJ139: =+IF(INDEX($O139:$X139,1,aux!$BA$1)>0,(X139/INDEX($O139:$X139,1,aux!$BA$1))^(1/($X$3-INDEX($O$3:$X$3,1,aux!$BA$1)))-1,"n.d.") -> 0.1766501643 | AK139: =IF(INDEX($O139:$X139,1,aux!$BA$1)>0,(X139-INDEX($O139:$X139,1,aux!$BA$1))/INDEX($O139:$X139,1,aux!$BA$1),"n.d.") -> 3.323408161 | CC139: =+IF(ISNA(MATCH('5.1'!A139,AUX_2d_pais!$G$2:$G$40000,0)),0,1) -> 1
A140: 0370 | B140: Madagáscar | C140: 1224.234 | D140: 2658.65 | E140: 4305.577 | F140: 4468.49 | G140: 19676.369 | H140: 17649.546 | I140: 2973.625 | J140: 6294.652 | K140: 6611.458 | L140: 3964.22 | M140: 6982.6821 | N140: 0.0006142028772 | O140: 71.247 | P140: 85.705 | Q140: 176.814 | R140: 449.084 | S140: 604.476 | T140: 381.098 | U140: 223.653 | V140: 219.852 | W140: 174.232 | X140: 152.634 | Y140: 253.8795 | Z140: 2.662502664e-05 | AA140: -6728.8026 | AC140: =L140-INDEX($C140:$L140,1,aux!$BA$1) -> 2739.986 | AD140: 0.0006646195118 | AE140: =+IF(INDEX($C140:$L140,1,aux!$BA$1)>0,(L140/INDEX($C140:$L140,1,aux!$BA$1))^(1/($L$3-INDEX($C$3:$L$3,1,aux!$BA$1)))-1,"n.d.") -> 0.139460453 | AF140: =IF(INDEX($C140:$L140,1,aux!$BA$1)>0,(L140-INDEX($C140:$L140,1,aux!$BA$1))/INDEX($C140:$L140,1,aux!$BA$1),"n.d.") -> 2.238122777 | AH140: =X140-INDEX($O140:$X140,1,aux!$BA$1) -> 81.387 | AI140: 1.646898631e-05 | AJ140: =+IF(INDEX($O140:$X140,1,aux!$BA$1)>0,(X140/INDEX($O140:$X140,1,aux!$BA$1))^(1/($X$3-INDEX($O$3:$X$3,1,aux!$BA$1)))-1,"n.d.") -> 0.08834094192 | AK140: =IF(INDEX($O140:$X140,1,aux!$BA$1)>0,(X140-INDEX($O140:$X140,1,aux!$BA$1))/INDEX($O140:$X140,1,aux!$BA$1),"n.d.") -> 1.142321782 | CC140: =+IF(ISNA(MATCH('5.1'!A140,AUX_2d_pais!$G$2:$G$40000,0)),0,1) -> 1
A141: 0701 | B141: Malásia | C141: 10423.791 | D141: 7056.118 | E141: 2429.018 | F141: 1060.415 | G141: 4444.993 | H141: 5762.822 | I141: 4744.528 | J141: 2554.118 | K141: 2132.426 | L141: 7011.016 | M141: 4761.9245 | N141: 0.0004188630797 | O141: 2123.904 | P141: 1564.481 | Q141: 2344.433 | R141: 2340.358 | S141: 2172.555 | T141: 2773.22 | U141: 2342.089 | V141: 3562.884 | W141: 4274.252 | X141: 4475.752 | Y141: 2797.3928 | Z141: 0.0002933701139 | AA141: -1964.5317 | AC141: =L141-INDEX($C141:$L141,1,aux!$BA$1) -> -3412.775 | AD141: -0.0008278133007 | AE141: =+IF(INDEX($C141:$L141,1,aux!$BA$1)>0,(L141/INDEX($C141:$L141,1,aux!$BA$1))^(1/($L$3-INDEX($C$3:$L$3,1,aux!$BA$1)))-1,"n.d.") -> -0.04311070527 | AF141: =IF(INDEX($C141:$L141,1,aux!$BA$1)>0,(L141-INDEX($C141:$L141,1,aux!$BA$1))/INDEX($C141:$L141,1,aux!$BA$1),"n.d.") -> -0.3274024777 | AH141: =X141-INDEX($O141:$X141,1,aux!$BA$1) -> 2351.848 | AI141: 0.0004759058881 | AJ141: =+IF(INDEX($O141:$X141,1,aux!$BA$1)>0,(X141/INDEX($O141:$X141,1,aux!$BA$1))^(1/($X$3-INDEX($O$3:$X$3,1,aux!$BA$1)))-1,"n.d.") -> 0.08635089309 | AK141: =IF(INDEX($O141:$X141,1,aux!$BA$1)>0,(X141-INDEX($O141:$X141,1,aux!$BA$1))/INDEX($O141:$X141,1,aux!$BA$1),"n.d.") -> 1.107323118 | CC141: =+IF(ISNA(MATCH('5.1'!A141,AUX_2d_pais!$G$2:$G$40000,0)),0,1) -> 1
A142: 0386 | B142: Malavi | C142: 7870.677 | D142: 2250.441 | E142: 7918.511 | F142: 11471.308 | G142: 23088.123 | H142: 10210.011 | I142: 22647.858 | J142: 24363.441 | K142: 8784.158 | L142: 1866.604 | M142: 12047.1132 | N142: 0.001059674704 | O142: 2.047 | P142: 27.18 | Q142: 27.59 | R142: 122.671 | S142: 26.802 | T142: 37.042 | U142: 161.309 | V142: 149.321 | W142: 15.5 | X142: 10.36 | Y142: 57.9822 | Z142: 6.08074941e-06 | AA142: -11989.131 | AC142: =L142-INDEX($C142:$L142,1,aux!$BA$1) -> -6004.073 | AD142: -0.00145636659 | AE142: =+IF(INDEX($C142:$L142,1,aux!$BA$1)>0,(L142/INDEX($C142:$L142,1,aux!$BA$1))^(1/($L$3-INDEX($C$3:$L$3,1,aux!$BA$1)))-1,"n.d.") -> -0.1477637337 | AF142: =IF(INDEX($C142:$L142,1,aux!$BA$1)>0,(L142-INDEX($C142:$L142,1,aux!$BA$1))/INDEX($C142:$L142,1,aux!$BA$1),"n.d.") -> -0.7628407315 | AH142: =X142-INDEX($O142:$X142,1,aux!$BA$1) -> 8.313 | AI142: 1.682168936e-06 | AJ142: =+IF(INDEX($O142:$X142,1,aux!$BA$1)>0,(X142/INDEX($O142:$X142,1,aux!$BA$1))^(1/($X$3-INDEX($O$3:$X$3,1,aux!$BA$1)))-1,"n.d.") -> 0.1974271513 | AK142: =IF(INDEX($O142:$X142,1,aux!$BA$1)>0,(X142-INDEX($O142:$X142,1,aux!$BA$1))/INDEX($O142:$X142,1,aux!$BA$1),"n.d.") -> 4.061064973 | CC142: =+IF(ISNA(MATCH('5.1'!A142,AUX_2d_pais!$G$2:$G$40000,0)),0,1) -> 1
A143: 0667 | B143: Maldivas | C143: 0 | D143: 0 | E143: 0 | F143: 0 | G143: 0 | H143: 37.697 | I143: 80.183 | J143: 87.277 | K143: 72.707 | L143: 48.541 | M143: 32.6405 | N143: 2.871087173e-06 | O143: 45.773 | P143: 66.065 | Q143: 28.05 | R143: 28.713 | S143: 72.323 | T143: 34.685 | U143: 51.041 | V143: 106.579 | W143: 92.373 | X143: 87.355 | Y143: 61.2957 | Z143: 6.428245075e-06 | AA143: 28.6552 | AC143: =L143-INDEX($C143:$L143,1,aux!$BA$1) -> 48.541 | AD143: 1.177425568e-05 | AE143: =+IF(INDEX($C143:$L143,1,aux!$BA$1)>0,(L143/INDEX($C143:$L143,1,aux!$BA$1))^(1/($L$3-INDEX($C$3:$L$3,1,aux!$BA$1)))-1,"n.d.") -> n.d. | AF143: =IF(INDEX($C143:$L143,1,aux!$BA$1)>0,(L143-INDEX($C143:$L143,1,aux!$BA$1))/INDEX($C143:$L143,1,aux!$BA$1),"n.d.") -> n.d. | AH143: =X143-INDEX($O143:$X143,1,aux!$BA$1) -> 41.582 | AI143: 8.414284698e-06 | AJ143: =+IF(INDEX($O143:$X143,1,aux!$BA$1)>0,(X143/INDEX($O143:$X143,1,aux!$BA$1))^(1/($X$3-INDEX($O$3:$X$3,1,aux!$BA$1)))-1,"n.d.") -> 0.07445068688 | AK143: =IF(INDEX($O143:$X143,1,aux!$BA$1)>0,(X143-INDEX($O143:$X143,1,aux!$BA$1))/INDEX($O143:$X143,1,aux!$BA$1),"n.d.") -> 0.9084394731 | CC143: =+IF(ISNA(MATCH('5.1'!A143,AUX_2d_pais!$G$2:$G$40000,0)),0,1) -> 1
A144: 0232 | B144: Mali | C144: 123.671 | D144: 715.829 | E144: 390.452 | F144: 261.332 | G144: 888.44 | H144: 1326.026 | I144: 5958.533 | J144: 5168.138 | K144: 4429.814 | L144: 8796.503 | M144: 2805.8738 | N144: 0.0002468071346 | O144: 65.396 | P144: 95.619 | Q144: 76.281 | R144: 125.33 | S144: 444.051 | T144: 1025.688 | U144: 932.908 | V144: 556.307 | W144: 1205.087 | X144: 617.296 | Y144: 514.3963 | Z144: 5.39461248e-05 | AA144: -2291.4775 | AC144: =L144-INDEX($C144:$L144,1,aux!$BA$1) -> 8672.832 | AD144: 0.002103709059 | AE144: =+IF(INDEX($C144:$L144,1,aux!$BA$1)>0,(L144/INDEX($C144:$L144,1,aux!$BA$1))^(1/($L$3-INDEX($C$3:$L$3,1,aux!$BA$1)))-1,"n.d.") -> 0.6061365482 | AF144: =IF(INDEX($C144:$L144,1,aux!$BA$1)>0,(L144-INDEX($C144:$L144,1,aux!$BA$1))/INDEX($C144:$L144,1,aux!$BA$1),"n.d.") -> 70.12825966 | AH144: =X144-INDEX($O144:$X144,1,aux!$BA$1) -> 551.9 | AI144: 0.0001116791815 | AJ144: =+IF(INDEX($O144:$X144,1,aux!$BA$1)>0,(X144/INDEX($O144:$X144,1,aux!$BA$1))^(1/($X$3-INDEX($O$3:$X$3,1,aux!$BA$1)))-1,"n.d.") -> 0.2832962339 | AK144: =IF(INDEX($O144:$X144,1,aux!$BA$1)>0,(X144-INDEX($O144:$X144,1,aux!$BA$1))/INDEX($O144:$X144,1,aux!$BA$1),"n.d.") -> 8.439354089 | CC144: =+IF(ISNA(MATCH('5.1'!A144,AUX_2d_pais!$G$2:$G$40000,0)),0,1) -> 1
A145: 0046 | B145: Malta | C145: 168.087 | D145: 931.909 | E145: 974.841 | F145: 314.767 | G145: 712.374 | H145: 741.887 | I145: 1568.105 | J145: 537.901 | K145: 238.153 | L145: 478.481 | M145: 666.6505 | N145: 5.863916605e-05 | O145: 1444.604 | P145: 1167.206 | Q145: 2133.245 | R145: 2612.497 | S145: 3753.983 | T145: 4540.641 | U145: 3841.006 | V145: 5179.088 | W145: 5568.803 | X145: 9719.287 | Y145: 3996.036 | Z145: 0.0004190750532 | AA145: 3329.3855 | AC145: =L145-INDEX($C145:$L145,1,aux!$BA$1) -> 310.394 | AD145: 7.529013242e-05 | AE145: =+IF(INDEX($C145:$L145,1,aux!$BA$1)>0,(L145/INDEX($C145:$L145,1,aux!$BA$1))^(1/($L$3-INDEX($C$3:$L$3,1,aux!$BA$1)))-1,"n.d.") -> 0.1232622784 | AF145: =IF(INDEX($C145:$L145,1,aux!$BA$1)>0,(L145-INDEX($C145:$L145,1,aux!$BA$1))/INDEX($C145:$L145,1,aux!$BA$1),"n.d.") -> 1.846627044 | AH145: =X145-INDEX($O145:$X145,1,aux!$BA$1) -> 8274.683 | AI145: 0.001674415337 | AJ145: =+IF(INDEX($O145:$X145,1,aux!$BA$1)>0,(X145/INDEX($O145:$X145,1,aux!$BA$1))^(1/($X$3-INDEX($O$3:$X$3,1,aux!$BA$1)))-1,"n.d.") -> 0.2359112577 | AK145: =IF(INDEX($O145:$X145,1,aux!$BA$1)>0,(X145-INDEX($O145:$X145,1,aux!$BA$1))/INDEX($O145:$X145,1,aux!$BA$1),"n.d.") -> 5.727993969 | CC145: =+IF(ISNA(MATCH('5.1'!A145,AUX_2d_pais!$G$2:$G$40000,0)),0,1) -> 1
A146: 0820 | B146: Marianas do Norte, Ilhas | C146: 0 | D146: 0 | E146: 0 | F146: 0 | G146: 0 | H146: 0 | I146: 0 | J146: 0 | K146: 0 | L146: 0 | M146: 0 | N146: 0 | O146: 0 | P146: 0 | Q146: 0 | R146: 0 | S146: 0 | T146: 0 | U146: 0 | V146: 0 | W146: 3.953 | X146: 0 | Y146: 0.3953 | Z146: 4.14561752e-08 | AA146: 0.3953 | AC146: =L146-INDEX($C146:$L146,1,aux!$BA$1) -> 0 | AD146: 0 | AE146: =+IF(INDEX($C146:$L146,1,aux!$BA$1)>0,(L146/INDEX($C146:$L146,1,aux!$BA$1))^(1/($L$3-INDEX($C$3:$L$3,1,aux!$BA$1)))-1,"n.d.") -> n.d. | AF146: =IF(INDEX($C146:$L146,1,aux!$BA$1)>0,(L146-INDEX($C146:$L146,1,aux!$BA$1))/INDEX($C146:$L146,1,aux!$BA$1),"n.d.") -> n.d. | AH146: =X146-INDEX($O146:$X146,1,aux!$BA$1) -> 0 | AI146: 0 | AJ146: =+IF(INDEX($O146:$X146,1,aux!$BA$1)>0,(X146/INDEX($O146:$X146,1,aux!$BA$1))^(1/($X$3-INDEX($O$3:$X$3,1,aux!$BA$1)))-1,"n.d.") -> n.d. | AK146: =IF(INDEX($O146:$X146,1,aux!$BA$1)>0,(X146-INDEX($O146:$X146,1,aux!$BA$1))/INDEX($O146:$X146,1,aux!$BA$1),"n.d.") -> n.d. | BO146: =SUM(C146:L146,O146:X146) -> 3.953 | CC146: =+IF(ISNA(MATCH('5.1'!A146,AUX_2d_pais!$G$2:$G$40000,0)),0,1) -> 1
A147: 0204 | B147: Marrocos | C147: 15072.713 | D147: 22037.469 | E147: 24936.622 | F147: 30555.02 | G147: 48248.953 | H147: 36399.122 | I147: 65363.723 | J147: 60649.668 | K147: 53517.593 | L147: 58055.855 | M147: 41483.6738 | N147: 0.003648940542 | O147: 24563.177 | P147: 59260.166 | Q147: 68758.656 | R147: 86904.798 | S147: 75615.235 | T147: 86016.803 | U147: 79086.426 | V147: 75727.794 | W147: 68813.308 | X147: 92414.169 | Y147: 71716.0532 | Z147: 0.007521055568 | AA147: 30232.3794 | AC147: =L147-INDEX($C147:$L147,1,aux!$BA$1) -> 42983.142 | AD147: 0.01042612439 | AE147: =+IF(INDEX($C147:$L147,1,aux!$BA$1)>0,(L147/INDEX($C147:$L147,1,aux!$BA$1))^(1/($L$3-INDEX($C$3:$L$3,1,aux!$BA$1)))-1,"n.d.") -> 0.1616431421 | AF147: =IF(INDEX($C147:$L147,1,aux!$BA$1)>0,(L147-INDEX($C147:$L147,1,aux!$BA$1))/INDEX($C147:$L147,1,aux!$BA$1),"n.d.") -> 2.851718997 | AH147: =X147-INDEX($O147:$X147,1,aux!$BA$1) -> 67850.992 | AI147: 0.01372992073 | AJ147: =+IF(INDEX($O147:$X147,1,aux!$BA$1)>0,(X147/INDEX($O147:$X147,1,aux!$BA$1))^(1/($X$3-INDEX($O$3:$X$3,1,aux!$BA$1)))-1,"n.d.") -> 0.158615505 | AK147: =IF(INDEX($O147:$X147,1,aux!$BA$1)>0,(X147-INDEX($O147:$X147,1,aux!$BA$1))/INDEX($O147:$X147,1,aux!$BA$1),"n.d.") -> 2.762305218 | CC147: =+IF(ISNA(MATCH('5.1'!A147,AUX_2d_pais!$G$2:$G$40000,0)),0,1) -> 1
A148: 0824 | B148: Marshall, Ilhas | C148: 0 | D148: 0 | E148: 0 | F148: 0 | G148: 0 | H148: 0 | I148: 0 | J148: 0 | K148: 0 | L148: 0 | M148: 0 | N148: 0 | O148: 0 | P148: 0 | Q148: 0 | R148: 0 | S148: 0 | T148: 0 | U148: 0.515 | V148: 0.206 | W148: 0.808 | X148: 0 | Y148: 0.1529 | Z148: 1.603503463e-08 | AA148: 0.1529 | AC148: =L148-INDEX($C148:$L148,1,aux!$BA$1) -> 0 | AD148: 0 | AE148: =+IF(INDEX($C148:$L148,1,aux!$BA$1)>0,(L148/INDEX($C148:$L148,1,aux!$BA$1))^(1/($L$3-INDEX($C$3:$L$3,1,aux!$BA$1)))-1,"n.d.") -> n.d. | AF148: =IF(INDEX($C148:$L148,1,aux!$BA$1)>0,(L148-INDEX($C148:$L148,1,aux!$BA$1))/INDEX($C148:$L148,1,aux!$BA$1),"n.d.") -> n.d. | AH148: =X148-INDEX($O148:$X148,1,aux!$BA$1) -> 0 | AI148: 0 | AJ148: =+IF(INDEX($O148:$X148,1,aux!$BA$1)>0,(X148/INDEX($O148:$X148,1,aux!$BA$1))^(1/($X$3-INDEX($O$3:$X$3,1,aux!$BA$1)))-1,"n.d.") -> n.d. | AK148: =IF(INDEX($O148:$X148,1,aux!$BA$1)>0,(X148-INDEX($O148:$X148,1,aux!$BA$1))/INDEX($O148:$X148,1,aux!$BA$1),"n.d.") -> n.d. | CC148: =+IF(ISNA(MATCH('5.1'!A148,AUX_2d_pais!$G$2:$G$40000,0)),0,1) -> 1
A149: 0462 | B149: Martinica | C149: 0 | D149: 0 | E149: 0 | F149: 0 | G149: 0 | H149: 0 | I149: 0 | J149: 0 | K149: 0 | L149: 0 | M149: 0 | N149: 0 | O149: 0 | P149: 0 | Q149: 0 | R149: 0 | S149: 0 | T149: 0 | U149: 0 | V149: 0 | W149: 0 | X149: 0 | Y149: 0 | Z149: 0 | AA149: 0 | AC149: =L149-INDEX($C149:$L149,1,aux!$BA$1) -> 0 | AD149: 0 | AE149: =+IF(INDEX($C149:$L149,1,aux!$BA$1)>0,(L149/INDEX($C149:$L149,1,aux!$BA$1))^(1/($L$3-INDEX($C$3:$L$3,1,aux!$BA$1)))-1,"n.d.") -> n.d. | AF149: =IF(INDEX($C149:$L149,1,aux!$BA$1)>0,(L149-INDEX($C149:$L149,1,aux!$BA$1))/INDEX($C149:$L149,1,aux!$BA$1),"n.d.") -> n.d. | AH149: =X149-INDEX($O149:$X149,1,aux!$BA$1) -> 0 | AI149: 0 | AJ149: =+IF(INDEX($O149:$X149,1,aux!$BA$1)>0,(X149/INDEX($O149:$X149,1,aux!$BA$1))^(1/($X$3-INDEX($O$3:$X$3,1,aux!$BA$1)))-1,"n.d.") -> n.d. | AK149: =IF(INDEX($O149:$X149,1,aux!$BA$1)>0,(X149-INDEX($O149:$X149,1,aux!$BA$1))/INDEX($O149:$X149,1,aux!$BA$1),"n.d.") -> n.d. | AM149: =SUM(A149:AA149) -> 0 | BO149: 0 | CC149: =+IF(ISNA(MATCH('5.1'!A149,AUX_2d_pais!$G$2:$G$40000,0)),0,1) -> 0
A150: 0373 | B150: Maurícias | C150: 18698.568 | D150: 12122.966 | E150: 3597.439 | F150: 4078.724 | G150: 3676.889 | H150: 2855.122 | I150: 5742.28 | J150: 11884.65 | K150: 19980.713 | L150: 12809.047 | M150: 9544.6398 | N150: 0.0008395549365 | O150: 452.968 | P150: 630.57 | Q150: 446.141 | R150: 546.552 | S150: 795.254 | T150: 983.833 | U150: 1513.568 | V150: 2209.132 | W150: 1477.15 | X150: 3520.513 | Y150: 1257.5681 | Z150: 0.0001318845522 | AA150: -8287.0717 | AC150: =L150-INDEX($C150:$L150,1,aux!$BA$1) -> -5889.521 | AD150: -0.001428580501 | AE150: =+IF(INDEX($C150:$L150,1,aux!$BA$1)>0,(L150/INDEX($C150:$L150,1,aux!$BA$1))^(1/($L$3-INDEX($C$3:$L$3,1,aux!$BA$1)))-1,"n.d.") -> -0.04116167253 | AF150: =IF(INDEX($C150:$L150,1,aux!$BA$1)>0,(L150-INDEX($C150:$L150,1,aux!$BA$1))/INDEX($C150:$L150,1,aux!$BA$1),"n.d.") -> -0.3149717668 | AH150: =X150-INDEX($O150:$X150,1,aux!$BA$1) -> 3067.545 | AI150: 0.0006207300504 | AJ150: =+IF(INDEX($O150:$X150,1,aux!$BA$1)>0,(X150/INDEX($O150:$X150,1,aux!$BA$1))^(1/($X$3-INDEX($O$3:$X$3,1,aux!$BA$1)))-1,"n.d.") -> 0.2558816487 | AK150: =IF(INDEX($O150:$X150,1,aux!$BA$1)>0,(X150-INDEX($O150:$X150,1,aux!$BA$1))/INDEX($O150:$X150,1,aux!$BA$1),"n.d.") -> 6.772100899 | CC150: =+IF(ISNA(MATCH('5.1'!A150,AUX_2d_pais!$G$2:$G$40000,0)),0,1) -> 1
A151: 0228 | B151: Mauritânia | C151: 2240.386 | D151: 924.1 | E151: 11303.451 | F151: 15342.133 | G151: 7605.219 | H151: 19817.839 | I151: 8102.328 | J151: 6112.408 | K151: 19361.49 | L151: 20025.787 | M151: 11083.5141 | N151: 0.0009749156774 | O151: 46.539 | P151: 109.588 | Q151: 228.113 | R151: 591.895 | S151: 1013.456 | T151: 905.361 | U151: 878.894 | V151: 1069.007 | W151: 1645.912 | X151: 1977.193 | Y151: 846.5958 | Z151: 8.878478069e-05 | AA151: -10236.9183 | AC151: =L151-INDEX($C151:$L151,1,aux!$BA$1) -> 17785.401 | AD151: 0.00431408209 | AE151: =+IF(INDEX($C151:$L151,1,aux!$BA$1)>0,(L151/INDEX($C151:$L151,1,aux!$BA$1))^(1/($L$3-INDEX($C$3:$L$3,1,aux!$BA$1)))-1,"n.d.") -> 0.2755465273 | AF151: =IF(INDEX($C151:$L151,1,aux!$BA$1)>0,(L151-INDEX($C151:$L151,1,aux!$BA$1))/INDEX($C151:$L151,1,aux!$BA$1),"n.d.") -> 7.93854318 | AH151: =X151-INDEX($O151:$X151,1,aux!$BA$1) -> 1930.654 | AI151: 0.0003906755906 | AJ151: =+IF(INDEX($O151:$X151,1,aux!$BA$1)>0,(X151/INDEX($O151:$X151,1,aux!$BA$1))^(1/($X$3-INDEX($O$3:$X$3,1,aux!$BA$1)))-1,"n.d.") -> 0.5167523223 | AK151: =IF(INDEX($O151:$X151,1,aux!$BA$1)>0,(X151-INDEX($O151:$X151,1,aux!$BA$1))/INDEX($O151:$X151,1,aux!$BA$1),"n.d.") -> 41.48464729 | CC151: =+IF(ISNA(MATCH('5.1'!A151,AUX_2d_pais!$G$2:$G$40000,0)),0,1) -> 1
A152: 0377 | B152: Mayotte | C152: 0 | D152: 0 | E152: 0 | F152: 0 | G152: 0 | H152: 0 | I152: 0 | J152: 0 | K152: 0 | L152: 0 | M152: 0 | N152: 0 | O152: 40.693 | P152: 96.07 | Q152: 104.987 | R152: 108.312 | S152: 101.53 | T152: 0 | U152: 0 | V152: 0 | W152: 0 | X152: 0 | Y152: 45.1592 | Z152: 4.735966878e-06 | AA152: 45.1592 | AC152: =L152-INDEX($C152:$L152,1,aux!$BA$1) -> 0 | AD152: 0 | AE152: =+IF(INDEX($C152:$L152,1,aux!$BA$1)>0,(L152/INDEX($C152:$L152,1,aux!$BA$1))^(1/($L$3-INDEX($C$3:$L$3,1,aux!$BA$1)))-1,"n.d.") -> n.d. | AF152: =IF(INDEX($C152:$L152,1,aux!$BA$1)>0,(L152-INDEX($C152:$L152,1,aux!$BA$1))/INDEX($C152:$L152,1,aux!$BA$1),"n.d.") -> n.d. | AH152: =X152-INDEX($O152:$X152,1,aux!$BA$1) -> -40.693 | AI152: -8.234391978e-06 | AJ152: =+IF(INDEX($O152:$X152,1,aux!$BA$1)>0,(X152/INDEX($O152:$X152,1,aux!$BA$1))^(1/($X$3-INDEX($O$3:$X$3,1,aux!$BA$1)))-1,"n.d.") -> -1 | AK152: =IF(INDEX($O152:$X152,1,aux!$BA$1)>0,(X152-INDEX($O152:$X152,1,aux!$BA$1))/INDEX($O152:$X152,1,aux!$BA$1),"n.d.") -> -1 | BO152: 451.592 | CC152: =+IF(ISNA(MATCH('5.1'!A152,AUX_2d_pais!$G$2:$G$40000,0)),0,1) -> 1
A153: 0023 | B153: Melilha | C153: 0 | D153: 0 | E153: 0 | F153: 0 | G153: 0 | H153: 0 | I153: 0 | J153: 0 | K153: 0 | L153: 0 | M153: 0 | N153: 0 | O153: 48.297 | P153: 0 | Q153: 157.642 | R153: 36.278 | S153: 391.573 | T153: 601.118 | U153: 816.769 | V153: 378.349 | W153: 159.437 | X153: 14.626 | Y153: 260.4089 | Z153: 2.73097824e-05 | AA153: 260.4089 | AC153: =L153-INDEX($C153:$L153,1,aux!$BA$1) -> 0 | AD153: 0 | AE153: =+IF(INDEX($C153:$L153,1,aux!$BA$1)>0,(L153/INDEX($C153:$L153,1,aux!$BA$1))^(1/($L$3-INDEX($C$3:$L$3,1,aux!$BA$1)))-1,"n.d.") -> n.d. | AF153: =IF(INDEX($C153:$L153,1,aux!$BA$1)>0,(L153-INDEX($C153:$L153,1,aux!$BA$1))/INDEX($C153:$L153,1,aux!$BA$1),"n.d.") -> n.d. | AH153: =X153-INDEX($O153:$X153,1,aux!$BA$1) -> -33.671 | AI153: -6.813462077e-06 | AJ153: =+IF(INDEX($O153:$X153,1,aux!$BA$1)>0,(X153/INDEX($O153:$X153,1,aux!$BA$1))^(1/($X$3-INDEX($O$3:$X$3,1,aux!$BA$1)))-1,"n.d.") -> -0.124298372 | AK153: =IF(INDEX($O153:$X153,1,aux!$BA$1)>0,(X153-INDEX($O153:$X153,1,aux!$BA$1))/INDEX($O153:$X153,1,aux!$BA$1),"n.d.") -> -0.6971654554 | CC153: =+IF(ISNA(MATCH('5.1'!A153,AUX_2d_pais!$G$2:$G$40000,0)),0,1) -> 1
A154: 0832 | B154: Menores distantes dos Estados Unidos, lhas | C154: 0 | D154: 0 | E154: 0 | F154: 0 | G154: 0 | H154: 0 | I154: 0 | J154: 0 | K154: 0 | L154: 0 | M154: 0 | N154: 0 | O154: 53.982 | P154: 0 | Q154: 0 | R154: 0 | S154: 0 | T154: 0 | U154: 0 | V154: 0 | W154: 0 | X154: 22.772 | Y154: 7.6754 | Z154: 8.049398612e-07 | AA154: 7.6754 | AC154: =L154-INDEX($C154:$L154,1,aux!$BA$1) -> 0 | AD154: 0 | AE154: =+IF(INDEX($C154:$L154,1,aux!$BA$1)>0,(L154/INDEX($C154:$L154,1,aux!$BA$1))^(1/($L$3-INDEX($C$3:$L$3,1,aux!$BA$1)))-1,"n.d.") -> n.d. | AF154: =IF(INDEX($C154:$L154,1,aux!$BA$1)>0,(L154-INDEX($C154:$L154,1,aux!$BA$1))/INDEX($C154:$L154,1,aux!$BA$1),"n.d.") -> n.d. | AH154: =X154-INDEX($O154:$X154,1,aux!$BA$1) -> -31.21 | AI154: -6.315468843e-06 | AJ154: =+IF(INDEX($O154:$X154,1,aux!$BA$1)>0,(X154/INDEX($O154:$X154,1,aux!$BA$1))^(1/($X$3-INDEX($O$3:$X$3,1,aux!$BA$1)))-1,"n.d.") -> -0.09144704565 | AK154: =IF(INDEX($O154:$X154,1,aux!$BA$1)>0,(X154-INDEX($O154:$X154,1,aux!$BA$1))/INDEX($O154:$X154,1,aux!$BA$1),"n.d.") -> -0.5781556815 | BO154: 76.754 | CC154: =+IF(ISNA(MATCH('5.1'!A154,AUX_2d_pais!$G$2:$G$40000,0)),0,1) -> 1
A155: 0412 | B155: México | C155: 11687.689 | D155: 16740.405 | E155: 13730.276 | F155: 8338.552 | G155: 13845.726 | H155: 13925.356 | I155: 13225.137 | J155: 12701.698 | K155: 14219.175 | L155: 27366.468 | M155: 14578.0482 | N155: 0.001282297979 | O155: 10318.067 | P155: 14421.674 | Q155: 21238.598 | R155: 26820.216 | S155: 24680.151 | T155: 27256.702 | U155: 35566.12 | V155: 34077.28 | W155: 33402.987 | X155: 55916.196 | Y155: 28369.7991 | Z155: 0.002975217207 | AA155: 13791.7509 | AC155: =L155-INDEX($C155:$L155,1,aux!$BA$1) -> 15678.779 | AD155: 0.003803093317 | AE155: =+IF(INDEX($C155:$L155,1,aux!$BA$1)>0,(L155/INDEX($C155:$L155,1,aux!$BA$1))^(1/($L$3-INDEX($C$3:$L$3,1,aux!$BA$1)))-1,"n.d.") -> 0.09914365161 | AF155: =IF(INDEX($C155:$L155,1,aux!$BA$1)>0,(L155-INDEX($C155:$L155,1,aux!$BA$1))/INDEX($C155:$L155,1,aux!$BA$1),"n.d.") -> 1.341478114 | AH155: =X155-INDEX($O155:$X155,1,aux!$BA$1) -> 45598.129 | AI155: 0.009226964531 | AJ155: =+IF(INDEX($O155:$X155,1,aux!$BA$1)>0,(X155/INDEX($O155:$X155,1,aux!$BA$1))^(1/($X$3-INDEX($O$3:$X$3,1,aux!$BA$1)))-1,"n.d.") -> 0.2065596802 | AK155: =IF(INDEX($O155:$X155,1,aux!$BA$1)>0,(X155-INDEX($O155:$X155,1,aux!$BA$1))/INDEX($O155:$X155,1,aux!$BA$1),"n.d.") -> 4.419251106 | CC155: =+IF(ISNA(MATCH('5.1'!A155,AUX_2d_pais!$G$2:$G$40000,0)),0,1) -> 1
A156: 0823 | B156: Micronésia, Estados Federados da | C156: 0 | D156: 0 | E156: 0 | F156: 0 | G156: 0 | H156: 0 | I156: 0 | J156: 0 | K156: 0 | L156: 0 | M156: 0 | N156: 0 | O156: 0 | P156: 0 | Q156: 0 | R156: 0 | S156: 0 | T156: 0 | U156: 0 | V156: 0 | W156: 0 | X156: 0 | Y156: 0 | Z156: 0 | AA156: 0 | AC156: =L156-INDEX($C156:$L156,1,aux!$BA$1) -> 0 | AD156: 0 | AE156: =+IF(INDEX($C156:$L156,1,aux!$BA$1)>0,(L156/INDEX($C156:$L156,1,aux!$BA$1))^(1/($L$3-INDEX($C$3:$L$3,1,aux!$BA$1)))-1,"n.d.") -> n.d. | AF156: =IF(INDEX($C156:$L156,1,aux!$BA$1)>0,(L156-INDEX($C156:$L156,1,aux!$BA$1))/INDEX($C156:$L156,1,aux!$BA$1),"n.d.") -> n.d. | AH156: =X156-INDEX($O156:$X156,1,aux!$BA$1) -> 0 | AI156: 0 | AJ156: =+IF(INDEX($O156:$X156,1,aux!$BA$1)>0,(X156/INDEX($O156:$X156,1,aux!$BA$1))^(1/($X$3-INDEX($O$3:$X$3,1,aux!$BA$1)))-1,"n.d.") -> n.d. | AK156: =IF(INDEX($O156:$X156,1,aux!$BA$1)>0,(X156-INDEX($O156:$X156,1,aux!$BA$1))/INDEX($O156:$X156,1,aux!$BA$1),"n.d.") -> n.d. | AM156: 0 | BO156: 0 | CC156: =+IF(ISNA(MATCH('5.1'!A156,AUX_2d_pais!$G$2:$G$40000,0)),0,1) -> 0
A157: 0366 | B157: Moçambique | C157: 42375.275 | D157: 27070.204 | E157: 41468.095 | F157: 15890.893 | G157: 60771.555 | H157: 34234.178 | I157: 35366.534 | J157: 32632.83 | K157: 40184.384 | L157: 37766.394 | M157: 36776.0342 | N157: 0.00323485241 | O157: 20669.845 | P157: 22484.487 | Q157: 30559.844 | R157: 40944.682 | S157: 46350.234 | T157: 47912.935 | U157: 47676.318 | V157: 36358.191 | W157: 33441.566 | X157: 33586.257 | Y157: 35998.4359 | Z157: 0.003775252885 | AA157: -777.5983 | AC157: =L157-INDEX($C157:$L157,1,aux!$BA$1) -> -4608.881 | AD157: -0.001117944486 | AE157: =+IF(INDEX($C157:$L157,1,aux!$BA$1)>0,(L157/INDEX($C157:$L157,1,aux!$BA$1))^(1/($L$3-INDEX($C$3:$L$3,1,aux!$BA$1)))-1,"n.d.") -> -0.01271243842 | AF157: =IF(INDEX($C157:$L157,1,aux!$BA$1)>0,(L157-INDEX($C157:$L157,1,aux!$BA$1))/INDEX($C157:$L157,1,aux!$BA$1),"n.d.") -> -0.1087634476 | AH157: =X157-INDEX($O157:$X157,1,aux!$BA$1) -> 12916.412 | AI157: 0.002613687842 | AJ157: =+IF(INDEX($O157:$X157,1,aux!$BA$1)>0,(X157/INDEX($O157:$X157,1,aux!$BA$1))^(1/($X$3-INDEX($O$3:$X$3,1,aux!$BA$1)))-1,"n.d.") -> 0.05541905749 | AK157: =IF(INDEX($O157:$X157,1,aux!$BA$1)>0,(X157-INDEX($O157:$X157,1,aux!$BA$1))/INDEX($O157:$X157,1,aux!$BA$1),"n.d.") -> 0.6248915751 | CC157: =+IF(ISNA(MATCH('5.1'!A157,AUX_2d_pais!$G$2:$G$40000,0)),0,1) -> 1
A158: 0074 | B158: Moldava, República de | C158: 1547.248 | D158: 0.068 | E158: 2675.166 | F158: 5464.556 | G158: 3504.768 | H158: 6645.07 | I158: 1512.014 | J158: 5377.168 | K158: 5687.135 | L158: 8729.08 | M158: 4114.2273 | N158: 0.0003618910626 | O158: 1617.982 | P158: 2728.794 | Q158: 4146.572 | R158: 4394.444 | S158: 4189.261 | T158: 2651.35 | U158: 2365.403 | V158: 2232.403 | W158: 3089.465 | X158: 2813.082 | Y158: 3022.8756 | Z158: 0.0003170171021 | AA158: -1091.3517 | AC158: =L158-INDEX($C158:$L158,1,aux!$BA$1) -> 7181.832 | AD158: 0.00174204747 | AE158: =+IF(INDEX($C158:$L158,1,aux!$BA$1)>0,(L158/INDEX($C158:$L158,1,aux!$BA$1))^(1/($L$3-INDEX($C$3:$L$3,1,aux!$BA$1)))-1,"n.d.") -> 0.2119643304 | AF158: =IF(INDEX($C158:$L158,1,aux!$BA$1)>0,(L158-INDEX($C158:$L158,1,aux!$BA$1))/INDEX($C158:$L158,1,aux!$BA$1),"n.d.") -> 4.64168123 | AH158: =X158-INDEX($O158:$X158,1,aux!$BA$1) -> 1195.1 | AI158: 0.0002418332847 | AJ158: =+IF(INDEX($O158:$X158,1,aux!$BA$1)>0,(X158/INDEX($O158:$X158,1,aux!$BA$1))^(1/($X$3-INDEX($O$3:$X$3,1,aux!$BA$1)))-1,"n.d.") -> 0.06338335047 | AK158: =IF(INDEX($O158:$X158,1,aux!$BA$1)>0,(X158-INDEX($O158:$X158,1,aux!$BA$1))/INDEX($O158:$X158,1,aux!$BA$1),"n.d.") -> 0.7386361529 | CC158: =+IF(ISNA(MATCH('5.1'!A158,AUX_2d_pais!$G$2:$G$40000,0)),0,1) -> 1
A159: 0716 | B159: Mongólia | C159: 0 | D159: 0 | E159: 0 | F159: 0 | G159: 0 | H159: 0 | I159: 0 | J159: 0 | K159: 0 | L159: 0 | M159: 0 | N159: 0 | O159: 0 | P159: 0 | Q159: 16.249 | R159: 13.482 | S159: 51.662 | T159: 127.57 | U159: 62.587 | V159: 0.005 | W159: 4.654 | X159: 58.623 | Y159: 33.4832 | Z159: 3.511473325e-06 | AA159: 33.4832 | AC159: =L159-INDEX($C159:$L159,1,aux!$BA$1) -> 0 | AD159: 0 | AE159: =+IF(INDEX($C159:$L159,1,aux!$BA$1)>0,(L159/INDEX($C159:$L159,1,aux!$BA$1))^(1/($L$3-INDEX($C$3:$L$3,1,aux!$BA$1)))-1,"n.d.") -> n.d. | AF159: =IF(INDEX($C159:$L159,1,aux!$BA$1)>0,(L159-INDEX($C159:$L159,1,aux!$BA$1))/INDEX($C159:$L159,1,aux!$BA$1),"n.d.") -> n.d. | AH159: =X159-INDEX($O159:$X159,1,aux!$BA$1) -> 58.623 | AI159: 1.186259949e-05 | AJ159: =+IF(INDEX($O159:$X159,1,aux!$BA$1)>0,(X159/INDEX($O159:$X159,1,aux!$BA$1))^(1/($X$3-INDEX($O$3:$X$3,1,aux!$BA$1)))-1,"n.d.") -> n.d. | AK159: =IF(INDEX($O159:$X159,1,aux!$BA$1)>0,(X159-INDEX($O159:$X159,1,aux!$BA$1))/INDEX($O159:$X159,1,aux!$BA$1),"n.d.") -> n.d. | BO159: 334.832 | CC159: =+IF(ISNA(MATCH('5.1'!A159,AUX_2d_pais!$G$2:$G$40000,0)),0,1) -> 1
A160: 0470 | B160: Monserrate | C160: 0 | D160: 0 | E160: 0 | F160: 0 | G160: 0 | H160: 0 | I160: 0 | J160: 0 | K160: 0 | L160: 0 | M160: 0 | N160: 0 | O160: 0 | P160: 0 | Q160: 0 | R160: 0 | S160: 0 | T160: 0 | U160: 0 | V160: 0 | W160: 0 | X160: 0 | Y160: 0 | Z160: 0 | AA160: 0 | AC160: =L160-INDEX($C160:$L160,1,aux!$BA$1) -> 0 | AD160: 0 | AE160: =+IF(INDEX($C160:$L160,1,aux!$BA$1)>0,(L160/INDEX($C160:$L160,1,aux!$BA$1))^(1/($L$3-INDEX($C$3:$L$3,1,aux!$BA$1)))-1,"n.d.") -> n.d. | AF160: =IF(INDEX($C160:$L160,1,aux!$BA$1)>0,(L160-INDEX($C160:$L160,1,aux!$BA$1))/INDEX($C160:$L160,1,aux!$BA$1),"n.d.") -> n.d. | AH160: =X160-INDEX($O160:$X160,1,aux!$BA$1) -> 0 | AI160: 0 | AJ160: =+IF(INDEX($O160:$X160,1,aux!$BA$1)>0,(X160/INDEX($O160:$X160,1,aux!$BA$1))^(1/($X$3-INDEX($O$3:$X$3,1,aux!$BA$1)))-1,"n.d.") -> n.d. | AK160: =IF(INDEX($O160:$X160,1,aux!$BA$1)>0,(X160-INDEX($O160:$X160,1,aux!$BA$1))/INDEX($O160:$X160,1,aux!$BA$1),"n.d.") -> n.d. | AM160: 0 | BO160: 0 | CC160: =+IF(ISNA(MATCH('5.1'!A160,AUX_2d_pais!$G$2:$G$40000,0)),0,1) -> 0
A161: 0097 | B161: Montenegro | C161: 0 | D161: 0 | E161: 0 | F161: 0 | G161: 0 | H161: 0 | I161: 0 | J161: 0 | K161: 66.197 | L161: 1.543 | M161: 6.774 | N161: 5.958470156e-07 | O161: 0 | P161: 0 | Q161: 133.89 | R161: 76.819 | S161: 72.273 | T161: 248.467 | U161: 64.728 | V161: 522.447 | W161: 426.948 | X161: 1006.29 | Y161: 255.1862 | Z161: 2.676206379e-05 | AA161: 248.4122 | AC161: =L161-INDEX($C161:$L161,1,aux!$BA$1) -> 1.543 | AD161: 3.74274871e-07 | AE161: =+IF(INDEX($C161:$L161,1,aux!$BA$1)>0,(L161/INDEX($C161:$L161,1,aux!$BA$1))^(1/($L$3-INDEX($C$3:$L$3,1,aux!$BA$1)))-1,"n.d.") -> n.d. | AF161: =IF(INDEX($C161:$L161,1,aux!$BA$1)>0,(L161-INDEX($C161:$L161,1,aux!$BA$1))/INDEX($C161:$L161,1,aux!$BA$1),"n.d.") -> n.d. | AH161: =X161-INDEX($O161:$X161,1,aux!$BA$1) -> 1006.29 | AI161: 0.0002036268229 | AJ161: =+IF(INDEX($O161:$X161,1,aux!$BA$1)>0,(X161/INDEX($O161:$X161,1,aux!$BA$1))^(1/($X$3-INDEX($O$3:$X$3,1,aux!$BA$1)))-1,"n.d.") -> n.d. | AK161: =IF(INDEX($O161:$X161,1,aux!$BA$1)>0,(X161-INDEX($O161:$X161,1,aux!$BA$1))/INDEX($O161:$X161,1,aux!$BA$1),"n.d.") -> n.d. | BO161: 2619.602 | CC161: =+IF(ISNA(MATCH('5.1'!A161,AUX_2d_pais!$G$2:$G$40000,0)),0,1) -> 1
A162: 0676 | B162: Myanmar | C162: 120.439 | D162: 99.25 | E162: 42.66 | F162: 215.232 | G162: 434.364 | H162: 3099.2 | I162: 1191.197 | J162: 1356.023 | K162: 1235.819 | L162: 6699.172 | M162: 1449.3356 | N162: 0.0001274848379 | O162: 0 | P162: 0 | Q162: 19.385 | R162: 19.722 | S162: 31.952 | T162: 27.867 | U162: 38.69 | V162: 53.55 | W162: 68.587 | X162: 639.609 | Y162: 89.9362 | Z162: 9.431851414e-06 | AA162: -1359.3994 | AC162: =L162-INDEX($C162:$L162,1,aux!$BA$1) -> 6578.733 | AD162: 0.001595757904 | AE162: =+IF(INDEX($C162:$L162,1,aux!$BA$1)>0,(L162/INDEX($C162:$L162,1,aux!$BA$1))^(1/($L$3-INDEX($C$3:$L$3,1,aux!$BA$1)))-1,"n.d.") -> 0.5628493257 | AF162: =IF(INDEX($C162:$L162,1,aux!$BA$1)>0,(L162-INDEX($C162:$L162,1,aux!$BA$1))/INDEX($C162:$L162,1,aux!$BA$1),"n.d.") -> 54.62294606 | AH162: =X162-INDEX($O162:$X162,1,aux!$BA$1) -> 639.609 | AI162: 0.0001294274499 | AJ162: =+IF(INDEX($O162:$X162,1,aux!$BA$1)>0,(X162/INDEX($O162:$X162,1,aux!$BA$1))^(1/($X$3-INDEX($O$3:$X$3,1,aux!$BA$1)))-1,"n.d.") -> n.d. | AK162: =IF(INDEX($O162:$X162,1,aux!$BA$1)>0,(X162-INDEX($O162:$X162,1,aux!$BA$1))/INDEX($O162:$X162,1,aux!$BA$1),"n.d.") -> n.d. | CC162: =+IF(ISNA(MATCH('5.1'!A162,AUX_2d_pais!$G$2:$G$40000,0)),0,1) -> 1
A163: 0389 | B163: Namíbia | C163: 16799.327 | D163: 19354.821 | E163: 15518.428 | F163: 12330.015 | G163: 14512.501 | H163: 17172.056 | I163: 25434.863 | J163: 25755.98 | K163: 26201.357 | L163: 24638.754 | M163: 19771.8102 | N163: 0.001739145867 | O163: 1896.479 | P163: 1168.735 | Q163: 870.107 | R163: 1109.321 | S163: 1053.34 | T163: 1043.334 | U163: 647.863 | V163: 298.592 | W163: 462.649 | X163: 970.095 | Y163: 952.0515 | Z163: 9.984420385e-05 | AA163: -18819.7587 | AC163: =L163-INDEX($C163:$L163,1,aux!$BA$1) -> 7839.427 | AD163: 0.001901555755 | AE163: =+IF(INDEX($C163:$L163,1,aux!$BA$1)>0,(L163/INDEX($C163:$L163,1,aux!$BA$1))^(1/($L$3-INDEX($C$3:$L$3,1,aux!$BA$1)))-1,"n.d.") -> 0.04347190881 | AF163: =IF(INDEX($C163:$L163,1,aux!$BA$1)>0,(L163-INDEX($C163:$L163,1,aux!$BA$1))/INDEX($C163:$L163,1,aux!$BA$1),"n.d.") -> 0.4666512534 | AH163: =X163-INDEX($O163:$X163,1,aux!$BA$1) -> -926.384 | AI163: -0.0001874575229 | AJ163: =+IF(INDEX($O163:$X163,1,aux!$BA$1)>0,(X163/INDEX($O163:$X163,1,aux!$BA$1))^(1/($X$3-INDEX($O$3:$X$3,1,aux!$BA$1)))-1,"n.d.") -> -0.07177811625 | AK163: =IF(INDEX($O163:$X163,1,aux!$BA$1)>0,(X163-INDEX($O163:$X163,1,aux!$BA$1))/INDEX($O163:$X163,1,aux!$BA$1),"n.d.") -> -0.488475749 | CC163: =+IF(ISNA(MATCH('5.1'!A163,AUX_2d_pais!$G$2:$G$40000,0)),0,1) -> 1
A164: 0803 | B164: Nauru | C164: 0 | D164: 0 | E164: 0 | F164: 0 | G164: 0 | H164: 0 | I164: 0 | J164: 0 | K164: 0 | L164: 0 | M164: 0 | N164: 0 | O164: 0 | P164: 0 | Q164: 0 | R164: 0 | S164: 0 | T164: 0 | U164: 0 | V164: 0 | W164: 0 | X164: 0 | Y164: 0 | Z164: 0 | AA164: 0 | AC164: =L164-INDEX($C164:$L164,1,aux!$BA$1) -> 0 | AD164: 0 | AE164: =+IF(INDEX($C164:$L164,1,aux!$BA$1)>0,(L164/INDEX($C164:$L164,1,aux!$BA$1))^(1/($L$3-INDEX($C$3:$L$3,1,aux!$BA$1)))-1,"n.d.") -> n.d. | AF164: =IF(INDEX($C164:$L164,1,aux!$BA$1)>0,(L164-INDEX($C164:$L164,1,aux!$BA$1))/INDEX($C164:$L164,1,aux!$BA$1),"n.d.") -> n.d. | AH164: =X164-INDEX($O164:$X164,1,aux!$BA$1) -> 0 | AI164: 0 | AJ164: =+IF(INDEX($O164:$X164,1,aux!$BA$1)>0,(X164/INDEX($O164:$X164,1,aux!$BA$1))^(1/($X$3-INDEX($O$3:$X$3,1,aux!$BA$1)))-1,"n.d.") -> n.d. | AK164: =IF(INDEX($O164:$X164,1,aux!$BA$1)>0,(X164-INDEX($O164:$X164,1,aux!$BA$1))/INDEX($O164:$X164,1,aux!$BA$1),"n.d.") -> n.d. | AM164: 0 | BO164: 0 | CC164: =+IF(ISNA(MATCH('5.1'!A164,AUX_2d_pais!$G$2:$G$40000,0)),0,1) -> 0
A165: 0672 | B165: Nepal | C165: 2.634 | D165: 21.317 | E165: 14.27 | F165: 1.93 | G165: 5.547 | H165: 0.965 | I165: 0.454 | J165: 3.022 | K165: 1.948 | L165: 2.654 | M165: 5.4741 | N165: 4.815066649e-07 | O165: 24.964 | P165: 44.21 | Q165: 10.325 | R165: 20.125 | S165: 6.745 | T165: 52.178 | U165: 5.735 | V165: 0 | W165: 53.891 | X165: 35.799 | Y165: 25.3972 | Z165: 2.663472737e-06 | AA165: 19.9231 | AC165: =L165-INDEX($C165:$L165,1,aux!$BA$1) -> 0.02 | AD165: =AC165/$AC$252 -> 4.8512621e-09 | AE165: =+IF(INDEX($C165:$L165,1,aux!$BA$1)>0,(L165/INDEX($C165:$L165,1,aux!$BA$1))^(1/($L$3-INDEX($C$3:$L$3,1,aux!$BA$1)))-1,"n.d.") -> 0.0008408347022 | AF165: =IF(INDEX($C165:$L165,1,aux!$BA$1)>0,(L165-INDEX($C165:$L165,1,aux!$BA$1))/INDEX($C165:$L165,1,aux!$BA$1),"n.d.") -> 0.007593014427 | AH165: =X165-INDEX($O165:$X165,1,aux!$BA$1) -> 10.835 | AI165: =AH165/$AH$252 -> 2.192505765e-06 | AJ165: =+IF(INDEX($O165:$X165,1,aux!$BA$1)>0,(X165/INDEX($O165:$X165,1,aux!$BA$1))^(1/($X$3-INDEX($O$3:$X$3,1,aux!$BA$1)))-1,"n.d.") -> 0.04086688385 | AK165: =IF(INDEX($O165:$X165,1,aux!$BA$1)>0,(X165-INDEX($O165:$X165,1,aux!$BA$1))/INDEX($O165:$X165,1,aux!$BA$1),"n.d.") -> 0.434024996 | BO165: 308.713 | CC165: =+IF(ISNA(MATCH('5.1'!A165,AUX_2d_pais!$G$2:$G$40000,0)),0,1) -> 1
A166: 0432 | B166: Nicarágua | C166: 2213.135 | D166: 759.712 | E166: 1013.003 | F166: 837.106 | G166: 3201.565 | H166: 2285.086 | I166: 8757.172 | J166: 11292.631 | K166: 2308.219 | L166: 1732.014 | M166: 3439.9643 | N166: 0.0003025822943 | O166: 46.601 | P166: 222.235 | Q166: 330.878 | R166: 326.119 | S166: 459.583 | T166: 305.228 | U166: 534.765 | V166: 662.423 | W166: 315.146 | X166: 1157.511 | Y166: 436.0489 | Z166: 4.572962204e-05 | AA166: -3003.9154 | AC166: =L166-INDEX($C166:$L166,1,aux!$BA$1) -> -481.121 | AD166: -0.0001167022036 | AE166: =+IF(INDEX($C166:$L166,1,aux!$BA$1)>0,(L166/INDEX($C166:$L166,1,aux!$BA$1))^(1/($L$3-INDEX($C$3:$L$3,1,aux!$BA$1)))-1,"n.d.") -> -0.02686857104 | AF166: =IF(INDEX($C166:$L166,1,aux!$BA$1)>0,(L166-INDEX($C166:$L166,1,aux!$BA$1))/INDEX($C166:$L166,1,aux!$BA$1),"n.d.") -> -0.2173934261 | AH166: =X166-INDEX($O166:$X166,1,aux!$BA$1) -> 1110.91 | AI166: 0.0002247971 | AJ166: =+IF(INDEX($O166:$X166,1,aux!$BA$1)>0,(X166/INDEX($O166:$X166,1,aux!$BA$1))^(1/($X$3-INDEX($O$3:$X$3,1,aux!$BA$1)))-1,"n.d.") -> 0.4289414437 | AK166: =IF(INDEX($O166:$X166,1,aux!$BA$1)>0,(X166-INDEX($O166:$X166,1,aux!$BA$1))/INDEX($O166:$X166,1,aux!$BA$1),"n.d.") -> 23.83875882 | CC166: =+IF(ISNA(MATCH('5.1'!A166,AUX_2d_pais!$G$2:$G$40000,0)),0,1) -> 1
A167: 0240 | B167: Niger | C167: 0 | D167: 0 | E167: 0 | F167: 29.7 | G167: 362.869 | H167: 0 | I167: 0 | J167: 0 | K167: 0 | L167: 0 | M167: 39.2569 | N167: 3.453071554e-06 | O167: 12.123 | P167: 0 | Q167: 54.402 | R167: 40.271 | S167: 111.877 | T167: 260.743 | U167: 554.533 | V167: 600.402 | W167: 782.056 | X167: 283.674 | Y167: 270.0081 | Z167: 2.831647634e-05 | AA167: 230.7512 | AC167: =L167-INDEX($C167:$L167,1,aux!$BA$1) -> 0 | AD167: 0 | AE167: =+IF(INDEX($C167:$L167,1,aux!$BA$1)>0,(L167/INDEX($C167:$L167,1,aux!$BA$1))^(1/($L$3-INDEX($C$3:$L$3,1,aux!$BA$1)))-1,"n.d.") -> n.d. | AF167: =IF(INDEX($C167:$L167,1,aux!$BA$1)>0,(L167-INDEX($C167:$L167,1,aux!$BA$1))/INDEX($C167:$L167,1,aux!$BA$1),"n.d.") -> n.d. | AH167: =X167-INDEX($O167:$X167,1,aux!$BA$1) -> 271.551 | AI167: 5.494943543e-05 | AJ167: =+IF(INDEX($O167:$X167,1,aux!$BA$1)>0,(X167/INDEX($O167:$X167,1,aux!$BA$1))^(1/($X$3-INDEX($O$3:$X$3,1,aux!$BA$1)))-1,"n.d.") -> 0.4194966791 | AK167: =IF(INDEX($O167:$X167,1,aux!$BA$1)>0,(X167-INDEX($O167:$X167,1,aux!$BA$1))/INDEX($O167:$X167,1,aux!$BA$1),"n.d.") -> 22.39965355 | CC167: =+IF(ISNA(MATCH('5.1'!A167,AUX_2d_pais!$G$2:$G$40000,0)),0,1) -> 1
A168: 0288 | B168: Nigéria | C168: 2666.287 | D168: 2858.842 | E168: 4030.093 | F168: 4422.306 | G168: 5445.908 | H168: 2350.97 | I168: 2898.111 | J168: 4645.127 | K168: 4201.679 | L168: 5456.633 | M168: 3897.5956 | N168: 0.0003428359472 | O168: 1155.074 | P168: 5051.235 | Q168: 11926.516 | R168: 11116.965 | S168: 10468.029 | T168: 14458.72 | U168: 11392.309 | V168: 8288.138 | W168: 6891.394 | X168: 9053.444 | Y168: 8980.1824 | Z168: 0.0009417759041 | AA168: 5082.5868 | AC168: =L168-INDEX($C168:$L168,1,aux!$BA$1) -> 2790.346 | AD168: 0.0006768349898 | AE168: =+IF(INDEX($C168:$L168,1,aux!$BA$1)>0,(L168/INDEX($C168:$L168,1,aux!$BA$1))^(1/($L$3-INDEX($C$3:$L$3,1,aux!$BA$1)))-1,"n.d.") -> 0.0828231669 | AF168: =IF(INDEX($C168:$L168,1,aux!$BA$1)>0,(L168-INDEX($C168:$L168,1,aux!$BA$1))/INDEX($C168:$L168,1,aux!$BA$1),"n.d.") -> 1.04652875 | AH168: =X168-INDEX($O168:$X168,1,aux!$BA$1) -> 7898.37 | AI168: 0.00159826689 | AJ168: =+IF(INDEX($O168:$X168,1,aux!$BA$1)>0,(X168/INDEX($O168:$X168,1,aux!$BA$1))^(1/($X$3-INDEX($O$3:$X$3,1,aux!$BA$1)))-1,"n.d.") -> 0.2570599827 | AK168: =IF(INDEX($O168:$X168,1,aux!$BA$1)>0,(X168-INDEX($O168:$X168,1,aux!$BA$1))/INDEX($O168:$X168,1,aux!$BA$1),"n.d.") -> 6.83797748 | CC168: =+IF(ISNA(MATCH('5.1'!A168,AUX_2d_pais!$G$2:$G$40000,0)),0,1) -> 1
A169: 0838 | B169: Niue | C169: 0 | D169: 0 | E169: 0 | F169: 0 | G169: 0 | H169: 0 | I169: 0 | J169: 0 | K169: 0 | L169: 0 | M169: 0 | N169: 0 | O169: 0 | P169: 0 | Q169: 0 | R169: 0 | S169: 0 | T169: 0 | U169: 0 | V169: 0 | W169: 0 | X169: 0 | Y169: 0 | Z169: 0 | AA169: 0 | AC169: =L169-INDEX($C169:$L169,1,aux!$BA$1) -> 0 | AD169: 0 | AE169: =+IF(INDEX($C169:$L169,1,aux!$BA$1)>0,(L169/INDEX($C169:$L169,1,aux!$BA$1))^(1/($L$3-INDEX($C$3:$L$3,1,aux!$BA$1)))-1,"n.d.") -> n.d. | AF169: =IF(INDEX($C169:$L169,1,aux!$BA$1)>0,(L169-INDEX($C169:$L169,1,aux!$BA$1))/INDEX($C169:$L169,1,aux!$BA$1),"n.d.") -> n.d. | AH169: =X169-INDEX($O169:$X169,1,aux!$BA$1) -> 0 | AI169: 0 | AJ169: =+IF(INDEX($O169:$X169,1,aux!$BA$1)>0,(X169/INDEX($O169:$X169,1,aux!$BA$1))^(1/($X$3-INDEX($O$3:$X$3,1,aux!$BA$1)))-1,"n.d.") -> n.d. | AK169: =IF(INDEX($O169:$X169,1,aux!$BA$1)>0,(X169-INDEX($O169:$X169,1,aux!$BA$1))/INDEX($O169:$X169,1,aux!$BA$1),"n.d.") -> n.d. | AM169: 0 | BO169: 0 | CC169: =+IF(ISNA(MATCH('5.1'!A169,AUX_2d_pais!$G$2:$G$40000,0)),0,1) -> 0
A170: 0836 | B170: Norfolk, Ilha | C170: 0 | D170: 0 | E170: 0 | F170: 0 | G170: 0 | H170: 0 | I170: 0 | J170: 0 | K170: 0 | L170: 0 | M170: 0 | N170: 0 | O170: 0 | P170: 0 | Q170: 0 | R170: 0 | S170: 0 | T170: 0 | U170: 0 | V170: 0 | W170: 0 | X170: 0 | Y170: 0 | Z170: 0 | AA170: 0 | AC170: =L170-INDEX($C170:$L170,1,aux!$BA$1) -> 0 | AD170: 0 | AE170: =+IF(INDEX($C170:$L170,1,aux!$BA$1)>0,(L170/INDEX($C170:$L170,1,aux!$BA$1))^(1/($L$3-INDEX($C$3:$L$3,1,aux!$BA$1)))-1,"n.d.") -> n.d. | AF170: =IF(INDEX($C170:$L170,1,aux!$BA$1)>0,(L170-INDEX($C170:$L170,1,aux!$BA$1))/INDEX($C170:$L170,1,aux!$BA$1),"n.d.") -> n.d. | AH170: =X170-INDEX($O170:$X170,1,aux!$BA$1) -> 0 | AI170: 0 | AJ170: =+IF(INDEX($O170:$X170,1,aux!$BA$1)>0,(X170/INDEX($O170:$X170,1,aux!$BA$1))^(1/($X$3-INDEX($O$3:$X$3,1,aux!$BA$1)))-1,"n.d.") -> n.d. | AK170: =IF(INDEX($O170:$X170,1,aux!$BA$1)>0,(X170-INDEX($O170:$X170,1,aux!$BA$1))/INDEX($O170:$X170,1,aux!$BA$1),"n.d.") -> n.d. | AM170: 0 | BO170: 0 | CC170: =+IF(ISNA(MATCH('5.1'!A170,AUX_2d_pais!$G$2:$G$40000,0)),0,1) -> 0
A171: 0028 | B171: Noruega | C171: 17725.436 | D171: 3565.078 | E171: 4167.12 | F171: 4750.657 | G171: 5708.865 | H171: 7310.508 | I171: 816.884 | J171: 3774.843 | K171: 1149.593 | L171: 3620.423 | M171: 5258.9407 | N171: 0.0004625810631 | O171: 12765.899 | P171: 12880.245 | Q171: 10754.072 | R171: 13928.946 | S171: 12850.006 | T171: 40041.111 | U171: 54483.895 | V171: 54638.961 | W171: 19164.025 | X171: 17798.326 | Y171: 24930.5486 | Z171: 0.002614533748 | AA171: 19671.6079 | AC171: =L171-INDEX($C171:$L171,1,aux!$BA$1) -> -14105.013 | AD171: -0.003421355749 | AE171: =+IF(INDEX($C171:$L171,1,aux!$BA$1)>0,(L171/INDEX($C171:$L171,1,aux!$BA$1))^(1/($L$3-INDEX($C$3:$L$3,1,aux!$BA$1)))-1,"n.d.") -> -0.1617928202 | AF171: =IF(INDEX($C171:$L171,1,aux!$BA$1)>0,(L171-INDEX($C171:$L171,1,aux!$BA$1))/INDEX($C171:$L171,1,aux!$BA$1),"n.d.") -> -0.7957498478 | AH171: =X171-INDEX($O171:$X171,1,aux!$BA$1) -> 5032.427 | AI171: 0.001018331814 | AJ171: =+IF(INDEX($O171:$X171,1,aux!$BA$1)>0,(X171/INDEX($O171:$X171,1,aux!$BA$1))^(1/($X$3-INDEX($O$3:$X$3,1,aux!$BA$1)))-1,"n.d.") -> 0.03761541961 | AK171: =IF(INDEX($O171:$X171,1,aux!$BA$1)>0,(X171-INDEX($O171:$X171,1,aux!$BA$1))/INDEX($O171:$X171,1,aux!$BA$1),"n.d.") -> 0.3942085865 | CC171: =+IF(ISNA(MATCH('5.1'!A171,AUX_2d_pais!$G$2:$G$40000,0)),0,1) -> 1
A172: 0809 | B172: Nova Caledónia | C172: 0 | D172: 0 | E172: 0 | F172: 0 | G172: 0 | H172: 0 | I172: 0 | J172: 0 | K172: 0 | L172: 0 | M172: 0 | N172: 0 | O172: 124.003 | P172: 91.496 | Q172: 98.817 | R172: 101.856 | S172: 165.865 | T172: 113.96 | U172: 135.442 | V172: 133.395 | W172: 404.255 | X172: 147.55 | Y172: 151.6639 | Z172: 1.590540149e-05 | AA172: 151.6639 | AC172: =L172-INDEX($C172:$L172,1,aux!$BA$1) -> 0 | AD172: 0 | AE172: =+IF(INDEX($C172:$L172,1,aux!$BA$1)>0,(L172/INDEX($C172:$L172,1,aux!$BA$1))^(1/($L$3-INDEX($C$3:$L$3,1,aux!$BA$1)))-1,"n.d.") -> n.d. | AF172: =IF(INDEX($C172:$L172,1,aux!$BA$1)>0,(L172-INDEX($C172:$L172,1,aux!$BA$1))/INDEX($C172:$L172,1,aux!$BA$1),"n.d.") -> n.d. | AH172: =X172-INDEX($O172:$X172,1,aux!$BA$1) -> 23.547 | AI172: 4.764830018e-06 | AJ172: =+IF(INDEX($O172:$X172,1,aux!$BA$1)>0,(X172/INDEX($O172:$X172,1,aux!$BA$1))^(1/($X$3-INDEX($O$3:$X$3,1,aux!$BA$1)))-1,"n.d.") -> 0.01950572544 | AK172: =IF(INDEX($O172:$X172,1,aux!$BA$1)>0,(X172-INDEX($O172:$X172,1,aux!$BA$1))/INDEX($O172:$X172,1,aux!$BA$1),"n.d.") -> 0.1898905672 | CC172: =+IF(ISNA(MATCH('5.1'!A172,AUX_2d_pais!$G$2:$G$40000,0)),0,1) -> 1
A173: 0804 | B173: Nova Zelânda | C173: 16664.771 | D173: 17142.585 | E173: 23415.765 | F173: 18912.821 | G173: 13212.928 | H173: 15430.746 | I173: 17401.489 | J173: 21050.991 | K173: 18700.446 | L173: 21970.22 | M173: 18390.2762 | N173: 0.001617624917 | O173: 2054.873 | P173: 2236.639 | Q173: 2277.665 | R173: 2528.083 | S173: 2055.578 | T173: 3869.466 | U173: 3810.935 | V173: 3141.652 | W173: 2802.155 | X173: 4185.381 | Y173: 2896.2427 | Z173: 0.000303736769 | AA173: -15494.0335 | AC173: =L173-INDEX($C173:$L173,1,aux!$BA$1) -> 5305.449 | AD173: 0.001286906183 | AE173: =+IF(INDEX($C173:$L173,1,aux!$BA$1)>0,(L173/INDEX($C173:$L173,1,aux!$BA$1))^(1/($L$3-INDEX($C$3:$L$3,1,aux!$BA$1)))-1,"n.d.") -> 0.03118652298 | AF173: =IF(INDEX($C173:$L173,1,aux!$BA$1)>0,(L173-INDEX($C173:$L173,1,aux!$BA$1))/INDEX($C173:$L173,1,aux!$BA$1),"n.d.") -> 0.3183631506 | AH173: =X173-INDEX($O173:$X173,1,aux!$BA$1) -> 2130.508 | AI173: 0.0004311168502 | AJ173: =+IF(INDEX($O173:$X173,1,aux!$BA$1)>0,(X173/INDEX($O173:$X173,1,aux!$BA$1))^(1/($X$3-INDEX($O$3:$X$3,1,aux!$BA$1)))-1,"n.d.") -> 0.08225046027 | AK173: =IF(INDEX($O173:$X173,1,aux!$BA$1)>0,(X173-INDEX($O173:$X173,1,aux!$BA$1))/INDEX($O173:$X173,1,aux!$BA$1),"n.d.") -> 1.036807628 | CC173: =+IF(ISNA(MATCH('5.1'!A173,AUX_2d_pais!$G$2:$G$40000,0)),0,1) -> 1
A174: 0357 | B174: Oceano Indico, Território Britânico do | C174: 0 | D174: 0 | E174: 0 | F174: 0 | G174: 0 | H174: 0 | I174: 0 | J174: 0 | K174: 0 | L174: 0 | M174: 0 | N174: 0 | O174: 0 | P174: 0 | Q174: 0 | R174: 0 | S174: 0 | T174: 0 | U174: 0 | V174: 0 | W174: 0 | X174: 0 | Y174: 0 | Z174: 0 | AA174: 0 | AC174: =L174-INDEX($C174:$L174,1,aux!$BA$1) -> 0 | AD174: 0 | AE174: =+IF(INDEX($C174:$L174,1,aux!$BA$1)>0,(L174/INDEX($C174:$L174,1,aux!$BA$1))^(1/($L$3-INDEX($C$3:$L$3,1,aux!$BA$1)))-1,"n.d.") -> n.d. | AF174: =IF(INDEX($C174:$L174,1,aux!$BA$1)>0,(L174-INDEX($C174:$L174,1,aux!$BA$1))/INDEX($C174:$L174,1,aux!$BA$1),"n.d.") -> n.d. | AH174: =X174-INDEX($O174:$X174,1,aux!$BA$1) -> 0 | AI174: 0 | AJ174: =+IF(INDEX($O174:$X174,1,aux!$BA$1)>0,(X174/INDEX($O174:$X174,1,aux!$BA$1))^(1/($X$3-INDEX($O$3:$X$3,1,aux!$BA$1)))-1,"n.d.") -> n.d. | AK174: =IF(INDEX($O174:$X174,1,aux!$BA$1)>0,(X174-INDEX($O174:$X174,1,aux!$BA$1))/INDEX($O174:$X174,1,aux!$BA$1),"n.d.") -> n.d. | AM174: 0 | BO174: 0 | CC174: =+IF(ISNA(MATCH('5.1'!A174,AUX_2d_pais!$G$2:$G$40000,0)),0,1) -> 0
A175: 0649 | B175: Omã | C175: 128.07 | D175: 0.789 | E175: 0 | F175: 0 | G175: 0 | H175: 0.725 | I175: 139.055 | J175: 0 | K175: 175.154 | L175: 0.501 | M175: 44.4294 | N175: 3.908049217e-06 | O175: 92.674 | P175: 138.926 | Q175: 1561.39 | R175: 2149.696 | S175: 2953.886 | T175: 3740.611 | U175: 7179.945 | V175: 5232.504 | W175: 5013.864 | X175: 3821.703 | Y175: 3188.5199 | Z175: 0.0003343886658 | AA175: 3144.0905 | AC175: =L175-INDEX($C175:$L175,1,aux!$BA$1) -> -127.569 | AD175: -3.094353274e-05 | AE175: =+IF(INDEX($C175:$L175,1,aux!$BA$1)>0,(L175/INDEX($C175:$L175,1,aux!$BA$1))^(1/($L$3-INDEX($C$3:$L$3,1,aux!$BA$1)))-1,"n.d.") -> -0.4598830421 | AF175: =IF(INDEX($C175:$L175,1,aux!$BA$1)>0,(L175-INDEX($C175:$L175,1,aux!$BA$1))/INDEX($C175:$L175,1,aux!$BA$1),"n.d.") -> -0.9960880768 | AH175: =X175-INDEX($O175:$X175,1,aux!$BA$1) -> 3729.029 | AI175: 0.0007545839944 | AJ175: =+IF(INDEX($O175:$X175,1,aux!$BA$1)>0,(X175/INDEX($O175:$X175,1,aux!$BA$1))^(1/($X$3-INDEX($O$3:$X$3,1,aux!$BA$1)))-1,"n.d.") -> 0.5117419665 | AK175: =IF(INDEX($O175:$X175,1,aux!$BA$1)>0,(X175-INDEX($O175:$X175,1,aux!$BA$1))/INDEX($O175:$X175,1,aux!$BA$1),"n.d.") -> 40.23813583 | CC175: =+IF(ISNA(MATCH('5.1'!A175,AUX_2d_pais!$G$2:$G$40000,0)),0,1) -> 1
A176: 0003 | B176: Países Baixos | C176: 469460.365 | D176: 491468.049 | E176: 610602.185 | F176: 575387.903 | G176: 536584.921 | H176: 596342.029 | I176: 645425.581 | J176: 666332.845 | K176: 749646.399 | L176: 732669.721 | M176: 607391.9998 | N176: 0.0534267361 | O176: 251292.696 | P176: 294845.847 | Q176: 371364.558 | R176: 364766.029 | S176: 365225.622 | T176: 395603.931 | U176: 407382.833 | V176: 442953.161 | W176: 506190.386 | X176: 482108.272 | Y176: 388173.3335 | Z176: 0.0407087825 | AA176: -219218.6663 | AC176: =L176-INDEX($C176:$L176,1,aux!$BA$1) -> 263209.356 | AD176: 0.06384487866 | AE176: =+IF(INDEX($C176:$L176,1,aux!$BA$1)>0,(L176/INDEX($C176:$L176,1,aux!$BA$1))^(1/($L$3-INDEX($C$3:$L$3,1,aux!$BA$1)))-1,"n.d.") -> 0.05070019393 | AF176: =IF(INDEX($C176:$L176,1,aux!$BA$1)>0,(L176-INDEX($C176:$L176,1,aux!$BA$1))/INDEX($C176:$L176,1,aux!$BA$1),"n.d.") -> 0.5606636377 | AH176: =X176-INDEX($O176:$X176,1,aux!$BA$1) -> 230815.576 | AI176: 0.04670645879 | AJ176: =+IF(INDEX($O176:$X176,1,aux!$BA$1)>0,(X176/INDEX($O176:$X176,1,aux!$BA$1))^(1/($X$3-INDEX($O$3:$X$3,1,aux!$BA$1)))-1,"n.d.") -> 0.07507936015 | AK176: =IF(INDEX($O176:$X176,1,aux!$BA$1)>0,(X176-INDEX($O176:$X176,1,aux!$BA$1))/INDEX($O176:$X176,1,aux!$BA$1),"n.d.") -> 0.9185128723 | CC176: =+IF(ISNA(MATCH('5.1'!A176,AUX_2d_pais!$G$2:$G$40000,0)),0,1) -> 1
A177: 0825 | B177: Palau | C177: 0 | D177: 0 | E177: 0 | F177: 0 | G177: 0 | H177: 0 | I177: 0 | J177: 0 | K177: 0 | L177: 0 | M177: 0 | N177: 0 | O177: 0 | P177: 0 | Q177: 0 | R177: 0 | S177: 0 | T177: 0 | U177: 0 | V177: 0 | W177: 0.69 | X177: 0 | Y177: 0.069 | Z177: 7.236215757e-09 | AA177: 0.069 | AC177: =L177-INDEX($C177:$L177,1,aux!$BA$1) -> 0 | AD177: 0 | AE177: =+IF(INDEX($C177:$L177,1,aux!$BA$1)>0,(L177/INDEX($C177:$L177,1,aux!$BA$1))^(1/($L$3-INDEX($C$3:$L$3,1,aux!$BA$1)))-1,"n.d.") -> n.d. | AF177: =IF(INDEX($C177:$L177,1,aux!$BA$1)>0,(L177-INDEX($C177:$L177,1,aux!$BA$1))/INDEX($C177:$L177,1,aux!$BA$1),"n.d.") -> n.d. | AH177: =X177-INDEX($O177:$X177,1,aux!$BA$1) -> 0 | AI177: 0 | AJ177: =+IF(INDEX($O177:$X177,1,aux!$BA$1)>0,(X177/INDEX($O177:$X177,1,aux!$BA$1))^(1/($X$3-INDEX($O$3:$X$3,1,aux!$BA$1)))-1,"n.d.") -> n.d. | AK177: =IF(INDEX($O177:$X177,1,aux!$BA$1)>0,(X177-INDEX($O177:$X177,1,aux!$BA$1))/INDEX($O177:$X177,1,aux!$BA$1),"n.d.") -> n.d. | BO177: 0.69 | CC177: =+IF(ISNA(MATCH('5.1'!A177,AUX_2d_pais!$G$2:$G$40000,0)),0,1) -> 1
A178: 0442 | B178: Panamá | C178: 2229.975 | D178: 3302.952 | E178: 2629.771 | F178: 2761.487 | G178: 6455.627 | H178: 5172.175 | I178: 6766.188 | J178: 9407.494 | K178: 10796.912 | L178: 7039.46 | M178: 5656.2041 | N178: 0.0004975247022 | O178: 384.684 | P178: 1003.389 | Q178: 1049.121 | R178: 2216.593 | S178: 1812.937 | T178: 1740.32 | U178: 3814.946 | V178: 3203.7 | W178: 2104.586 | X178: 2434.751 | Y178: 1976.5027 | Z178: 0.0002072811591 | AA178: -3679.7014 | AC178: =L178-INDEX($C178:$L178,1,aux!$BA$1) -> 4809.485 | AD178: 0.001166603615 | AE178: =+IF(INDEX($C178:$L178,1,aux!$BA$1)>0,(L178/INDEX($C178:$L178,1,aux!$BA$1))^(1/($L$3-INDEX($C$3:$L$3,1,aux!$BA$1)))-1,"n.d.") -> 0.1362425247 | AF178: =IF(INDEX($C178:$L178,1,aux!$BA$1)>0,(L178-INDEX($C178:$L178,1,aux!$BA$1))/INDEX($C178:$L178,1,aux!$BA$1),"n.d.") -> 2.15674391 | AH178: =X178-INDEX($O178:$X178,1,aux!$BA$1) -> 2050.067 | AI178: 0.0004148392908 | AJ178: =+IF(INDEX($O178:$X178,1,aux!$BA$1)>0,(X178/INDEX($O178:$X178,1,aux!$BA$1))^(1/($X$3-INDEX($O$3:$X$3,1,aux!$BA$1)))-1,"n.d.") -> 0.227549282 | AK178: =IF(INDEX($O178:$X178,1,aux!$BA$1)>0,(X178-INDEX($O178:$X178,1,aux!$BA$1))/INDEX($O178:$X178,1,aux!$BA$1),"n.d.") -> 5.329223467 | CC178: =+IF(ISNA(MATCH('5.1'!A178,AUX_2d_pais!$G$2:$G$40000,0)),0,1) -> 1
A179: 0801 | B179: Papuásia-Nova Guiné | C179: 545.754 | D179: 451.99 | E179: 509.387 | F179: 2181.815 | G179: 2042.966 | H179: 3807.915 | I179: 226.267 | J179: 577.592 | K179: 1409.63 | L179: 1217.84 | M179: 1297.1156 | N179: 0.0001140954324 | O179: 0 | P179: 0 | Q179: 0 | R179: 0 | S179: 0 | T179: 0 | U179: 0 | V179: 0 | W179: 4.264 | X179: 0 | Y179: 0.4264 | Z179: 4.471771592e-08 | AA179: -1296.6892 | AC179: =L179-INDEX($C179:$L179,1,aux!$BA$1) -> 672.086 | AD179: 0.000163023267 | AE179: =+IF(INDEX($C179:$L179,1,aux!$BA$1)>0,(L179/INDEX($C179:$L179,1,aux!$BA$1))^(1/($L$3-INDEX($C$3:$L$3,1,aux!$BA$1)))-1,"n.d.") -> 0.0932829863 | AF179: =IF(INDEX($C179:$L179,1,aux!$BA$1)>0,(L179-INDEX($C179:$L179,1,aux!$BA$1))/INDEX($C179:$L179,1,aux!$BA$1),"n.d.") -> 1.231481583 | AH179: =X179-INDEX($O179:$X179,1,aux!$BA$1) -> 0 | AI179: 0 | AJ179: =+IF(INDEX($O179:$X179,1,aux!$BA$1)>0,(X179/INDEX($O179:$X179,1,aux!$BA$1))^(1/($X$3-INDEX($O$3:$X$3,1,aux!$BA$1)))-1,"n.d.") -> n.d. | AK179: =IF(INDEX($O179:$X179,1,aux!$BA$1)>0,(X179-INDEX($O179:$X179,1,aux!$BA$1))/INDEX($O179:$X179,1,aux!$BA$1),"n.d.") -> n.d. | BO179: 12975.42 | CC179: =+IF(ISNA(MATCH('5.1'!A179,AUX_2d_pais!$G$2:$G$40000,0)),0,1) -> 1
A180: 0662 | B180: Paquistão | C180: 3759.071 | D180: 2830.055 | E180: 4379.68 | F180: 2751.474 | G180: 2841.818 | H180: 3275.237 | I180: 3597.1 | J180: 2868.618 | K180: 2091.452 | L180: 6169.419 | M180: 3456.3924 | N180: 0.0003040273245 | O180: 273.094 | P180: 914.54 | Q180: 1425.089 | R180: 808.48 | S180: 919.413 | T180: 1569.3 | U180: 2691.862 | V180: 3457.299 | W180: 2693.94 | X180: 2296.57 | Y180: 1704.9587 | Z180: 0.0001788036088 | AA180: -1751.4337 | AC180: =L180-INDEX($C180:$L180,1,aux!$BA$1) -> 2410.348 | AD180: 0.000584661495 | AE180: =+IF(INDEX($C180:$L180,1,aux!$BA$1)>0,(L180/INDEX($C180:$L180,1,aux!$BA$1))^(1/($L$3-INDEX($C$3:$L$3,1,aux!$BA$1)))-1,"n.d.") -> 0.05659142561 | AF180: =IF(INDEX($C180:$L180,1,aux!$BA$1)>0,(L180-INDEX($C180:$L180,1,aux!$BA$1))/INDEX($C180:$L180,1,aux!$BA$1),"n.d.") -> 0.6412084262 | AH180: =X180-INDEX($O180:$X180,1,aux!$BA$1) -> 2023.476 | AI180: 0.0004094584951 | AJ180: =+IF(INDEX($O180:$X180,1,aux!$BA$1)>0,(X180/INDEX($O180:$X180,1,aux!$BA$1))^(1/($X$3-INDEX($O$3:$X$3,1,aux!$BA$1)))-1,"n.d.") -> 0.2669280384 | AK180: =IF(INDEX($O180:$X180,1,aux!$BA$1)>0,(X180-INDEX($O180:$X180,1,aux!$BA$1))/INDEX($O180:$X180,1,aux!$BA$1),"n.d.") -> 7.409448761 | CC180: =+IF(ISNA(MATCH('5.1'!A180,AUX_2d_pais!$G$2:$G$40000,0)),0,1) -> 1
A181: 0520 | B181: Paraguai | C181: 870.345 | D181: 44850.751 | E181: 66708.447 | F181: 37962.718 | G181: 44088.396 | H181: 20076.898 | I181: 64524.503 | J181: 87735.108 | K181: 84654.428 | L181: 50712.335 | M181: 50218.3929 | N181: 0.004417254139 | O181: 68.691 | P181: 333.628 | Q181: 799.231 | R181: 1480.37 | S181: 963.759 | T181: 522.264 | U181: 1063.324 | V181: 915.949 | W181: 2740.878 | X181: 2432.333 | Y181: 1132.0427 | Z181: 0.0001187203656 | AA181: -49086.3502 | AC181: =L181-INDEX($C181:$L181,1,aux!$BA$1) -> 49841.99 | AD181: 0.01208982785 | AE181: =+IF(INDEX($C181:$L181,1,aux!$BA$1)>0,(L181/INDEX($C181:$L181,1,aux!$BA$1))^(1/($L$3-INDEX($C$3:$L$3,1,aux!$BA$1)))-1,"n.d.") -> 0.5709342874 | AF181: =IF(INDEX($C181:$L181,1,aux!$BA$1)>0,(L181-INDEX($C181:$L181,1,aux!$BA$1))/INDEX($C181:$L181,1,aux!$BA$1),"n.d.") -> 57.26693438 | AH181: =X181-INDEX($O181:$X181,1,aux!$BA$1) -> 2363.642 | AI181: 0.0004782924514 | AJ181: =+IF(INDEX($O181:$X181,1,aux!$BA$1)>0,(X181/INDEX($O181:$X181,1,aux!$BA$1))^(1/($X$3-INDEX($O$3:$X$3,1,aux!$BA$1)))-1,"n.d.") -> 0.4863627034 | AK181: =IF(INDEX($O181:$X181,1,aux!$BA$1)>0,(X181-INDEX($O181:$X181,1,aux!$BA$1))/INDEX($O181:$X181,1,aux!$BA$1),"n.d.") -> 34.40977712 | CC181: =+IF(ISNA(MATCH('5.1'!A181,AUX_2d_pais!$G$2:$G$40000,0)),0,1) -> 1
A182: 0504 | B182: Peru | C182: 8083.762 | D182: 9530.54 | E182: 11527.592 | F182: 10153.498 | G182: 8402.901 | H182: 9335.693 | I182: 11061.724 | J182: 9549.779 | K182: 17220.588 | L182: 15295.405 | M182: 11016.1482 | N182: 0.0009689901134 | O182: 612.268 | P182: 1386.458 | Q182: 4400.305 | R182: 7263.551 | S182: 7170.311 | T182: 9005.727 | U182: 15605.009 | V182: 12206.436 | W182: 6620.74 | X182: 8081.444 | Y182: 7235.2249 | Z182: 0.0007587775134 | AA182: -3780.9233 | AC182: =L182-INDEX($C182:$L182,1,aux!$BA$1) -> 7211.643 | AD182: 0.001749278518 | AE182: =+IF(INDEX($C182:$L182,1,aux!$BA$1)>0,(L182/INDEX($C182:$L182,1,aux!$BA$1))^(1/($L$3-INDEX($C$3:$L$3,1,aux!$BA$1)))-1,"n.d.") -> 0.0734255796 | AF182: =IF(INDEX($C182:$L182,1,aux!$BA$1)>0,(L182-INDEX($C182:$L182,1,aux!$BA$1))/INDEX($C182:$L182,1,aux!$BA$1),"n.d.") -> 0.8921147109 | AH182: =X182-INDEX($O182:$X182,1,aux!$BA$1) -> 7469.176 | AI182: 0.001511417761 | AJ182: =+IF(INDEX($O182:$X182,1,aux!$BA$1)>0,(X182/INDEX($O182:$X182,1,aux!$BA$1))^(1/($X$3-INDEX($O$3:$X$3,1,aux!$BA$1)))-1,"n.d.") -> 0.3320031974 | AK182: =IF(INDEX($O182:$X182,1,aux!$BA$1)>0,(X182-INDEX($O182:$X182,1,aux!$BA$1))/INDEX($O182:$X182,1,aux!$BA$1),"n.d.") -> 12.19919382 | CC182: =+IF(ISNA(MATCH('5.1'!A182,AUX_2d_pais!$G$2:$G$40000,0)),0,1) -> 1
A183: 0813 | B183: Pitcairn | C183: 0 | D183: 0 | E183: 0 | F183: 0 | G183: 0 | H183: 0 | I183: 0 | J183: 0 | K183: 0 | L183: 0 | M183: 0 | N183: 0 | O183: 0 | P183: 0 | Q183: 0 | R183: 0 | S183: 0 | T183: 0 | U183: 0 | V183: 0 | W183: 0 | X183: 0 | Y183: 0 | Z183: 0 | AA183: 0 | AC183: =L183-INDEX($C183:$L183,1,aux!$BA$1) -> 0 | AD183: 0 | AE183: =+IF(INDEX($C183:$L183,1,aux!$BA$1)>0,(L183/INDEX($C183:$L183,1,aux!$BA$1))^(1/($L$3-INDEX($C$3:$L$3,1,aux!$BA$1)))-1,"n.d.") -> n.d. | AF183: =IF(INDEX($C183:$L183,1,aux!$BA$1)>0,(L183-INDEX($C183:$L183,1,aux!$BA$1))/INDEX($C183:$L183,1,aux!$BA$1),"n.d.") -> n.d. | AH183: =X183-INDEX($O183:$X183,1,aux!$BA$1) -> 0 | AI183: 0 | AJ183: =+IF(INDEX($O183:$X183,1,aux!$BA$1)>0,(X183/INDEX($O183:$X183,1,aux!$BA$1))^(1/($X$3-INDEX($O$3:$X$3,1,aux!$BA$1)))-1,"n.d.") -> n.d. | AK183: =IF(INDEX($O183:$X183,1,aux!$BA$1)>0,(X183-INDEX($O183:$X183,1,aux!$BA$1))/INDEX($O183:$X183,1,aux!$BA$1),"n.d.") -> n.d. | AM183: 0 | BO183: 0 | CC183: =+IF(ISNA(MATCH('5.1'!A183,AUX_2d_pais!$G$2:$G$40000,0)),0,1) -> 0
A184: 0822 | B184: Polinésia Francesa | C184: 14.004 | D184: 17.116 | E184: 14.038 | F184: 0 | G184: 0 | H184: 0 | I184: 0 | J184: 0 | K184: 0 | L184: 1.903 | M184: 4.7061 | N184: 4.139527074e-07 | O184: 50.371 | P184: 143.797 | Q184: 41.998 | R184: 16.217 | S184: 0 | T184: 15.877 | U184: 180.994 | V184: 336.284 | W184: 509.521 | X184: 443.515 | Y184: 173.8574 | Z184: 1.823289358e-05 | AA184: 169.1513 | AC184: =L184-INDEX($C184:$L184,1,aux!$BA$1) -> -12.101 | AD184: -2.935256134e-06 | AE184: =+IF(INDEX($C184:$L184,1,aux!$BA$1)>0,(L184/INDEX($C184:$L184,1,aux!$BA$1))^(1/($L$3-INDEX($C$3:$L$3,1,aux!$BA$1)))-1,"n.d.") -> -0.1988987497 | AF184: =IF(INDEX($C184:$L184,1,aux!$BA$1)>0,(L184-INDEX($C184:$L184,1,aux!$BA$1))/INDEX($C184:$L184,1,aux!$BA$1),"n.d.") -> -0.8641102542 | AH184: =X184-INDEX($O184:$X184,1,aux!$BA$1) -> 393.144 | AI184: 7.955426731e-05 | AJ184: =+IF(INDEX($O184:$X184,1,aux!$BA$1)>0,(X184/INDEX($O184:$X184,1,aux!$BA$1))^(1/($X$3-INDEX($O$3:$X$3,1,aux!$BA$1)))-1,"n.d.") -> 0.2734143772 | AK184: =IF(INDEX($O184:$X184,1,aux!$BA$1)>0,(X184-INDEX($O184:$X184,1,aux!$BA$1))/INDEX($O184:$X184,1,aux!$BA$1),"n.d.") -> 7.804967144 | CC184: =+IF(ISNA(MATCH('5.1'!A184,AUX_2d_pais!$G$2:$G$40000,0)),0,1) -> 1
A185: 0060 | B185: Polónia | C185: 32888.32 | D185: 46826.612 | E185: 51528.776 | F185: 65630.395 | G185: 80074.694 | H185: 108730.289 | I185: 116904.197 | J185: 138333.103 | K185: 148130.106 | L185: 154308.599 | M185: 94335.5091 | N185: 0.008297834597 | O185: 39417.61 | P185: 40563.836 | Q185: 83935.949 | R185: 94626.087 | S185: 107691.865 | T185: 136315.948 | U185: 182686.932 | V185: 191467.585 | W185: 209367.819 | X185: 251476.417 | Y185: 133755.0048 | Z185: 0.01402724744 | AA185: 39419.4957 | AC185: =L185-INDEX($C185:$L185,1,aux!$BA$1) -> 121420.279 | AD185: 0.02945207989 | AE185: =+IF(INDEX($C185:$L185,1,aux!$BA$1)>0,(L185/INDEX($C185:$L185,1,aux!$BA$1))^(1/($L$3-INDEX($C$3:$L$3,1,aux!$BA$1)))-1,"n.d.") -> 0.1873924167 | AF185: =IF(INDEX($C185:$L185,1,aux!$BA$1)>0,(L185-INDEX($C185:$L185,1,aux!$BA$1))/INDEX($C185:$L185,1,aux!$BA$1),"n.d.") -> 3.691896667 | AH185: =X185-INDEX($O185:$X185,1,aux!$BA$1) -> 212058.807 | AI185: 0.04291095125 | AJ185: =+IF(INDEX($O185:$X185,1,aux!$BA$1)>0,(X185/INDEX($O185:$X185,1,aux!$BA$1))^(1/($X$3-INDEX($O$3:$X$3,1,aux!$BA$1)))-1,"n.d.") -> 0.2286353237 | AK185: =IF(INDEX($O185:$X185,1,aux!$BA$1)>0,(X185-INDEX($O185:$X185,1,aux!$BA$1))/INDEX($O185:$X185,1,aux!$BA$1),"n.d.") -> 5.379798699 | CC185: =+IF(ISNA(MATCH('5.1'!A185,AUX_2d_pais!$G$2:$G$40000,0)),0,1) -> 1
A186: 0346 | B186: Quénia | C186: 3646.036 | D186: 3816.075 | E186: 4281.679 | F186: 3664.098 | G186: 3864.201 | H186: 4062.388 | I186: 4089.5 | J186: 5559.069 | K186: 4721.322 | L186: 4657.47 | M186: 4236.1838 | N186: 0.0003726184639 | O186: 911.437 | P186: 1326.008 | Q186: 2460.562 | R186: 1686.224 | S186: 3832.375 | T186: 2204.215 | U186: 1981.461 | V186: 1551.387 | W186: 1724.376 | X186: 4846.754 | Y186: 2252.4799 | Z186: 0.0002362236311 | AA186: -1983.7039 | AC186: =L186-INDEX($C186:$L186,1,aux!$BA$1) -> 1011.434 | AD186: 0.0002453365716 | AE186: =+IF(INDEX($C186:$L186,1,aux!$BA$1)>0,(L186/INDEX($C186:$L186,1,aux!$BA$1))^(1/($L$3-INDEX($C$3:$L$3,1,aux!$BA$1)))-1,"n.d.") -> 0.02757693132 | AF186: =IF(INDEX($C186:$L186,1,aux!$BA$1)>0,(L186-INDEX($C186:$L186,1,aux!$BA$1))/INDEX($C186:$L186,1,aux!$BA$1),"n.d.") -> 0.2774064765 | AH186: =X186-INDEX($O186:$X186,1,aux!$BA$1) -> 3935.317 | AI186: 0.0007963271997 | AJ186: =+IF(INDEX($O186:$X186,1,aux!$BA$1)>0,(X186/INDEX($O186:$X186,1,aux!$BA$1))^(1/($X$3-INDEX($O$3:$X$3,1,aux!$BA$1)))-1,"n.d.") -> 0.2040264729 | AK186: =IF(INDEX($O186:$X186,1,aux!$BA$1)>0,(X186-INDEX($O186:$X186,1,aux!$BA$1))/INDEX($O186:$X186,1,aux!$BA$1),"n.d.") -> 4.317705996 | CC186: =+IF(ISNA(MATCH('5.1'!A186,AUX_2d_pais!$G$2:$G$40000,0)),0,1) -> 1
A187: 0083 | B187: Quirguizistão | C187: 53.197 | D187: 100.732 | E187: 0 | F187: 0 | G187: 72.712 | H187: 143.196 | I187: 0 | J187: 85.615 | K187: 0 | L187: 0 | M187: 45.5452 | N187: 4.006195969e-06 | O187: 3.75 | P187: 14.123 | Q187: 40.6 | R187: 232.788 | S187: 195.968 | T187: 106.645 | U187: 95.45 | V187: 96.688 | W187: 78.28 | X187: 139.115 | Y187: 100.3407 | Z187: 1.052299934e-05 | AA187: 54.7955 | AC187: =L187-INDEX($C187:$L187,1,aux!$BA$1) -> -53.197 | AD187: -1.29036295e-05 | AE187: =+IF(INDEX($C187:$L187,1,aux!$BA$1)>0,(L187/INDEX($C187:$L187,1,aux!$BA$1))^(1/($L$3-INDEX($C$3:$L$3,1,aux!$BA$1)))-1,"n.d.") -> -1 | AF187: =IF(INDEX($C187:$L187,1,aux!$BA$1)>0,(L187-INDEX($C187:$L187,1,aux!$BA$1))/INDEX($C187:$L187,1,aux!$BA$1),"n.d.") -> -1 | AH187: =X187-INDEX($O187:$X187,1,aux!$BA$1) -> 135.365 | AI187: 2.739165139e-05 | AJ187: =+IF(INDEX($O187:$X187,1,aux!$BA$1)>0,(X187/INDEX($O187:$X187,1,aux!$BA$1))^(1/($X$3-INDEX($O$3:$X$3,1,aux!$BA$1)))-1,"n.d.") -> 0.494071599 | AK187: =IF(INDEX($O187:$X187,1,aux!$BA$1)>0,(X187-INDEX($O187:$X187,1,aux!$BA$1))/INDEX($O187:$X187,1,aux!$BA$1),"n.d.") -> 36.09733333 | CC187: =+IF(ISNA(MATCH('5.1'!A187,AUX_2d_pais!$G$2:$G$40000,0)),0,1) -> 1
A188: 0890 | B188: Região Polar | C188: 0 | D188: 0 | E188: 0 | F188: 0 | G188: 0 | H188: 0 | I188: 0 | J188: 0 | K188: 0 | L188: 0 | M188: 0 | N188: 0 | O188: 0 | P188: 0 | Q188: 0 | R188: 0 | S188: 0 | T188: 0 | U188: 0 | V188: 0 | W188: 0 | X188: 0 | Y188: 0 | Z188: 0 | AA188: 0 | AC188: =L188-INDEX($C188:$L188,1,aux!$BA$1) -> 0 | AD188: 0 | AE188: =+IF(INDEX($C188:$L188,1,aux!$BA$1)>0,(L188/INDEX($C188:$L188,1,aux!$BA$1))^(1/($L$3-INDEX($C$3:$L$3,1,aux!$BA$1)))-1,"n.d.") -> n.d. | AF188: =IF(INDEX($C188:$L188,1,aux!$BA$1)>0,(L188-INDEX($C188:$L188,1,aux!$BA$1))/INDEX($C188:$L188,1,aux!$BA$1),"n.d.") -> n.d. | AH188: =X188-INDEX($O188:$X188,1,aux!$BA$1) -> 0 | AI188: 0 | AJ188: =+IF(INDEX($O188:$X188,1,aux!$BA$1)>0,(X188/INDEX($O188:$X188,1,aux!$BA$1))^(1/($X$3-INDEX($O$3:$X$3,1,aux!$BA$1)))-1,"n.d.") -> n.d. | AK188: =IF(INDEX($O188:$X188,1,aux!$BA$1)>0,(X188-INDEX($O188:$X188,1,aux!$BA$1))/INDEX($O188:$X188,1,aux!$BA$1),"n.d.") -> n.d. | AM188: 0 | BO188: 0 | CC188: =+IF(ISNA(MATCH('5.1'!A188,AUX_2d_pais!$G$2:$G$40000,0)),0,1) -> 0
A189: 0006 | B189: Reino Unido | C189: 243369.894 | D189: 252770.664 | E189: 225904.845 | F189: 197692.546 | G189: 208372.146 | H189: 208908.712 | I189: 250773.56 | J189: 262317.42 | K189: 210597.628 | L189: 229279.208 | M189: 228998.6623 | N189: 0.02014292434 | O189: 366780.723 | P189: 385710.025 | Q189: 434533.994 | R189: 458629.778 | S189: 498022.592 | T189: 604777.894 | U189: 690921.664 | V189: 578563.596 | W189: 570035.492 | X189: 606931.654 | Y189: 519490.7412 | Z189: 0.05448039257 | AA189: 290492.0789 | AC189: =L189-INDEX($C189:$L189,1,aux!$BA$1) -> -14090.686 | AD189: -0.003417880548 | AE189: =+IF(INDEX($C189:$L189,1,aux!$BA$1)>0,(L189/INDEX($C189:$L189,1,aux!$BA$1))^(1/($L$3-INDEX($C$3:$L$3,1,aux!$BA$1)))-1,"n.d.") -> -0.006604976584 | AF189: =IF(INDEX($C189:$L189,1,aux!$BA$1)>0,(L189-INDEX($C189:$L189,1,aux!$BA$1))/INDEX($C189:$L189,1,aux!$BA$1),"n.d.") -> -0.0578982296 | AH189: =X189-INDEX($O189:$X189,1,aux!$BA$1) -> 240150.931 | AI189: 0.04859550536 | AJ189: =+IF(INDEX($O189:$X189,1,aux!$BA$1)>0,(X189/INDEX($O189:$X189,1,aux!$BA$1))^(1/($X$3-INDEX($O$3:$X$3,1,aux!$BA$1)))-1,"n.d.") -> 0.0575567912 | AK189: =IF(INDEX($O189:$X189,1,aux!$BA$1)>0,(X189-INDEX($O189:$X189,1,aux!$BA$1))/INDEX($O189:$X189,1,aux!$BA$1),"n.d.") -> 0.6547534152 | CC189: =+IF(ISNA(MATCH('5.1'!A189,AUX_2d_pais!$G$2:$G$40000,0)),0,1) -> 1
A190: 0372 | B190: Reunião, Ilha da | C190: 0 | D190: 0 | E190: 0 | F190: 0 | G190: 0 | H190: 0 | I190: 0 | J190: 0 | K190: 0 | L190: 0 | M190: 0 | N190: 0 | O190: 0 | P190: 0 | Q190: 0 | R190: 0 | S190: 0 | T190: 0 | U190: 0 | V190: 0 | W190: 0 | X190: 0 | Y190: 0 | Z190: 0 | AA190: 0 | AC190: =L190-INDEX($C190:$L190,1,aux!$BA$1) -> 0 | AD190: 0 | AE190: =+IF(INDEX($C190:$L190,1,aux!$BA$1)>0,(L190/INDEX($C190:$L190,1,aux!$BA$1))^(1/($L$3-INDEX($C$3:$L$3,1,aux!$BA$1)))-1,"n.d.") -> n.d. | AF190: =IF(INDEX($C190:$L190,1,aux!$BA$1)>0,(L190-INDEX($C190:$L190,1,aux!$BA$1))/INDEX($C190:$L190,1,aux!$BA$1),"n.d.") -> n.d. | AH190: =X190-INDEX($O190:$X190,1,aux!$BA$1) -> 0 | AI190: 0 | AJ190: =+IF(INDEX($O190:$X190,1,aux!$BA$1)>0,(X190/INDEX($O190:$X190,1,aux!$BA$1))^(1/($X$3-INDEX($O$3:$X$3,1,aux!$BA$1)))-1,"n.d.") -> n.d. | AK190: =IF(INDEX($O190:$X190,1,aux!$BA$1)>0,(X190-INDEX($O190:$X190,1,aux!$BA$1))/INDEX($O190:$X190,1,aux!$BA$1),"n.d.") -> n.d. | AM190: 0 | BO190: 0 | CC190: =+IF(ISNA(MATCH('5.1'!A190,AUX_2d_pais!$G$2:$G$40000,0)),0,1) -> 0
A191: 0066 | B191: Roménia | C191: 63171.574 | D191: 40838.091 | E191: 22956.034 | F191: 61597.098 | G191: 59797.282 | H191: 57433.366 | I191: 72192.966 | J191: 52141.727 | K191: 89997.778 | L191: 112253.493 | M191: 63237.9409 | N191: 0.005562465066 | O191: 16543.971 | P191: 16366.776 | Q191: 28090.144 | R191: 28429.494 | S191: 30006.338 | T191: 29627.709 | U191: 11407.866 | V191: 10896.791 | W191: 27752.75 | X191: 26047.834 | Y191: 22516.9673 | Z191: 0.002361414979 | AA191: -40720.9736 | AC191: =L191-INDEX($C191:$L191,1,aux!$BA$1) -> 49081.919 | AD191: 0.01190546267 | AE191: =+IF(INDEX($C191:$L191,1,aux!$BA$1)>0,(L191/INDEX($C191:$L191,1,aux!$BA$1))^(1/($L$3-INDEX($C$3:$L$3,1,aux!$BA$1)))-1,"n.d.") -> 0.06596272512 | AF191: =IF(INDEX($C191:$L191,1,aux!$BA$1)>0,(L191-INDEX($C191:$L191,1,aux!$BA$1))/INDEX($C191:$L191,1,aux!$BA$1),"n.d.") -> 0.7769621032 | AH191: =X191-INDEX($O191:$X191,1,aux!$BA$1) -> 9503.863 | AI191: 0.001923144847 | AJ191: =+IF(INDEX($O191:$X191,1,aux!$BA$1)>0,(X191/INDEX($O191:$X191,1,aux!$BA$1))^(1/($X$3-INDEX($O$3:$X$3,1,aux!$BA$1)))-1,"n.d.") -> 0.05172825005 | AK191: =IF(INDEX($O191:$X191,1,aux!$BA$1)>0,(X191-INDEX($O191:$X191,1,aux!$BA$1))/INDEX($O191:$X191,1,aux!$BA$1),"n.d.") -> 0.5744608111 | CC191: =+IF(ISNA(MATCH('5.1'!A191,AUX_2d_pais!$G$2:$G$40000,0)),0,1) -> 1
A192: 0324 | B192: Ruanda | C192: 265.655 | D192: 875.701 | E192: 184.57 | F192: 0 | G192: 0 | H192: 0 | I192: 314.975 | J192: 0 | K192: 234.818 | L192: 0 | M192: 187.5719 | N192: 1.649898979e-05 | O192: 0.122 | P192: 0 | Q192: 0 | R192: 33.215 | S192: 0.188 | T192: 0 | U192: 27.122 | V192: 0.21 | W192: 192.537 | X192: 1785.885 | Y192: 203.9279 | Z192: 2.138646787e-05 | AA192: 16.356 | AC192: =L192-INDEX($C192:$L192,1,aux!$BA$1) -> -265.655 | AD192: -6.443810166e-05 | AE192: =+IF(INDEX($C192:$L192,1,aux!$BA$1)>0,(L192/INDEX($C192:$L192,1,aux!$BA$1))^(1/($L$3-INDEX($C$3:$L$3,1,aux!$BA$1)))-1,"n.d.") -> -1 | AF192: =IF(INDEX($C192:$L192,1,aux!$BA$1)>0,(L192-INDEX($C192:$L192,1,aux!$BA$1))/INDEX($C192:$L192,1,aux!$BA$1),"n.d.") -> -1 | AH192: =X192-INDEX($O192:$X192,1,aux!$BA$1) -> 1785.763 | AI192: 0.0003613563149 | AJ192: =+IF(INDEX($O192:$X192,1,aux!$BA$1)>0,(X192/INDEX($O192:$X192,1,aux!$BA$1))^(1/($X$3-INDEX($O$3:$X$3,1,aux!$BA$1)))-1,"n.d.") -> 1.902903699 | AK192: =IF(INDEX($O192:$X192,1,aux!$BA$1)>0,(X192-INDEX($O192:$X192,1,aux!$BA$1))/INDEX($O192:$X192,1,aux!$BA$1),"n.d.") -> 14637.40164 | BO192: 3914.998 | CC192: =+IF(ISNA(MATCH('5.1'!A192,AUX_2d_pais!$G$2:$G$40000,0)),0,1) -> 1
A193: 0075 | B193: Rússia, Federação da | C193: 37677.412 | D193: 27024.877 | E193: 47867.006 | F193: 73921.505 | G193: 35679.302 | H193: 43174.847 | I193: 40559.199 | J193: 56799.132 | K193: 67998.82 | L193: 110719.752 | M193: 54142.1852 | N193: 0.004762394371 | O193: 33382.225 | P193: 46140.184 | Q193: 56984.486 | R193: 69100.456 | S193: 97236.397 | T193: 83273.473 | U193: 63076.704 | V193: 69469.913 | W193: 82977.817 | X193: 85448.737 | Y193: 68709.0392 | Z193: 0.007205701914 | AA193: 14566.854 | AC193: =L193-INDEX($C193:$L193,1,aux!$BA$1) -> 73042.34 | AD193: 0.01771737679 | AE193: =+IF(INDEX($C193:$L193,1,aux!$BA$1)>0,(L193/INDEX($C193:$L193,1,aux!$BA$1))^(1/($L$3-INDEX($C$3:$L$3,1,aux!$BA$1)))-1,"n.d.") -> 0.127238996 | AF193: =IF(INDEX($C193:$L193,1,aux!$BA$1)>0,(L193-INDEX($C193:$L193,1,aux!$BA$1))/INDEX($C193:$L193,1,aux!$BA$1),"n.d.") -> 1.938624128 | AH193: =X193-INDEX($O193:$X193,1,aux!$BA$1) -> 52066.512 | AI193: 0.01053586781 | AJ193: =+IF(INDEX($O193:$X193,1,aux!$BA$1)>0,(X193/INDEX($O193:$X193,1,aux!$BA$1))^(1/($X$3-INDEX($O$3:$X$3,1,aux!$BA$1)))-1,"n.d.") -> 0.1100805295 | AK193: =IF(INDEX($O193:$X193,1,aux!$BA$1)>0,(X193-INDEX($O193:$X193,1,aux!$BA$1))/INDEX($O193:$X193,1,aux!$BA$1),"n.d.") -> 1.559707659 | CC193: =+IF(ISNA(MATCH('5.1'!A193,AUX_2d_pais!$G$2:$G$40000,0)),0,1) -> 1
A194: 0806 | B194: Salomão, Ilhas | C194: 0 | D194: 0 | E194: 0 | F194: 0 | G194: 0 | H194: 0 | I194: 0 | J194: 0 | K194: 0 | L194: 0 | M194: 0 | N194: 0 | O194: 0 | P194: 0 | Q194: 0 | R194: 0 | S194: 0 | T194: 0 | U194: 0 | V194: 0.337 | W194: 0 | X194: 0 | Y194: 0.0337 | Z194: 3.534209725e-09 | AA194: 0.0337 | AC194: =L194-INDEX($C194:$L194,1,aux!$BA$1) -> 0 | AD194: 0 | AE194: =+IF(INDEX($C194:$L194,1,aux!$BA$1)>0,(L194/INDEX($C194:$L194,1,aux!$BA$1))^(1/($L$3-INDEX($C$3:$L$3,1,aux!$BA$1)))-1,"n.d.") -> n.d. | AF194: =IF(INDEX($C194:$L194,1,aux!$BA$1)>0,(L194-INDEX($C194:$L194,1,aux!$BA$1))/INDEX($C194:$L194,1,aux!$BA$1),"n.d.") -> n.d. | AH194: =X194-INDEX($O194:$X194,1,aux!$BA$1) -> 0 | AI194: 0 | AJ194: =+IF(INDEX($O194:$X194,1,aux!$BA$1)>0,(X194/INDEX($O194:$X194,1,aux!$BA$1))^(1/($X$3-INDEX($O$3:$X$3,1,aux!$BA$1)))-1,"n.d.") -> n.d. | AK194: =IF(INDEX($O194:$X194,1,aux!$BA$1)>0,(X194-INDEX($O194:$X194,1,aux!$BA$1))/INDEX($O194:$X194,1,aux!$BA$1),"n.d.") -> n.d. | BO194: 0.337 | CC194: =+IF(ISNA(MATCH('5.1'!A194,AUX_2d_pais!$G$2:$G$40000,0)),0,1) -> 1
A195: 0819 | B195: Samoa | C195: 0 | D195: 0 | E195: 0 | F195: 0 | G195: 0 | H195: 0 | I195: 0 | J195: 0 | K195: 0 | L195: 0 | M195: 0 | N195: 0 | O195: 0 | P195: 0 | Q195: 0 | R195: 0 | S195: 0 | T195: 0 | U195: 0 | V195: 0 | W195: 0 | X195: 0 | Y195: 0 | Z195: 0 | AA195: 0 | AC195: =L195-INDEX($C195:$L195,1,aux!$BA$1) -> 0 | AD195: 0 | AE195: =+IF(INDEX($C195:$L195,1,aux!$BA$1)>0,(L195/INDEX($C195:$L195,1,aux!$BA$1))^(1/($L$3-INDEX($C$3:$L$3,1,aux!$BA$1)))-1,"n.d.") -> n.d. | AF195: =IF(INDEX($C195:$L195,1,aux!$BA$1)>0,(L195-INDEX($C195:$L195,1,aux!$BA$1))/INDEX($C195:$L195,1,aux!$BA$1),"n.d.") -> n.d. | AH195: =X195-INDEX($O195:$X195,1,aux!$BA$1) -> 0 | AI195: 0 | AJ195: =+IF(INDEX($O195:$X195,1,aux!$BA$1)>0,(X195/INDEX($O195:$X195,1,aux!$BA$1))^(1/($X$3-INDEX($O$3:$X$3,1,aux!$BA$1)))-1,"n.d.") -> n.d. | AK195: =IF(INDEX($O195:$X195,1,aux!$BA$1)>0,(X195-INDEX($O195:$X195,1,aux!$BA$1))/INDEX($O195:$X195,1,aux!$BA$1),"n.d.") -> n.d. | AM195: 0 | BO195: 0 | CC195: =+IF(ISNA(MATCH('5.1'!A195,AUX_2d_pais!$G$2:$G$40000,0)),0,1) -> 0
A196: 0830 | B196: Samoa Americana | C196: 0 | D196: 0 | E196: 0 | F196: 0 | G196: 0 | H196: 0 | I196: 0 | J196: 432.909 | K196: 2054.023 | L196: 0 | M196: 248.6932 | N196: 2.187527325e-05 | O196: 0 | P196: 0 | Q196: 0 | R196: 0 | S196: 0 | T196: 0 | U196: 0 | V196: 0 | W196: 0 | X196: 0 | Y196: 0 | Z196: 0 | AA196: -248.6932 | AC196: =L196-INDEX($C196:$L196,1,aux!$BA$1) -> 0 | AD196: 0 | AE196: =+IF(INDEX($C196:$L196,1,aux!$BA$1)>0,(L196/INDEX($C196:$L196,1,aux!$BA$1))^(1/($L$3-INDEX($C$3:$L$3,1,aux!$BA$1)))-1,"n.d.") -> n.d. | AF196: =IF(INDEX($C196:$L196,1,aux!$BA$1)>0,(L196-INDEX($C196:$L196,1,aux!$BA$1))/INDEX($C196:$L196,1,aux!$BA$1),"n.d.") -> n.d. | AH196: =X196-INDEX($O196:$X196,1,aux!$BA$1) -> 0 | AI196: 0 | AJ196: =+IF(INDEX($O196:$X196,1,aux!$BA$1)>0,(X196/INDEX($O196:$X196,1,aux!$BA$1))^(1/($X$3-INDEX($O$3:$X$3,1,aux!$BA$1)))-1,"n.d.") -> n.d. | AK196: =IF(INDEX($O196:$X196,1,aux!$BA$1)>0,(X196-INDEX($O196:$X196,1,aux!$BA$1))/INDEX($O196:$X196,1,aux!$BA$1),"n.d.") -> n.d. | BO196: =SUM(C196:L196,O196:X196) -> 2486.932 | CC196: =+IF(ISNA(MATCH('5.1'!A196,AUX_2d_pais!$G$2:$G$40000,0)),0,1) -> 1
A197: 0329 | B197: Santa Helena | C197: 0 | D197: 0 | E197: 0 | F197: 0 | G197: 0 | H197: 0 | I197: 130.298 | J197: 115.78 | K197: 253.701 | L197: 53.431 | M197: 55.321 | N197: 4.86608396e-06 | O197: 0 | P197: 0 | Q197: 0 | R197: 0 | S197: 0 | T197: 0 | U197: 0 | V197: 0 | W197: 0 | X197: 0 | Y197: 0 | Z197: 0 | AA197: -55.321 | AC197: =L197-INDEX($C197:$L197,1,aux!$BA$1) -> 53.431 | AD197: 1.296038926e-05 | AE197: =+IF(INDEX($C197:$L197,1,aux!$BA$1)>0,(L197/INDEX($C197:$L197,1,aux!$BA$1))^(1/($L$3-INDEX($C$3:$L$3,1,aux!$BA$1)))-1,"n.d.") -> n.d. | AF197: =IF(INDEX($C197:$L197,1,aux!$BA$1)>0,(L197-INDEX($C197:$L197,1,aux!$BA$1))/INDEX($C197:$L197,1,aux!$BA$1),"n.d.") -> n.d. | AH197: =X197-INDEX($O197:$X197,1,aux!$BA$1) -> 0 | AI197: 0 | AJ197: =+IF(INDEX($O197:$X197,1,aux!$BA$1)>0,(X197/INDEX($O197:$X197,1,aux!$BA$1))^(1/($X$3-INDEX($O$3:$X$3,1,aux!$BA$1)))-1,"n.d.") -> n.d. | AK197: =IF(INDEX($O197:$X197,1,aux!$BA$1)>0,(X197-INDEX($O197:$X197,1,aux!$BA$1))/INDEX($O197:$X197,1,aux!$BA$1),"n.d.") -> n.d. | BO197: 553.21 | CC197: =+IF(ISNA(MATCH('5.1'!A197,AUX_2d_pais!$G$2:$G$40000,0)),0,1) -> 1
A198: 0465 | B198: Santa Lúcia | C198: 0 | D198: 0 | E198: 0 | F198: 0 | G198: 0 | H198: 0 | I198: 0 | J198: 0 | K198: 0 | L198: 0 | M198: 0 | N198: 0 | O198: 6.063 | P198: 12.656 | Q198: 5.924 | R198: 29.508 | S198: 21.805 | T198: 25.366 | U198: 54.471 | V198: 59.115 | W198: 54.703 | X198: 146.674 | Y198: 41.6285 | Z198: 4.365692864e-06 | AA198: 41.6285 | AC198: =L198-INDEX($C198:$L198,1,aux!$BA$1) -> 0 | AD198: 0 | AE198: =+IF(INDEX($C198:$L198,1,aux!$BA$1)>0,(L198/INDEX($C198:$L198,1,aux!$BA$1))^(1/($L$3-INDEX($C$3:$L$3,1,aux!$BA$1)))-1,"n.d.") -> n.d. | AF198: =IF(INDEX($C198:$L198,1,aux!$BA$1)>0,(L198-INDEX($C198:$L198,1,aux!$BA$1))/INDEX($C198:$L198,1,aux!$BA$1),"n.d.") -> n.d. | AH198: =X198-INDEX($O198:$X198,1,aux!$BA$1) -> 140.611 | AI198: 2.845320056e-05 | AJ198: =+IF(INDEX($O198:$X198,1,aux!$BA$1)>0,(X198/INDEX($O198:$X198,1,aux!$BA$1))^(1/($X$3-INDEX($O$3:$X$3,1,aux!$BA$1)))-1,"n.d.") -> 0.424756407 | AK198: =IF(INDEX($O198:$X198,1,aux!$BA$1)>0,(X198-INDEX($O198:$X198,1,aux!$BA$1))/INDEX($O198:$X198,1,aux!$BA$1),"n.d.") -> 23.1916543 | BO198: 416.285 | CC198: =+IF(ISNA(MATCH('5.1'!A198,AUX_2d_pais!$G$2:$G$40000,0)),0,1) -> 1
A199: 0045 | B199: Santa Sé (Cidade Estado do Vaticano) | C199: 0 | D199: 0 | E199: 0 | F199: 0 | G199: 0 | H199: 0 | I199: 0 | J199: 0 | K199: 0 | L199: 0 | M199: 0 | N199: 0 | O199: 0 | P199: 0 | Q199: 0 | R199: 0 | S199: 2.619 | T199: 0 | U199: 0 | V199: 0 | W199: 0 | X199: 0.011 | Y199: 0.263 | Z199: 2.758151803e-08 | AA199: 0.263 | AC199: =L199-INDEX($C199:$L199,1,aux!$BA$1) -> 0 | AD199: 0 | AE199: =+IF(INDEX($C199:$L199,1,aux!$BA$1)>0,(L199/INDEX($C199:$L199,1,aux!$BA$1))^(1/($L$3-INDEX($C$3:$L$3,1,aux!$BA$1)))-1,"n.d.") -> n.d. | AF199: =IF(INDEX($C199:$L199,1,aux!$BA$1)>0,(L199-INDEX($C199:$L199,1,aux!$BA$1))/INDEX($C199:$L199,1,aux!$BA$1),"n.d.") -> n.d. | AH199: =X199-INDEX($O199:$X199,1,aux!$BA$1) -> 0.011 | AI199: 2.225894177e-09 | AJ199: =+IF(INDEX($O199:$X199,1,aux!$BA$1)>0,(X199/INDEX($O199:$X199,1,aux!$BA$1))^(1/($X$3-INDEX($O$3:$X$3,1,aux!$BA$1)))-1,"n.d.") -> n.d. | AK199: =IF(INDEX($O199:$X199,1,aux!$BA$1)>0,(X199-INDEX($O199:$X199,1,aux!$BA$1))/INDEX($O199:$X199,1,aux!$BA$1),"n.d.") -> n.d. | BO199: 2.63 | CC199: =+IF(ISNA(MATCH('5.1'!A199,AUX_2d_pais!$G$2:$G$40000,0)),0,1) -> 1
A200: 0466 | B200: São Bartolomeu | C200: 0 | D200: 0 | E200: 0 | F200: 0 | G200: 0 | H200: 0 | I200: 0 | J200: 0.017 | K200: 0 | L200: 0 | M200: 0.0017 | N200: 1.495334996e-10 | O200: 0 | P200: 0 | Q200: 0 | R200: 0 | S200: 251.518 | T200: 408.098 | U200: 657.877 | V200: 1223.027 | W200: 1417.352 | X200: 1633.081 | Y200: 559.0953 | Z200: 5.863382927e-05 | AA200: 559.0936 | AC200: =L200-INDEX($C200:$L200,1,aux!$BA$1) -> 0 | AD200: 0 | AE200: =+IF(INDEX($C200:$L200,1,aux!$BA$1)>0,(L200/INDEX($C200:$L200,1,aux!$BA$1))^(1/($L$3-INDEX($C$3:$L$3,1,aux!$BA$1)))-1,"n.d.") -> n.d. | AF200: =IF(INDEX($C200:$L200,1,aux!$BA$1)>0,(L200-INDEX($C200:$L200,1,aux!$BA$1))/INDEX($C200:$L200,1,aux!$BA$1),"n.d.") -> n.d. | AH200: =X200-INDEX($O200:$X200,1,aux!$BA$1) -> 1633.081 | AI200: 0.000330460499 | AJ200: =+IF(INDEX($O200:$X200,1,aux!$BA$1)>0,(X200/INDEX($O200:$X200,1,aux!$BA$1))^(1/($X$3-INDEX($O$3:$X$3,1,aux!$BA$1)))-1,"n.d.") -> n.d. | AK200: =IF(INDEX($O200:$X200,1,aux!$BA$1)>0,(X200-INDEX($O200:$X200,1,aux!$BA$1))/INDEX($O200:$X200,1,aux!$BA$1),"n.d.") -> n.d. | CC200: =+IF(ISNA(MATCH('5.1'!A200,AUX_2d_pais!$G$2:$G$40000,0)),0,1) -> 1
... 53 more rows

Sheet 5.1_var
A1: ="Principais contributos por país para a variação das trocas comerciais PT-Todo o Mundo_x000D_ no período " & INDEX('5.2'!P3:X3,1,aux!BA1) & "-2018 Agroalimentar, Mar & Florestas (valores em milhares de euros)" -> Principais contributos por país para a variação das trocas comerciais PT-Todo o Mundo no período 2009-2018 Agroalimentar, Mar & Florestas (valores em milhares de euros)
E5: aumento das importações | J5: aumento das exportações
E17: redução das importações | J17: redução das exportações
A28: Fonte: GPP a partir de dados INE/Comércio Internacional (2017 provisórios; 2018 preliminares) | H28: ='3'!Y116 -> 2019-11-18T16:29:21.570
A29: Cód. NC | B29: Descritivo | C29: ="Variação das Importações " & INDEX('5.2'!C3:L3,1,aux!BA1) & "-"& '5.2'!L3&"" -> Variação das Importações 2009-2018 | F29: Cód. NC | G29: Descritivo | H29: ="Variação das Exportações " & INDEX('5.2'!P3:X3,1,aux!BA1) & "-"& '5.2'!Y3 &"" -> Variação das Exportações 2009-2018
C30: variação total em valor | D30: % do aumento/ redução total | H30: variação total em valor | I30: % do aumento/ redução total
A31: =IF(C31>0,aux!CY6,"") -> 0011 | B31: =IF(C31>0,aux!CZ6,"") -> Espanha | C31: =IF(aux!DA6>0,aux!DA6,0) -> 1802558.021 | D31: =IF(SUM($C$31:$C$41)<>0,C31/SUM($C$31:$C$41),0) -> 0.404003891 | F31: =IF(H31>0,aux!DD6,"") -> 0011 | G31: =IF(H31>0,aux!DE6,"") -> Espanha | H31: =IF(aux!DF6>0,aux!DF6,0) -> 1354014.898 | I31: =IF(SUM($H$31:$H$41)<>0,H31/SUM($H$31:$H$41),0) -> 0.2606585306
A32: =IF(C32>0,aux!CY7,"") -> 0004 | B32: =IF(C32>0,aux!CZ7,"") -> Alemanha | C32: =IF(aux!DA7>0,aux!DA7,0) -> 312667.861 | D32: =IF(SUM($C$31:$C$41)<>0,C32/SUM($C$31:$C$41),0) -> 0.07007765129 | F32: =IF(H32>0,aux!DD7,"") -> 0001 | G32: =IF(H32>0,aux!DE7,"") -> França | H32: =IF(aux!DF7>0,aux!DF7,0) -> 416171.545 | I32: =IF(SUM($H$31:$H$41)<>0,H32/SUM($H$31:$H$41),0) -> 0.08011629971
A33: =IF(C33>0,aux!CY8,"") -> 0003 | B33: =IF(C33>0,aux!CZ8,"") -> Países Baixos | C33: =IF(aux!DA8>0,aux!DA8,0) -> 263209.356 | D33: 0.05899261091 | F33: =IF(H33>0,aux!DD8,"") -> 0005 | G33: =IF(H33>0,aux!DE8,"") -> Itália | H33: =IF(aux!DF8>0,aux!DF8,0) -> 393189.175 | I33: 0.0756920125
A34: =IF(C34>0,aux!CY9,"") -> 0400 | B34: =IF(C34>0,aux!CZ9,"") -> Estados Unidos | C34: =IF(aux!DA9>0,aux!DA9,0) -> 225360.688 | D34: 0.05050966114 | F34: =IF(H34>0,aux!DD9,"") -> 0400 | G34: =IF(H34>0,aux!DE9,"") -> Estados Unidos | H34: =IF(aux!DF9>0,aux!DF9,0) -> 279675.683 | I34: 0.05383977139
A35: =IF(C35>0,aux!CY10,"") -> 0030 | B35: =IF(C35>0,aux!CZ10,"") -> Suécia | C35: =IF(aux!DA10>0,aux!DA10,0) -> 162471.075 | D35: 0.03641433214 | F35: =IF(H35>0,aux!DD10,"") -> 0508 | G35: =IF(H35>0,aux!DE10,"") -> Brasil | H35: =IF(aux!DF10>0,aux!DF10,0) -> 271847.423 | I35: 0.05233276969
A36: =IF(C36>0,aux!CY11,"") -> 0005 | B36: =IF(C36>0,aux!CZ11,"") -> Itália | C36: =IF(aux!DA11>0,aux!DA11,0) -> 139905.613 | D36: 0.03135677818 | F36: =IF(H36>0,aux!DD11,"") -> 0006 | G36: =IF(H36>0,aux!DE11,"") -> Reino Unido | H36: =IF(aux!DF11>0,aux!DF11,0) -> 240150.931 | I36: 0.04623094538
A37: =IF(C37>0,aux!CY12,"") -> 0072 | B37: =IF(C37>0,aux!CZ12,"") -> Ucrânia | C37: =IF(aux!DA12>0,aux!DA12,0) -> 135275.44 | D37: 0.03031902634 | F37: =IF(H37>0,aux!DD12,"") -> 0003 | G37: =IF(H37>0,aux!DE12,"") -> Países Baixos | H37: =IF(aux!DF12>0,aux!DF12,0) -> 230815.576 | I37: 0.04443381602
A38: =IF(C38>0,aux!CY13,"") -> 0388 | B38: =IF(C38>0,aux!CZ13,"") -> África do Sul | C38: =IF(aux!DA13>0,aux!DA13,0) -> 124423.331 | D38: 0.02788676385 | F38: =IF(H38>0,aux!DD13,"") -> 0004 | G38: =IF(H38>0,aux!DE13,"") -> Alemanha | H38: =IF(aux!DF13>0,aux!DF13,0) -> 217840.317 | I38: 0.04193597649
A39: =IF(C39>0,aux!CY14,"") -> 0060 | B39: =IF(C39>0,aux!CZ14,"") -> Polónia | C39: =IF(aux!DA14>0,aux!DA14,0) -> 121420.279 | D39: 0.02721369553 | F39: =IF(H39>0,aux!DD14,"") -> 0060 | G39: =IF(H39>0,aux!DE14,"") -> Polónia | H39: =IF(aux!DF14>0,aux!DF14,0) -> 212058.807 | I39: 0.04082299028
A40: =IF(C40>0,aux!CY15,"") -> 0524 | B40: =IF(C40>0,aux!CZ15,"") -> Uruguai | C40: =IF(aux!DA15>0,aux!DA15,0) -> 106967.704 | D40: 0.02397446746 | F40: =IF(H40>0,aux!DD15,"") -> 0720 | G40: =IF(H40>0,aux!DE15,"") -> China, República Popular da | H40: =IF(aux!DF15>0,aux!DF15,0) -> 145998.868 | I40: 0.02810593181
B41: Outros contributos para o aumento das importações | C41: =SUMIF(aux!DA16:DA252,">0") -> 1067474.94 | D41: 0.2392511222 | G41: Outros contributos para o aumento das exportações | H41: =SUMIF(aux!DF16:DF252,">0") -> 1432829.469 | I41: 0.2758309561
B42: Outros contributos para a redução das importações | C42: =SUMIF(aux!DA6:DA242,"<0") -> -79526.928 | D42: =IF(SUM($C$42:$C$52)<>0,C42/SUM($C$42:$C$52),0) -> 0.2427547796 | G42: Outros contributos para a redução das exportações | H42: =SUMIF(aux!DF6:DF242,"<0") -> -321.76 | I42: =IF(SUM($H$42:$H$52)<>0,H42/SUM($H$42:$H$52),0) -> 0.00632163946
A43: =IF(C43<>0,aux!CY243,"") -> 0322 | B43: =IF(C43<0,aux!CZ243,"") -> Congo, República Democrática do | C43: =IF(aux!DA243<0,aux!DA243,0) -> -13284.782 | D43: =IF(SUM($C$42:$C$52)<>0,C43/SUM($C$42:$C$52),0) -> 0.04055160192 | F43: =IF(H43<>0,aux!DD243,"") -> 0338 | G43: =IF(H43<>0,aux!DE243,"") -> Jibuti | H43: =IF(aux!DF243<0,aux!DF243,0) -> -427.031 | I43: =IF(SUM($H$42:$H$52)<>0,H43/SUM($H$42:$H$52),0) -> 0.008389905582
A44: =IF(C44<>0,aux!CY244,"") -> 0006 | B44: =IF(C44<0,aux!CZ244,"") -> Reino Unido | C44: =IF(aux!DA244<0,aux!DA244,0) -> -14090.686 | D44: 0.04301161204 | F44: =IF(H44<>0,aux!DD244,"") -> 0478 | G44: =IF(H44<>0,aux!DE244,"") -> Antilhas Holandesas | H44: =IF(aux!DF244<0,aux!DF244,0) -> -611.524 | I44: 0.01201465144
A45: =IF(C45<>0,aux!CY245,"") -> 0028 | B45: =IF(C45<0,aux!CZ245,"") -> Noruega | C45: =IF(aux!DA245<0,aux!DA245,0) -> -14105.013 | D45: 0.043055345 | F45: =IF(H45<>0,aux!DD245,"") -> 0043 | G45: =IF(H45<>0,aux!DE245,"") -> Andorra | H45: =IF(aux!DF245<0,aux!DF245,0) -> -637.208 | I45: 0.01251926665
A46: =IF(C46<>0,aux!CY246,"") -> 0393 | B46: =IF(C46<0,aux!CZ246,"") -> Suazilândia | C46: =IF(aux!DA246<0,aux!DA246,0) -> -15040.186 | D46: 0.04590994685 | F46: =IF(H46<>0,aux!DD246,"") -> 0389 | G46: =IF(H46<>0,aux!DE246,"") -> Namíbia | H46: =IF(aux!DF246<0,aux!DF246,0) -> -926.384 | I46: 0.01820072616
A47: =IF(C47<>0,aux!CY247,"") -> 0007 | B47: =IF(C47<0,aux!CZ247,"") -> Irlanda | C47: =IF(aux!DA247<0,aux!DA247,0) -> -20088.222 | D47: 0.06131900259 | F47: =IF(H47<>0,aux!DD247,"") -> 0047 | G47: =IF(H47<>0,aux!DE247,"") -> São Marino | H47: =IF(aux!DF247<0,aux!DF247,0) -> -1061.57 | I47: 0.02085673422
A48: =IF(C48<>0,aux!CY248,"") -> 0382 | B48: =IF(C48<0,aux!CZ248,"") -> Zimbabwe | C48: =IF(aux!DA248<0,aux!DA248,0) -> -22611.411 | D48: 0.06902099995 | F48: =IF(H48<>0,aux!DD248,"") -> 0728 | G48: =IF(H48<>0,aux!DE248,"") -> Coreia, República da | H48: =IF(aux!DF248<0,aux!DF248,0) -> -2637.324 | I48: 0.05181567462
A49: =IF(C49<>0,aux!CY249,"") -> 0378 | B49: =IF(C49<0,aux!CZ249,"") -> Zâmbia | C49: =IF(aux!DA249<0,aux!DA249,0) -> -28438.238 | D49: 0.08680730378 | F49: =IF(H49<>0,aux!DD249,"") -> 0528 | G49: =IF(H49<>0,aux!DE249,"") -> Argentina | H49: =IF(aux!DF249<0,aux!DF249,0) -> -3118.935 | I49: 0.06127791698
A50: =IF(C50<>0,aux!CY250,"") -> 0039 | B50: =IF(C50<0,aux!CZ250,"") -> Suíça | C50: =IF(aux!DA250<0,aux!DA250,0) -> -39620.596 | D50: 0.1209412873 | F50: =IF(H50<>0,aux!DD250,"") -> 0061 | G50: =IF(H50<>0,aux!DE250,"") -> Checa, República | H50: =IF(aux!DF250<0,aux!DF250,0) -> -8479.037 | I50: 0.1665881865
A51: =IF(C51<>0,aux!CY251,"") -> 90XS | B51: =IF(C51<0,aux!CZ251,"") -> Sérvia | C51: =IF(aux!DA251<0,aux!DA251,0) -> -40095.132 | D51: 0.1223898015 | F51: =IF(H51<>0,aux!DD251,"") -> 0484 | G51: =IF(H51<>0,aux!DE251,"") -> Venezuela | H51: =IF(aux!DF251<0,aux!DF251,0) -> -8571.777 | I51: 0.1684102552
A52: =IF(C52<>0,aux!CY252,"") -> 0528 | B52: =IF(C52<0,aux!CZ252,"") -> Argentina | C52: =IF(aux!DA252<0,aux!DA252,0) -> -40700.71 | D52: 0.1242383194 | F52: =IF(H52<>0,aux!DD252,"") -> 0330 | G52: =IF(H52<>0,aux!DE252,"") -> Angola | H52: =IF(aux!DF252<0,aux!DF252,0) -> -24105.639 | I52: 0.4736050432
A53: TOTAL | C53: =SUM(C31:C52) -> 4134132.404 | F53: TOTAL | H53: =SUM(H31:H52) -> 5143694.503

Sheet 5.1A
A1: Trocas comerciais Portugal-Todo o Mundo (2009-2018) por país em milhares de euros | C1: Produtos agrícolas e agroalimentares
A2: Cód. País | B2: País | C2: Importações | O2: Exportações | AA2: Saldo período (exp-imp) | AB2: Evolução das importações | AC2: =+"Variação das Importações " & INDEX(C3:K3,1,aux!$BA$1) & "-"& L3 &"" -> Variação das Importações 2009-2018 | AG2: Evolução das exportações | AH2: ="Variação das Exportações " & INDEX(O3:W3,1,aux!BA1) & "-"& X3 &"" -> Variação das Exportações 2009-2018
C3: 2009 | D3: 2010 | E3: 2011 | F3: 2012 | G3: 2013 | H3: 2014 | I3: 2015 | J3: 2016 | K3: 2017 | L3: 2018 | M3: média período | N3: % Total | O3: 2009 | P3: 2010 | Q3: 2011 | R3: 2012 | S3: 2013 | T3: 2014 | U3: 2015 | V3: 2016 | W3: 2017 | X3: 2018 | Y3: média período | Z3: % Total | AC3: variação total em valor | AD3: % no total de variação | AE3: taxa de variação média anual | AF3: taxa de variação total | AH3: variação total em valor | AI3: % no total de variação | AJ3: taxa de variação média anual | AK3: taxa de variação total | CC3: filtro
